Workbook

Sheet Control Panel
A1: GO TO
A2: Utah | B2: Wyoming | D2: FILING INFORMATION | N2: Model Checks
A3: 1.1 | B3: 1.1 | N3: (Must Be 0)
A4: 1.2 | B4: 1.2 | F4: UTAH | J4: WYOMING | N4: ='Model Checks'!D7 -> 
A5: 1.3 pg 1 | B5: 1.3 pg 1 | E5: Current Case No. | F5: 11-057-08 | J5: 30010-1__-GP-11 | N5: (If this is not 0, or very close, go to
A6: 1.3 pg 2 | B6: 1.3 pg 2 | E6: Filing Date | F6: 2011-08-30 | J6: 2011-08-30 | N6: the "Model Checks"
B7: 1.3 pg 3 | E7: Test Year Ending | F7: 2012-09-30 | J7: 2012-09-30 | N7: Tab and find the
A8: 1.4 pg 1 | B8: 1.4 pg 1 | E8: Proposed Effective Date | F8: 2011-10-01 | J8: 2011-10-01 | N8: problem.)
A9: 1.4 pg 2 | B9: 1.4 pg 2 | E9: Prior Case No. | F9: 11-057-02 | J9: 30010-108-GP-11
A10: 1.4 pg 3 | N10: Go To
A11: 1.5 | B11: 1.5 | D11: Total Increase (Decrease) | F11: ='Utah Summary-by class'!Q28 -> -26181631 | H11: =F11-G11 -> -26181631 | J11: ='Wy 1.7 p2'!F49 -> 448601.2049 | L11: =J11-K11 -> 448601.2049 | N11: Model Checks'
A12: 1.6 pg 1 | B12: 1.6 pg 1
A13: 1.6 pg 2 | B13: 1.6 pg 2
A14: 1.6 pg 3 | B14: 1.6 pg 3 | D14: Typical Customer's Bill
A15: 1.7 pg 1 | B15: 1.7 pg 1 | N15: New Data color
A16: 1.7 pg 2 | B16: 1.7 pg 2 | E16: Previous | F16: ='Ut 1.7'!F30 -> 692.84 | J16: ='Wy 1.7 p1'!F33 -> 758.11 | N16: Old Data color
A17: 1.8 | B17: 1.8 | E17: Proposed | F17: ='Ut 1.7'!H30 -> 674.33 | J17: ='Wy 1.7 p1'!G33 -> 769.53
A18: 1.9 | B18: 1.9 | E18: Difference | F18: ='Ut 1.7'!J30 -> -18.51 | H18: =F18-G18 -> -18.51 | J18: ='Wy 1.7 p1'!H33 -> 11.42 | L18: =J18-K18 -> 11.42
A19: Monthly Inputs | E19: % Difference | F19: ='Ut 1.7'!J32 -> -2.67 | H19: =F19-G19 -> -2.67 | J19: ='Wy 1.7 p1'!H37 -> 1.51 | L19: =J19-K19 -> 1.51
A20: Other Inputs
A21: Expenses
A22: Rate Base
N28: 37777609
D29: Exhibit Headings | N29: 8603966
N30: =SUM(N28:N29) -> 46381575
D31: UTAH
F32: Questar Gas Company
F33: ="Docket No. "&F5 -> Docket No. 11-057-08
D35: WYOMING
F36: =F32 -> Questar Gas Company
F37: ="PSCW Docket No. "&J5 -> PSCW Docket No. 30010-1__-GP-11
D39: Test Year (enter as text)
E40: from | F40: Oct-11
E41: to | F41: Sep-12

Sheet Application
A1: Application Information
B3: Utah | F3: Wyoming
A4: Utah Gas Costs | B4: ='Ut 1.5'!G41 -> 540357735.2 | E4: Wyoming Gas Costs | F4: ='Wy 1.5'!F43 -> 18682794
A5: Increase (Decrease) to Commodity | B5: ='Utah Summary-by class'!G31 -> -6017000 | E5: Increase (Decrease) to Commodity | F5: ='Wy 1.7 p2'!F49 -> 448601.2049
A6: Increase (Decrease) to SNG | B6: ='Utah Summary-by class'!N31 -> -20164000
A7: Total Increase (Decrease) | B7: ='Utah Summary-by class'!Q31 -> -26182000
A8: Typical Increase in $ | B8: ='Ut 1.7'!J30 -> -18.51 | E8: Typical Increase in $ | F8: ='Wy 1.7 p1'!H33 -> 11.42
A9: Typical Monthly Increase | B9: =B8/12 -> -1.5425 | E9: Typical Monthly Increase | F9: =F8/12 -> 0.9516666667
A10: Typical Increase in % | B10: ='Ut 1.7'!J32/100 -> -0.0267 | E10: Typical Increase in % | F10: ='Wy 1.7 p1'!H37/100 -> 0.0151
A11: Proposed Rate Effective Date | B11: ='Control Panel'!F8 -> 2011-10-01 | E11: Proposed Rate Effective Date | F11: ='Control Panel'!J8 -> 2011-10-01
A12: Test Year Ending | B12: ='Control Panel'!F7 -> 2012-09-30 | E12: Test Year Ending | F12: ='Control Panel'!J7 -> 2012-09-30
A13: System-Wide Production Costs | B13: ='Ut 1.1'!H1291 -> 307630623.8 | E13: System-Wide Production Costs | F13: ='Wy 1.1'!H1291 -> 307630623.8
A14: System-Wide Royalty Payments | B14: ='Ut 1.1'!H1286 -> 43142265.8 | E14: System-Wide Royalty Payments | F14: ='Wy 1.1'!H1286 -> 43142265.8
A15: Wexpro Operators Service Fee | B15: ='Ut 1.1'!H1288 -> 264488358 | E15: Wexpro Operators Service Fee | F15: ='Wy 1.1'!H1288 -> 264488358
A16: Purchased Gas Costs | B16: ='Ut 1.2'!G24 -> 175762101 | E16: Purchased Gas Costs | F16: ='Wy 1.2'!G25 -> 175762101.1
A17: Purchased Gas Costs per Dth | B17: ='Ut 1.2'!F24 -> 4.053693008 | E17: Purchased Gas Costs per Dth | F17: ='Wy 1.2'!F25 -> 4.053693011
A18: Contracted Dth | B18: ='Ut 1.2'!E17 -> 25845109 | C18: Dth | E18: Contracted Dth | F18: ='Wy 1.2'!E18 -> 25845109 | G18: Dth
A19: Contracted Dth Costs | B19: ='Ut 1.2'!G17 -> 109480466 | E19: Contracted Dth Costs | F19: ='Wy 1.2'!G18 -> 109480466.4
A20: Stabailization Costs | B20: ='Ut 1.2'!G16 -> 1999999.98 | E20: Stabailization Costs | F20: ='Wy 1.2'!G17 -> 1999999.98
A21: Spot Market Dth | B21: ='Ut 1.2'!E19 -> 16435831 | C21: Dth | E21: Spot Market Dth | F21: ='Wy 1.2'!E20 -> 16435831 | G21: Dth
A22: Spot Market Costs | B22: ='Ut 1.2'!G19 -> 62034752 | E22: Spot Market Costs | F22: ='Wy 1.2'!G20 -> 62034751.7
A23: Purchased Gas Dth | B23: ='Ut 1.2'!E24 -> 43358513 | C23: Dth | E23: Purchased Gas Dth | F23: ='Wy 1.2'!E25 -> 43358513 | G23: Dth
A24: Future Contract Dth | B24: ='Ut 1.2'!E21 -> 1077573 | C24: Dth | E24: Future Contract Dth | F24: ='Wy 1.2'!E22 -> 1077573 | G24: Dth
A25: Future Contract Costs | B25: ='Ut 1.2'!G21 -> 4246883 | E25: Future Contract Costs | F25: ='Wy 1.2'!G22 -> 4246883
A26: Transportation & Gathering Costs | B26: ='Ut 1.3 p1'!M59 -> 90821202 | E26: Transportation & Gathering Costs | F26: ='Wy 1.3 p1'!M57 -> 90771540.58
A27: Transportation Costs | B27: ='Ut 1.3 p1'!M28 -> 62075648 | E27: Kern River Transportation Costs | F27: ='Wy 1.3 p1'!M28 -> 62025985.88
A28: Capacity Release Credits | B28: =-'Ut 1.3 p1'!L19 -> 446959 | E28: Capacity Release Credits | F28: =-'Wy 1.3 p1'!L19 -> 496621.04
A29: Transportation Commodity Costs | B29: ='Ut 1.3 p1'!M43 -> 595520 | E29: Transportation Commodity Costs | F29: ='Wy 1.3 p1'!M43 -> 595520.4807
E30: QGM Gathering Costs | F30: ='Wy 1.3 p1'!M49 -> 23256379.96
A31: Other Trans. & Gathering Costs | B31: ='Ut 1.3 p1'!L52 -> 2911123 | E31: Other Trans. & Gathering Costs | F31: ='Wy 1.3 p1'!M54 -> 4893654.26
A32: CO2 Processing Costs
A33: Storage & Working Gas Costs | B33: ='Ut 1.3 p1'!L53 -> 1982531 | E33: Storage & Working Gas Costs | F33: ='Wy 1.3 p2'!K54 -> 18341626.88
A34: Total Other Costs | B34: ='Ut 1.3 p1'!M54 -> 4893654
A35: Storage Costs | B35: ='Ut 1.3 p2'!K54 -> 18284068.16 | E35: Storage Costs | F35: ='Wy 1.3 p2'!K29 -> 14513972
A36: Storage Demand | B36: ='Ut 1.3 p2'!J20 -> 14025058
A37: Storage Commodity | B37: ='Ut 1.3 p2'!J27 -> 488914
A38: Working Storage Gas Return | B38: ='Ut 1.3 p2'!K51 -> 3770096.156 | E38: Working Storage Gas Return | F38: ='Wy 1.3 p2'!K51 -> 3827654.876
A39: Total Other Revenues | B39: ='Ut 1.4 p3'!H32 -> 33781257
E40: Production Depreciation & Amort. | F40: ='Wy 1.3 p3'!J20 -> 803683.04
E41: Return on Production Plant | F41: ='Wy 1.3 p3'!J47 -> 548168.2127
E42: Total Production Return & Exp. | F42: ='Wy 1.3 p3'!J50 -> 1351851.253
A43: Utah Gas Costs | B43: ='Ut 1.5'!G41 -> 540357735.2 | E43: Wyoming Gas Costs | F43: ='Wy 1.5'!$F$43 -> 18682794
A44: Utah Gas Costs | B44: =B43 -> 540357735.2 | E44: Core Customer Gas Costs | F44: ='Wy 1.6 p1'!J17 -> 17945322.53
A45: Utah Net Gas Costs | B45: ='Ut 1.6 p1'!J16 -> 530725616.7 | E45: Core Customer Unit Cost of Gas | F45: ='Wy 1.6 p1'!F31 -> 5.06116
A46: Commodity Portion of Gas Costs | B46: ='Ut 1.6 p1'!J28 -> 429376286.3
A47: Firm Gas Cost | B47: ='Ut 1.6 p1'!F34 -> 4.16664
A48: Current Amortization | B48: ='Ut 1.6 p1'!H35 -> 0.14067 | E48: Current Amortization | F48: ='Wy 1.6 p1'!H32 -> -0.1487
A49: Previous Case No. | B49: ='Ut 1.6 p1'!H32 -> 11-057-02
A50: Forecasted 191 Account Balance | B50: ='Ut 1.6 p1'!D55 -> 13296450 | E50: Forecasted 191 Account Balance | F50: ='Wy 1.6 p1'!F53 -> 121253
A51: Proposed Amortization | B51: ='Ut 1.6 p1'!F35 -> 0.1290277711 | E51: Proposed Amortization | F51: ='Wy 1.6 p1'!F32 -> 0.03419725447
A52: Total Unit Cost in Rates | B52: ='Ut 1.6 p1'!F36 -> 4.295667771 | E52: Total Unit Cost in Rates | F52: ='Wy 1.6 p1'!F33 -> 5.095357254
A53: Increase in Unit Cost In Rates | B53: ='Ut 1.6 p1'!J36 -> -0.05839222891
A54: Test Year SNG Costs | B54: ='Ut 1.6 p2'!F14 -> 101349330.5
A55: Forested 191 SNG Balance | B55: ='Ut 1.6 p2'!F15 -> 0
A56: Total SNG | B56: ='Ut 1.6 p2'!F16 -> 101349330.5
A57: Forecasted Current SNG Revenues | B57: ='Ut 1.6 p2'!F19 -> 104967931.8
A58: % Change in SNG Rates | B58: =-ROUND('Ut 1.6 p2'!F35,2)/100 -> 0.0346
A59: Average Monthly Increase | B59: ='Ut 1.7'!J30/12 -> -1.5425 | E59: Typical Increase in $ | F59: ='Wy 1.7 p1'!H33 -> 11.42
A60: Typical Increase in % | B60: ='Ut 1.7'!J32/100 -> -0.0267 | E60: Typical Increase in % | F60: ='Wy 1.7 p1'!H37/100 -> 0.0151
A61: Company Owned Gas % | E61: Company Owned Gas % | F61: =Calculations!P174 -> 0.6214246078
A62: Utah Gas Costs | B62: ='Ut 1.5'!G41 -> 540357735.2 | E62: Wyoming Gas Costs | F62: ='Wy 1.5'!$F$43 -> 18682794

Sheet Monthly Inputs
A1: MONTHLY INPUTS | E1: Col. E-F, copy from col. J-K (or appropriate columns), rows 3 through 76, before updating test year
G2: TEST YEAR COLUMNS | S2: 12-Month
E3: Aug11 | F3: Sep11 | G3: Oct11 | H3: Nov11 | I3: Dec11 | J3: Jan12 | K3: Feb12 | L3: Mar12 | M3: Apr12 | N3: May12 | O3: Jun12 | P3: Jul12 | Q3: Aug12 | R3: Sep12 | S3: Total
E4: =MONTH(E3) -> 8 | F4: 9 | G4: =MONTH(G3) -> 10 | H4: 11 | I4: 12 | J4: 1 | K4: 2 | L4: 3 | M4: 4 | N4: 5 | O4: 6 | P4: 7 | Q4: 8 | R4: 9
A5: QGC Company Produced Gas In MDth | G5: Scott Nelsen | I5: Updated: | J5: 2011-08-16
B7: Prior Company | E7: 656.903 | F7: 697.681 | G7: 737.451 | H7: 870.296 | I7: 848.711 | J7: 838.299 | K7: 821.751 | L7: 780.228 | M7: 823.981 | N7: 793.005 | O7: 858.596 | P7: 712.471 | Q7: 668.343 | R7: 774.769 | S7: =SUM(G7:R7) -> 9527.901 | U7: ScottN
B8: D24 & D21 | E8: 4561.059 | F8: 4705.294 | G8: 5173.295 | H8: 5328.065 | I8: 5164.14 | J8: 5176.802 | K8: 5361.767 | L8: 5327.606 | M8: 5203.345 | N8: 5187.179 | O8: 4965.677 | P8: 4845.276 | Q8: 4632.869 | R8: 5161.672 | S8: =SUM(G8:R8) -> 61527.693 | U8: ScottN
B9: Total Prior Company & D24 | E9: =SUM(E7:E8) -> 5217.962 | F9: 5402.975 | G9: =SUM(G7:G8) -> 5910.746 | H9: =SUM(H7:H8) -> 6198.361 | I9: 6012.851 | J9: 6015.101 | K9: 6183.518 | L9: 6107.834 | M9: 6027.326 | N9: 5980.184 | O9: 5824.273 | P9: 5557.747 | Q9: 5301.212 | R9: 5936.441 | S9: =SUM(G9:R9) -> 71055.594
B11: Brady | E11: 10.245 | F11: 10.202 | G11: 9.873 | H11: 8.654 | I11: 8.931 | J11: 10.821 | K11: 7.688 | L11: 7.449 | M11: 8.947 | N11: 8.644 | O11: 12.08 | P11: 11.658 | Q11: 10.409 | R11: 11.303 | S11: =SUM(G11:R11) -> 116.457 | U11: ScottN
B12: Total Company Produced Gas (MDth) | E12: =SUM(E9:E11) -> 5228.207 | F12: 5413.177 | G12: =SUM(G9:G11) -> 5920.619 | H12: =SUM(H9:H11) -> 6207.015 | I12: 6021.782 | J12: 6025.922 | K12: 6191.206 | L12: 6115.283 | M12: 6036.273 | N12: 5988.828 | O12: 5836.353 | P12: 5569.405 | Q12: 5311.621 | R12: =SUM(R9:R11) -> 5947.744 | S12: =SUM(G12:R12) -> 71172.051 | T12: =SUM(S9+S11) -> 71172.051 | U12: ck
B16: Company Production In Dth | E16: 5228235 | F16: 5413227 | G16: 5920619 | H16: 6207015 | I16: 6021781 | J16: 6025923 | K16: 6191207 | L16: 6115283 | M16: 6036273 | N16: 5988828 | O16: 5836397 | P16: 5569433 | Q16: 5311649 | R16: 5947801 | S16: =SUM(G16:R16) -> 71172209 | U16: ScottN
B17: Birch Cr Gathering | E17: =E16/$S$16*$S$17 -> 223747.8375 | F17: 231664.7655 | G17: =G16/$S$16*$S$17 -> 253379.1419 | H17: =H16/$S$16*$S$17 -> 265635.7611 | I17: =I16/$S$16*$S$17 -> 257708.4765 | J17: 257885.7377 | K17: 264959.2411 | L17: 261709.9933 | M17: 258328.6769 | N17: 256298.218 | O17: 249774.7724 | P17: 238349.7662 | Q17: 227317.6277 | R17: =R16/$S$16*$S$17 -> 254542.4243 | S17: ='Other Inputs'!$D$156 -> 3045889.837
B18: QGM Gathering | E18: =E16/$S$16*$S$18 -> 3726226.276 | F18: 3858072.31 | G18: =G16/$S$16*$S$18 -> 4219696.721 | H18: =H16/$S$16*$S$18 -> 4423814.612 | I18: 4291796.101 | J18: 4294748.155 | K18: 4412548.059 | L18: 4358436.107 | M18: 4302124.725 | N18: 4268310.1 | O18: 4159670.684 | P18: 3969402.214 | Q18: 3785676.442 | R18: =R16/$S$16*$S$18 -> 4239069.661 | S18: ='Other Inputs'!$D$170 -> 50725293.58
G33: 1000
B34: Injections in Dth
C35: Chalk Creek | E35: 0 | F35: 0 | G35: 151715 | H35: 163609 | I35: 0 | J35: 0 | K35: 0 | L35: 0 | M35: 0 | N35: 0 | O35: 0 | P35: 0 | Q35: 0 | R35: 0 | S35: =SUM(G35:R35) -> 315324 | U35: ScottN
C36: Clay Basin | E36: 2155790 | F36: 1876210 | G36: 1866750 | H36: 1394090 | I36: 0 | J36: 0 | K36: 0 | L36: 0 | M36: 563980 | N36: 966100 | O36: 2316780 | P36: 2312930 | Q36: 2159220 | R36: 1941240 | S36: =SUM(G36:R36) -> 13521090 | U36: ScottN
C37: Coalville | E37: 0 | F37: 130578 | G37: 261776 | H37: 2903 | I37: 0 | J37: 0 | K37: 0 | L37: 0 | M37: 0 | N37: 0 | O37: 0 | P37: 0 | Q37: 0 | R37: 130938 | S37: =SUM(G37:R37) -> 395617 | U37: ScottN
C38: Leroy | E38: 0 | F38: 0 | G38: 468902 | H38: 0 | I38: 0 | J38: 0 | K38: 0 | L38: 0 | M38: 0 | N38: 0 | O38: 0 | P38: 0 | Q38: 0 | R38: 0 | S38: =SUM(G38:R38) -> 468902 | U38: ScottN
C39: Total Injections | E39: =SUM(E35:E38) -> 2155790 | F39: 2006788 | G39: =SUM(G35:G38) -> 2749143 | H39: 1560602 | I39: 0 | J39: 0 | K39: 0 | L39: 0 | M39: 563980 | N39: 966100 | O39: 2316780 | P39: 2312930 | Q39: 2159220 | R39: 2072178 | S39: =SUM(G39:R39) -> 14700933
B41: Withdrawls In Dth
C42: Chalk Creek | E42: 0 | F42: 0 | G42: 0 | H42: 0 | I42: 0 | J42: 326518 | K42: 0 | L42: 0 | M42: 0 | N42: 0 | O42: 0 | P42: 0 | Q42: 0 | R42: 0 | S42: =SUM(G42:R42) -> 326518 | U42: ScottN
C43: Clay Basin | E43: 0 | F43: 0 | G43: 0 | H43: 0 | I43: 6199260 | J43: 4666580 | K43: 2553150 | L43: 0 | M43: 0 | N43: 0 | O43: 0 | P43: 0 | Q43: 0 | R43: 0 | S43: =SUM(G43:R43) -> 13418990 | U43: ScottN
C44: Coalville | E44: 0 | F44: 0 | G44: 0 | H44: 0 | I44: 0 | J44: 365004 | K44: 0 | L44: 0 | M44: 0 | N44: 0 | O44: 0 | P44: 0 | Q44: 0 | R44: 0 | S44: =SUM(G44:R44) -> 365004 | U44: ScottN
C45: Leroy | E45: 0 | F45: 0 | G45: 0 | H45: 0 | I45: 0 | J45: 920089 | K45: 0 | L45: 0 | M45: 0 | N45: 0 | O45: 0 | P45: 0 | Q45: 0 | R45: 0 | S45: =SUM(G45:R45) -> 920089 | U45: ScottN
C46: Total Withdrawls | E46: =SUM(E42:E45) -> 0 | F46: 0 | G46: =SUM(G42:G45) -> 0 | H46: 0 | I46: 6199260 | J46: 6278191 | K46: 2553150 | L46: 0 | M46: 0 | N46: 0 | O46: 0 | P46: 0 | Q46: 0 | R46: 0 | S46: =SUM(G46:R46) -> 15030601
B48: Lost & Unaccounted for on QPC
A51: Injection and Withdrawl Used, Lost and Unaccounted For
D52: Gas Use
D53: %
B54: Injections in Dth
C55: Chalk Creek | D55: ='Other Inputs'!E135 -> 0.0141 | E55: =E35*-$D55 -> 0 | F55: =F35*-$D55 -> 0 | G55: =G35*-$D55 -> -2139.1815 | H55: =H35*-$D55 -> -2306.8869 | I55: =I35*-$D55 -> 0 | J55: =J35*-$D55 -> 0 | K55: 0 | L55: 0 | M55: 0 | N55: 0 | O55: 0 | P55: 0 | Q55: 0 | R55: 0 | S55: =SUM(G55:R55) -> -4446.0684
C56: Clay Basin | D56: ='Other Inputs'!E141 -> 0.0173 | E56: =E36*-$D56 -> -37295.167 | F56: =F36*-$D56 -> -32458.433 | G56: =G36*-$D56 -> -32294.775 | H56: =H36*-$D56 -> -24117.757 | I56: 0 | J56: =J36*-$D56 -> 0 | K56: 0 | L56: 0 | M56: -9756.854 | N56: -16713.53 | O56: -40080.294 | P56: -40013.689 | Q56: -37354.506 | R56: -33583.452 | S56: =SUM(G56:R56) -> -233914.857
C57: Coalville | D57: ='Other Inputs'!E144 -> 0.0327 | E57: =E37*-$D57 -> 0 | F57: -4269.9006 | G57: =G37*-$D57 -> -8560.0752 | H57: -94.9281 | I57: 0 | J57: 0 | K57: 0 | L57: 0 | M57: 0 | N57: 0 | O57: 0 | P57: 0 | Q57: 0 | R57: -4281.6726 | S57: =SUM(G57:R57) -> -12936.6759
C58: Leroy | D58: ='Other Inputs'!E138 -> 0.0109 | E58: =E38*-$D58 -> 0 | F58: 0 | G58: =G38*-$D58 -> -5111.0318 | H58: 0 | I58: 0 | J58: 0 | K58: 0 | L58: 0 | M58: 0 | N58: 0 | O58: 0 | P58: 0 | Q58: 0 | R58: 0 | S58: =SUM(G58:R58) -> -5111.0318
C59: Total Injections | E59: =SUM(E55:E58) -> -37295.167 | F59: -36728.3336 | G59: =SUM(G55:G58) -> -48105.0635 | H59: -26519.572 | I59: 0 | J59: 0 | K59: 0 | L59: 0 | M59: -9756.854 | N59: -16713.53 | O59: -40080.294 | P59: -40013.689 | Q59: -37354.506 | R59: -37865.1246 | S59: =SUM(S55:S58) -> -256408.6331
B61: Withdrawls In Dth
C62: Chalk Creek | D62: ='Other Inputs'!E136 -> 0.0168 | E62: =E42*-$D62 -> 0 | F62: 0 | G62: =G42*-$D62 -> 0 | H62: 0 | I62: 0 | J62: -5485.5024 | K62: 0 | L62: 0 | M62: 0 | N62: 0 | O62: 0 | P62: 0 | Q62: 0 | R62: 0 | S62: =SUM(G62:R62) -> -5485.5024
C63: Clay Basin | D63: ='Other Inputs'!E142 -> 0.0105 | E63: =E43*-$D63 -> 0 | F63: 0 | G63: =G43*-$D63 -> 0 | H63: 0 | I63: -65092.23 | J63: -48999.09 | K63: -26808.075 | L63: 0 | M63: 0 | N63: 0 | O63: 0 | P63: 0 | Q63: 0 | R63: 0 | S63: =SUM(G63:R63) -> -140899.395
C64: Coalville | D64: ='Other Inputs'!E145 -> 0.0291 | E64: =E44*-$D64 -> 0 | F64: 0 | G64: =G44*-$D64 -> 0 | H64: 0 | I64: 0 | J64: -10621.6164 | K64: =K44*-$D64 -> 0 | L64: 0 | M64: 0 | N64: 0 | O64: 0 | P64: 0 | Q64: 0 | R64: 0 | S64: =SUM(G64:R64) -> -10621.6164
C65: Leroy | D65: ='Other Inputs'!E139 -> 0.0203 | E65: =E45*-$D65 -> 0 | F65: 0 | G65: =G45*-$D65 -> 0 | H65: 0 | I65: 0 | J65: -18677.8067 | K65: 0 | L65: 0 | M65: 0 | N65: 0 | O65: 0 | P65: 0 | Q65: 0 | R65: 0 | S65: =SUM(G65:R65) -> -18677.8067
C66: Total Withdrawls | E66: =SUM(E62:E65) -> 0 | F66: 0 | G66: =SUM(G62:G65) -> 0 | H66: 0 | I66: -65092.23 | J66: -83784.0155 | K66: =SUM(K62:K65) -> -26808.075 | L66: 0 | M66: 0 | N66: 0 | O66: 0 | P66: 0 | Q66: 0 | R66: 0 | S66: =SUM(S62:S65) -> -175684.3205
B68: QPC Transportation Loss
C69: Chalk Creek | D69: ='Other Inputs'!$E$257 -> 0.0126 | E69: =E42*-$D69 -> 0 | F69: 0 | G69: =G42*-$D69 -> 0 | H69: 0 | I69: 0 | J69: -4114.1268 | K69: 0 | L69: 0 | M69: 0 | N69: 0 | O69: 0 | P69: 0 | Q69: 0 | R69: 0 | S69: =SUM(G69:R69) -> -4114.1268
C70: Clay Basin | D70: ='Other Inputs'!$E$257 -> 0.0126 | E70: =E43*-$D70 -> 0 | F70: 0 | G70: =G43*-$D70 -> 0 | H70: 0 | I70: -78110.676 | J70: -58798.908 | K70: -32169.69 | L70: 0 | M70: 0 | N70: 0 | O70: 0 | P70: 0 | Q70: 0 | R70: 0 | S70: =SUM(G70:R70) -> -169079.274
C71: Coalville | D71: ='Other Inputs'!$E$257 -> 0.0126 | E71: =E44*-$D71 -> 0 | F71: 0 | G71: =G44*-$D71 -> 0 | H71: 0 | I71: 0 | J71: -4599.0504 | K71: 0 | L71: 0 | M71: 0 | N71: 0 | O71: 0 | P71: 0 | Q71: 0 | R71: 0 | S71: =SUM(G71:R71) -> -4599.0504
C72: Leroy | D72: ='Other Inputs'!$E$257 -> 0.0126 | E72: =E45*-$D72 -> 0 | F72: 0 | G72: 0 | H72: 0 | I72: 0 | J72: -11593.1214 | K72: 0 | L72: 0 | M72: 0 | N72: 0 | O72: 0 | P72: 0 | Q72: 0 | R72: 0 | S72: =SUM(G72:R72) -> -11593.1214
C73: Total Withdrawls | E73: =SUM(E69:E72) -> 0 | F73: 0 | G73: =SUM(G69:G72) -> 0 | H73: 0 | I73: -78110.676 | J73: -79105.2066 | K73: -32169.69 | L73: 0 | M73: 0 | N73: 0 | O73: 0 | P73: 0 | Q73: 0 | R73: 0 | S73: -189385.5726
B76: Total Injections & Withdrawls | E76: =E59+E66 -> -37295.167 | F76: =F59+F66 -> -36728.3336 | G76: =G59+G66 -> -48105.0635 | H76: =H59+H66 -> -26519.572 | I76: =I59+I66 -> -65092.23 | J76: -83784.0155 | K76: =K59+K66 -> -26808.075 | L76: 0 | M76: -9756.854 | N76: -16713.53 | O76: -40080.294 | P76: -40013.689 | Q76: -37354.506 | R76: -37865.1246 | S76: =S59+S66 -> -432092.9536
R78: Fuel Factor | S78: =-S76/(S46+S39) -> 0.01453315371
S80: 12-Month
E81: =E3 -> Aug11 | F81: =F3 -> Sep11 | G81: =G3 -> Oct11 | H81: Nov11 | I81: Dec11 | J81: Jan12 | K81: Feb12 | L81: Mar12 | M81: Apr12 | N81: May12 | O81: Jun12 | P81: Jul12 | Q81: Aug12 | R81: Sep12 | S81: Total
I83: Updated: | J83: 2011-08-16 | K83: EXH 1.2
A84: Natural Gas Spot Price Forecast - Average of GI, Cera & Pira | E84: (Forecast --->) | G84: (Forecast --->)
B85: Kern River Opal, Wyoming | E85: 4.04 | F85: ='Graph (Ex 1.10) Inputs'!G2 -> 3.61 | G85: ='Graph (Ex 1.10) Inputs'!G3 -> 3.61 | H85: ='Graph (Ex 1.10) Inputs'!G4 -> 3.75 | I85: ='Graph (Ex 1.10) Inputs'!G5 -> 3.87 | J85: ='Graph (Ex 1.10) Inputs'!G6 -> 3.95 | K85: ='Graph (Ex 1.10) Inputs'!G7 -> 3.87 | L85: ='Graph (Ex 1.10) Inputs'!G8 -> 3.72 | M85: ='Graph (Ex 1.10) Inputs'!G9 -> 3.89 | N85: ='Graph (Ex 1.10) Inputs'!G10 -> 3.93 | O85: ='Graph (Ex 1.10) Inputs'!G11 -> 4.02 | P85: ='Graph (Ex 1.10) Inputs'!G12 -> 4.14 | Q85: ='Graph (Ex 1.10) Inputs'!G13 -> 4.15 | R85: ='Graph (Ex 1.10) Inputs'!G14 -> 4.08
D86: Used in WY | E86: <------ change formula if UT and WY have different test years | G86: <------ change formula if UT and WY have different test years
D87: Used In UT | E87: <------ change formula if UT and WY have different test years | G87: <------ change formula if UT and WY have different test years
B88: Spot Purchases from IRP | E88: 0 | F88: 178.392 | G88: 4018.52 | H88: =4937.237-2449.124 -> 2488.113 | I88: =3146.312-3146.312 -> 0 | J88: =5623.786-4825.349 -> 798.437 | K88: =5818.117-4631.544 -> 1186.573 | L88: =4370.904-895.185 -> 3475.719 | M88: 3718.307 | N88: 1.234 | O88: =593.458-391.392 -> 202.066 | P88: 151.116 | Q88: 4.276 | R88: 391.47 | S88: =SUM(G88:R88) -> 16435.831
C89: In DTH | E89: =E88*1000 -> 0 | F89: =F88*1000 -> 178392 | G89: =G88*1000 -> 4018520 | H89: =H88*1000 -> 2488113 | I89: 0 | J89: 798437 | K89: 1186573 | L89: 3475719 | M89: 3718307 | N89: 1234 | O89: 202066 | P89: 151116 | Q89: 4276 | R89: 391470 | S89: =SUM(G89:R89) -> 16435831
C90: In $ | E90: =E89*E85 -> 0 | F90: 643995.12 | G90: 14506857.2 | H90: 9330423.75 | I90: 0 | J90: 3153826.15 | K90: =K89*K85 -> 4592037.51 | L90: 12929674.68 | M90: 14464214.23 | N90: 4849.62 | O90: 812305.32 | P90: 625620.24 | Q90: 17745.4 | R90: 1597197.6 | S90: =SUM(G90:R90) -> 62034751.7
A93: CONTRACT PURCHASES | I93: Updated: | J93: 2011-08-16
B94: RESET FORMULAS TO Brent's WORKSHEET
B95: Peaking Purchases (DTH) | G95: ='[1]Peaking Purchases'!$L$18 -> 0 | H95: ='[1]Peaking Purchases'!$N$18 -> 3000000 | I95: ='[1]Peaking Purchases'!$P$18 -> 3335109 | J95: ='[1]Peaking Purchases'!$R$18 -> 5000000 | K95: ='[1]Peaking Purchases'!$T$18 -> 4000000 | L95: ='[1]Peaking Purchases'!$V$18 -> 1400000 | M95: ='[1]Peaking Purchases'!$X$18 -> 0 | N95: ='[1]Peaking Purchases'!$Z$18 -> 0 | O95: ='[1]Peaking Purchases'!$AB$18 -> 0 | P95: ='[1]Peaking Purchases'!$AD$18 -> 0 | Q95: ='[1]Peaking Purchases'!$AF$18 -> 0 | R95: ='[1]Peaking Purchases'!$AH$18 -> 0 | S95: =SUM(G95:R95) -> 16735109 | T95: =S96/S95 -> 4.162837149
B96: Peaking Purchases ($) | G96: ='[1]Peaking Purchases'!$M$18 -> 0 | H96: ='[1]Peaking Purchases'!$O$18 -> 12085094.12 | I96: ='[1]Peaking Purchases'!$Q$18 -> 13968059.95 | J96: ='[1]Peaking Purchases'!$S$18 -> 21320498.55 | K96: ='[1]Peaking Purchases'!$U$18 -> 16703250.53 | L96: ='[1]Peaking Purchases'!$W$18 -> 5588630.282 | M96: ='[1]Peaking Purchases'!$Y$18 -> 0 | N96: ='[1]Peaking Purchases'!$AA$18 -> 0 | O96: ='[1]Peaking Purchases'!$AC$18 -> 0 | P96: ='[1]Peaking Purchases'!$AE$18 -> 0 | Q96: ='[1]Peaking Purchases'!$AG$18 -> 0 | R96: ='[1]Peaking Purchases'!$AI$18 -> 0 | S96: =SUM(G96:R96) -> 69665533.43
B98: Term Purchases (DTH) | G98: ='[1]Term Purchases'!$K$14 -> 0 | H98: ='[1]Term Purchases'!$M$14 -> 1500000 | I98: ='[1]Term Purchases'!$O$14 -> 2170000 | J98: ='[1]Term Purchases'!$Q$14 -> 2170000 | K98: ='[1]Term Purchases'!$S$14 -> 2030000 | L98: ='[1]Term Purchases'!$U$14 -> 1240000 | M98: ='[1]Term Purchases'!$W$14 -> 0 | N98: ='[1]Term Purchases'!$Y$14 -> 0 | O98: ='[1]Term Purchases'!$AA$14 -> 0 | P98: ='[1]Term Purchases'!$AC$14 -> 0 | Q98: ='[1]Term Purchases'!$AE$14 -> 0 | R98: ='[1]Term Purchases'!$AG$14 -> 0 | S98: =SUM(G98:R98) -> 9110000
B99: Term Purchases ($) | G99: ='[1]Term Purchases'!$L$14 -> 0 | H99: ='[1]Term Purchases'!$N$14 -> 5790495 | I99: ='[1]Term Purchases'!$P$14 -> 9247036.5 | J99: ='[1]Term Purchases'!$R$14 -> 9346236.5 | K99: ='[1]Term Purchases'!$T$14 -> 8650453.5 | L99: ='[1]Term Purchases'!$V$14 -> 4780711.5 | M99: ='[1]Term Purchases'!$X$14 -> 0 | N99: ='[1]Term Purchases'!$Z$14 -> 0 | O99: ='[1]Term Purchases'!$AB$14 -> 0 | P99: ='[1]Term Purchases'!$AD$14 -> 0 | Q99: ='[1]Term Purchases'!$AF$14 -> 0 | R99: ='[1]Term Purchases'!$AH$14 -> 0 | S99: =SUM(G99:R99) -> 37814933 | T99: =S99/S98 -> 4.150925686
B100: Stabalization Costs (Winter Months - Oct to Mar) | G100: 333333.33 | H100: 333333.33 | I100: 333333.33 | J100: 333333.33 | K100: 333333.33 | L100: 333333.33 | M100: 0 | N100: 0 | O100: 0 | P100: 0 | Q100: 0 | R100: 0 | S100: =SUM(G100:R100) -> 1999999.98
B103: Total Purchases (DTH) | E103: =E95+E98 -> 0 | F103: 0 | G103: 0 | H103: =H95+H98 -> 4500000 | I103: 5505109 | J103: 7170000 | K103: 6030000 | L103: =L95+L98 -> 2640000 | M103: 0 | N103: 0 | O103: 0 | P103: 0 | Q103: 0 | R103: 0 | S103: =SUM(G103:R103) -> 25845109
B104: Total Purchases ($) | E104: 0 | F104: 0 | G104: 0 | H104: 17875589.12 | I104: 23215096.45 | J104: 30666735.05 | K104: 25353704.03 | L104: =L96+L99 -> 10369341.78 | M104: 0 | N104: 0 | O104: 0 | P104: 0 | Q104: 0 | R104: 0 | S104: =SUM(G104:R104) -> 107480466.4
A107: Typical Customer Monthly Usage in Dth
B108: Utah | G108: =VLOOKUP(MONTH(G3),$F$117:$G$128,2,FALSE) -> 3.1 | H108: =VLOOKUP(MONTH(H3),$F$117:$G$128,2,FALSE) -> 6.3 | I108: 11.5 | J108: 14.9 | K108: 12.5 | L108: 10.1 | M108: 8.3 | N108: 4.4 | O108: 3.1 | P108: 2 | Q108: 1.8 | R108: 2 | S108: =SUM(G108:R108) -> 80
B109: Wyoming | G109: =VLOOKUP(MONTH(G3),$F$117:$H$128,3,FALSE) -> 4.1 | H109: =VLOOKUP(MONTH(H3),$F$117:$H$128,3,FALSE) -> 8 | I109: 12.3 | J109: 14.7 | K109: 14.1 | L109: 11.8 | M109: 9.4 | N109: 5.8 | O109: 3.7 | P109: 2.3 | Q109: 1.7 | R109: 2.1 | S109: =SUM(G109:R109) -> 90
A111: INPUTS FROM WEXPRO | G111: =G3 -> Oct11 | H111: =H3 -> Nov11 | I111: Dec11 | J111: Jan12 | K111: Feb12 | L111: Mar12 | M111: Apr12 | N111: May12 | O111: Jun12 | P111: Jul12 | Q111: Aug12 | R111: Sep12 | S111: 12-Month
G112: =G3 -> Oct11 | H112: =H3 -> Nov11 | I112: Dec11 | J112: Jan12 | K112: Feb12 | L112: Mar12 | M112: Apr12 | N112: May12 | O112: Jun12 | P112: Jul12 | Q112: Aug12 | R112: Sep12 | S112: Total
A113: Wexpro Operator Fee (Wexpro forecast) | D113: Updated from Brady Rasmussen 8/17/11 | G113: 21740823 | H113: 21378753 | I113: 21963336 | J113: 21999138 | K113: 21889927 | L113: 21779060 | M113: 23163131 | N113: 22348223 | O113: 22172866 | P113: 21990075 | Q113: 21968690 | R113: 22094336 | S113: =SUM(G113:R113) -> 264488358
C115: Need to update for August figures
F116: Typical UPC | G116: UT | H116: WY
F117: 1 | G117: 14.9 | H117: 14.7
F118: 2 | G118: 12.5 | H118: 14.1
F119: 3 | G119: 10.1 | H119: 11.8
F120: 4 | G120: 8.3 | H120: 9.4
F121: 5 | G121: 4.4 | H121: 5.8
F122: 6 | G122: 3.1 | H122: 3.7
F123: 7 | G123: 2 | H123: 2.3
F124: 8 | G124: 1.8 | H124: 1.7
F125: 9 | G125: 2 | H125: 2.1
F126: 10 | G126: 3.1 | H126: 4.1
F127: 11 | G127: 6.3 | H127: 8
F128: 12 | G128: 11.5 | H128: 12.3
F129: Total | G129: =SUM(G117:G128) -> 80 | H129: =SUM(H117:H128) -> 90

Sheet Graph (Ex 1.10) Inputs
C1: ACTUAL | D1: G.I. | E1: CERA | F1: PIRA | G1: AVG
B2: 2011-09-01 | E2: 3.67 | F2: 3.55 | G2: =ROUND(AVERAGE(D2:F2),2) -> 3.61
B3: 2011-10-01 | E3: 3.57 | F3: 3.64 | G3: 3.61
B4: 2011-11-01 | E4: 3.67 | F4: 3.83 | G4: 3.75
B5: 2011-12-01 | E5: 3.7 | F5: 4.04 | G5: 3.87
B6: 2012-01-01 | E6: 3.75 | F6: 4.15 | G6: 3.95
B7: 2012-02-01 | E7: 3.59 | F7: 4.14 | G7: 3.87
B8: 2012-03-01 | E8: 3.32 | F8: 4.11 | G8: 3.72
B9: 2012-04-01 | E9: 3.67 | F9: 4.1 | G9: 3.89
B10: 2012-05-01 | E10: 3.64 | F10: 4.21 | G10: 3.93
B11: 2012-06-01 | E11: 3.73 | F11: 4.31 | G11: 4.02
B12: 2012-07-01 | E12: 3.85 | F12: 4.42 | G12: 4.14
B13: 2012-08-01 | E13: 3.96 | F13: 4.34 | G13: 4.15
B14: 2012-09-01 | E14: 4.02 | F14: 4.14 | G14: 4.08
E17: Price Forecasts
B19: Make sure all pricing is in Whole number @ 2 decimal places only

Sheet Other Inputs
H1: Used In
A2: INPUT SECTION | H2: Ut | I2: Wy | J2: Source
A3: INPUTS FROM QUESTAR PIPELINE TARIFF AND CONTRACTS
B5: QPC Storage Commodity Rates | E5: Rate | F5: Effective
B6: Peaking Injections | E6: 0.03872 | F6: 2011-07-01 | H6: 1.3.2 | I6: 1.3p2 | J6: QPC Tariff Statement of Rates
B7: Peaking Withdrawals | E7: 0.03872 | F7: =$F$6 -> 2011-07-01 | H7: 1.3.2 | I7: 1.3p2 | J7: =J6 -> QPC Tariff Statement of Rates
B8: Clay Basin Injections | E8: 0.01049 | F8: =$F$6 -> 2011-07-01 | H8: 1.3.2 | I8: 1.3p2 | J8: =J7 -> QPC Tariff Statement of Rates
B9: Clay Basin Withdrawals | E9: 0.01781 | F9: =$F$6 -> 2011-07-01 | H9: 1.3.2 | I9: 1.3p2 | J9: =J8 -> QPC Tariff Statement of Rates
B11: QPC Storage Field Reservation Charges
B12: Peaking Storage Fields Demand (Leroy, Chalk Creek, Coalville) | E12: 2.87375 | F12: =$F$6 -> 2011-07-01 | H12: 1.3.2 | I12: 1.3p2 | J12: =$J$6 -> QPC Tariff Statement of Rates
B13: Clay Basin Demand | E13: 2.85338 | F13: =$F$6 -> 2011-07-01 | H13: 1.3.2 | I13: 1.3p2 | J13: =$J$6 -> QPC Tariff Statement of Rates
B14: Clay Basin Capacity | E14: 0.02378 | F14: =$F$6 -> 2011-07-01 | H14: 1.3.2 | I14: 1.3p2 | J14: =$J$6 -> QPC Tariff Statement of Rates
B16: Volumes verified with Glen Watkins on 02/04/2009
J17: used in Exhibit 1.3
B18: FIRM TRANSPORTATION | D18: Contract Dth | E18: Months | F18: Maximum Rate | G18: Effective
B19: T-1 Transportation - Yearly (MT241) | D19: =798902 -> 798902 | E19: 12 | F19: 5.28804 | G19: 7/1/2011 | H19: 1.3p1 | J19: =$J$6 -> QPC Tariff Statement of Rates | N19: 4000000
B20: T-1 Transportation - Yearly (Mainline 104) | D20: 30000 | F20: 5.28804 | G20: =$G$19 -> 7/1/2011 | H20: Jan | J20: =$J$6 -> QPC Tariff Statement of Rates | N20: 28100
B21: T-1 Transportation - Yearly (Tieline 112) | D21: 52000 | F21: 5.28804 | G21: =$G$19 -> 7/1/2011 | H21: 1.3p1 | J21: =$J$6 -> QPC Tariff Statement of Rates | N21: =N19/N20 -> 142.3487544
B22: Total Yearly T-1 Transportation | D22: =SUM(D19:D21) -> 880902 | E22: 12 | J22: as long as total is same as previous, don't worry about ind. Contracts
B24: T-1 Transportation - Seasonal(BASE TARIFF RATE LOW LOAD) Mainline 104 | D24: 0 | E24: 0 | F24: 0 | J24: not using currently - ck with Glen
B26: No-Notice Transportation (BASE TARIFF RATE) | D26: 203542 | E26: 12 | F26: 0.86753 | G26: =$G$19 -> 7/1/2011 | H26: 1.3p1 | J26: =$J$6 -> QPC Tariff Statement of Rates
B27: GRI - Yearly (SURCHARGE LOW LOAD CUSTOMERS MAXIMUM) | D27: =D22 -> 880902 | E27: 12 | F27: 0 | G27: =$G$19 -> 7/1/2011 | H27: 1.3p1 | J27: =$J$6 -> QPC Tariff Statement of Rates
B28: GRI - Seasonal (No GRI currently) | D28: 30000 | E28: 3 | F28: =+F27 -> 0 | G28: =$G$19 -> 7/1/2011 | H28: 1.3p1 | J28: =$J$6 -> QPC Tariff Statement of Rates
B29: GRI | D29: 52000 | E29: 12 | F29: =+F27 -> 0 | G29: =$G$19 -> 7/1/2011 | H29: 1.3p1 | J29: =$J$6 -> QPC Tariff Statement of Rates
B31: TRANSPORTATION COMMODITY
B32: PIPELINE USAGE CHARGE TO VOLUMETRIC RELEASES
B33: QPC Commodity
B34: QPC Firm Transportation Usage Charge (Max & Min) (BASE TARIFF RATE) | F34: 0.00267 | G34: 2011-07-01 | H34: 1.3p1 | J34: =$J$6 -> QPC Tariff Statement of Rates
B35: QPC (ANNUAL CHARGE ADJUSTMENT) | F35: =+F40 -> 0.0019 | G35: =G34 -> 2011-07-01 | H35: 1.3p1 | J35: =$J$6 -> QPC Tariff Statement of Rates
B36: QPC GRI SURCHARGE | F36: 0 | G36: =G34 -> 2011-07-01 | H36: 1.3p1 | J36: =$J$6 -> QPC Tariff Statement of Rates
E37: Current | F37: Proposed
B38: INTER TRANS (T-2 PIPELINE BASE TARIFF) MAX | D38: Base Tariff | E38: 0.17652 | F38: 0.17652 | G38: 2011-07-01 | J38: =$J$6 -> QPC Tariff Statement of Rates
D39: GRI Surcharge | E39: 0 | F39: 0 | G39: =G38 -> 2011-07-01 | J39: =$J$6 -> QPC Tariff Statement of Rates
D40: Annual Charge | E40: 0.0019 | F40: 0.0019 | G40: =G38 -> 2011-07-01 | J40: =$J$6 -> QPC Tariff Statement of Rates
D41: Total | E41: =SUM(E38:E40) -> 0.17842 | F41: =SUM(F38:F40) -> 0.17842
B44: Utah | E44: =ROUND((E41)/(1-$E254),5) -> 0.17919 | F44: =ROUND((F41)/(1-E254),5) -> 0.17919 | H44: 1.6.3 | J44: Before Adjustment for Bad Debt (Transport grossed up for QGC fuel)
B45: Wyoming | F45: =ROUND((F41)/(1-E255),5) -> 0.18114
A47: INPUTS FROM KERN RIVER PIPELINE TARIFF AND CONTRACTS
B48: Kern River 2003 Expansion | D48: Contract Dth | E48: Months | F48: Maximum Rate | G48: Effective
F49: 0.4717 | J49: KR Tariff 5-A
B50: Jan - Dec | D50: 3000 | E50: 12 | F50: =F49*E53/E50 -> 14.34754167 | G50: 2011-04-01 | H50: 1.3.1
B51: November - March | D51: 50000 | E51: 5 | F51: =F50 -> 14.34754167 | G51: =G50 -> 2011-04-01 | H51: Jan
B52: Jan - Dec | D52: 1885 | E52: 12 | F52: =F53*E53/E52 -> 17.74204167 | G52: =G51 -> 2011-04-01
B53: Days in Tariff Rate | E53: 365 | F53: 0.5833 | J53: e.g., if rates effective Jan 1 in a leap year, then use 366
B55: Kern River 2003 Expansion | E55: Days in TEST PERIOD
B56: Jan - Dec | C56: 1.618336271 | D56: =D50+D52 -> 4885 | E56: 365 | F56: 0.0044 | G56: =G50 -> 2011-04-01 | H56: 1.3p1 | J56: KR Tariff 5-A
B57: November - March | C57: =C56 -> 1.618336271 | D57: =D51 -> 50000 | E57: 151 | F57: 0.0044 | G57: =G50 -> 2011-04-01 | H57: 1.3p1 | J57: KR Tariff 5-A
A59: INPUTS FROM QUESTAR GAS TARIFF
B61: I-Sales Commodity Rates | E61: I-2 -eliminated | F61: IS
B62: Effective Date | E62: 11/1/2005 | F62: 7/31/2009
B63: Commodity Rate | E63: 0 | F63: =ROUND((7353080/1941997),5) -> 3.78635 | G63: Should this just be utah
B64: CO2 Refund | E64: 0 | F64: 0
B65: Net Commodity Rate | E65: =SUM(E63:E64) -> 0 | F65: =SUM(F63:F64) -> 3.78635
A67: Current SNG Rates
B68: UTAH | E68: Current SNG Base | F68: Current SNG Amort. | G68: Current SNG Total | J68: Effective
B69: GS | D69: Winter | E69: 1.18665 | F69: 0.02651 | G69: =E69+F69 -> 1.21316 | J69: 2011-06-01
D70: Summer | E70: 0.55715 | F70: 0.01244 | G70: =E70+F70 -> 0.56959 | J70: =J69 -> 2011-06-01
B72: FS | D72: Winter | E72: 1.15575 | F72: 0.02582 | G72: =E72+F72 -> 1.18157 | J72: 2011-06-01
D73: Summer | E73: 0.55712 | F73: 0.01245 | G73: =E73+F73 -> 0.56957 | J73: =J72 -> 2011-06-01
B75: F-4 | E75: 0 | F75: 0 | G75: =E75+F75 -> 0 | J75: 2010-08-01
B77: NGV | E77: 0.85631 | F77: 0.01913 | G77: =E77+F77 -> 0.87544 | J77: 2011-06-01
B79: (This includes bad debt adjustment) IS | E79: 0.18009 | F79: 0 | G79: =E79+F79 -> 0.18009 | J79: 2011-06-01
B82: ES | E82: 6.15099 | F82: 0.13742 | G82: =E82+F82 -> 6.28841 | J82: 2011-06-01
A84: Current Rates
B85: Utah GS | J85: Effective
B86: Block 1 | D86: Summer | G86: 7.22673 | J86: 2011-06-01
B87: Block 2 | D87: Summer | G87: 6.06548 | J87: =$J$86 -> 2011-06-01
B88: Block 1 | D88: Winter | G88: 8.21624 | J88: =$J$86 -> 2011-06-01
B89: Block 2 | D89: Winter | G89: 6.93383 | J89: =$J$86 -> 2011-06-01
B90: #1 BSF | G90: 5 | J90: =J86 -> 2011-06-01
B92: Wyoming GS
B93: Block 1 | G93: 7.09022 | J93: 2011-06-01
B94: Block 2 | G94: 6.33479 | J94: =J93 -> 2011-06-01
B95: BSF | G95: 10 | J95: =J93 -> 2011-06-01
A97: INPUTS FROM PREVIOUS PASSTHROUGH CASE
B98: PRIOR PERIOD COMPANY PRODUCTION AVERAGE GAS COST
E99: PROPOSED | F99: PRIOR CASE | G99: Most Recent
B100: VOLUMES DTH | E100: ='Monthly Inputs'!S16 -> 71172209 | F100: 69940889 | G100: EXH 1.1 | J100: LAST CASE IN WHICH RATES CHANGED
B101: AMOUNT | E101: =+D178 -> 307630623.8 | F101: 300883313 | G101: EXH 1.1
B102: AVG COST | E102: =+E101/E100 -> 4.322341938 | F102: =ROUND(+F101/F100,5) -> 4.30197
B104: Utah Cost of Gas by Component
B105: Unit Cost Of Gas (Line 11) | F105: 4.21339 | J105: Exhibit 1.6 pg 1 (Prior case column)
B106: 191 Account Amortization (Line 12) | F106: 0.14067 | J106: Exhibit 1.6 pg 1 (Prior case column)
B107: Total Unit Cost In Rates (Line 13) | F107: =SUM(F105:F106) -> 4.35406
B109: I-2 Commodity Cost (excluding bad debt) | E109: 0
B111: Wyoming Cost of Gas by Component
B112: Unit Cost Of Gas (Line 10) | F112: 5.11754 | J112: (WY) Exhibit 1.6 pg 1
B113: 191 Account Amortization (Line 11) | F113: -0.1487 | J113: (WY) Exhibit 1.6 pg 1
B114: Total Unit Cost In Rates (Line 13) | F114: =F112+F113 -> 4.96884 | J114: (WY) Exhibit 1.6 pg 1
J117: Exhibit 1.6 pg 1
J118: (WY) Exhibit 1.6 pg 1
A119: INPUTS FROM 191 ACCOUNT YEAR END BALANCE ACTUAL OR FORECAST | E119: Utah | F119: Wyoming
E120: 2011 | F120: 2011-07-01
H121: 1.6.2
D122: current yr /mo(text)
B123: Sept 2011 191 account forecast | D123: 2011 | E123: -10313169 | F123: 121253 | H123: 1.6.1 | J123: 191 Account Forecast
B124: Supplier Non-Gas Cost Under (Over) Collected through October 2010 (fcst) | D124: July | E124: -23609619 | H124: 1.6.2 | J124: 191 Account Year-End (sometimes through current period)
B125: Commodity Cost Under (Over) Collected during YEAR (Fcst)
A127: INPUTS FROM IRP
B128: #1 Peak Day Demand Forecast | E128: 2012 | F128: Source
B129: Utah | E129: =E131-E130 -> 1241463 | F129: 2011 IRP
B130: Wyoming | E130: 39307
B131: System Total Peak Day Demand Forecast | E131: 1280770 | H131: 1.5 | I131: 1.5
A134: STORAGE FIELD INPUTS | E134: Storage
B135: Chalk Creek Injections Factor | E135: 0.0141 | H135: Scott Nelson Monthly IRP
B136: Chalk Creek Withdrawls Factor | E136: 0.0168 | H136: Scott Nelson Monthly IRP
H137: Scott Nelson Monthly IRP
B138: Leroy Injections Factor | E138: 0.0109 | H138: Scott Nelson Monthly IRP
B139: Leroy Withdrawls Factor | E139: 0.0203 | H139: Scott Nelson Monthly IRP
H140: Scott Nelson Monthly IRP
B141: Clay Basin Injections Factor | E141: 0.0173 | H141: Scott Nelson Monthly IRP
B142: Clay Basin Withdrawls Factor | E142: 0.0105 | H142: Scott Nelson Monthly IRP
H143: Scott Nelson Monthly IRP
B144: Coalville Injections Factor | E144: 0.0327 | H144: Scott Nelson Monthly IRP
B145: Coalville Withdrawls Factor | E145: 0.0291 | H145: Scott Nelson Monthly IRP
B147: QPC Storage Field Reservation Charges | E147: Monthly Dth
B148: Peaking Storage Fields Demand (Leroy, Chalk Creek, Coalville) | E148: 184625 | F148: didn’t change this time | H148: From Glen Watkins (Contract Amounts) (See Ex 1.3 pg 2 if not changed)
B149: Clay Basin Demand | E149: 111827 | F149: didn’t change this time | H149: From Glen Watkins (Contract Amounts) (See Ex 1.3 pg 2 if not changed)
B150: Clay Basin Capacity | E150: 13419000 | F150: didn’t change this time | H150: From Glen Watkins (Contract Amounts) (See Ex 1.3 pg 2 if not changed)
A152: OTHER INPUTS FROM GLEN, TOM, TINA & Al | D152: Volume (Dth) | E152: Revenue
B153: OTHER GATHERING
B154: Actual Birch Creek Volumes | D154: ='Ex 1.1 Data'!B2 -> 2570865 | J154: Exhibit 1.1 Birch Creek Dth
B155: Factor to convert from Historical to Forecasted Volumes | D155: =1+'Ex 1.1 Data'!D1 -> 1.184772377 | J155: Exhibit 1.1 Actual / Total IRP
B156: Forecasted Birch Creek Volumes | D156: =D154*D155 -> 3045889.837
B157: Birch Creek Gathering Rate (CONFIDENTIAL) | D157: 0.14751 | J157: From Glen Watkins
B158: Total Forecasted Birch Creek | D158: =+D156*D157 -> 449299.2099
B160: Other gathering | D160: 2461823.86 | E160: Updated 8-18-11 | H160: JanB | J160: Chuck Howisey's Query
B161: Total Gathering | D161: =SUM(D158:D160) -> 2911123.07 | H161: 1.3.1 | I161: 1.3P1
B163: Other Transportation | D163: 1982531.19 | E163: Updated 8-18-11 | H163: 1.3.1 | J163: Chuck Howisey's Query
B165: Forecast Future Contracts Premium over spot price | E165: 0.02 | F165: Verified with Tina 08/2009
D167: Commodity | E167: Mo. Demand
D168: Charge | E168: Charge | F168: Effective
B169: QEP Gathering Rates | D169: 0.20764 | E169: 1060315 | F169: 6/1/2011 - 5/31/2012 | I169: 1.3p1 | J169: QEP Rates (Changes every Sep 1)
B170: QGC Gathering Throughput Dth From Exhibit 1.1 Backup | D170: ='Ex 1.1 Data'!E1 -> 50725293.58 | E170: 12 | I170: 1.3p1 | J170: Ex. 1.1 updated on 11-17-2010
A173: OTHER INPUTS FROM JIM LIVSEY | D173: Volume (Dth) | E173: Revenue
B175: Questar Gas Production 1/ | D175: Current
B176: Test Year Royalties | D176: ='Ut 1.1'!H1286 -> 43142265.8 | H176: 1.4.1 | I176: 1.4P1 | J176: Exhibit 1.1
B177: Operator Service Fee | D177: ='Monthly Inputs'!S113 -> 264488358 | H177: 1.4.1 | I177: 1.4P1 | J177: Jim Livsey (Updated on 11-10-2010
B178: Total Questar Gas Production Costs | D178: =SUM(D176:D177) -> 307630623.8
B180: Total Questar Gas Production Dth | D180: ='Ut 1.1'!E1291 -> 71172209 | J180: this formula changes each time
F181: Hot | G181: Hot
B182: Other Revenue Credits | D182: 1 | E182: 2 | F182: 2 | G182: 2 | I182: 1
D183: Historical | E183: Forecast | F183: =HLOOKUP(F$182,$D$182:$E$190,$I183) -> Forecast | G183: =HLOOKUP(G$182,$D$182:$E$190,$I183) -> Forecast | I183: 2
D184: 12 Mo Ending | E184: 12 Mo Ending | F184: Utah | G184: Wyoming | I184: 3
B185: 483 Sales for Resale | E185: 3756162 | F185: =HLOOKUP(F$182,$D$182:$E$190,$I185) -> 3756162 | G185: =HLOOKUP(G$182,$D$182:$E$190,$I185) -> 3756162 | I185: 4 | J185: Wexpro (Jim Livsey)
B186: 490 Incidental Plant Prod Sales | E186: 6254400 | F186: =HLOOKUP(F$182,$D$182:$E$190,$I186) -> 6254400 | G186: 6254400 | I186: 5 | J186: Wexpro (Jim Livsey)
B187: 492 Incidental Gasoline_Oil Sales | E187: 1561670 | F187: 1561670 | G187: 1561670 | I187: 6 | J187: Wexpro (Jim Livsey)
B188: 4951 Overriding Royalty Revenue from Celsius | E188: 18368419 | F188: 18368419 | G188: 18368419 | I188: 7 | J188: Wexpro (Jim Livsey)
B189: 4952 Oil Revenue Received from Wexpro | E189: 4044000 | F189: 4044000 | G189: 4044000 | I189: 8 | J189: Wexpro (Jim Livsey)
B190: 758001 Gas Well Royalities - Other | E190: -203394 | F190: -203394 | G190: -203394 | I190: 9 | J190: Wexpro (Jim Livsey)
B193: Total Other Revenue Credits | D193: =SUM(D185:D190) -> 0 | E193: =SUM(E185:E190) -> 33781257 | F193: =SUM(F185:F190) -> 33781257 | G193: =SUM(G185:G190) -> 33781257
A196: SUMMARY INPUTS FROM REVRUN, RATE BASE, EXPENSES, ETC.
B198: Supplier Non-Gas Costs Recovered at Current Rates 3/ | E198: ='RevRun Fcst'!T$198 -> 104971842 | H198: 1.6.2 | J198: Dave's Revrun
B199: MT Supplier Non-Gas | E199: ='RevRun Fcst'!T142 -> 1734 | J199: Dave's Revrun
B200: Net Supplier Non-Gas | E200: =E198-E199 -> 104970108
B201: UT Current Int Sales SNG Rate - not including Bad Debt adj. | E201: ='RevRun Fcst'!T93+'RevRun Fcst'!T111 -> 2418010 | F201: 0.17919 | J201: Revrun (D210); SNG from last case in which rates changed (see Exh. 1.6, p. 2, line 6c col. C)
E203: ='Rate Base'!$U$8 -> 2011-07-31 | F203: update to most current
B204: Account 164-1 - Gas Stored Underground | D204: Dth | E204: Ending Balance | F204: $ per Dth
D205: ='Rate Base'!T287 -> -6884591 | E205: ='Rate Base'!T208 -> 28586567.05 | F205: =+E205/D205 -> -4.152253496 | H205: 1.4.2
A208: UT CET and DSM AMORTIZATION FILING INPUTS
E209: Base DNG | F209: Current DNG
B210: GS Rates (Base rates are before CET, DSM, & EA Amortizations) | D210: Summer Blk 1 | E210: 1.87767 | F210: 2.30308
D211: Summer Blk 2 | E211: 0.69704 | F211: 1.14183
D212: Winter Blk 1 | E212: 2.22938 | F212: 2.64902
D213: Winter Blk 2 | E213: 0.92557 | F213: 1.36661 | J213: Base DNG Rate from latest general rate case Docket 09-057-16
J214: Current Rates Effective 6/1/11
D215: Energy Assistance | E215: 0.01519 | F215: Current Rate 8/1/2010 GS Rate
E216: 0.01029 | F216: Current Rate 8/1/2010 FS Rate
E217: 0.00796 | F217: Current Rate 8/1/2010 IS Rate
E218: 0.01829 | F218: Current Rate 8/1/2010 NGV Rate
E219: Ending Balance | F219: Date
B220: CET Balance (Account 191.9) | E220: -1886289.514 | F220: 2011-07-31 | J220: Accounting
B221: DSM Expense Deferral Balance (Account 182.4) | E221: 42000000 | F221: 2011-03-31 | J221: Accounting
B223: GS Block Usage in Dth | D223: Winter Blk 1 | E223: 52526064 | J223: Block out from Dave's REVRUN
D224: Winter Blk 2 | E224: 14984828 | J224: (used Gary's "Rate Design Model - Bill Factor Input.xls" &
D225: Summer Blk 1 | E225: 23076373 | J225: Dave's "PT0802.bk" files) Updated March 31, 2010
D226: Summer Blk 2 | E226: 4705902
A228: WY CET and DSM AMORTIZATION FILING INPUTS
E229: Base DNG | F229: Current DNG
B230: GS Rates (Base rates are before CET and DSM Amortizations) | D230: Blk 1 | E230: 2.00841 | F230: 2.00841
D231: Blk 2 | E231: 1.26955 | F231: 1.26955
J233: Base DNG Rate from latest general rate case Docket 30010-94-GR-08
J234: Current Rates Effective7/1/09
E236: Ending Balance | F236: Date
B237: CET Balance (Account 191.9) | E237: 57097.0875 | F237: 2011-07-31 | J237: Accounting
B238: DSM Expense Deferral Balance (Account 182.4) | E238: 274858.68 | F238: 2011-07-31 | J238: Accounting
B240: GS Block Usage in Dth | D240: Blk 1 | E240: 2593433 | J240: Block out from Dave's REVRUN
D241: Blk 2 | E241: 705379 | J241: (used Gary's "Rate Design Model - Bill Factor Input.xls" &
J242: Dave's "PT0802.bk" files) Updated March 31, 2011
A246: MISCELLANEOUS INPUTS
B247: Test Year | D247: ='Control Panel'!F40 -> Oct-11 | E247: ='Control Panel'!F41 -> Sep-12 | J247: entered as text, beginning and end month
B249: Wexpro Red. @ 6.3% | E249: -0.063 | I249: 1.3p3 | J249: Wexpro Stip.
B251: Pre-Tax Rate of Return % | D251: WYO | E251: 0.1197 | F251: Effective July 2009 | I251: 1.3p2 | J251: Changes with General Rate Case
B252: Pre-Tax Rate of Return % | D252: UTAH | E252: 0.1179 | F252: Effect Aug 1 2010 | J252: Changes with General Rate Case
B254: QGC Lost & Unaccounted For % (Utah | E254: 0.0043107 | H254: Q | I254: Q | J254: Judd's Report
B255: QGC Lost & Unaccounted For % (Wyoming) | E255: 0.015
B256: QEP Gathering Lost & Unaccounted For | E256: 0.0444 | F256: 2010-04-23 | H256: Q | I256: Q | J256: from Gas Supply (Scott N.) - IRP based on this
B257: QPC Lost & Unaccounted For % | E257: 0.0126 | F257: 2010-04-23 | H257: Q | I257: Q | J257: from Gas Supply (Scott N.) - IRP based on this
B258: TOTAL | E258: =SUM(E256:E257) -> 0.057
B260: Capacity Release Credits | E260: 496621.04 | I260: 1.3p1 | J260: From Chuck Howisey
... 17 more rows

Sheet CET & DSM WY
A1: Rate Caclulation for the CET and DSM Amortizations WY
L3: Solver Cells
A4: CET Amortization % Calculation | L4: % Change | M4: Difference
B5: Balance | C5: Date | D5: GS Dth | F5: Amortization per Dth | L5: =J20/D20 -> 0.00935375228 | M5: =G20-B11 -> 0 | O5: -> Difference should be at 0 (Use Goal Seek to Get Difference to Equal 0.
A6: DSM Balance | B6: ='Other Inputs'!$E$238 -> 274858.68 | C6: ='Other Inputs'!$F$238 -> 2011-07-31 | D6: =B20 -> 3298812 | F6: =B6/D6 -> 0.08332050447
O8: Typical Bill Rates
A9: CET Amortization Calculation
B10: Balance | C10: Date | D10: DNG Rev | F10: New DNG | I10: % Change | O10: Current | P10: Proposed
A11: CET Balance | B11: ='Other Inputs'!$E$237 -> 57097.0875 | C11: ='Other Inputs'!$F$237 -> 2011-07-31 | D11: =D20 -> 6104190.681 | F11: =D11+B11 -> 6161287.768 | I11: =L5 -> 0.00935375228 | O11: Effective | R11: SNG & | S11: CET, DSM
O12: ='Other Inputs'!$J$93 -> 2011-06-01 | P12: CET Only | Q12: DSM Only | R12: Commodity | S12: Commodity
O13: BSF | P13: BSF | Q13: BSF | R13: BSF | S13: BSF
B14: Revenue Calculation | F14: CET Amortization | I14: Total DNG | L14: REVRUN Calculation | O14: ='Other Inputs'!$G$95 -> 10 | P14: ='Other Inputs'!$G$95 -> 10 | Q14: ='Other Inputs'!$G$95 -> 10 | R14: ='Other Inputs'!$G$95 -> 10 | S14: ='Wy 1.8'!C10 -> 10
A15: WY GS | B15: Dth | C15: Base DNG | D15: DNG Revenue | F15: CET Rate | G15: Revenue | I15: DNG Rate | J15: Revenue | L15: CET Rate | M15: CET Amort
A16: Block 1 | B16: ='Other Inputs'!E240 -> 2593433 | C16: ='Other Inputs'!E230 -> 2.00841 | D16: =B16*C16 -> 5208676.772 | F16: =ROUND((G16/B16),5) -> 0.01879 | G16: =D16*$L$5 -> 48720.67223 | I16: =C16+F16 -> 2.0272 | J16: =I16*B16 -> 5257407.378 | L16: =ROUND(F16,5) -> 0.01879 | M16: =B16*L16 -> 48730.60607 | O16: ='Other Inputs'!$G$86 -> 7.22673 | P16: =J24 -> 7.06396 | Q16: =J31 -> 7.10562 | R16: =J36 -> 7.216737254 | S16: =J41 -> 7.205877759
A17: Block 2 | B17: ='Other Inputs'!E241 -> 705379 | C17: ='Other Inputs'!E231 -> 1.26955 | D17: =B17*C17 -> 895513.9094 | F17: =ROUND((G17/B17),5) -> 0.01188 | G17: =D17*$L$5 -> 8376.415272 | I17: =C17+F17 -> 1.28143 | J17: =I17*B17 -> 903893.812 | L17: =ROUND(F17,5) -> 0.01188 | M17: =B17*L17 -> 8379.90252
O18: ='Other Inputs'!$G$93 -> 7.09022 | P18: =J24 -> 7.06396 | Q18: =J31 -> 7.10562 | R18: =J36 -> 7.216737254 | S18: =J41 -> 7.205877759
A20: GS-1 Block Rev | B20: =SUM(B16:B19) -> 3298812 | D20: =SUM(D16:D19) -> 6104190.681 | G20: =SUM(G16:G19) -> 57097.0875 | J20: =B11 -> 57097.0875 | M20: =SUM(M16:M19) -> 57110.50859
A22: Total Rate Calculation With CET Amortization Only | J22: ='Control Panel'!J8 -> 2011-10-01 | L22: ='Other Inputs'!$J$93 -> 2011-06-01
A23: WY GS | B23: Total DNG | C23: CET | D23: DSM | F23: Total DNG | G23: Core Commodity Cost | J23: Total Rate | L23: Total Rate
A24: Block 1 | B24: =$C$16 -> 2.00841 | C24: =$F$16 -> 0.01879 | D24: 0.06792 | F24: =SUM(B24:D24) -> 2.09512 | G24: 4.96884 | J24: =SUM(F24:G24) -> 7.06396 | L24: ='Other Inputs'!G93 -> 7.09022 | M24: =J24-L24 -> -0.02626
A25: Block 2 | B25: =$C$17 -> 1.26955 | C25: =$F$17 -> 0.01188 | D25: =$D$24 -> 0.06792 | F25: =SUM(B25:D25) -> 1.34935 | G25: =G24 -> 4.96884 | J25: =SUM(F25:G25) -> 6.31819 | L25: ='Other Inputs'!$G$94 -> 6.33479 | M25: =J25-L25 -> -0.0166
A29: Total Rate Calculation With DSM Amortization Only | J29: =J22 -> 2011-10-01 | L29: ='Other Inputs'!$J$93 -> 2011-06-01
A30: WY GS | B30: Base DNG | C30: CET | D30: DSM | F30: Total DNG | G30: Core Commodity Cost | J30: Total Rate | L30: Total Rate
A31: Block 1 | B31: =$C$16 -> 2.00841 | C31: 0.04505 | D31: =$F$6 -> 0.08332050447 | F31: =ROUND(SUM(B31:D31),5) -> 2.13678 | G31: =G24 -> 4.96884 | J31: =SUM(F31:I31) -> 7.10562 | L31: ='Other Inputs'!$G$86 -> 7.22673 | M31: =J31-L31 -> -0.12111
A32: Block 2 | B32: =$C$17 -> 1.26955 | C32: 0.02848 | D32: =$F$6 -> 0.08332050447 | F32: =ROUND(SUM(B32:D32),5) -> 1.38135 | G32: =G25 -> 4.96884 | J32: =SUM(F32:I32) -> 6.35019 | L32: ='Other Inputs'!$G$94 -> 6.33479 | M32: =J32-L32 -> 0.0154
A34: Total Rate Calculation With Core Commodity Cost Changes Only | J34: =J22 -> 2011-10-01 | L34: ='Other Inputs'!$J$93 -> 2011-06-01
A35: WY GS | B35: Base DNG | C35: CET | D35: DSM | F35: Total DNG | G35: Core Commodity Cost | J35: Total Rate | L35: Total Rate
A36: Block 1 | B36: =$C$16 -> 2.00841 | C36: =C31 -> 0.04505 | D36: =D24 -> 0.06792 | F36: =SUM(B36:D36) -> 2.12138 | G36: ='Wy 1.6 p1'!$F$33 -> 5.095357254 | J36: =SUM(F36:I36) -> 7.216737254 | L36: ='Other Inputs'!$G$86 -> 7.22673 | M36: =J36-L36 -> -0.009992745527
A37: Block 2 | B37: =$C$17 -> 1.26955 | C37: =C32 -> 0.02848 | D37: =D25 -> 0.06792 | F37: =SUM(B37:D37) -> 1.36595 | G37: ='Wy 1.6 p1'!$F$33 -> 5.095357254 | J37: =SUM(F37:I37) -> 6.461307254 | L37: ='Other Inputs'!$G$94 -> 6.33479 | M37: =J37-L37 -> 0.1265172545
A39: Total Rate Calculation | J39: =J29 -> 2011-10-01 | L39: ='Other Inputs'!$J$93 -> 2011-06-01
A40: WY GS | B40: Base DNG | C40: CET | D40: DSM | F40: Total DNG | G40: Core Commodity Cost | J40: Total Rate | L40: Total Rate
A41: Block 1 | B41: =$C$16 -> 2.00841 | C41: =$F$16 -> 0.01879 | D41: =$F$6 -> 0.08332050447 | F41: =SUM(B41:D41) -> 2.110520504 | G41: ='Wy 1.6 p1'!$F$33 -> 5.095357254 | J41: =SUM(F41:I41) -> 7.205877759 | L41: ='Other Inputs'!$G$86 -> 7.22673 | M41: =J41-L41 -> -0.02085224105
A42: Block 2 | B42: =$C$17 -> 1.26955 | C42: =$F$17 -> 0.01188 | D42: =$F$6 -> 0.08332050447 | F42: =SUM(B42:D42) -> 1.364750504 | G42: ='Wy 1.6 p1'!$F$33 -> 5.095357254 | J42: =SUM(F42:I42) -> 6.460107759 | L42: ='Other Inputs'!$G$94 -> 6.33479 | M42: =J42-L42 -> 0.1253177589
A44: Typical Customer Difference - CET Amortization Only
B45: Typical
A46: GS | B46: Dth | C46: =O12 -> 2011-06-01 | D46: =J39 -> 2011-10-01 | F46: Change | G46: % Change
A47: January | B47: 14.7 | C47: =ROUND($O$14+(B47*$O$18),2) -> 114.23 | D47: =ROUND($P$14+(B47*$P$18),2) -> 113.84 | F47: =D47-C47 -> -0.39
A48: February | B48: 14.1 | C48: =ROUND($O$14+(B48*$O$18),2) -> 109.97 | D48: =ROUND($P$14+(B48*$P$18),2) -> 109.6 | F48: =D48-C48 -> -0.37
A49: March | B49: 11.8 | C49: =ROUND($O$14+(B49*$O$18),2) -> 93.66 | D49: =ROUND($P$14+(B49*$P$18),2) -> 93.35 | F49: -0.31
A50: April | B50: 9.4 | C50: =ROUND($O$14+(B50*$O$16),2) -> 77.93 | D50: =ROUND($P$14+(B50*$P$16),2) -> 76.4 | F50: -1.53
A51: May | B51: 5.8 | C51: 51.92 | D51: =ROUND($P$14+(B51*$P$16),2) -> 50.97 | F51: -0.95
A52: June | B52: 3.7 | C52: 36.74 | D52: 36.14 | F52: -0.6
A53: July | B53: 2.3 | C53: 26.62 | D53: 26.25 | F53: -0.37
A54: August | B54: 1.7 | C54: 22.29 | D54: 22.01 | F54: -0.28
A55: September | B55: 2.1 | C55: 25.18 | D55: 24.83 | F55: -0.35
A56: October | B56: 4.1 | C56: 39.63 | D56: 38.96 | F56: -0.67
A57: November | B57: 8 | C57: =ROUND($O$14+(B57*$O$18),2) -> 66.72 | D57: =ROUND($P$14+(B57*$P$18),2) -> 66.51 | F57: -0.21
A58: December | B58: 12.3 | C58: =ROUND($O$14+(B58*$O$18),2) -> 97.21 | D58: =ROUND($P$14+(B58*$P$18),2) -> 96.89 | F58: -0.32
B59: =SUM(B47:B58) -> 90 | C59: =SUM(C47:C58) -> 762.1 | D59: =SUM(D47:D58) -> 755.75 | F59: =SUM(F47:F58) -> -6.35 | G59: =F59/C59 -> -0.008332239864
A62: Typical Customer Difference - DSM Amortization Only
B63: Typical
A64: GS | B64: Dth | C64: =C46 -> 2011-06-01 | D64: =D46 -> 2011-10-01 | F64: Change | G64: % Change
A65: January | B65: 14.7 | C65: =ROUND($O$14+(B65*$O$18),2) -> 114.23 | D65: =ROUND($Q$14+(B65*$Q$18),2) -> 114.45 | F65: =D65-C65 -> 0.22
A66: February | B66: 14.1 | C66: =ROUND($O$14+(B66*$O$18),2) -> 109.97 | D66: =ROUND($Q$14+(B66*$Q$18),2) -> 110.19 | F66: =D66-C66 -> 0.22
A67: March | B67: 11.8 | C67: =ROUND($O$14+(B67*$O$18),2) -> 93.66 | D67: =ROUND($Q$14+(B67*$Q$18),2) -> 93.85 | F67: 0.19
A68: April | B68: 9.4 | C68: =ROUND($O$14+(B68*$O$16),2) -> 77.93 | D68: =ROUND($Q$14+(B68*$Q$16),2) -> 76.79 | F68: -1.14
A69: May | B69: 5.8 | C69: 51.92 | D69: 51.21 | F69: -0.71
A70: June | B70: 3.7 | C70: 36.74 | D70: 36.29 | F70: -0.45
A71: July | B71: 2.3 | C71: 26.62 | D71: 26.34 | F71: -0.28
A72: August | B72: 1.7 | C72: 22.29 | D72: 22.08 | F72: -0.21
A73: September | B73: 2.1 | C73: 25.18 | D73: 24.92 | F73: -0.26
A74: October | B74: 4.1 | C74: 39.63 | D74: 39.13 | F74: -0.5
A75: November | B75: 8 | C75: =ROUND($O$14+(B75*$O$18),2) -> 66.72 | D75: =ROUND($Q$14+(B75*$Q$18),2) -> 66.84 | F75: 0.12
A76: December | B76: 12.3 | C76: =ROUND($O$14+(B76*$O$18),2) -> 97.21 | D76: =ROUND($Q$14+(B76*$Q$18),2) -> 97.4 | F76: 0.19
B77: =SUM(B65:B76) -> 90 | C77: =SUM(C65:C76) -> 762.1 | D77: =SUM(D65:D76) -> 759.49 | F77: =SUM(F65:F76) -> -2.61 | G77: =F77/C77 -> -0.003424747408
A80: Typical Customer Difference - SNG and Commodity Changes Only
B81: Typical
A82: GS | B82: Dth | C82: =C64 -> 2011-06-01 | D82: =D64 -> 2011-10-01 | F82: Change | G82: % Change
A83: January | B83: 14.7 | C83: =ROUND($O$14+(B83*$O$18),2) -> 114.23 | D83: =ROUND($R$14+(B83*$R$18),2) -> 116.09 | F83: =D83-C83 -> 1.86
A84: February | B84: 14.1 | C84: =ROUND($O$14+(B84*$O$18),2) -> 109.97 | D84: =ROUND($R$14+(B84*$R$18),2) -> 111.76 | F84: =D84-C84 -> 1.79
A85: March | B85: 11.8 | C85: =ROUND($O$14+(B85*$O$18),2) -> 93.66 | D85: =ROUND($R$14+(B85*$R$18),2) -> 95.16 | F85: 1.5
A86: April | B86: 9.4 | C86: =ROUND($O$14+(B86*$O$16),2) -> 77.93 | D86: =ROUND($R$14+(B86*$R$16),2) -> 77.84 | F86: -0.09
A87: May | B87: 5.8 | C87: 51.92 | D87: 51.86 | F87: -0.06
A88: June | B88: 3.7 | C88: 36.74 | D88: 36.7 | F88: -0.04
A89: July | B89: 2.3 | C89: 26.62 | D89: 26.6 | F89: -0.02
A90: August | B90: 1.7 | C90: 22.29 | D90: 22.27 | F90: -0.02
A91: September | B91: 2.1 | C91: 25.18 | D91: 25.16 | F91: -0.02
A92: October | B92: 4.1 | C92: 39.63 | D92: 39.59 | F92: -0.04
A93: November | B93: 8 | C93: =ROUND($O$14+(B93*$O$18),2) -> 66.72 | D93: =ROUND($R$14+(B93*$R$18),2) -> 67.73 | F93: 1.01
A94: December | B94: 12.3 | C94: =ROUND($O$14+(B94*$O$18),2) -> 97.21 | D94: =ROUND($R$14+(B94*$R$18),2) -> 98.77 | F94: 1.56
B95: =SUM(B83:B94) -> 90 | C95: =SUM(C83:C94) -> 762.1 | D95: =SUM(D83:D94) -> 769.53 | F95: =SUM(F83:F94) -> 7.43 | G95: =F95/C95 -> 0.009749376722
A98: Typical Customer Difference - CET & DSM Amort, SNG and Commodity Changes
B99: Typical
A100: GS | B100: Dth | C100: =C46 -> 2011-06-01 | D100: =D46 -> 2011-10-01 | F100: Change | G100: % Change
A101: January | B101: 14.7 | C101: =ROUND($O$14+(B101*$O$18),2) -> 114.23 | D101: =ROUND($S$14+(B101*$S$18),2) -> 115.93 | F101: =D101-C101 -> 1.7
A102: February | B102: 14.1 | C102: =ROUND($O$14+(B102*$O$18),2) -> 109.97 | D102: =ROUND($S$14+(B102*$S$18),2) -> 111.6 | F102: =D102-C102 -> 1.63
A103: March | B103: 11.8 | C103: =ROUND($O$14+(B103*$O$18),2) -> 93.66 | D103: =ROUND($S$14+(B103*$S$18),2) -> 95.03 | F103: 1.37
A104: April | B104: 9.4 | C104: =ROUND($O$14+(B104*$O$16),2) -> 77.93 | D104: =ROUND($S$14+(B104*$S$16),2) -> 77.74 | F104: -0.19
A105: May | B105: 5.8 | C105: 51.92 | D105: 51.79 | F105: -0.13
A106: June | B106: 3.7 | C106: 36.74 | D106: 36.66 | F106: -0.08
A107: July | B107: 2.3 | C107: 26.62 | D107: 26.57 | F107: -0.05
A108: August | B108: 1.7 | C108: 22.29 | D108: 22.25 | F108: -0.04
A109: September | B109: 2.1 | C109: 25.18 | D109: 25.13 | F109: -0.05
A110: October | B110: 4.1 | C110: 39.63 | D110: 39.54 | F110: -0.09
A111: November | B111: 8 | C111: =ROUND($O$14+(B111*$O$18),2) -> 66.72 | D111: =ROUND($S$14+(B111*$S$18),2) -> 67.65 | F111: 0.93
A112: December | B112: 12.3 | C112: =ROUND($O$14+(B112*$O$18),2) -> 97.21 | D112: =ROUND($S$14+(B112*$S$18),2) -> 98.63 | F112: 1.42
B113: =SUM(B101:B112) -> 90 | C113: =SUM(C101:C112) -> 762.1 | D113: =SUM(D101:D112) -> 768.52 | F113: =SUM(F101:F112) -> 6.42 | G113: =F113/C113 -> 0.008424091327

Sheet WY Tariff Sheets
T2: Rates Per Dth Used Each Month
B3: 2.02 General Service Rate Schedule (GS) | K3: 2.02 General Service Rate Schedule (GS) | Q3: 2.03 Firm Sales Service Rate Schedule (FS) | T3: Dth = decatherm = 10 therms = 1,000,000 BTU | Z3: 4.02 INTERRUPTIBLE SALES RATE SERVICE SCHEDULE (IS) | BF3: 2.04 NATURAL GAS VEHICLE RATE (NGV)
L4: Rates Per Dth Used Each Month | R4: Summer Rates: Apr. 1 - Oct. 31
C5: Rates Per Dth Used Each Month | L5: Dth = decatherm = 10 therms = 1,000,000 BTU | R5: First | T5: Next | V5: All Over | Z5: IS VOLUMETRIC RATES | AA5: Rates Per Dth Used Each Month | BF5: NGV Volumetric Rate
C6: Dth = decatherm = 10 therms = 1,000,000 BTU | L6: First 45 Dth | M6: All Over 45 Dth | R6: 80 | T6: 730 | V6: 810 | AA6: Dth = decatherm = 10 therms = 1,000,000 BTU | BJ6: Rates Per Dth Used Each Month
C7: First 45 Dth | D7: All Over 45 Dth | K7: Non-Gas Cost | L7: ='CET & DSM WY'!B31 -> 2.00841 | M7: ='CET & DSM WY'!B32 -> 1.26955 | Q7: Non Gas Cost | R7: ='Wy 1.8'!C14 -> 0.67969 | T7: ='Wy 1.8'!D14 -> 0.60383 | V7: ='Wy 1.8'!E14 -> 0.52778 | AA7: First | AB7: Next | AC7: All Over | BJ7: Dth = decatherm = 10 therms = 1,000,000 BTU
B8: Non-Gas Cost | C8: ='CET & DSM WY'!B24 -> 2.00841 | D8: ='CET & DSM WY'!B25 -> 1.26955 | K8: Conservation Enabling Adjustment | L8: =ROUND('CET & DSM WY'!C31,5) -> 0.04505 | M8: ='CET & DSM WY'!C32 -> 0.02848 | Q8: Core Service Commodity Cost | R8: ='Wy 1.8'!C15 -> 5.09536 | T8: ='Wy 1.8'!D15 -> 5.09536 | V8: ='Wy 1.8'!E15 -> 5.09536 | AA8: 48600 | AB8: 72900 | AC8: 121500
B9: Conservation Enabling Adjustment | C9: ='CET & DSM WY'!C24 -> 0.01879 | D9: ='CET & DSM WY'!C25 -> 0.01188 | K9: Energy Efficiency Services | L9: ='CET & DSM WY'!D31 -> 0.08332050447 | M9: ='CET & DSM WY'!D32 -> 0.08332050447 | Z9: Distribution Non-Gas Rate | AA9: ='Wy 1.8'!C32 -> 0.13102 | AB9: ='Wy 1.8'!D32 -> 0.1148 | AC9: ='Wy 1.8'!E32 -> 0.0986 | BF9: Non-Gas Cost | BG9: ='Wy 1.8'!C26 -> 4.78284
B10: Energy Efficiency Services | C10: ='CET & DSM WY'!D24 -> 0.06792 | D10: ='CET & DSM WY'!D25 -> 0.06792 | K10: Core Service Commodity Cost | L10: ='CET & DSM WY'!G31 -> 4.96884 | M10: =ROUND('CET & DSM WY'!G32,5) -> 4.96884 | Q10: Total Rate | R10: =SUM(R7:R8) -> 5.77505 | T10: =SUM(T7:T8) -> 5.69919 | V10: =SUM(V7:V8) -> 5.62314 | Z10: Upstream Pipeline Cost | AA10: ='Wy 1.8'!C33 -> 0.18114 | AB10: ='Wy 1.8'!D33 -> 0.18114 | AC10: ='Wy 1.8'!E33 -> 0.18114 | BF10: Core Commodity Cost | BG10: ='Wy 1.8'!C27 -> 5.09536
B11: Core Service Commodity Cost | C11: ='CET & DSM WY'!G24 -> 4.96884 | D11: ='CET & DSM WY'!G25 -> 4.96884 | Z11: Commodity Rate | BF11: Total Rate | BG11: =SUM(BG9:BJ10) -> 9.8782
K12: Total Rate | L12: =SUM(L7:L10) -> 7.105620504 | M12: =SUM(M7:M10) -> 6.350190504 | Q12: Minimum Monthly Distribution Non-Gas Charge | W12: ='Wy 1.8'!C18 -> 112
B13: Total Rate | C13: =SUM(C8:C11) -> 7.06396 | D13: =SUM(D8:D11) -> 6.31819
M15: BSF Category 1 | N15: =E16 -> 10
D16: BSF Category 1 | E16: ='CET & DSM WY'!O14 -> 10 | M16: BSF Category 2 | N16: =E17 -> 44 | U16: BSF Category 1 | W16: ='Other Inputs'!G95 -> 10
D17: BSF Category 2 | E17: 44 | M17: BSF Category 3 | N17: =E18 -> 86 | U17: BSF Category 2 | W17: ='Wy 1.8'!C20 -> 44
D18: BSF Category 3 | E18: 86 | M18: BSF Category 4 | N18: =E19 -> 555 | U18: BSF Category 3 | W18: ='Wy 1.8'!C21 -> 86 | Z18: Total Rate | AA18: $ | AB18: $ | AC18: $
D19: BSF Category 4 | E19: 555 | U19: BSF Category 4 | W19: ='Wy 1.8'!C22 -> 555
Z20: Minimum Monthly Distribution Non-Gas Charge
BF23: =B38 -> Issued by R. W. Jibson, President | BI23: Advice No | BJ23: Section Revision No.
AB24: BSF Category 1 | AC24: ='Other Inputs'!G95 -> 10
AB25: BSF Category 2 | AC25: ='Wy 1.8'!C37 -> 44
AB26: BSF Category 3 | AC26: ='Wy 1.8'!C38 -> 86
AB27: BSF Category 4 | AC27: ='Wy 1.8'!C39 -> 555
K37: Issued by R. W. Jibson, President | M37: Section Revision No. | N37: Effective Date
B38: Issued by R. W. Jibson, President | D38: Section Revision No. | E38: Effective Date | Q38: =B38 -> Issued by R. W. Jibson, President | T38: Advice No | U38: Section Revision No. | W38: Effective Date
B42: New CET ONLY | K42: New DSM ONLY | Q42: New Pass Through Values
Z47: =B38 -> Issued by R. W. Jibson, President | AC47: Advice No
Z50: New Pass Through Values

Sheet Calculations
A1: GAS BALANCE FOR 12 MONTHS ENDING: _________________
D3: SALES VOLUMES IN DECATHERMS (12 Months of Forecast)
D4: Forecast | E4: Forecast | F4: Forecast | G4: Forecast | H4: Forecast | I4: Forecast | J4: Forecast | K4: Forecast | L4: Forecast | M4: Forecast | N4: Forecast | O4: Forecast | P4: 12-Month
A5: RATE CLASS | D5: ='Monthly Inputs'!G3 -> Oct11 | E5: ='Monthly Inputs'!H3 -> Nov11 | F5: ='Monthly Inputs'!I3 -> Dec11 | G5: ='Monthly Inputs'!J3 -> Jan12 | H5: ='Monthly Inputs'!K3 -> Feb12 | I5: ='Monthly Inputs'!L3 -> Mar12 | J5: ='Monthly Inputs'!M3 -> Apr12 | K5: ='Monthly Inputs'!N3 -> May12 | L5: ='Monthly Inputs'!O3 -> Jun12 | M5: ='Monthly Inputs'!P3 -> Jul12 | N5: ='Monthly Inputs'!Q3 -> Aug12 | O5: ='Monthly Inputs'!R3 -> Sep12 | P5: Total
A6: UTAH | D6: =MONTH(D5) -> 10 | E6: =MONTH(E5) -> 11 | F6: 12 | G6: 1 | H6: 2 | I6: 3 | J6: 4 | K6: 5 | L6: 6 | M6: 7 | N6: 8 | O6: 9
B7: GSR | D7: ='RevRun Fcst'!H21 -> 5958901 | E7: ='RevRun Fcst'!I21 -> 9791659 | F7: ='RevRun Fcst'!J21 -> 15448448 | G7: ='RevRun Fcst'!K21 -> 17853027 | H7: ='RevRun Fcst'!L21 -> 13975636 | I7: ='RevRun Fcst'!M21 -> 10442122 | J7: ='RevRun Fcst'!N21 -> 7744816 | K7: ='RevRun Fcst'!O21 -> 3896895 | L7: ='RevRun Fcst'!P21 -> 2478429 | M7: ='RevRun Fcst'!Q21 -> 2310169 | N7: ='RevRun Fcst'!R21 -> 2237986 | O7: ='RevRun Fcst'!S21 -> 3155079 | P7: =SUM(D7:O7) -> 95293167
B8: GSC | D8: ='RevRun Fcst'!H30 -> 0 | E8: ='RevRun Fcst'!I30 -> 0 | F8: ='RevRun Fcst'!J30 -> 0 | G8: ='RevRun Fcst'!K30 -> 0 | H8: ='RevRun Fcst'!L30 -> 0 | I8: ='RevRun Fcst'!M30 -> 0 | J8: ='RevRun Fcst'!N30 -> 0 | K8: ='RevRun Fcst'!O30 -> 0 | L8: ='RevRun Fcst'!P30 -> 0 | M8: ='RevRun Fcst'!Q30 -> 0 | N8: ='RevRun Fcst'!R30 -> 0 | O8: ='RevRun Fcst'!S30 -> 0 | P8: 0
B9: GSS | D9: ='RevRun Fcst'!H39 -> 0 | E9: ='RevRun Fcst'!I39 -> 0 | F9: ='RevRun Fcst'!J39 -> 0 | G9: ='RevRun Fcst'!K39 -> 0 | H9: ='RevRun Fcst'!L39 -> 0 | I9: ='RevRun Fcst'!M39 -> 0 | J9: ='RevRun Fcst'!N39 -> 0 | K9: ='RevRun Fcst'!O39 -> 0 | L9: ='RevRun Fcst'!P39 -> 0 | M9: ='RevRun Fcst'!Q39 -> 0 | N9: ='RevRun Fcst'!R39 -> 0 | O9: ='RevRun Fcst'!S39 -> 0 | P9: 0
B10: F-1 | D10: ='RevRun Fcst'!H48 -> 576280 | E10: ='RevRun Fcst'!I48 -> 667892 | F10: ='RevRun Fcst'!J48 -> 794543 | G10: ='RevRun Fcst'!K48 -> 847850 | H10: ='RevRun Fcst'!L48 -> 691002 | I10: ='RevRun Fcst'!M48 -> 675968 | J10: ='RevRun Fcst'!N48 -> 631344 | K10: ='RevRun Fcst'!O48 -> 502084 | L10: ='RevRun Fcst'!P48 -> 509226 | M10: ='RevRun Fcst'!Q48 -> 467888 | N10: ='RevRun Fcst'!R48 -> 435417 | O10: ='RevRun Fcst'!S48 -> 502410 | P10: 7301904
B11: F-4 | D11: ='RevRun Fcst'!H75 -> 0 | E11: ='RevRun Fcst'!I75 -> 0 | F11: ='RevRun Fcst'!J75 -> 0 | G11: ='RevRun Fcst'!K75 -> 0 | H11: ='RevRun Fcst'!L75 -> 0 | I11: ='RevRun Fcst'!M75 -> 0 | J11: ='RevRun Fcst'!N75 -> 0 | K11: ='RevRun Fcst'!O75 -> 0 | L11: ='RevRun Fcst'!P75 -> 0 | M11: ='RevRun Fcst'!Q75 -> 0 | N11: ='RevRun Fcst'!R75 -> 0 | O11: ='RevRun Fcst'!S75 -> 0 | P11: 0
B12: NGV | D12: ='RevRun Fcst'!H66 -> 38000 | E12: ='RevRun Fcst'!I66 -> 38000 | F12: ='RevRun Fcst'!J66 -> 38000 | G12: ='RevRun Fcst'!K66 -> 38000 | H12: ='RevRun Fcst'!L66 -> 38000 | I12: ='RevRun Fcst'!M66 -> 38000 | J12: ='RevRun Fcst'!N66 -> 38000 | K12: ='RevRun Fcst'!O66 -> 38000 | L12: ='RevRun Fcst'!P66 -> 38000 | M12: ='RevRun Fcst'!Q66 -> 38000 | N12: ='RevRun Fcst'!R66 -> 38000 | O12: ='RevRun Fcst'!S66 -> 38000 | P12: 456000
A13: Total Firm Sales | D13: =SUM(D7:D12) -> 6573181 | E13: 10497551 | F13: =SUM(F7:F12) -> 16280991 | G13: 18738877 | H13: 14704638 | I13: 11156090 | J13: 8414160 | K13: 4436979 | L13: 3025655 | M13: 2816057 | N13: 2711403 | O13: 3695489 | P13: 103051071
B15: I-4 | D15: ='RevRun Fcst'!H93 -> 185973 | E15: ='RevRun Fcst'!I93 -> 225683 | F15: ='RevRun Fcst'!J93 -> 239132 | G15: ='RevRun Fcst'!K93 -> 210722 | H15: ='RevRun Fcst'!L93 -> 172192 | I15: ='RevRun Fcst'!M93 -> 188747 | J15: ='RevRun Fcst'!N93 -> 205013 | K15: ='RevRun Fcst'!O93 -> 188770 | L15: ='RevRun Fcst'!P93 -> 193862 | M15: ='RevRun Fcst'!Q93 -> 205529 | N15: ='RevRun Fcst'!R93 -> 206378 | O15: ='RevRun Fcst'!S93 -> 196009 | P15: =SUM(D15:O15) -> 2418010
B16: IS-4 | D16: ='RevRun Fcst'!H111 -> 0 | E16: ='RevRun Fcst'!I111 -> 0 | F16: ='RevRun Fcst'!J111 -> 0 | G16: ='RevRun Fcst'!K111 -> 0 | H16: ='RevRun Fcst'!L111 -> 0 | I16: ='RevRun Fcst'!M111 -> 0 | J16: ='RevRun Fcst'!N111 -> 0 | K16: ='RevRun Fcst'!O111 -> 0 | L16: ='RevRun Fcst'!P111 -> 0 | M16: ='RevRun Fcst'!Q111 -> 0 | N16: ='RevRun Fcst'!R111 -> 0 | O16: ='RevRun Fcst'!S111 -> 0 | P16: =SUM(D16:O16) -> 0
A17: Total Interruptible Sales | D17: =SUM(D15:D16) -> 185973 | E17: 225683 | F17: 239132 | G17: 210722 | H17: 172192 | I17: 188747 | J17: 205013 | K17: 188770 | L17: 193862 | M17: 205529 | N17: 206378 | O17: 196009 | P17: 2418010
A20: Total Utah Sales | D20: =+D13+D17 -> 6759154 | E20: =+E13+E17 -> 10723234 | F20: =+F13+F17 -> 16520123 | G20: 18949599 | H20: 14876830 | I20: 11344837 | J20: 8619173 | K20: 4625749 | L20: 3219517 | M20: 3021586 | N20: 2917781 | O20: 3891498 | P20: 105469081
A22: Total Utah Transportation | D22: ='RevRun Fcst'!H203 -> 4784790 | E22: ='RevRun Fcst'!I203 -> 5553630 | F22: ='RevRun Fcst'!J203 -> 4946742 | G22: ='RevRun Fcst'!K203 -> 6132504 | H22: ='RevRun Fcst'!L203 -> 5320014 | I22: ='RevRun Fcst'!M203 -> 5614851 | J22: ='RevRun Fcst'!N203 -> 5055197 | K22: ='RevRun Fcst'!O203 -> 4524553 | L22: ='RevRun Fcst'!P203 -> 4072464 | M22: ='RevRun Fcst'!Q203 -> 5306802 | N22: ='RevRun Fcst'!R203 -> 5510638 | O22: ='RevRun Fcst'!S203 -> 4728748 | P22: =SUM(D22:O22) -> 61550933
A25: Total Utah Sales & Trans | D25: =+D20+D22 -> 11543944 | E25: 16276864 | F25: 21466865 | G25: 25082103 | H25: 20196844 | I25: 16959688 | J25: 13674370 | K25: 9150302 | L25: 7291981 | M25: 8328388 | N25: 8428419 | O25: 8620246 | P25: 167020014
A27: WYOMING
A28: GS-1 | D28: ='RevRun Fcst'!H243 -> 206176 | E28: ='RevRun Fcst'!I243 -> 359241 | F28: ='RevRun Fcst'!J243 -> 528875 | G28: ='RevRun Fcst'!K243 -> 580612 | H28: ='RevRun Fcst'!L243 -> 473613 | I28: ='RevRun Fcst'!M243 -> 370145 | J28: ='RevRun Fcst'!N243 -> 288179 | K28: ='RevRun Fcst'!O243 -> 153452 | L28: ='RevRun Fcst'!P243 -> 86464 | M28: ='RevRun Fcst'!Q243 -> 56906 | N28: ='RevRun Fcst'!R243 -> 66530 | O28: ='RevRun Fcst'!S243 -> 128619 | P28: =SUM(D28:O28) -> 3298812
A29: GS-W | D29: ='RevRun Fcst'!H270 -> 0 | E29: ='RevRun Fcst'!I270 -> 0 | F29: ='RevRun Fcst'!J270 -> 0 | G29: ='RevRun Fcst'!K270 -> 0 | H29: ='RevRun Fcst'!L270 -> 0 | I29: ='RevRun Fcst'!M270 -> 0 | J29: ='RevRun Fcst'!N270 -> 0 | K29: ='RevRun Fcst'!O270 -> 0 | L29: ='RevRun Fcst'!P270 -> 0 | M29: ='RevRun Fcst'!Q270 -> 0 | N29: ='RevRun Fcst'!R270 -> 0 | O29: ='RevRun Fcst'!S270 -> 0 | P29: =SUM(D29:O29) -> 0
A30: F-1 | D30: ='RevRun Fcst'!H252 -> 17813 | E30: ='RevRun Fcst'!I252 -> 22786 | F30: ='RevRun Fcst'!J252 -> 30322 | G30: ='RevRun Fcst'!K252 -> 31420 | H30: ='RevRun Fcst'!L252 -> 25372 | I30: ='RevRun Fcst'!M252 -> 23411 | J30: ='RevRun Fcst'!N252 -> 21079 | K30: ='RevRun Fcst'!O252 -> 14626 | L30: ='RevRun Fcst'!P252 -> 13452 | M30: ='RevRun Fcst'!Q252 -> 10744 | N30: ='RevRun Fcst'!R252 -> 10817 | O30: ='RevRun Fcst'!S252 -> 14420 | P30: =SUM(D30:O30) -> 236262
A31: NGV | D31: ='RevRun Fcst'!H261 -> 885 | E31: ='RevRun Fcst'!I261 -> 885 | F31: ='RevRun Fcst'!J261 -> 885 | G31: ='RevRun Fcst'!K261 -> 885 | H31: ='RevRun Fcst'!L261 -> 885 | I31: ='RevRun Fcst'!M261 -> 885 | J31: ='RevRun Fcst'!N261 -> 885 | K31: ='RevRun Fcst'!O261 -> 885 | L31: ='RevRun Fcst'!P261 -> 885 | M31: ='RevRun Fcst'!Q261 -> 885 | N31: ='RevRun Fcst'!R261 -> 885 | O31: ='RevRun Fcst'!S261 -> 885 | P31: =SUM(D31:O31) -> 10620
A32: Total Firm Sales | D32: =SUM(D28:D31) -> 224874 | E32: 382912 | F32: 560082 | G32: 612917 | H32: 499870 | I32: 394441 | J32: 310143 | K32: 168963 | L32: 100801 | M32: 68535 | N32: 78232 | O32: 143924 | P32: 3545694
A34: I-2 | D34: ='RevRun Fcst'!H279 -> 7486 | E34: ='RevRun Fcst'!I279 -> 11876 | F34: ='RevRun Fcst'!J279 -> 16120 | G34: ='RevRun Fcst'!K279 -> 18492 | H34: ='RevRun Fcst'!L279 -> 14789 | I34: ='RevRun Fcst'!M279 -> 15206 | J34: ='RevRun Fcst'!N279 -> 16294 | K34: ='RevRun Fcst'!O279 -> 10647 | L34: ='RevRun Fcst'!P279 -> 11639 | M34: ='RevRun Fcst'!Q279 -> 9164 | N34: ='RevRun Fcst'!R279 -> 8448 | O34: ='RevRun Fcst'!S279 -> 8236 | P34: =SUM(D34:O34) -> 148397
A35: I-4 | D35: ='RevRun Fcst'!H288 -> 0 | E35: ='RevRun Fcst'!I288 -> 0 | F35: ='RevRun Fcst'!J288 -> 0 | G35: ='RevRun Fcst'!K288 -> 0 | H35: ='RevRun Fcst'!L288 -> 0 | I35: ='RevRun Fcst'!M288 -> 0 | J35: ='RevRun Fcst'!N288 -> 0 | K35: ='RevRun Fcst'!O288 -> 0 | L35: ='RevRun Fcst'!P288 -> 0 | M35: ='RevRun Fcst'!Q288 -> 0 | N35: ='RevRun Fcst'!R288 -> 0 | O35: ='RevRun Fcst'!S288 -> 0 | P35: =SUM(D35:O35) -> 0
A36: Total Interruptible Sales | D36: =SUM(D34:D35) -> 7486 | E36: 11876 | F36: 16120 | G36: 18492 | H36: 14789 | I36: 15206 | J36: 16294 | K36: 10647 | L36: 11639 | M36: 9164 | N36: 8448 | O36: 8236 | P36: 148397
A39: Total Wyoming Sales | D39: =+D32+D36 -> 232360 | E39: 394788 | F39: 576202 | G39: 631409 | H39: 514659 | I39: 409647 | J39: 326437 | K39: 179610 | L39: 112440 | M39: 77699 | N39: 86680 | O39: 152160 | P39: 3694091
A41: Total Wyoming Transportation | D41: ='RevRun Fcst'!H325 -> 19917 | E41: ='RevRun Fcst'!I325 -> 51237 | F41: ='RevRun Fcst'!J325 -> 44078 | G41: ='RevRun Fcst'!K325 -> 41864 | H41: ='RevRun Fcst'!L325 -> 53726 | I41: ='RevRun Fcst'!M325 -> 51989 | J41: ='RevRun Fcst'!N325 -> 39677 | K41: ='RevRun Fcst'!O325 -> 62981 | L41: ='RevRun Fcst'!P325 -> 24713 | M41: ='RevRun Fcst'!Q325 -> 13737 | N41: ='RevRun Fcst'!R325 -> 17915 | O41: ='RevRun Fcst'!S325 -> 14961 | P41: =SUM(D41:O41) -> 436795
A44: Total Wyoming Sales & Trans | D44: =+D39+D41 -> 252277 | E44: 446025 | F44: 620280 | G44: 673273 | H44: 568385 | I44: 461636 | J44: 366114 | K44: 242591 | L44: 137153 | M44: 91436 | N44: 104595 | O44: 167121 | P44: 4130886
A47: Total System Sales and Trans | D47: =+D25+D44 -> 11796221 | E47: 16722889 | F47: 22087145 | G47: 25755376 | H47: 20765229 | I47: 17421324 | J47: 14040484 | K47: 9392893 | L47: 7429134 | M47: 8419824 | N47: 8533014 | O47: =+O25+O44 -> 8787367 | P47: 171150900
A49: Usage by Season
C50: Month | D50: =MONTH(D5) -> 10 | E50: 11 | F50: 12 | G50: 1 | H50: 2 | I50: 3 | J50: 4 | K50: 5 | L50: 6 | M50: 7 | N50: 8 | O50: 9
A51: GS | C51: Season (0=Winter, 1=Summer) | D51: =IF(D$50<4,0,IF(D$50>10,0,1)) -> 1 | E51: =IF(E$50<4,0,IF(E$50>10,0,1)) -> 0 | F51: 0 | G51: 0 | H51: 0 | I51: 0 | J51: 1 | K51: 1 | L51: 1 | M51: 1 | N51: 1 | O51: 1 | P51: Total
B52: Winter | D52: =IF(D51=0,D7+D8,0) -> 0 | E52: =IF(E51=0,E7+E8,0) -> 9791659 | F52: 15448448 | G52: 17853027 | H52: 13975636 | I52: 10442122 | J52: 0 | K52: 0 | L52: 0 | M52: 0 | N52: 0 | O52: 0 | P52: =SUM(D52:O52) -> 67510892 | Q52: =SUM(G52:I52) -> 42270785
B53: Summer | D53: =IF(D51=1,D7+D8,0) -> 5958901 | E53: 0 | F53: 0 | G53: 0 | H53: 0 | I53: 0 | J53: 7744816 | K53: 3896895 | L53: 2478429 | M53: 2310169 | N53: 2237986 | O53: 3155079 | P53: =SUM(D53:O53) -> 27782275 | Q53: =P52+P53-Q52 -> 53022382
A54: GSS
B55: Winter | D55: =IF(D51=0,D9,0) -> 0 | E55: 0 | F55: 0 | G55: 0 | H55: 0 | I55: 0 | J55: 0 | K55: 0 | L55: 0 | M55: 0 | N55: 0 | O55: 0 | P55: =SUM(D55:O55) -> 0
B56: Summer | D56: =IF(D51=1,D9,0) -> 0 | E56: 0 | F56: 0 | G56: 0 | H56: 0 | I56: 0 | J56: 0 | K56: 0 | L56: 0 | M56: 0 | N56: 0 | O56: 0 | P56: =SUM(D56:O56) -> 0
A57: F-S
B58: Winter | D58: =IF(D51=0,D10,0) -> 0 | E58: 667892 | F58: 794543 | G58: 847850 | H58: 691002 | I58: 675968 | J58: 0 | K58: 0 | L58: 0 | M58: 0 | N58: 0 | O58: 0 | P58: =SUM(D58:O58) -> 3677255 | Q58: =SUM(G58:I58) -> 2214820
B59: Summer | D59: =IF(D51=1,D10,0) -> 576280 | E59: 0 | F59: 0 | G59: 0 | H59: 0 | I59: 0 | J59: 631344 | K59: 502084 | L59: 509226 | M59: 467888 | N59: 435417 | O59: 502410 | P59: =SUM(D59:O59) -> 3624649 | Q59: =P58+P59-Q58 -> 5087084
B62: Rates: R050201.R1 | C62: WYOMING NON-CORE DNG REVENUES FROM DEMAND FORECAST AND CURRENTLY EFFECTIVE I-SALES GAS COST RATES
D63: Forecast | E63: Forecast | F63: Forecast | G63: Forecast | H63: Forecast | I63: Forecast | J63: Forecast | K63: Forecast | L63: Forecast | M63: Forecast | N63: Forecast | O63: Forecast | P63: 12-Month
D64: ='Monthly Inputs'!G3 -> Oct11 | E64: ='Monthly Inputs'!H3 -> Nov11 | F64: ='Monthly Inputs'!I3 -> Dec11 | G64: ='Monthly Inputs'!J3 -> Jan12 | H64: ='Monthly Inputs'!K3 -> Feb12 | I64: ='Monthly Inputs'!L3 -> Mar12 | J64: ='Monthly Inputs'!M3 -> Apr12 | K64: ='Monthly Inputs'!N3 -> May12 | L64: ='Monthly Inputs'!O3 -> Jun12 | M64: ='Monthly Inputs'!P3 -> Jul12 | N64: ='Monthly Inputs'!Q3 -> Aug12 | O64: ='Monthly Inputs'!R3 -> Sep12 | P64: Total
A65: I-2 & 1-4 (Non-Gas Revenue) (Yearly) | D65: ='RevRun Fcst'!H272+'RevRun Fcst'!H281 -> 2818 | E65: ='RevRun Fcst'!I272+'RevRun Fcst'!I281 -> 3394 | F65: ='RevRun Fcst'!J272+'RevRun Fcst'!J281 -> 3949 | G65: ='RevRun Fcst'!K272+'RevRun Fcst'!K281 -> 4261 | H65: ='RevRun Fcst'!L272+'RevRun Fcst'!L281 -> 3775 | I65: ='RevRun Fcst'!M272+'RevRun Fcst'!M281 -> 3829 | J65: ='RevRun Fcst'!N272+'RevRun Fcst'!N281 -> 3971 | K65: ='RevRun Fcst'!O272+'RevRun Fcst'!O281 -> 3233 | L65: ='RevRun Fcst'!P272+'RevRun Fcst'!P281 -> 3362 | M65: ='RevRun Fcst'!Q272+'RevRun Fcst'!Q281 -> 3038 | N65: ='RevRun Fcst'!R272+'RevRun Fcst'!R281 -> 2945 | O65: ='RevRun Fcst'!S272+'RevRun Fcst'!S281 -> 2916 | P65: =SUM(D65:O65) -> 41491
A66: IC (Total Revenue) (Yearly) | D66: =ROUND(D41*$P66/$P41,0) -> 3345 | E66: 8606 | F66: 7404 | G66: 7032 | H66: 9024 | I66: 8732 | J66: 6664 | K66: 10579 | L66: 4151 | M66: 2307 | N66: 3009 | O66: =P66-SUM(D66:N66) -> 2514 | P66: ='RevRun Fcst'!T299+'RevRun Fcst'!T313 -> 73367
A68: ="I-2 Gas Cost (Rate Effective "&'Other Inputs'!E62&")" -> I-2 Gas Cost (Rate Effective 11/1/2005) | D68: ='Other Inputs'!E65 -> 0 | E68: =+D68 -> 0 | F68: 0 | G68: 0 | H68: 0 | I68: 0 | J68: 0 | K68: 0 | L68: 0 | M68: 0 | N68: 0 | O68: 0
A69: ="I-4 Gas Cost (Rate Effective "&'Other Inputs'!F62&")" -> I-4 Gas Cost (Rate Effective 7/31/2009) | D69: ='Other Inputs'!F65 -> 3.78635 | E69: =+D69 -> 3.78635 | F69: 3.78635 | G69: 3.78635 | H69: 3.78635 | I69: 3.78635 | J69: 3.78635 | K69: 3.78635 | L69: 3.78635 | M69: 3.78635 | N69: 3.78635 | O69: 3.78635
D72: ALLOCATION BASES
D73: DEMAND | G73: OTHER COST
A74: Utah Peak Day Demand | D74: =+D76-D75 -> 1241463 | E74: =D74/D76 -> 0.9693098683 | G74: Utah Sales | H74: =+P20 -> 105469081 | I74: =H74/H76 -> 0.9661599152
A75: Wyoming Peak Day Demand | D75: ='Other Inputs'!E130 -> 39307 | E75: =1-E74 -> 0.03069013172 | G75: Wyoming Sales | H75: =+P39 -> 3694091 | I75: =1-I74 -> 0.03384008482
A76: Peak Day Demand | D76: ='Other Inputs'!E131 -> 1280770 | E76: =ROUND(D76/D$76,4) -> 1 | G76: Total Sales | H76: =+H74+H75 -> 109163172 | I76: =ROUND(H76/H$76,4) -> 1
D79: Financial Report Information (Latest 12 Months of Actual Expenses and 13 Months of Rate Base)
D80: Actual | E80: Actual | F80: Actual | G80: Actual | H80: Actual | I80: Actual | J80: Actual | K80: Actual | L80: Actual | M80: Actual | N80: Actual | O80: Actual
A81: Accounts | D81: =Expenses!J9 -> 2010-11-01 | E81: =Expenses!K9 -> 2010-12-01 | F81: =Expenses!L9 -> 2011-01-01 | G81: =Expenses!M9 -> 2011-02-01 | H81: =Expenses!N9 -> 2011-03-01 | I81: =Expenses!O9 -> 2011-04-01 | J81: =Expenses!P9 -> 2011-05-01 | K81: =Expenses!Q9 -> 2011-06-01 | L81: =Expenses!R9 -> 2011-07-01 | M81: =Expenses!G9 -> 2010-08-01 | N81: =Expenses!H9 -> 2010-09-01 | O81: =Expenses!I9 -> 2010-10-01 | P81: =+'Monthly Inputs'!S3 -> Total
A82: EXPENSES
B83: Gas Use In Dth (Acct 810 & 812) | D83: 0 | E83: 0 | F83: 0 | G83: 0 | H83: 0 | I83: 0 | J83: 0 | K83: 0 | L83: 0 | M83: 0 | N83: 0 | O83: 0 | P83: =SUM(D83:O83) -> 0
B85: Other Revenue (Yearly)
B86: Sales for Resale (account 483) | D86: =Expenses!J445 -> 305859.28 | E86: =Expenses!K445 -> 273395.3 | F86: =Expenses!L445 -> 316092.38 | G86: =Expenses!M445 -> 480962.53 | H86: =Expenses!N445 -> -1116300.83 | I86: =Expenses!O445 -> 319571.01 | J86: =Expenses!P445 -> 425103.41 | K86: =Expenses!Q445 -> 202932.77 | L86: =Expenses!R445 -> 217135.37 | M86: =Expenses!G445 -> 449041.52 | N86: =Expenses!H445 -> 437030.17 | O86: =Expenses!I445 -> 438425.68 | P86: =SUM(D86:O86) -> 2749248.59
B87: Incidental Plant Prod Sales (Acct 490) | D87: =Expenses!J446 -> 509098.24 | E87: =Expenses!K446 -> 532596.09 | F87: =Expenses!L446 -> 506771.38 | G87: =Expenses!M446 -> 492405.14 | H87: =Expenses!N446 -> 523726.83 | I87: =Expenses!O446 -> 376987.77 | J87: =Expenses!P446 -> 520788.49 | K87: =Expenses!Q446 -> 435429.94 | L87: =Expenses!R446 -> 806677.91 | M87: =Expenses!G446 -> 764107.16 | N87: =Expenses!H446 -> 467551.06 | O87: =Expenses!I446 -> 4.41 | P87: =SUM(D87:O87) -> 5936144.42
B88: Gas Processed by Others (account 491) | D88: =Expenses!J461 -> 0 | E88: =Expenses!K461 -> 0 | F88: =Expenses!L461 -> 0 | G88: =Expenses!M461 -> 0 | H88: =Expenses!N461 -> 0 | I88: =Expenses!O461 -> 0 | J88: =Expenses!P461 -> 0 | K88: =Expenses!Q461 -> 0 | L88: =Expenses!R461 -> 0 | M88: =Expenses!G461 -> 0 | N88: =Expenses!H461 -> 0 | O88: =Expenses!I461 -> 0 | P88: =SUM(D88:O88) -> 0
B89: Gasoline - Oil Sales (account 492) | D89: =Expenses!J447 -> 143653.4 | E89: =Expenses!K447 -> 93278.12 | F89: =Expenses!L447 -> 83662.56 | G89: =Expenses!M447 -> 113428.99 | H89: =Expenses!N447 -> 81099.12 | I89: =Expenses!O447 -> 129891.2 | J89: =Expenses!P447 -> 126089.44 | K89: =Expenses!Q447 -> 97079.15 | L89: =Expenses!R447 -> 130107.58 | M89: =Expenses!G447 -> 222340.52 | N89: =Expenses!H447 -> 75753.1 | O89: =Expenses!I447 -> 148564.01 | P89: =SUM(D89:O89) -> 1444947.19
B90: Gasoline - Oil Cost (account 758.001) | D90: =-Expenses!J450 -> -19159.95 | E90: =-Expenses!K450 -> -13814.46 | F90: =-Expenses!L450 -> -11805.4 | G90: =-Expenses!M450 -> -15202.57 | H90: =-Expenses!N450 -> -11003.37 | I90: =-Expenses!O450 -> -16138.79 | J90: =-Expenses!P450 -> -18977.21 | K90: =-Expenses!Q450 -> -14600.03 | L90: =-Expenses!R450 -> -18701.13 | M90: =-Expenses!G450 -> -28621.92 | N90: =-Expenses!H450 -> -11159.77 | O90: =-Expenses!I450 -> -24913.89 | P90: =SUM(D90:O90) -> -204098.49
B93: Overriding Royalty (account 495-1) | D93: =Expenses!J448 -> 1063749.39 | E93: =Expenses!K448 -> 1190213.39 | F93: =Expenses!L448 -> 1118930.7 | G93: =Expenses!M448 -> 1303205.79 | H93: =Expenses!N448 -> 1395389.64 | I93: =Expenses!O448 -> 1290450.08 | J93: =Expenses!P448 -> 1454344.71 | K93: =Expenses!Q448 -> 1516724.59 | L93: =Expenses!R448 -> 1605832.48 | M93: =Expenses!G448 -> 1181542.26 | N93: =Expenses!H448 -> 1275780.57 | O93: =Expenses!I448 -> 1221418.64 | P93: =SUM(D93:O93) -> 15617582.24
B94: Wexpro Revenue Sharing (account 495-2) | D94: =Expenses!J449 -> 197542 | E94: =Expenses!K449 -> 153968 | F94: =Expenses!L449 -> 193104 | G94: =Expenses!M449 -> 102294 | H94: =Expenses!N449 -> 506203 | I94: =Expenses!O449 -> 387846 | J94: =Expenses!P449 -> 465416 | K94: =Expenses!Q449 -> 181393 | L94: =Expenses!R449 -> 60431 | M94: =Expenses!G449 -> 89341 | N94: =Expenses!H449 -> 89973 | O94: =Expenses!I449 -> 149182 | P94: =SUM(D94:O94) -> 2576693
P95: Page 2 of 6
C96: Actual | D96: Actual | E96: Actual | F96: Actual | G96: Actual | H96: Actual | I96: Actual | J96: Actual | K96: Actual | L96: Actual | M96: Actual | N96: Actual | O96: Actual | P96: 13-Month
A97: Accounts | C97: ='Rate Base'!H8 -> 2010-07-21 | D97: ='Rate Base'!I8 -> 2010-08-20 | E97: ='Rate Base'!J8 -> 2010-09-19 | F97: ='Rate Base'!K8 -> 2010-10-19 | G97: ='Rate Base'!L8 -> 2010-11-18 | H97: ='Rate Base'!M8 -> 2010-12-18 | I97: ='Rate Base'!N8 -> 2011-01-17 | J97: ='Rate Base'!O8 -> 2011-02-16 | K97: ='Rate Base'!P8 -> 2011-03-18 | L97: ='Rate Base'!Q8 -> 2011-04-17 | M97: ='Rate Base'!R8 -> 2011-05-17 | N97: ='Rate Base'!S8 -> 2011-06-16 | O97: ='Rate Base'!T8 -> 2011-07-16 | P97: Average
A98: RATE BASE - PRODUCTION
B99: Acct 164 (Working Gas) - Production | C99: ='Rate Base'!H209 -> 31735056.07 | D99: ='Rate Base'!I209 -> 43791078.54 | E99: ='Rate Base'!J209 -> 52502815.44 | F99: ='Rate Base'!K209 -> 59271925.54 | G99: ='Rate Base'!L209 -> 59109161.38 | H99: ='Rate Base'!M209 -> 43289915.13 | I99: ='Rate Base'!N209 -> 31369107.92 | J99: ='Rate Base'!O209 -> 19870006.36 | K99: ='Rate Base'!P209 -> 10598542.29 | L99: ='Rate Base'!Q209 -> 5123025.38 | M99: ='Rate Base'!R209 -> 9936676.21 | N99: ='Rate Base'!S209 -> 18701733.87 | O99: ='Rate Base'!T209 -> 28586567.05 | P99: =(((+C99+O99)/2)+SUM(D99:N99))/12 -> 31977066.64
B100: Acct 101 - Production | C100: ='Rate Base'!H158 -> 83308976.87 | D100: ='Rate Base'!I158 -> 83308976.87 | E100: ='Rate Base'!J158 -> 83308976.87 | F100: ='Rate Base'!K158 -> 83072322.89 | G100: ='Rate Base'!L158 -> 83069634.05 | H100: ='Rate Base'!M158 -> 83069634.05 | I100: ='Rate Base'!N158 -> 83069634.05 | J100: ='Rate Base'!O158 -> 83069634.05 | K100: ='Rate Base'!P158 -> 83069634.05 | L100: ='Rate Base'!Q158 -> 83069634.05 | M100: ='Rate Base'!R158 -> 83069634.05 | N100: ='Rate Base'!S158 -> 83069634.05 | O100: ='Rate Base'!T158 -> 83069634.05 | P100: 83119721.21
B101: Acct 108 - Production | C101: ='Rate Base'!H176 -> -67578173.98 | D101: ='Rate Base'!I176 -> -67653132.07 | E101: ='Rate Base'!J176 -> -67718460.52 | F101: ='Rate Base'!K176 -> -67544927.34 | G101: ='Rate Base'!L176 -> -67617751.16 | H101: ='Rate Base'!M176 -> -67671623.03 | I101: ='Rate Base'!N176 -> -67738197.59 | J101: ='Rate Base'!O176 -> -67803742.2 | K101: ='Rate Base'!P176 -> -67863032.69 | L101: ='Rate Base'!Q176 -> -67926616 | M101: ='Rate Base'!R176 -> -67988119.4 | N101: ='Rate Base'!S176 -> -68058306.34 | O101: ='Rate Base'!T176 -> -68124947.77 | P101: -67786289.1
B102: Acct 111 - Production | C102: ='Rate Base'!H183 -> -6022473.2 | D102: ='Rate Base'!I183 -> -6024144.57 | E102: ='Rate Base'!J183 -> -6025571.28 | F102: ='Rate Base'!K183 -> -6026941.9 | G102: ='Rate Base'!L183 -> -6028627.35 | H102: ='Rate Base'!M183 -> -6029762.82 | I102: ='Rate Base'!N183 -> -6031221.19 | J102: ='Rate Base'!O183 -> -6032653.39 | K102: ='Rate Base'!P183 -> -6034093.95 | L102: ='Rate Base'!Q183 -> -6035531.86 | M102: ='Rate Base'!R183 -> -6036914.79 | N102: ='Rate Base'!S183 -> -6038527.21 | O102: ='Rate Base'!T183 -> -6040045.92 | P102: -6031270.823
B103: Acct 2550 - Production | C103: ='Rate Base'!H244 -> -132015.07 | D103: ='Rate Base'!I244 -> -128486.27 | E103: ='Rate Base'!J244 -> -124957.47 | F103: ='Rate Base'!K244 -> -121428.67 | G103: ='Rate Base'!L244 -> -117899.87 | H103: ='Rate Base'!M244 -> -114371.06 | I103: ='Rate Base'!N244 -> -110987.68 | J103: ='Rate Base'!O244 -> -107604.3 | K103: ='Rate Base'!P244 -> -104220.92 | L103: ='Rate Base'!Q244 -> -100837.54 | M103: ='Rate Base'!R244 -> -97454.16 | N103: ='Rate Base'!S244 -> -94070.78 | O103: ='Rate Base'!T244 -> -90687.4 | P103: -111139.1629
B104: Acct 2820 - Production | C104: ='Rate Base'!H251 -> -3335491.09 | D104: ='Rate Base'!I251 -> -3312771.75 | E104: ='Rate Base'!J251 -> -2985639.55 | F104: ='Rate Base'!K251 -> -2934785.61 | G104: ='Rate Base'!L251 -> -3020859.24 | H104: ='Rate Base'!M251 -> -2962151.69 | I104: ='Rate Base'!N251 -> -2872804 | J104: ='Rate Base'!O251 -> -2783658.27 | K104: ='Rate Base'!P251 -> -2694447.37 | L104: ='Rate Base'!Q251 -> -2605144.87 | M104: ='Rate Base'!R251 -> -2515839.32 | N104: ='Rate Base'!S251 -> -2426755.35 | O104: ='Rate Base'!T251 -> -2337665.93 | P104: -2829286.294
B105: Acct 2821 - Production | C105: ='Rate Base'!H258 -> -1215024.15 | D105: ='Rate Base'!I258 -> -1215024.15 | E105: ='Rate Base'!J258 -> -1215024.15 | F105: ='Rate Base'!K258 -> -1215024.15 | G105: ='Rate Base'!L258 -> -1188424.08 | H105: ='Rate Base'!M258 -> -1188424.08 | I105: ='Rate Base'!N258 -> -1188424.08 | J105: ='Rate Base'!O258 -> -1188424.08 | K105: ='Rate Base'!P258 -> -1188424.08 | L105: ='Rate Base'!Q258 -> -1188424.08 | M105: ='Rate Base'!R258 -> -1188424.08 | N105: ='Rate Base'!S258 -> -1188424.08 | O105: ='Rate Base'!T258 -> -1188424.08 | P105: -1196182.434
D107: Production | H107: Acct 101 | I107: Acct 108 | J107: Acct 111 | K107: Acct 2550 | L107: Acct 2820 | M107: Acct 2821 | N107: Total
B108: Depreciation - Acct 403 | D108: =Expenses!S385 -> 786110.32 | F108: Thirteen month average | H108: =P100 -> 83119721.21 | I108: =P101 -> -67786289.1 | J108: =P102 -> -6031270.823 | K108: =P103 -> -111139.1629 | L108: =P104 -> -2829286.294 | M108: =P105 -> -1196182.434 | N108: =SUM(H108:M108) -> 5165553.393
B109: Amortization & Depletion - Acct 404 | D109: =Expenses!S392 -> 17572.72 | F109: =CONCATENATE("Wexpro Red. @ ",-'Other Inputs'!E249*100," %") -> Wexpro Red. @ 6.3 % | H109: =H108*'Other Inputs'!$E$249 -> -5236542.436 | I109: =I108*'Other Inputs'!$E$249 -> 4270536.213 | J109: =J108*'Other Inputs'!$E$249 -> 379970.0618 | N109: =SUM(H109:M109) -> -586036.1609
B110: Utah Pre-Tax Return on Production Assets | D110: =+N111 -> 539925.0817 | M110: =SUM(N108:N109) -> 4579517.232
B111: Utah Production Cost | D111: =SUM(D108:D110) -> 1343608.122 | M111: ="Utah Pre-Tax Rate of Return on Production Assets ("&'Other Inputs'!E252&")" -> Utah Pre-Tax Rate of Return on Production Assets (0.1179) | N111: =M110*'Other Inputs'!E252 -> 539925.0817
M112: ="Wyoming Pre-Tax Rate of Return on Production Assets ("&'Other Inputs'!E251&")" -> Wyoming Pre-Tax Rate of Return on Production Assets (0.1197) | N112: =M110*'Other Inputs'!E251 -> 548168.2127
A114: TACTICAL PLAN INFORMATION (IRP) | P114: 12-Month
D115: ='Monthly Inputs'!G3 -> Oct11 | E115: ='Monthly Inputs'!H3 -> Nov11 | F115: ='Monthly Inputs'!I3 -> Dec11 | G115: ='Monthly Inputs'!J3 -> Jan12 | H115: ='Monthly Inputs'!K3 -> Feb12 | I115: ='Monthly Inputs'!L3 -> Mar12 | J115: ='Monthly Inputs'!M3 -> Apr12 | K115: ='Monthly Inputs'!N3 -> May12 | L115: ='Monthly Inputs'!O3 -> Jun12 | M115: ='Monthly Inputs'!P3 -> Jul12 | N115: ='Monthly Inputs'!Q3 -> Aug12 | O115: ='Monthly Inputs'!R3 -> Sep12 | P115: Total
A116: COMPANY PRODUCTION
B117: Prior Company
B118: D24 Wells
B119: Brady & Powel
B120: Total Company Production | D120: ='Monthly Inputs'!G16 -> 5920619 | E120: ='Monthly Inputs'!H16 -> 6207015 | F120: ='Monthly Inputs'!I16 -> 6021781 | G120: ='Monthly Inputs'!J16 -> 6025923 | H120: ='Monthly Inputs'!K16 -> 6191207 | I120: ='Monthly Inputs'!L16 -> 6115283 | J120: ='Monthly Inputs'!M16 -> 6036273 | K120: ='Monthly Inputs'!N16 -> 5988828 | L120: ='Monthly Inputs'!O16 -> 5836397 | M120: ='Monthly Inputs'!P16 -> 5569433 | N120: ='Monthly Inputs'!Q16 -> 5311649 | O120: ='Monthly Inputs'!R16 -> 5947801 | P120: =SUM(D120:O120) -> 71172209
A122: STORAGE INJECTIONS
B123: Chalk Creek | D123: ='Monthly Inputs'!G35 -> 151715 | E123: ='Monthly Inputs'!H35 -> 163609 | F123: ='Monthly Inputs'!I35 -> 0 | G123: ='Monthly Inputs'!J35 -> 0 | H123: ='Monthly Inputs'!K35 -> 0 | I123: ='Monthly Inputs'!L35 -> 0 | J123: ='Monthly Inputs'!M35 -> 0 | K123: ='Monthly Inputs'!N35 -> 0 | L123: ='Monthly Inputs'!O35 -> 0 | M123: ='Monthly Inputs'!P35 -> 0 | N123: ='Monthly Inputs'!Q35 -> 0 | O123: ='Monthly Inputs'!R35 -> 0 | P123: =SUM(D123:O123) -> 315324
B124: Coalville | D124: ='Monthly Inputs'!G37 -> 261776 | E124: ='Monthly Inputs'!H37 -> 2903 | F124: ='Monthly Inputs'!I37 -> 0 | G124: ='Monthly Inputs'!J37 -> 0 | H124: ='Monthly Inputs'!K37 -> 0 | I124: ='Monthly Inputs'!L37 -> 0 | J124: ='Monthly Inputs'!M37 -> 0 | K124: ='Monthly Inputs'!N37 -> 0 | L124: ='Monthly Inputs'!O37 -> 0 | M124: ='Monthly Inputs'!P37 -> 0 | N124: ='Monthly Inputs'!Q37 -> 0 | O124: ='Monthly Inputs'!R37 -> 130938 | P124: =SUM(D124:O124) -> 395617
B125: Leroy | D125: ='Monthly Inputs'!G38 -> 468902 | E125: ='Monthly Inputs'!H38 -> 0 | F125: ='Monthly Inputs'!I38 -> 0 | G125: ='Monthly Inputs'!J38 -> 0 | H125: ='Monthly Inputs'!K38 -> 0 | I125: ='Monthly Inputs'!L38 -> 0 | J125: ='Monthly Inputs'!M38 -> 0 | K125: ='Monthly Inputs'!N38 -> 0 | L125: ='Monthly Inputs'!O38 -> 0 | M125: ='Monthly Inputs'!P38 -> 0 | N125: ='Monthly Inputs'!Q38 -> 0 | O125: ='Monthly Inputs'!R38 -> 0 | P125: =SUM(D125:O125) -> 468902
B126: Total Peaking Storage | D126: =SUM(D123:D125) -> 882393 | E126: =SUM(E123:E125) -> 166512 | F126: 0 | G126: 0 | H126: 0 | I126: 0 | J126: 0 | K126: 0 | L126: 0 | M126: 0 | N126: 0 | O126: 130938 | P126: 1179843
B127: Clay Basin | D127: ='Monthly Inputs'!G36 -> 1866750 | E127: ='Monthly Inputs'!H36 -> 1394090 | F127: ='Monthly Inputs'!I36 -> 0 | G127: ='Monthly Inputs'!J36 -> 0 | H127: ='Monthly Inputs'!K36 -> 0 | I127: ='Monthly Inputs'!L36 -> 0 | J127: ='Monthly Inputs'!M36 -> 563980 | K127: ='Monthly Inputs'!N36 -> 966100 | L127: ='Monthly Inputs'!O36 -> 2316780 | M127: ='Monthly Inputs'!P36 -> 2312930 | N127: ='Monthly Inputs'!Q36 -> 2159220 | O127: ='Monthly Inputs'!R36 -> 1941240 | P127: =SUM(D127:O127) -> 13521090
B128: Total Storage Injections | D128: =SUM(D126:D127) -> 2749143 | E128: =SUM(E126:E127) -> 1560602 | F128: 0 | G128: 0 | H128: 0 | I128: 0 | J128: 563980 | K128: 966100 | L128: 2316780 | M128: 2312930 | N128: 2159220 | O128: 2072178 | P128: 14700933
A129: STORAGE WITHDRAWLS
B130: Chalk Creek | D130: ='Monthly Inputs'!G42 -> 0 | E130: ='Monthly Inputs'!H42 -> 0 | F130: ='Monthly Inputs'!I42 -> 0 | G130: ='Monthly Inputs'!J42 -> 326518 | H130: ='Monthly Inputs'!K42 -> 0 | I130: ='Monthly Inputs'!L42 -> 0 | J130: ='Monthly Inputs'!M42 -> 0 | K130: ='Monthly Inputs'!N42 -> 0 | L130: ='Monthly Inputs'!O42 -> 0 | M130: ='Monthly Inputs'!P42 -> 0 | N130: ='Monthly Inputs'!Q42 -> 0 | O130: ='Monthly Inputs'!R42 -> 0 | P130: =SUM(D130:O130) -> 326518
B131: Coalville | D131: ='Monthly Inputs'!G44 -> 0 | E131: ='Monthly Inputs'!H44 -> 0 | F131: ='Monthly Inputs'!I44 -> 0 | G131: ='Monthly Inputs'!J44 -> 365004 | H131: ='Monthly Inputs'!K44 -> 0 | I131: ='Monthly Inputs'!L44 -> 0 | J131: ='Monthly Inputs'!M44 -> 0 | K131: ='Monthly Inputs'!N44 -> 0 | L131: ='Monthly Inputs'!O44 -> 0 | M131: ='Monthly Inputs'!P44 -> 0 | N131: ='Monthly Inputs'!Q44 -> 0 | O131: ='Monthly Inputs'!R44 -> 0 | P131: =SUM(D131:O131) -> 365004
B132: Leroy | D132: ='Monthly Inputs'!G45 -> 0 | E132: ='Monthly Inputs'!H45 -> 0 | F132: ='Monthly Inputs'!I45 -> 0 | G132: ='Monthly Inputs'!J45 -> 920089 | H132: ='Monthly Inputs'!K45 -> 0 | I132: ='Monthly Inputs'!L45 -> 0 | J132: ='Monthly Inputs'!M45 -> 0 | K132: ='Monthly Inputs'!N45 -> 0 | L132: ='Monthly Inputs'!O45 -> 0 | M132: ='Monthly Inputs'!P45 -> 0 | N132: ='Monthly Inputs'!Q45 -> 0 | O132: ='Monthly Inputs'!R45 -> 0 | P132: =SUM(D132:O132) -> 920089
B133: Total Peaking Storage | D133: =SUM(D130:D132) -> 0 | E133: =SUM(E130:E132) -> 0 | F133: 0 | G133: 1611611 | H133: 0 | I133: 0 | J133: 0 | K133: 0 | L133: 0 | M133: 0 | N133: 0 | O133: 0 | P133: 1611611
B134: Clay Basin | D134: ='Monthly Inputs'!G43 -> 0 | E134: ='Monthly Inputs'!H43 -> 0 | F134: ='Monthly Inputs'!I43 -> 6199260 | G134: ='Monthly Inputs'!J43 -> 4666580 | H134: ='Monthly Inputs'!K43 -> 2553150 | I134: ='Monthly Inputs'!L43 -> 0 | J134: ='Monthly Inputs'!M43 -> 0 | K134: ='Monthly Inputs'!N43 -> 0 | L134: ='Monthly Inputs'!O43 -> 0 | M134: ='Monthly Inputs'!P43 -> 0 | N134: ='Monthly Inputs'!Q43 -> 0 | O134: ='Monthly Inputs'!R43 -> 0 | P134: =SUM(D134:O134) -> 13418990
B135: Total Storage Withdrawls | D135: =SUM(D133:D134) -> 0 | E135: 0 | F135: 6199260 | G135: 6278191 | H135: 2553150 | I135: 0 | J135: 0 | K135: 0 | L135: 0 | M135: 0 | N135: 0 | O135: 0 | P135: 15030601
A138: Gas Supply and Demand | D138: =D4 -> Forecast | E138: Forecast | F138: Forecast | G138: Forecast | H138: Forecast | I138: Forecast | J138: Forecast | K138: Forecast | L138: Forecast | M138: Forecast | N138: Forecast | O138: Forecast | P138: 12-Month
A139: Demand | D139: =D5 -> Oct11 | E139: Nov11 | F139: Dec11 | G139: Jan12 | H139: Feb12 | I139: Mar12 | J139: Apr12 | K139: May12 | L139: Jun12 | M139: Jul12 | N139: Aug12 | O139: Sep12 | P139: Total
A141: Utah Sales | D141: =+D20 -> 6759154 | E141: 10723234 | F141: =+F20 -> 16520123 | G141: 18949599 | H141: 14876830 | I141: 11344837 | J141: 8619173 | K141: 4625749 | L141: 3219517 | M141: 3021586 | N141: 2917781 | O141: 3891498 | P141: =SUM(D141:O141) -> 105469081
A142: Wyoming Sales | D142: =+D39 -> 232360 | E142: 394788 | F142: 576202 | G142: 631409 | H142: 514659 | I142: 409647 | J142: 326437 | K142: 179610 | L142: 112440 | M142: 77699 | N142: 86680 | O142: 152160 | P142: =SUM(D142:O142) -> 3694091
A143: Total Sales | D143: =+D141+D142 -> 6991514 | E143: 11118022 | F143: 17096325 | G143: 19581008 | H143: 15391489 | I143: 11754484 | J143: 8945610 | K143: 4805359 | L143: 3331957 | M143: 3099285 | N143: 3004461 | O143: 4043658 | P143: 109163172
A145: Distribution Use (Offices) | C145: Check formulas for correct month | D145: =ROUND(O83,0) -> 0 | E145: =ROUND(D83,0) -> 0 | F145: =ROUND(E83,0) -> 0 | G145: 0 | H145: 0 | I145: 0 | J145: 0 | K145: 0 | L145: 0 | M145: 0 | N145: 0 | O145: 0 | P145: =SUM(D145:O145) -> 0
A146: Distribution Lost and Unaccounted for | D146: =+D148-D143-D145 -> 30269 | E146: =+E148-E143-E145 -> 48134 | F146: 74016 | G146: 84773 | H146: 66635 | I146: 50889 | J146: 38729 | K146: 20804 | L146: 14425 | M146: 13418 | N146: 13007 | O146: =+O148-O143-O145 -> 17506 | P146: =SUM(D146:O146) -> 472605
A148: Total City Gate | D148: =ROUND((D143+D145)/(1-'Other Inputs'!$E$254),0) -> 7021783 | E148: =ROUND((E143+E145)/(1-'Other Inputs'!$E$254),0) -> 11166156 | F148: =ROUND((F143+F145)/(1-'Other Inputs'!$E$254),0) -> 17170341 | G148: =ROUND((G143+G145)/(1-'Other Inputs'!$E$254),0) -> 19665781 | H148: =ROUND((H143+H145)/(1-'Other Inputs'!$E$254),0) -> 15458124 | I148: =ROUND((I143+I145)/(1-'Other Inputs'!$E$254),0) -> 11805373 | J148: =ROUND((J143+J145)/(1-'Other Inputs'!$E$254),0) -> 8984339 | K148: =ROUND((K143+K145)/(1-'Other Inputs'!$E$254),0) -> 4826163 | L148: =ROUND((L143+L145)/(1-'Other Inputs'!$E$254),0) -> 3346382 | M148: =ROUND((M143+M145)/(1-'Other Inputs'!$E$254),0) -> 3112703 | N148: =ROUND((N143+N145)/(1-'Other Inputs'!$E$254),0) -> 3017468 | O148: =ROUND((O143+O145)/(1-'Other Inputs'!$E$254),0) -> 4061164 | P148: =SUM(D148:O148) -> 109635777
A150: Peaking Injection | D150: =+D126 -> 882393 | E150: 166512 | F150: 0 | G150: 0 | H150: 0 | I150: 0 | J150: 0 | K150: 0 | L150: 0 | M150: =+M126 -> 0 | N150: 0 | O150: 130938 | P150: =SUM(D150:O150) -> 1179843
A151: Clay Basin Injection | D151: =+D127 -> 1866750 | E151: 1394090 | F151: 0 | G151: 0 | H151: 0 | I151: 0 | J151: 563980 | K151: 966100 | L151: 2316780 | M151: 2312930 | N151: 2159220 | O151: 1941240 | P151: =SUM(D151:O151) -> 13521090
A152: Storage Lost & Unaccounted For | D152: =-'Monthly Inputs'!G59 -> 48105.0635 | E152: =-'Monthly Inputs'!H59 -> 26519.572 | F152: =-'Monthly Inputs'!I59 -> 0 | G152: =-'Monthly Inputs'!J59 -> 0 | H152: =-'Monthly Inputs'!K59 -> 0 | I152: =-'Monthly Inputs'!L59 -> 0 | J152: =-'Monthly Inputs'!M59 -> 9756.854 | K152: =-'Monthly Inputs'!N59 -> 16713.53 | L152: =-'Monthly Inputs'!O59 -> 40080.294 | M152: =-'Monthly Inputs'!P59 -> 40013.689 | N152: =-'Monthly Inputs'!Q59 -> 37354.506 | O152: =-'Monthly Inputs'!R59 -> 37865.1246 | P152: =SUM(D152:O152) -> 256408.6331
A153: Total Demand | D153: =SUM(D148:D152) -> 9819031.064 | E153: =SUM(E148:E152) -> 12753277.57 | F153: 17170341 | G153: 19665781 | H153: =SUM(H148:H152) -> 15458124 | I153: 11805373 | J153: 9558075.854 | K153: 5808976.53 | L153: 5703242.294 | M153: 5465646.689 | N153: 5214042.506 | O153: =SUM(O148:O152) -> 6171207.125 | P153: =SUM(D153:O153) -> 124593118.6
A155: Supply
A156: Company Production | D156: =+D120 -> 5920619 | E156: 6207015 | F156: 6021781 | G156: 6025923 | H156: 6191207 | I156: 6115283 | J156: 6036273 | K156: 5988828 | L156: 5836397 | M156: 5569433 | N156: 5311649 | O156: 5947801 | P156: =SUM(D156:O156) -> 71172209
A157: Co Prod Lost & Unaccounted For | D157: =ROUND(D156*(-'Other Inputs'!$E$256-'Other Inputs'!$E$257),0) -> -337475 | E157: =ROUND(E156*(-'Other Inputs'!$E$256-'Other Inputs'!$E$257),0) -> -353800 | F157: =ROUND(F156*(-'Other Inputs'!$E$256-'Other Inputs'!$E$257),0) -> -343242 | G157: =ROUND(G156*(-'Other Inputs'!$E$256-'Other Inputs'!$E$257),0) -> -343478 | H157: =ROUND(H156*(-'Other Inputs'!$E$256-'Other Inputs'!$E$257),0) -> -352899 | I157: =ROUND(I156*(-'Other Inputs'!$E$256-'Other Inputs'!$E$257),0) -> -348571 | J157: =ROUND(J156*(-'Other Inputs'!$E$256-'Other Inputs'!$E$257),0) -> -344068 | K157: =ROUND(K156*(-'Other Inputs'!$E$256-'Other Inputs'!$E$257),0) -> -341363 | L157: =ROUND(L156*(-'Other Inputs'!$E$256-'Other Inputs'!$E$257),0) -> -332675 | M157: =ROUND(M156*(-'Other Inputs'!$E$256-'Other Inputs'!$E$257),0) -> -317458 | N157: =ROUND(N156*(-'Other Inputs'!$E$256-'Other Inputs'!$E$257),0) -> -302764 | O157: =ROUND(O156*(-'Other Inputs'!$E$256-'Other Inputs'!$E$257),0) -> -339025 | P157: =SUM(D157:O157) -> -4056818
A158: Company Production @ City Gate | D158: =SUM(D156:D157) -> 5583144 | E158: =SUM(E156:E157) -> 5853215 | F158: 5678539 | G158: 5682445 | H158: 5838308 | I158: 5766712 | J158: 5692205 | K158: 5647465 | L158: 5503722 | M158: 5251975 | N158: 5008885 | O158: 5608776 | P158: =SUM(D158:O158) -> 67115391
A160: Peaking Withdrawal | D160: =+D133 -> 0 | E160: 0 | F160: 0 | G160: 1611611 | H160: 0 | I160: 0 | J160: 0 | K160: 0 | L160: 0 | M160: 0 | N160: 0 | O160: 0 | P160: =SUM(D160:O160) -> 1611611
A161: Clay Basin Withdrawal | D161: =+D134 -> 0 | E161: 0 | F161: =+F134 -> 6199260 | G161: 4666580 | H161: 2553150 | I161: 0 | J161: 0 | K161: 0 | L161: 0 | M161: 0 | N161: 0 | O161: 0 | P161: =SUM(D161:O161) -> 13418990
A162: QPC Transportation Loss on Storage | D162: ='Monthly Inputs'!G73+'Monthly Inputs'!G66 -> 0 | E162: ='Monthly Inputs'!H73+'Monthly Inputs'!H66 -> 0 | F162: ='Monthly Inputs'!I73+'Monthly Inputs'!I66 -> -143202.906 | G162: ='Monthly Inputs'!J73+'Monthly Inputs'!J66 -> -162889.2221 | H162: ='Monthly Inputs'!K73+'Monthly Inputs'!K66 -> -58977.765 | I162: ='Monthly Inputs'!L73+'Monthly Inputs'!L66 -> 0 | J162: ='Monthly Inputs'!M73+'Monthly Inputs'!M66 -> 0 | K162: ='Monthly Inputs'!N73+'Monthly Inputs'!N66 -> 0 | L162: ='Monthly Inputs'!O73+'Monthly Inputs'!O66 -> 0 | M162: ='Monthly Inputs'!P73+'Monthly Inputs'!P66 -> 0 | N162: ='Monthly Inputs'!Q73+'Monthly Inputs'!Q66 -> 0 | O162: ='Monthly Inputs'!R73+'Monthly Inputs'!R66 -> 0 | P162: =SUM(D162:O162) -> -365069.8931 | R162: =4761675+168421 -> 4930096
A163: Storage Lost & Unaccounted For | D163: ='Monthly Inputs'!G59 -> -48105.0635 | E163: ='Monthly Inputs'!H59 -> -26519.572 | F163: ='Monthly Inputs'!I59 -> 0 | G163: ='Monthly Inputs'!J59 -> 0 | H163: ='Monthly Inputs'!K59 -> 0 | I163: ='Monthly Inputs'!L59 -> 0 | J163: ='Monthly Inputs'!M59 -> -9756.854 | K163: ='Monthly Inputs'!N59 -> -16713.53 | L163: ='Monthly Inputs'!O59 -> -40080.294 | M163: ='Monthly Inputs'!P59 -> -40013.689 | N163: ='Monthly Inputs'!Q59 -> -37354.506 | O163: ='Monthly Inputs'!R59 -> -37865.1246 | P163: =SUM(D163:O163) -> -256408.6331
A164: Storage Supply @ City Gate | D164: =SUM(D160:D163) -> -48105.0635 | E164: =SUM(E160:E163) -> -26519.572 | F164: 6056057.094 | G164: 6115301.778 | H164: 2494172.235 | I164: 0 | J164: -9756.854 | K164: -16713.53 | L164: -40080.294 | M164: -40013.689 | N164: -37354.506 | O164: -37865.1246 | P164: 14409122.47
A166: Gas Purchased @ City Gate | D166: =D153-D158-D164-D152 -> 4235887.064 | E166: =E153-E158-E164-E152 -> 6900062.572 | F166: =F153-F158-F164-F152 -> 5435744.906 | G166: 7868034.222 | H166: =H153-H158-H164-H152 -> 7125643.765 | I166: =I153-I158-I164-I152 -> 6038661 | J166: 3865870.854 | K166: 161511.53 | L166: =L153-L158-L164-L152 -> 199520.294 | M166: =M153-M158-M164-M152 -> 213671.689 | N166: 205157.506 | O166: 562431.1246 | P166: =SUM(D166:O166) -> 42812196.53
A167: Gas Reimbursement | D167: =+D168-D166 -> 54052.9365 | E167: =+E168-E166 -> 88050.428 | F167: 69364.094 | G167: 100402.7779 | H167: 90929.235 | I167: 77058 | J167: 49331.146 | K167: 2061.47 | L167: 2545.706 | M167: 2726.311 | N167: 2617.494 | O167: 7176.8754 | P167: =SUM(D167:O167) -> 546316.4738
A168: Gas Purchased - Dth ( /.98) | D168: =ROUND(D166/(1-'Other Inputs'!$E$257),0) -> 4289940 | E168: =ROUND(E166/(1-'Other Inputs'!$E$257),0) -> 6988113 | F168: =ROUND(F166/(1-'Other Inputs'!$E$257),0) -> 5505109 | G168: =ROUND(G166/(1-'Other Inputs'!$E$257),0) -> 7968437 | H168: =ROUND(H166/(1-'Other Inputs'!$E$257),0) -> 7216573 | I168: =ROUND(I166/(1-'Other Inputs'!$E$257),0) -> 6115719 | J168: =ROUND(J166/(1-'Other Inputs'!$E$257),0) -> 3915202 | K168: =ROUND(K166/(1-'Other Inputs'!$E$257),0) -> 163573 | L168: =ROUND(L166/(1-'Other Inputs'!$E$257),0) -> 202066 | M168: =ROUND(M166/(1-'Other Inputs'!$E$257),0) -> 216398 | N168: =ROUND(N166/(1-'Other Inputs'!$E$257),0) -> 207775 | O168: =ROUND(O166/(1-'Other Inputs'!$E$257),0) -> 569608 | P168: =SUM(D168:O168) -> 43358513
A170: Transported Volumes - total | D170: =+D158+D166+D135+D162 -> 9819031.064 | E170: =+E158+E166+E135+E162 -> 12753277.57 | F170: 17170341 | G170: 19665781 | H170: 15458124 | I170: 11805373 | J170: 9558075.854 | K170: 5808976.53 | L170: 5703242.294 | M170: 5465646.689 | N170: 5214042.506 | O170: =+O158+O166+O135+O162 -> 6171207.125 | P170: =+P158+P166+P135+P162 -> 124593118.6
A171: Kern transported volumes | D171: =HLOOKUP(MONTH(D5),kernrivertrans,6,FALSE) -> 150505.2732 | E171: 2573154.671 | F171: 2658926.493 | G171: 2658926.493 | H171: 2401611.026 | I171: 2658926.493 | J171: 145650.2644 | K171: 150505.2732 | L171: 145650.2644 | M171: 150505.2732 | N171: 150505.2732 | O171: 145650.2644
A172: Storage Fuel % | C172: =(P152-P163)/(P160+P161+P150+P151) -> 0.01724826126
A174: Company Production as % of Total Supply / Demand | D174: =D156/(D168+D156) -> 0.579852582 | E174: 0.4704020302 | F174: =F156/(F168+F156) -> 0.5224115958 | G174: 0.4305965403 | H174: =H156/(H168+H156) -> 0.4617622753 | I174: 0.4999821764 | J174: 0.6065706842 | K174: 0.9734131439 | L174: 0.9665368489 | M174: 0.962598631 | N174: 0.9623556733 | O174: 0.9126020785 | P174: =P156/(P168+P156) -> 0.6214246078
A176: PURCHASES BREAKDOWN
A177: Spot Market Purchases | D177: ='Monthly Inputs'!G89 -> 4018520 | E177: ='Monthly Inputs'!H89 -> 2488113 | F177: ='Monthly Inputs'!I89 -> 0 | G177: ='Monthly Inputs'!J89 -> 798437 | H177: ='Monthly Inputs'!K89 -> 1186573 | I177: ='Monthly Inputs'!L89 -> 3475719 | J177: ='Monthly Inputs'!M89 -> 3718307 | K177: ='Monthly Inputs'!N89 -> 1234 | L177: ='Monthly Inputs'!O89 -> 202066 | M177: ='Monthly Inputs'!P89 -> 151116 | N177: ='Monthly Inputs'!Q89 -> 4276 | O177: ='Monthly Inputs'!R89 -> 391470 | P177: =SUM(D177:O177) -> 16435831
A178: Spot Market Purchases Cost | D178: ='Monthly Inputs'!G90 -> 14506857.2 | E178: ='Monthly Inputs'!H90 -> 9330423.75 | F178: ='Monthly Inputs'!I90 -> 0 | G178: ='Monthly Inputs'!J90 -> 3153826.15 | H178: ='Monthly Inputs'!K90 -> 4592037.51 | I178: ='Monthly Inputs'!L90 -> 12929674.68 | J178: ='Monthly Inputs'!M90 -> 14464214.23 | K178: ='Monthly Inputs'!N90 -> 4849.62 | L178: ='Monthly Inputs'!O90 -> 812305.32 | M178: ='Monthly Inputs'!P90 -> 625620.24 | N178: ='Monthly Inputs'!Q90 -> 17745.4 | O178: ='Monthly Inputs'!R90 -> 1597197.6 | P178: =SUM(D178:O178) -> 62034751.7
A180: Contract Purchases (Dth) | D180: ='Monthly Inputs'!G98 -> 0 | E180: ='Monthly Inputs'!H98 -> 1500000 | F180: ='Monthly Inputs'!I98 -> 2170000 | G180: ='Monthly Inputs'!J98 -> 2170000 | H180: ='Monthly Inputs'!K98 -> 2030000 | I180: ='Monthly Inputs'!L98 -> 1240000 | J180: ='Monthly Inputs'!M98 -> 0 | K180: ='Monthly Inputs'!N98 -> 0 | L180: ='Monthly Inputs'!O98 -> 0 | M180: ='Monthly Inputs'!P98 -> 0 | N180: ='Monthly Inputs'!Q98 -> 0 | O180: ='Monthly Inputs'!R98 -> 0 | P180: =SUM(D180:O180) -> 9110000
A181: Contract Purchases Cost Including Stabalization Costs | D181: ='Monthly Inputs'!G99+'Monthly Inputs'!G100 -> 333333.33 | E181: ='Monthly Inputs'!H99+'Monthly Inputs'!H100 -> 6123828.33 | F181: ='Monthly Inputs'!I99+'Monthly Inputs'!I100 -> 9580369.83 | G181: ='Monthly Inputs'!J99+'Monthly Inputs'!J100 -> 9679569.83 | H181: ='Monthly Inputs'!K99+'Monthly Inputs'!K100 -> 8983786.83 | I181: ='Monthly Inputs'!L99+'Monthly Inputs'!L100 -> 5114044.83 | J181: ='Monthly Inputs'!M99+'Monthly Inputs'!M100 -> 0 | K181: ='Monthly Inputs'!N99+'Monthly Inputs'!N100 -> 0 | L181: ='Monthly Inputs'!O99+'Monthly Inputs'!O100 -> 0 | M181: ='Monthly Inputs'!P99+'Monthly Inputs'!P100 -> 0 | N181: ='Monthly Inputs'!Q99+'Monthly Inputs'!Q100 -> 0 | O181: ='Monthly Inputs'!R99+'Monthly Inputs'!R100 -> 0 | P181: =SUM(D181:O181) -> 39814932.98
Q182: =P181+P184 -> 109480466.4
A183: Peak Purchases (Dth) | D183: ='Monthly Inputs'!G95 -> 0 | E183: ='Monthly Inputs'!H95 -> 3000000 | F183: ='Monthly Inputs'!I95 -> 3335109 | G183: ='Monthly Inputs'!J95 -> 5000000 | H183: ='Monthly Inputs'!K95 -> 4000000 | I183: ='Monthly Inputs'!L95 -> 1400000 | J183: ='Monthly Inputs'!M95 -> 0 | K183: ='Monthly Inputs'!N95 -> 0 | L183: ='Monthly Inputs'!O95 -> 0 | M183: ='Monthly Inputs'!P95 -> 0 | N183: ='Monthly Inputs'!Q95 -> 0 | O183: ='Monthly Inputs'!R95 -> 0 | P183: =SUM(D183:O183) -> 16735109
A184: Peak Purchases Cost | D184: ='Monthly Inputs'!G96 -> 0 | E184: ='Monthly Inputs'!H96 -> 12085094.12 | F184: ='Monthly Inputs'!I96 -> 13968059.95 | G184: ='Monthly Inputs'!J96 -> 21320498.55 | H184: ='Monthly Inputs'!K96 -> 16703250.53 | I184: ='Monthly Inputs'!L96 -> 5588630.282 | J184: ='Monthly Inputs'!M96 -> 0 | K184: ='Monthly Inputs'!N96 -> 0 | L184: ='Monthly Inputs'!O96 -> 0 | M184: ='Monthly Inputs'!P96 -> 0 | N184: ='Monthly Inputs'!Q96 -> 0 | O184: ='Monthly Inputs'!R96 -> 0 | P184: =SUM(D184:O184) -> 69665533.43
A186: Future Purchases | D186: =+D168-D177-D180-D183 -> 271420 | E186: =+E168-E177-E180-E183 -> 0 | F186: =+F168-F177-F180-F183 -> 0 | G186: 0 | H186: =+H168-H177-H180-H183 -> 0 | I186: =+I168-I177-I180-I183 -> 0 | J186: 196895 | K186: 162339 | L186: 2.910383046e-11 | M186: =+M168-M177-M180-M183 -> 65282 | N186: 203499 | O186: 178138 | P186: =SUM(D186:O186) -> 1077573
A187: Future Purchases Cost | D187: =ROUND(D186*D194,0) -> 985255 | E187: =ROUND(E186*E194,0) -> 0 | F187: =ROUND(F186*F194,0) -> 0 | G187: 0 | H187: =ROUND(H186*H194,0) -> 0 | I187: 0 | J187: 769859 | K187: 641239 | L187: 0 | M187: 271573 | N187: 848591 | O187: 730366 | P187: =SUM(D187:O187) -> 4246883
A189: Total Purchases Cost | D189: =+D178+D181+D184+D187 -> 15825445.53 | E189: =+E178+E181+E184+E187 -> 27539346.2 | F189: =+F178+F181+F184+F187 -> 23548429.78 | G189: =+G178+G181+G184+G187 -> 34153894.53 | H189: =+H178+H181+H184+H187 -> 30279074.87 | I189: 23632349.79 | J189: =+J178+J181+J184+J187 -> 15234073.23 | K189: 646088.62 | L189: 812305.32 | M189: 897193.24 | N189: 866336.4 | O189: 2327563.6 | P189: 175762101.1
A191: Gas Cost
A192: Gas Cost Purchases | D192: =IF(D168=0,0,ROUND(D189/D168,5)) -> 3.68897 | E192: =IF(E168=0,0,ROUND(E189/E168,5)) -> 3.94088 | F192: 4.27756 | G192: 4.28615 | H192: 4.19577 | I192: 3.8642 | J192: 3.89101 | K192: 3.94985 | L192: 4.02 | M192: 4.14603 | N192: 4.16959 | O192: 4.08626
A193: Gas Cost Injection Rate - this line not used - DELETE? | D193: ='Ut Storage'!K27 -> 4.237586372 | E193: =+D193 -> 4.237586372 | F193: 4.237586372 | G193: 4.237586372 | H193: 4.237586372 | I193: 4.237586372 | J193: 4.237586372 | K193: 4.237586372 | L193: 4.237586372 | M193: 4.237586372 | N193: 4.237586372 | O193: 4.237586372
A194: =CONCATENATE("'Future Contract Price (spot + $",'Other Inputs'!E165,")") -> 'Future Contract Price (spot + $0.02) | D194: =+D226+'Other Inputs'!$E$165 -> 3.63 | E194: =+E226+'Other Inputs'!$E$165 -> 3.77 | F194: =+F226+'Other Inputs'!$E$165 -> 3.89 | G194: =+G226+'Other Inputs'!$E$165 -> 3.97 | H194: =+H226+'Other Inputs'!$E$165 -> 3.89 | I194: =+I226+'Other Inputs'!$E$165 -> 3.74 | J194: =+J226+'Other Inputs'!$E$165 -> 3.91 | K194: =+K226+'Other Inputs'!$E$165 -> 3.95 | L194: =+L226+'Other Inputs'!$E$165 -> 4.04 | M194: =+M226+'Other Inputs'!$E$165 -> 4.16 | N194: =+N226+'Other Inputs'!$E$165 -> 4.17 | O194: =+O226+'Other Inputs'!$E$165 -> 4.1
A196: System Production | D196: =+D158 -> 5583144 | E196: 5853215 | F196: 5678539 | G196: 5682445 | H196: 5838308 | I196: 5766712 | J196: 5692205 | K196: 5647465 | L196: 5503722 | M196: 5251975 | N196: 5008885 | O196: 5608776 | P196: =SUM(D196:O196) -> 67115391
A197: System Purchases | D197: =+D166 -> 4235887.064 | E197: 6900062.572 | F197: 5435744.906 | G197: 7868034.222 | H197: 7125643.765 | I197: 6038661 | J197: 3865870.854 | K197: 161511.53 | L197: 199520.294 | M197: 213671.689 | N197: 205157.506 | O197: 562431.1246 | P197: =SUM(D197:O197) -> 42812196.53
A198: System Gathering of Production | D198: =ROUND($P198*D$120/$P$120,0) -> 4219697 | E198: 4423815 | F198: 4291796 | G198: 4294748 | H198: 4412548 | I198: 4358436 | J198: 4302125 | K198: 4268310 | L198: 4159671 | M198: 3969402 | N198: 3785676 | O198: 4239070 | P198: ='Other Inputs'!$D$170 -> 50725293.58
A199: System Birch Creek Gathering | D199: 213863 | E199: 224208 | F199: 217517 | G199: 217667 | H199: 223637 | I199: 220895 | J199: 218041 | K199: 216327 | L199: 210821 | M199: 201178 | N199: 191866 | O199: 214845 | P199: ='Other Inputs'!$D$154 -> 2570865
A201: Utah Production | D201: =ROUND(D196*$I$74,0) -> 5394210 | E201: 5655142 | F201: 5486377 | G201: 5490151 | H201: 5640739 | I201: 5571566 | J201: 5499580 | K201: 5456354 | L201: 5317476 | M201: 5074248 | N201: 4839384 | O201: 5418975 | P201: =SUM(D201:O201) -> 64844202
A202: Utah Purchases | D202: =ROUND(D197*$I$74,0) -> 4092544 | E202: 6666564 | F202: 5251799 | G202: 7601779 | H202: 6884511 | I202: 5834312 | J202: 3735049 | K202: 156046 | L202: 192769 | M202: 206441 | N202: 198215 | O202: 543398 | P202: =SUM(D202:O202) -> 41363427
A203: Utah Gathering | D203: =ROUND(D198*$I$74,0) -> 4076902 | E203: 4274113 | F203: 4146561 | G203: 4149413 | H203: 4263227 | I203: 4210946 | J203: 4156541 | K203: 4123870 | L203: 4018907 | M203: 3835077 | N203: 3657568 | O203: 4095620 | P203: =SUM(D203:O203) -> 49008745
A204: Utah Birch Creek Gathering | D204: =ROUND(D199*$I$74,0) -> 206626 | E204: 216621 | F204: 210156 | G204: 210301 | H204: 216069 | I204: 213420 | J204: 210662 | K204: 209006 | L204: 203687 | M204: 194370 | N204: 185373 | O204: 207575 | P204: =SUM(D204:O204) -> 2483866
A206: Wyoming Production | D206: =+D196-D201 -> 188934 | E206: 198073 | F206: 192162 | G206: 192294 | H206: 197569 | I206: 195146 | J206: 192625 | K206: 191111 | L206: 186246 | M206: 177727 | N206: 169501 | O206: 189801 | P206: =SUM(D206:O206) -> 2271189
A207: Wyoming Purchases | D207: =+D197-D202 -> 143343.0635 | E207: 233498.572 | F207: 183945.906 | G207: 266255.2221 | H207: 241132.765 | I207: 204349 | J207: 130821.854 | K207: 5465.53 | L207: 6751.294 | M207: 7230.689 | N207: 6942.506 | O207: 19033.1246 | P207: =SUM(D207:O207) -> 1448769.526
A208: Wyoming Gathering | D208: =+D198-D203 -> 142795 | E208: 149702 | F208: 145235 | G208: 145335 | H208: 149321 | I208: 147490 | J208: 145584 | K208: 144440 | L208: 140764 | M208: 134325 | N208: 128108 | O208: 143450 | P208: =SUM(D208:O208) -> 1716549
A209: Wyoming Birch Creek Gathering | D209: =+D199-D204 -> 7237 | E209: 7587 | F209: 7361 | G209: 7366 | H209: 7568 | I209: 7475 | J209: 7379 | K209: 7321 | L209: 7134 | M209: 6808 | N209: 6493 | O209: 7270 | P209: =SUM(D209:O209) -> 86999
A212: I-2, I-4 Averate Gas Cost Calculations
A213: Wyoming
B214: Wyoming I-2 Volumes | D214: =D34 -> 7486 | E214: =E34 -> 11876 | F214: 16120 | G214: 18492 | H214: 14789 | I214: 15206 | J214: 16294 | K214: 10647 | L214: 11639 | M214: 9164 | N214: 8448 | O214: 8236 | P214: 148397
B215: Wyoming I-4 Volumes | D215: =D35 -> 0 | E215: =E35 -> 0 | F215: 0 | G215: 0 | H215: 0 | I215: 0 | J215: 0 | K215: 0 | L215: 0 | M215: 0 | N215: 0 | O215: 0 | P215: 0
D216: =SUM(D214:D215) -> 7486 | E216: =SUM(E214:E215) -> 11876 | F216: 16120 | G216: 18492 | H216: 14789 | I216: 15206 | J216: 16294 | K216: 10647 | L216: 11639 | M216: 9164 | N216: 8448 | O216: 8236 | P216: 148397
B218: Global Insight Spot Price Forecast | D218: ='Monthly Inputs'!G85 -> 3.61 | E218: ='Monthly Inputs'!H85 -> 3.75 | F218: ='Monthly Inputs'!I85 -> 3.87 | G218: ='Monthly Inputs'!J85 -> 3.95 | H218: ='Monthly Inputs'!K85 -> 3.87 | I218: ='Monthly Inputs'!L85 -> 3.72 | J218: ='Monthly Inputs'!M85 -> 3.89 | K218: ='Monthly Inputs'!N85 -> 3.93 | L218: ='Monthly Inputs'!O85 -> 4.02 | M218: ='Monthly Inputs'!P85 -> 4.14 | N218: ='Monthly Inputs'!Q85 -> 4.15 | O218: ='Monthly Inputs'!R85 -> 4.08
D219: =D216*D218 -> 27024.46 | E219: =E216*E218 -> 44535 | F219: 62384.4 | G219: 73043.4 | H219: 57233.43 | I219: 56566.32 | J219: 63383.66 | K219: 41842.71 | L219: 46788.78 | M219: 37938.96 | N219: 35059.2 | O219: 33602.88 | P219: =SUM(D219:O219) -> 579403.2
P220: =P219/P216 -> 3.904413162
P221: =1-'Other Inputs'!$E$255 -> 0.985
P222: =1-'Other Inputs'!$E$257 -> 0.9874
P223: =P220/P221/P222 -> 4.014453343
A224: Utah
B225: Utah I-4 & IS-4 Volumes | D225: =D15+D16 -> 185973 | E225: 225683 | F225: 239132 | G225: 210722 | H225: 172192 | I225: 188747 | J225: 205013 | K225: 188770 | L225: 193862 | M225: 205529 | N225: 206378 | O225: 196009 | P225: 2418010
B226: =B218 -> Global Insight Spot Price Forecast | D226: ='Monthly Inputs'!G85 -> 3.61 | E226: ='Monthly Inputs'!H85 -> 3.75 | F226: ='Monthly Inputs'!I85 -> 3.87 | G226: ='Monthly Inputs'!J85 -> 3.95 | H226: ='Monthly Inputs'!K85 -> 3.87 | I226: ='Monthly Inputs'!L85 -> 3.72 | J226: ='Monthly Inputs'!M85 -> 3.89 | K226: ='Monthly Inputs'!N85 -> 3.93 | L226: ='Monthly Inputs'!O85 -> 4.02 | M226: ='Monthly Inputs'!P85 -> 4.14 | N226: ='Monthly Inputs'!Q85 -> 4.15 | O226: ='Monthly Inputs'!R85 -> 4.08
D227: =D225*D226 -> 671362.53 | E227: =E225*E226 -> 846311.25 | F227: 925440.84 | G227: 832351.9 | H227: 666383.04 | I227: 702138.84 | J227: 797500.57 | K227: 741866.1 | L227: 779325.24 | M227: 850890.06 | N227: 856468.7 | O227: =O225*O226 -> 799716.72 | P227: =SUM(D227:O227) -> 9469755.79
P228: =P227/P225 -> 3.916342691
P229: =1-'Other Inputs'!$E$254 -> 0.9956893
P230: =1-'Other Inputs'!$E$257 -> 0.9874
P232: =P228/P229/P230 -> 3.983489932
D234: =MONTH(D235) -> 1 | E234: =MONTH(E235) -> 2 | F234: =MONTH(F235) -> 3 | G234: 4 | H234: 5 | I234: 6 | J234: 7 | K234: 8 | L234: 9 | M234: 10 | N234: 11 | O234: 12
D235: 2011-01-01 | E235: 2011-02-01 | F235: 2011-03-01 | G235: 2011-04-01 | H235: 2011-05-01 | I235: 2011-06-01 | J235: 2011-07-01 | K235: 2010-08-01 | L235: 2010-09-01 | M235: 2010-10-01 | N235: 2010-11-01 | O235: 2010-12-01
D236: 31 | E236: 28 | F236: 31 | G236: 30 | H236: 31 | I236: 30 | J236: 31 | K236: 31 | L236: 30 | M236: 31 | N236: 30 | O236: 31
D237: ='Other Inputs'!$D$50+'Other Inputs'!$D$51 -> 53000 | E237: ='Other Inputs'!$D$50+'Other Inputs'!$D$51 -> 53000 | F237: ='Other Inputs'!$D$50+'Other Inputs'!$D$51 -> 53000 | G237: ='Other Inputs'!$D$50 -> 3000 | H237: ='Other Inputs'!$D$50 -> 3000 | I237: ='Other Inputs'!$D$50 -> 3000 | J237: ='Other Inputs'!$D$50 -> 3000 | K237: ='Other Inputs'!$D$50 -> 3000 | L237: ='Other Inputs'!$D$50 -> 3000 | M237: ='Other Inputs'!$D$50 -> 3000 | N237: ='Other Inputs'!$D$50+'Other Inputs'!$D$51 -> 53000 | O237: ='Other Inputs'!$D$50+'Other Inputs'!$D$51 -> 53000
D238: ='Other Inputs'!$C$56 -> 1.618336271 | E238: ='Other Inputs'!$C$56 -> 1.618336271 | F238: ='Other Inputs'!$C$56 -> 1.618336271 | G238: ='Other Inputs'!$C$56 -> 1.618336271 | H238: ='Other Inputs'!$C$56 -> 1.618336271 | I238: ='Other Inputs'!$C$56 -> 1.618336271 | J238: ='Other Inputs'!$C$56 -> 1.618336271 | K238: ='Other Inputs'!$C$56 -> 1.618336271 | L238: ='Other Inputs'!$C$56 -> 1.618336271 | M238: ='Other Inputs'!$C$56 -> 1.618336271 | N238: ='Other Inputs'!$C$56 -> 1.618336271 | O238: ='Other Inputs'!$C$56 -> 1.618336271
D239: =D236*D237*D238 -> 2658926.493 | E239: =E236*E237*E238 -> 2401611.026 | F239: 2658926.493 | G239: 145650.2644 | H239: 150505.2732 | I239: 145650.2644 | J239: 150505.2732 | K239: 150505.2732 | L239: 145650.2644 | M239: 150505.2732 | N239: 2573154.671 | O239: 2658926.493 | P239: =SUM(D239:O239) -> 13990517.06
D243: 0.13 | E243: 0.14 | F243: 0.05 | G243: 0.05 | H243: 0.02 | I243: 0.02 | J243: 0.02 | K243: 0.02 | L243: 0.01 | M243: 0 | N243: 0 | O243: 0
D244: =D243*(D177+D180+D183+D186) -> 557692.2 | E244: =E243*(E177+E180+E183+E186) -> 978335.82 | F244: 275255.45 | G244: 398421.85 | H244: 144331.46 | I244: 122314.38 | J244: 78304.04 | K244: 3271.46 | L244: 2020.66 | M244: 0 | N244: 0 | O244: 0

Sheet CET & DSM
A1: Rate Caclulation for the CET and DSM Amortizations
P3: Solver Cells
A4: CET Amortization % Calculation | P4: % Change | Q4: Difference
B5: Balance | C5: Date | D5: GS Dth | H5: Amortization per Dth | P5: =J20/D20 -> -0.01062219098 | Q5: =J20-B11 -> 0 | S5: -> Difference should be at 0 (Use Goal Seek to Get Difference to Equal 0.
A6: DSM Balance | B6: ='Other Inputs'!$E$221 -> 42000000 | C6: ='Other Inputs'!$F$221 -> 2011-03-31 | D6: =B20 -> 95293167 | H6: =ROUND(B6/D6,5) -> 0.44075
S8: Typical Bill Rates
A9: CET Amortization Calculation
B10: Balance | C10: Date | D10: DNG Rev | H10: New DNG | L10: % Change | S10: Current | T10: Proposed
A11: CET Balance | B11: ='Other Inputs'!$E$220 -> -1886289.514 | C11: ='Other Inputs'!$F$220 -> 2011-07-31 | D11: =D20 -> 177580079 | H11: =D11+B11 -> 175693789.5 | L11: =P5 -> -0.01062219098 | S11: Effective | V11: SNG & | W11: CET, DSM
S12: ='Other Inputs'!$J$86 -> 2011-06-01 | T12: CET Only | U12: DSM Only | V12: Commodity | W12: Commodity
S13: BSF | T13: BSF | U13: BSF | V13: BSF | W13: BSF
B14: Revenue Calculation | H14: CET Amortization | L14: Total DNG | P14: REVRUN Calculation | S14: ='Other Inputs'!$G$90 -> 5 | T14: ='Other Inputs'!$G$90 -> 5 | U14: ='Other Inputs'!$G$90 -> 5 | V14: ='Other Inputs'!$G$90 -> 5 | W14: ='Ut 1.8'!$C$12 -> 5
A15: Utah GS | B15: Dth | C15: Base DNG | D15: DNG Revenue | H15: CET Rate | J15: Revenue | L15: DNG Rate | N15: Revenue | P15: CET Rate | Q15: CET Amort
A16: Block 1 Summer | B16: ='Other Inputs'!E225 -> 23076373 | C16: ='Other Inputs'!E210 -> 1.87767 | D16: =B16*C16 -> 43329813.29 | H16: =ROUND((J16/B16),5) -> -0.01994 | J16: =D16*$P$5 -> -460257.552 | L16: =C16+H16 -> 1.85773 | N16: =L16*B16 -> 42869670.41 | P16: =ROUND(H16,5) -> -0.01994 | Q16: =B16*P16 -> -460142.8776 | S16: ='Other Inputs'!$G$86 -> 7.22673 | T16: =N24 -> 7.26669 | U16: =N31 -> 7.22644 | V16: =N38 -> 7.148617771 | W16: =N45 -> 7.738157771
A17: Block 2 Summer | B17: ='Other Inputs'!E226 -> 4705902 | C17: ='Other Inputs'!E211 -> 0.69704 | D17: =B17*C17 -> 3280201.93 | H17: =ROUND((J17/B17),5) -> -0.0074 | J17: =D17*$P$5 -> -34842.93136 | L17: =C17+H17 -> 0.68964 | N17: =L17*B17 -> 3245378.255 | P17: =ROUND(H17,5) -> -0.0074 | Q17: =B17*P17 -> -34823.6748
A18: Block 1 Winter | B18: ='Other Inputs'!E223 -> 52526064 | C18: ='Other Inputs'!E212 -> 2.22938 | D18: =B18*C18 -> 117100556.6 | H18: =ROUND((J18/B18),5) -> -0.02368 | J18: =D18*$P$5 -> -1243864.476 | L18: =C18+H18 -> 2.2057 | N18: =L18*B18 -> 115856739.4 | P18: =ROUND(H18,5) -> -0.02368 | Q18: =B18*P18 -> -1243817.196 | S18: ='Other Inputs'!$G$88 -> 8.21624 | T18: =N26 -> 8.26368 | U18: =N33 -> 8.21595 | V18: =N40 -> 8.115847771 | W18: =N47 -> 9.334157771
A19: Block 2 Winter | B19: ='Other Inputs'!E224 -> 14984828 | C19: ='Other Inputs'!E213 -> 0.92557 | D19: =B19*C19 -> 13869507.25 | H19: =ROUND((J19/B19),5) -> -0.00983 | J19: =D19*$P$5 -> -147324.5548 | L19: =C19+H19 -> 0.91574 | N19: =L19*B19 -> 13722206.39 | P19: =ROUND(H19,5) -> -0.00983 | Q19: =B19*P19 -> -147300.8592
A20: GS-1 Block Rev | B20: =SUM(B16:B19) -> 95293167 | D20: =SUM(D16:D19) -> 177580079 | J20: =B11 -> -1886289.514 | N20: =SUM(N16:N19) -> 175693994.4 | Q20: =SUM(Q16:Q19) -> -1886084.607
A22: Total Rate Calculation With CET Amortization Only | N22: ='Control Panel'!F8 -> 2011-10-01 | P22: ='Other Inputs'!$J$86 -> 2011-06-01
A23: Utah GS | B23: Base DNG | C23: CET | D23: DSM | E23: Energy Assist | F23: Infrastructure | H23: Total DNG | I23: Base SNG | J23: SNG Amort | L23: Base Gas Cost | M23: 191 Amort | N23: Total Rate | P23: Total Rate
A24: Block 1 Summer | B24: =$C$16 -> 1.87767 | C24: =$H$16 -> -0.01994 | D24: 0.44104 | E24: 0.01519 | F24: 0.02908 | H24: =SUM(B24:F24) -> 2.34304 | I24: 0.55715 | J24: 0.01244 | L24: 4.21339 | M24: 0.14067 | N24: =SUM(H24:M24) -> 7.26669 | P24: ='Other Inputs'!$G$86 -> 7.22673 | Q24: =N24-P24 -> 0.03996
A25: Block 2 Summer | B25: =$C$17 -> 0.69704 | C25: =$H$17 -> -0.0074 | D25: =$D$24 -> 0.44104 | E25: =$E$24 -> 0.01519 | F25: 0.0108 | H25: =SUM(B25:F25) -> 1.15667 | I25: =I24 -> 0.55715 | J25: =J24 -> 0.01244 | L25: =L24 -> 4.21339 | M25: =$M$24 -> 0.14067 | N25: =SUM(H25:M25) -> 6.08032 | P25: ='Other Inputs'!$G$87 -> 6.06548 | Q25: =N25-P25 -> 0.01484
A26: Block 1 Winter | B26: =$C$18 -> 2.22938 | C26: =$H$18 -> -0.02368 | D26: =$D$24 -> 0.44104 | E26: =$E$24 -> 0.01519 | F26: 0.03453 | H26: =SUM(B26:F26) -> 2.69646 | I26: 1.18665 | J26: 0.02651 | L26: =L24 -> 4.21339 | M26: =$M$24 -> 0.14067 | N26: =SUM(H26:M26) -> 8.26368 | P26: ='Other Inputs'!$G$88 -> 8.21624 | Q26: =N26-P26 -> 0.04744
A27: Block 2 Winter | B27: =$C$19 -> 0.92557 | C27: =$H$19 -> -0.00983 | D27: =$D$24 -> 0.44104 | E27: =$E$24 -> 0.01519 | F27: 0.01434 | H27: =SUM(B27:F27) -> 1.38631 | I27: =I26 -> 1.18665 | J27: =J26 -> 0.02651 | L27: =L24 -> 4.21339 | M27: =$M$24 -> 0.14067 | N27: =SUM(H27:M27) -> 6.95353 | P27: ='Other Inputs'!$G$89 -> 6.93383 | Q27: =N27-P27 -> 0.0197
A29: Total Rate Calculation With DSM Amortization Only | N29: =N22 -> 2011-10-01 | P29: ='Other Inputs'!$J$86 -> 2011-06-01
A30: Utah GS | B30: Base DNG | C30: CET | D30: DSM | E30: Energy Assist | F30: Infrastructure | H30: Total DNG | I30: Base SNG | J30: SNG Amort | L30: Commodity | M30: 191 Amort | N30: Total Rate | P30: Total Rate
A31: Block 1 Summer | B31: =$C$16 -> 1.87767 | C31: -0.0599 | D31: =$H$6 -> 0.44075 | E31: =$E$24 -> 0.01519 | F31: =F24 -> 0.02908 | H31: =SUM(B31:F31) -> 2.30279 | I31: =$I$24 -> 0.55715 | J31: =J24 -> 0.01244 | L31: =$L$24 -> 4.21339 | M31: =$M$24 -> 0.14067 | N31: =SUM(H31:M31) -> 7.22644 | P31: ='Other Inputs'!$G$86 -> 7.22673 | Q31: =N31-P31 -> -0.00029
A32: Block 2 Summer | B32: =$C$17 -> 0.69704 | C32: -0.02224 | D32: =$H$6 -> 0.44075 | E32: =$E$24 -> 0.01519 | F32: =F25 -> 0.0108 | H32: =SUM(B32:F32) -> 1.14154 | I32: =$I$24 -> 0.55715 | J32: =J25 -> 0.01244 | L32: =$L$24 -> 4.21339 | M32: =$M$24 -> 0.14067 | N32: =SUM(H32:M32) -> 6.06519 | P32: ='Other Inputs'!$G$87 -> 6.06548 | Q32: =N32-P32 -> -0.00029
A33: Block 1 Winter | B33: =$C$18 -> 2.22938 | C33: -0.07112 | D33: =$H$6 -> 0.44075 | E33: =$E$24 -> 0.01519 | F33: =F26 -> 0.03453 | H33: =SUM(B33:F33) -> 2.64873 | I33: =$I$26 -> 1.18665 | J33: =J26 -> 0.02651 | L33: =$L$24 -> 4.21339 | M33: =$M$24 -> 0.14067 | N33: =SUM(H33:M33) -> 8.21595 | P33: ='Other Inputs'!$G$88 -> 8.21624 | Q33: =N33-P33 -> -0.00029
A34: Block 2 Winter | B34: =$C$19 -> 0.92557 | C34: -0.02953 | D34: =$H$6 -> 0.44075 | E34: =$E$24 -> 0.01519 | F34: =F27 -> 0.01434 | H34: =SUM(B34:F34) -> 1.36632 | I34: =$I$26 -> 1.18665 | J34: =J27 -> 0.02651 | L34: =$L$24 -> 4.21339 | M34: =$M$24 -> 0.14067 | N34: =SUM(H34:M34) -> 6.93354 | P34: ='Other Inputs'!$G$89 -> 6.93383 | Q34: =N34-P34 -> -0.00029
A36: Total Rate Calculation With SNG and Commodity Changes Only | N36: =N22 -> 2011-10-01 | P36: ='Other Inputs'!$J$86 -> 2011-06-01
A37: Utah GS | B37: Base DNG | C37: CET | D37: DSM | E37: Energy Assist | F37: Infrastructure | H37: Total DNG | I37: Base SNG | J37: SNG | L37: Commodity | M37: 191 Amort | N37: Total Rate | P37: Total Rate
A38: Block 1 Summer | B38: =$C$16 -> 1.87767 | C38: =C31 -> -0.0599 | D38: =D24 -> 0.44104 | E38: =$E$24 -> 0.01519 | F38: =F24 -> 0.02908 | H38: =SUM(B38:F38) -> 2.30308 | I38: ='Ut 1.6 p3'!G17 -> 0.54987 | J38: ='Ut 1.6 p3'!$H$17 -> 0 | L38: ='Ut 1.6 p1'!$F$34 -> 4.16664 | M38: ='Ut 1.6 p1'!$F$35 -> 0.1290277711 | N38: =SUM(H38:M38) -> 7.148617771 | P38: ='Other Inputs'!$G$86 -> 7.22673 | Q38: =N38-P38 -> -0.07811222891
A39: Block 2 Summer | B39: =$C$17 -> 0.69704 | C39: =C32 -> -0.02224 | D39: =D25 -> 0.44104 | E39: =$E$24 -> 0.01519 | F39: =F25 -> 0.0108 | H39: =SUM(B39:F39) -> 1.14183 | I39: ='Ut 1.6 p3'!G17 -> 0.54987 | J39: ='Ut 1.6 p3'!$H$17 -> 0 | L39: ='Ut 1.6 p1'!$F$34 -> 4.16664 | M39: ='Ut 1.6 p1'!$F$35 -> 0.1290277711 | N39: =SUM(H39:M39) -> 5.987367771 | P39: ='Other Inputs'!$G$87 -> 6.06548 | Q39: =N39-P39 -> -0.07811222891
A40: Block 1 Winter | B40: =$C$18 -> 2.22938 | C40: =C33 -> -0.07112 | D40: =D26 -> 0.44104 | E40: =$E$24 -> 0.01519 | F40: =F26 -> 0.03453 | H40: =SUM(B40:F40) -> 2.64902 | I40: ='Ut 1.6 p3'!G16 -> 1.17116 | J40: ='Ut 1.6 p3'!$H$16 -> 0 | L40: ='Ut 1.6 p1'!$F$34 -> 4.16664 | M40: ='Ut 1.6 p1'!$F$35 -> 0.1290277711 | N40: =SUM(H40:M40) -> 8.115847771 | P40: ='Other Inputs'!$G$88 -> 8.21624 | Q40: =N40-P40 -> -0.1003922289
A41: Block 2 Winter | B41: =$C$19 -> 0.92557 | C41: =C34 -> -0.02953 | D41: =D27 -> 0.44104 | E41: =$E$24 -> 0.01519 | F41: =F27 -> 0.01434 | H41: =SUM(B41:F41) -> 1.36661 | I41: ='Ut 1.6 p3'!G16 -> 1.17116 | J41: ='Ut 1.6 p3'!$H$16 -> 0 | L41: ='Ut 1.6 p1'!$F$34 -> 4.16664 | M41: ='Ut 1.6 p1'!$F$35 -> 0.1290277711 | N41: =SUM(H41:M41) -> 6.833437771 | P41: ='Other Inputs'!$G$89 -> 6.93383 | Q41: =N41-P41 -> -0.1003922289
A43: Total Rate Calculation | N43: =N29 -> 2011-10-01 | P43: ='Other Inputs'!$J$86 -> 2011-06-01
A44: Utah GS | B44: Base DNG | C44: CET | D44: DSM | E44: Energy Assist | F44: Infrastructure | H44: Total DNG | I44: Base SNG | J44: SNG | L44: Commodity | N44: Total Rate | P44: Total Rate
A45: Block 1 Summer | B45: =$C$16 -> 1.87767 | C45: =$H$16 -> -0.01994 | D45: =$H$6 -> 0.44075 | E45: =$E$24 -> 0.01519 | F45: =F38 -> 0.02908 | H45: =SUM(B45:F45) -> 2.34275 | I45: =I38 -> 0.54987 | J45: ='Ut 1.6 p3'!$I$17 -> 0.54987 | L45: ='Ut 1.6 p1'!$F$36 -> 4.295667771 | N45: =SUM(H45:L45) -> 7.738157771 | P45: ='Other Inputs'!$G$86 -> 7.22673 | Q45: =N45-P45 -> 0.5114277711
A46: Block 2 Summer | B46: =$C$17 -> 0.69704 | C46: =$H$17 -> -0.0074 | D46: =$H$6 -> 0.44075 | E46: =$E$24 -> 0.01519 | F46: =F39 -> 0.0108 | H46: =SUM(B46:F46) -> 1.15638 | I46: =I39 -> 0.54987 | J46: ='Ut 1.6 p3'!$I$17 -> 0.54987 | L46: =$L$45 -> 4.295667771 | N46: =SUM(H46:L46) -> 6.551787771 | P46: ='Other Inputs'!$G$87 -> 6.06548 | Q46: =N46-P46 -> 0.4863077711
A47: Block 1 Winter | B47: =$C$18 -> 2.22938 | C47: =$H$18 -> -0.02368 | D47: =$H$6 -> 0.44075 | E47: =$E$24 -> 0.01519 | F47: =F40 -> 0.03453 | H47: =SUM(B47:F47) -> 2.69617 | I47: =I40 -> 1.17116 | J47: ='Ut 1.6 p3'!$I$16 -> 1.17116 | L47: =$L$45 -> 4.295667771 | N47: =SUM(H47:L47) -> 9.334157771 | P47: ='Other Inputs'!$G$88 -> 8.21624 | Q47: =N47-P47 -> 1.117917771
A48: Block 2 Winter | B48: =$C$19 -> 0.92557 | C48: =$H$19 -> -0.00983 | D48: =$H$6 -> 0.44075 | E48: =$E$24 -> 0.01519 | F48: =F41 -> 0.01434 | H48: =SUM(B48:F48) -> 1.38602 | I48: =I41 -> 1.17116 | J48: ='Ut 1.6 p3'!$I$16 -> 1.17116 | L48: =$L$45 -> 4.295667771 | N48: =SUM(H48:L48) -> 8.024007771 | P48: ='Other Inputs'!$G$89 -> 6.93383 | Q48: =N48-P48 -> 1.090177771
A50: Typical Customer Difference - CET Amortization Only
B51: Typical
A52: GS | B52: Dth | C52: =S12 -> 2011-06-01 | D52: =N43 -> 2011-10-01 | H52: Change | J52: % Change
A53: January | B53: 14.9 | C53: =ROUND($S$14+(B53*$S$18),2) -> 127.42 | D53: =ROUND($T$14+(B53*$T$18),2) -> 128.13 | H53: =D53-C53 -> 0.71
A54: February | B54: 12.5 | C54: =ROUND($S$14+(B54*$S$18),2) -> 107.7 | D54: =ROUND($T$14+(B54*$T$18),2) -> 108.3 | H54: 0.6
A55: March | B55: 10.1 | C55: =ROUND($S$14+(B55*$S$18),2) -> 87.98 | D55: =ROUND($T$14+(B55*$T$18),2) -> 88.46 | H55: 0.48
A56: April | B56: 8.3 | C56: =ROUND($S$14+(B56*$S$16),2) -> 64.98 | D56: =ROUND($T$14+(B56*$T$16),2) -> 65.31 | H56: 0.33
A57: May | B57: 4.4 | C57: 36.8 | D57: =ROUND($T$14+(B57*$T$16),2) -> 36.97 | H57: 0.17
A58: June | B58: 3.1 | C58: 27.4 | D58: 27.53 | H58: 0.13
A59: July | B59: 2 | C59: 19.45 | D59: 19.53 | H59: 0.08
A60: August | B60: 1.8 | C60: 18.01 | D60: 18.08 | H60: 0.07
A61: September | B61: 2 | C61: 19.45 | D61: 19.53 | H61: 0.08
A62: October | B62: 3.1 | C62: 27.4 | D62: 27.53 | H62: 0.13
A63: November | B63: 6.3 | C63: =ROUND($S$14+(B63*$S$18),2) -> 56.76 | D63: =ROUND($T$14+(B63*$T$18),2) -> 57.06 | H63: 0.3
A64: December | B64: 11.5 | C64: =ROUND($S$14+(B64*$S$18),2) -> 99.49 | D64: =ROUND($T$14+(B64*$T$18),2) -> 100.03 | H64: 0.54
B65: =SUM(B53:B64) -> 80 | C65: =SUM(C53:C64) -> 692.84 | D65: =SUM(D53:D64) -> 696.46 | H65: =SUM(H53:H64) -> 3.62 | J65: =H65/C65 -> 0.005224871543
A68: Typical Customer Difference - DSM Amortization Only
B69: Typical
A70: GS | B70: Dth | C70: =C52 -> 2011-06-01 | D70: =D52 -> 2011-10-01 | H70: Change | J70: % Change
A71: January | B71: 14.9 | C71: =ROUND($S$14+(B71*$S$18),2) -> 127.42 | D71: =ROUND($U$14+(B71*$U$18),2) -> 127.42 | H71: =D71-C71 -> 0
A72: February | B72: 12.5 | C72: =ROUND($S$14+(B72*$S$18),2) -> 107.7 | D72: =ROUND($U$14+(B72*$U$18),2) -> 107.7 | H72: 0
A73: March | B73: 10.1 | C73: =ROUND($S$14+(B73*$S$18),2) -> 87.98 | D73: =ROUND($U$14+(B73*$U$18),2) -> 87.98 | H73: 0
A74: April | B74: 8.3 | C74: =ROUND($S$14+(B74*$S$16),2) -> 64.98 | D74: =ROUND($U$14+(B74*$U$16),2) -> 64.98 | H74: 0
A75: May | B75: 4.4 | C75: 36.8 | D75: 36.8 | H75: 0
A76: June | B76: 3.1 | C76: 27.4 | D76: 27.4 | H76: 0
A77: July | B77: 2 | C77: 19.45 | D77: 19.45 | H77: 0
A78: August | B78: 1.8 | C78: 18.01 | D78: 18.01 | H78: 0
A79: September | B79: 2 | C79: 19.45 | D79: 19.45 | H79: 0
A80: October | B80: 3.1 | C80: 27.4 | D80: 27.4 | H80: 0
A81: November | B81: 6.3 | C81: =ROUND($S$14+(B81*$S$18),2) -> 56.76 | D81: =ROUND($U$14+(B81*$U$18),2) -> 56.76 | H81: 0
A82: December | B82: 11.5 | C82: =ROUND($S$14+(B82*$S$18),2) -> 99.49 | D82: =ROUND($U$14+(B82*$U$18),2) -> 99.48 | H82: -0.01
B83: =SUM(B71:B82) -> 80 | C83: =SUM(C71:C82) -> 692.84 | D83: =SUM(D71:D82) -> 692.83 | H83: =SUM(H71:H82) -> -0.01 | J83: =H83/C83 -> -1.44333468e-05
A86: Typical Customer Difference - SNG and Commodity Changes Only
B87: Typical
A88: GS-1 | B88: Dth | C88: =C70 -> 2011-06-01 | D88: =D70 -> 2011-10-01 | H88: Change | J88: % Change
A89: January | B89: 14.9 | C89: =ROUND($S$14+(B89*$S$18),2) -> 127.42 | D89: =ROUND($V$14+(B89*$V$18),2) -> 125.93 | H89: =D89-C89 -> -1.49
A90: February | B90: 12.5 | C90: =ROUND($S$14+(B90*$S$18),2) -> 107.7 | D90: =ROUND($V$14+(B90*$V$18),2) -> 106.45 | H90: -1.25
A91: March | B91: 10.1 | C91: =ROUND($S$14+(B91*$S$18),2) -> 87.98 | D91: =ROUND($V$14+(B91*$V$18),2) -> 86.97 | H91: -1.01
A92: April | B92: 8.3 | C92: =ROUND($S$14+(B92*$S$16),2) -> 64.98 | D92: =ROUND($V$14+(B92*$V$16),2) -> 64.33 | H92: -0.65
A93: May | B93: 4.4 | C93: 36.8 | D93: 36.45 | H93: -0.35
A94: June | B94: 3.1 | C94: 27.4 | D94: 27.16 | H94: -0.24
A95: July | B95: 2 | C95: 19.45 | D95: 19.3 | H95: -0.15
A96: August | B96: 1.8 | C96: 18.01 | D96: 17.87 | H96: -0.14
A97: September | B97: 2 | C97: 19.45 | D97: 19.3 | H97: -0.15
A98: October | B98: 3.1 | C98: 27.4 | D98: 27.16 | H98: -0.24
A99: November | B99: 6.3 | C99: =ROUND($S$14+(B99*$S$18),2) -> 56.76 | D99: =ROUND($V$14+(B99*$V$18),2) -> 56.13 | H99: -0.63
A100: December | B100: 11.5 | C100: =ROUND($S$14+(B100*$S$18),2) -> 99.49 | D100: =ROUND($V$14+(B100*$V$18),2) -> 98.33 | H100: -1.16
B101: =SUM(B89:B100) -> 80 | C101: =SUM(C89:C100) -> 692.84 | D101: =SUM(D89:D100) -> 685.38 | H101: =SUM(H89:H100) -> -7.46 | J101: =H101/C101 -> -0.01076727672
A104: Typical Customer Difference - CET & DSM Amort, SNG and Commodity Changes
B105: Typical
A106: GS-1 | B106: Dth | C106: =C52 -> 2011-06-01 | D106: =D52 -> 2011-10-01 | H106: Change | J106: % Change
A107: January | B107: 14.9 | C107: =ROUND($S$14+(B107*$S$18),2) -> 127.42 | D107: =ROUND($W$14+(B107*$W$18),2) -> 144.08 | H107: =D107-C107 -> 16.66
A108: February | B108: 12.5 | C108: =ROUND($S$14+(B108*$S$18),2) -> 107.7 | D108: =ROUND($W$14+(B108*$W$18),2) -> 121.68 | H108: 13.98
A109: March | B109: 10.1 | C109: =ROUND($S$14+(B109*$S$18),2) -> 87.98 | D109: =ROUND($W$14+(B109*$W$18),2) -> 99.27 | H109: 11.29
A110: April | B110: 8.3 | C110: =ROUND($S$14+(B110*$S$16),2) -> 64.98 | D110: =ROUND($W$14+(B110*$W$16),2) -> 69.23 | H110: 4.25
A111: May | B111: 4.4 | C111: 36.8 | D111: 39.05 | H111: 2.25
A112: June | B112: 3.1 | C112: 27.4 | D112: 28.99 | H112: 1.59
A113: July | B113: 2 | C113: 19.45 | D113: 20.48 | H113: 1.03
A114: August | B114: 1.8 | C114: 18.01 | D114: 18.93 | H114: 0.92
A115: September | B115: 2 | C115: 19.45 | D115: 20.48 | H115: 1.03
A116: October | B116: 3.1 | C116: 27.4 | D116: 28.99 | H116: 1.59
A117: November | B117: 6.3 | C117: =ROUND($S$14+(B117*$S$18),2) -> 56.76 | D117: =ROUND($W$14+(B117*$W$18),2) -> 63.81 | H117: 7.05
A118: December | B118: 11.5 | C118: =ROUND($S$14+(B118*$S$18),2) -> 99.49 | D118: =ROUND($W$14+(B118*$W$18),2) -> 112.34 | H118: 12.85
B119: =SUM(B107:B118) -> 80 | C119: =SUM(C107:C118) -> 692.84 | D119: =SUM(D107:D118) -> 767.33 | H119: =SUM(H107:H118) -> 74.49 | J119: =H119/C119 -> 0.1075140003

Sheet UT Tariff Sheets PT
B2: 2.02 GS Rate Schedule | J2: 2.03 FS Rate Schedule | AB2: 4.03 ES Rate Schedule | AI2: 2.05 NGV Rate Schedule
C3: Rates Per Dth Used Each Month | M3: Rates Per Dth Used Each Month | T3: 4.02 IS Rate Schedule | AB3: ES Volumetric Rates | AI3: NGV Volumetric Rate
C4: Summer Rates: Apr. 1 - Oct. 31 | E4: Winter Rates: Nov. 1 - Mar. 31 | M4: Dth = decatherm = 10 therms = 1,000,000 BTU | T4: IS Volumetric Rates
C5: First 45 Dth | D5: All Over 45 Dth | E5: First 45 Dth | F5: All Over 45 Dth | K5: Summer Rates: Apr. 1 - Oct. 31 | N5: Winter Rates: Nov. 1 - Mar. 31 | U5: Rates Per Dth Used Each Month | AE5: Rates Per Dth Used Each Month | AM5: Rates Per Dth Used Each Month
B6: Base DNG | C6: ='CET & DSM'!B38 -> 1.87767 | D6: ='CET & DSM'!B39 -> 0.69704 | E6: ='CET & DSM'!B40 -> 2.22938 | F6: ='CET & DSM'!B41 -> 0.92557 | K6: First | L6: Next | M6: All Over | N6: First | O6: Next | P6: All Over | U6: Dth = decatherm = 10 therms = 1,000,000 BTU | AE6: Dth = decatherm = 10 therms = 1,000,000 BTU | AM6: Dth = decatherm = 10 therms = 1,000,000 BTU
B7: CET Amortization | C7: ='CET & DSM'!C38 -> -0.0599 | D7: ='CET & DSM'!C39 -> -0.02224 | E7: ='CET & DSM'!C40 -> -0.07112 | F7: ='CET & DSM'!C41 -> -0.02953 | K7: 200 | L7: 1800 | M7: 2000 | N7: 200 | O7: 1800 | P7: 2000 | U7: First | V7: Next | W7: All Over | AB7: Distribution Non-Gas Rate | AC7: ='Ut 1.8'!C73 -> 1.75503 | AI7: Base DNG | AK7: ='Ut 1.8'!C52 -> 4.96031
B8: DSM Amortization | C8: =ROUND('CET & DSM'!D38,5) -> 0.44104 | D8: =ROUND('CET & DSM'!D39,5) -> 0.44104 | E8: =ROUND('CET & DSM'!D40,5) -> 0.44104 | F8: =ROUND('CET & DSM'!D41,5) -> 0.44104 | J8: Base DNG | K8: ='Ut 1.8'!C19 -> 0.65741 | L8: ='Ut 1.8'!D19 -> 0.51415 | M8: ='Ut 1.8'!E19 -> 0.44676 | N8: ='Ut 1.8'!F19 -> 0.73516 | O8: ='Ut 1.8'!G19 -> 0.58813 | P8: ='Ut 1.8'!H19 -> 0.52932 | U8: 2000 | V8: 18000 | W8: 20000 | AI8: Energy Assistance | AK8: ='Other Inputs'!$E$218 -> 0.01829
B9: Energy Assistance | C9: ='Other Inputs'!$E$215 -> 0.01519 | D9: ='Other Inputs'!$E$215 -> 0.01519 | E9: ='Other Inputs'!$E$215 -> 0.01519 | F9: ='Other Inputs'!$E$215 -> 0.01519 | J9: Energy Assistance | K9: ='Other Inputs'!$E$216 -> 0.01029 | L9: ='Other Inputs'!$E$216 -> 0.01029 | M9: ='Other Inputs'!$E$216 -> 0.01029 | N9: ='Other Inputs'!$E$216 -> 0.01029 | O9: ='Other Inputs'!$E$216 -> 0.01029 | P9: ='Other Inputs'!$E$216 -> 0.01029 | T9: Base DNG | U9: ='Ut 1.8'!C60 -> 0.23461 | V9: ='Ut 1.8'!D60 -> 0.21584 | W9: ='Ut 1.8'!E60 -> 0.19857 | AB9: Base SNG | AC9: =ROUND('Ut 1.6 p3'!G$26,5) -> 6.07073 | AI9: Distribution Non-Gas Rate | AK9: =SUM(AK7:AM8) -> 4.9786
B10: Distribution Non-Gas Rate | C10: =SUM(C6:C9) -> 2.274 | D10: =SUM(D6:D9) -> 1.13103 | E10: =SUM(E6:E9) -> 2.61449 | F10: =SUM(F6:F9) -> 1.35227 | J10: Distribution Non-Gas Rate | K10: =SUM(K8:K9) -> 0.6677 | L10: 0.52444 | M10: 0.45705 | N10: 0.74545 | O10: 0.59842 | P10: 0.53961 | T10: Energy Assistance | U10: ='Other Inputs'!$E$217 -> 0.00796 | V10: ='Other Inputs'!$E$217 -> 0.00796 | W10: ='Other Inputs'!$E$217 -> 0.00796 | AB10: SNG Amortization | AC10: =ROUND('Ut 1.6 p3'!H$26,5) -> 0
T11: Distribution Non-Gas Rate | U11: =SUM(U9:U10) -> 0.24257 | V11: =SUM(V9:V10) -> 0.2238 | W11: =SUM(W9:W10) -> 0.20653 | AB11: Supplier Non-Gas Rate | AC11: =SUM(AC9:AF10) -> 6.07073 | AI11: Base SNG | AK11: =ROUND('Ut 1.6 p3'!G$22,5) -> 0.84514
B12: Base SNG | C12: ='CET & DSM'!I38 -> 0.54987 | D12: ='CET & DSM'!I39 -> 0.54987 | E12: ='CET & DSM'!I40 -> 1.17116 | F12: ='CET & DSM'!I41 -> 1.17116 | J12: Base SNG | K12: =ROUND('Ut 1.6 p3'!G$20,5) -> 0.54985 | L12: =ROUND('Ut 1.6 p3'!G$20,5) -> 0.54985 | M12: =ROUND('Ut 1.6 p3'!G$20,5) -> 0.54985 | N12: =ROUND('Ut 1.6 p3'!G$19,5) -> 1.14067 | O12: =ROUND('Ut 1.6 p3'!G$19,5) -> 1.14067 | P12: =ROUND('Ut 1.6 p3'!G$19,5) -> 1.14067 | T12: Supplier Non-Gas Rate | U12: =ROUND('Ut 1.6 p3'!$G$24/(1-'Other Inputs'!$E$265),5) -> 0.18009 | V12: =ROUND('Ut 1.6 p3'!$G$24/(1-'Other Inputs'!$E$265),5) -> 0.18009 | W12: =ROUND('Ut 1.6 p3'!$G$24/(1-'Other Inputs'!$E$265),5) -> 0.18009 | AI12: SNG Amortization | AK12: =ROUND('Ut 1.6 p3'!H$22,5) -> 0
B13: SNG Amortization | C13: ='CET & DSM'!J38 -> 0 | D13: ='CET & DSM'!J39 -> 0 | E13: ='CET & DSM'!J40 -> 0 | F13: ='CET & DSM'!J41 -> 0 | J13: SNG Amortization | K13: =ROUND('Ut 1.6 p3'!H$20,5) -> 0 | L13: =ROUND('Ut 1.6 p3'!H$20,5) -> 0 | M13: =ROUND('Ut 1.6 p3'!H$20,5) -> 0 | N13: =ROUND('Ut 1.6 p3'!H$19,5) -> 0 | O13: =ROUND('Ut 1.6 p3'!H$19,5) -> 0 | P13: =ROUND('Ut 1.6 p3'!H$19,5) -> 0 | AB13: Commodity Rate | AC13: Highest Gas Cost | AI13: Supplier Non-Gas Rate | AK13: =SUM(AK11:AM12) -> 0.84514
B14: Supplier Non-Gas Rate | C14: =SUM(C12:C13) -> 0.54987 | D14: =SUM(D12:D13) -> 0.54987 | E14: =SUM(E12:E13) -> 1.17116 | F14: =SUM(F12:F13) -> 1.17116 | J14: Supplier Non-Gas Rate | K14: =SUM(K12:K13) -> 0.54985 | L14: 0.54985 | M14: 0.54985 | N14: 1.14067 | O14: 1.14067 | P14: 1.14067 | AB14: Total Rate | AC14: $
AI15: Base Gas Cost | AK15: =ROUND('Ut 1.6 p1'!$F$34,5) -> 4.16664
B16: Base Gas Cost | C16: ='Ut 1.6 p1'!$F$34 -> 4.16664 | D16: ='Ut 1.6 p1'!$F$34 -> 4.16664 | E16: ='Ut 1.6 p1'!$F$34 -> 4.16664 | F16: ='Ut 1.6 p1'!$F$34 -> 4.16664 | J16: Base Gas Cost | K16: =ROUND('Ut 1.6 p1'!$F$34,5) -> 4.16664 | L16: =ROUND('Ut 1.6 p1'!$F$34,5) -> 4.16664 | M16: =ROUND('Ut 1.6 p1'!$F$34,5) -> 4.16664 | N16: =ROUND('Ut 1.6 p1'!$F$34,5) -> 4.16664 | O16: =ROUND('Ut 1.6 p1'!$F$34,5) -> 4.16664 | P16: =ROUND('Ut 1.6 p1'!$F$34,5) -> 4.16664 | AB16: Penalty for failure to interrupt or limit usage when requested by the Company. See See § 3.02 | AI16: Commodity Amortization | AK16: =ROUND('Ut 1.6 p1'!$F$35,5) -> 0.12903
B17: 191 Amortization | C17: ='Ut 1.6 p1'!$F$35 -> 0.1290277711 | D17: ='Ut 1.6 p1'!$F$35 -> 0.1290277711 | E17: ='Ut 1.6 p1'!$F$35 -> 0.1290277711 | F17: ='Ut 1.6 p1'!$F$35 -> 0.1290277711 | J17: 191 Amortization | K17: =ROUND('Ut 1.6 p1'!$F$35,5) -> 0.12903 | L17: =ROUND('Ut 1.6 p1'!$F$35,5) -> 0.12903 | M17: =ROUND('Ut 1.6 p1'!$F$35,5) -> 0.12903 | N17: =ROUND('Ut 1.6 p1'!$F$35,5) -> 0.12903 | O17: =ROUND('Ut 1.6 p1'!$F$35,5) -> 0.12903 | P17: =ROUND('Ut 1.6 p1'!$F$35,5) -> 0.12903 | AI17: Commodity Rate | AK17: =SUM(AK15:AM16) -> 4.29567
B18: Commodity Rate | C18: =SUM(C16:C17) -> 4.295667771 | D18: =SUM(D16:D17) -> 4.295667771 | E18: =SUM(E16:E17) -> 4.295667771 | F18: =SUM(F16:F17) -> 4.295667771 | J18: Commodity Rate | K18: =SUM(K16:K17) -> 4.29567 | L18: 4.29567 | M18: 4.29567 | N18: 4.29567 | O18: 4.29567 | P18: 4.29567 | T18: Total Rate | U18: $ | V18: $ | W18: $
AI19: Total Rate | AK19: =SUM(AK9,AK13,AK17) -> 10.11941
B20: Total Rate | C20: =SUM(C18,C14,C10) -> 7.119537771 | D20: =SUM(D18,D14,D10) -> 5.976567771 | E20: =SUM(E18,E14,E10) -> 8.081317771 | F20: =SUM(F18,F14,F10) -> 6.819097771 | J20: Total Rate | K20: =SUM(K18,K14,K10) -> 5.51322 | L20: 5.36996 | M20: 5.30257 | N20: 6.18179 | O20: 6.03476 | P20: 5.97595 | T20: Minimum Monthly Distribution Non-Gas Charge
AI21: Penalty for failure to interrupt or limit usage when requested by the Company. See See § 3.02
E22: BSF Category 1 | F22: ='Ut 1.8'!C12 -> 5 | J22: Minimum Monthly Distribution Non-Gas Charge | O22: Summer | P22: =ROUND(K8*175,0) -> 115
E23: BSF Category 2 | F23: ='Ut 1.8'!C13 -> 21 | O23: Winter | P23: =ROUND(N8*175,0) -> 129
E24: BSF Category 3 | F24: ='Ut 1.8'!C14 -> 55 | V24: BSF Category 1 | W24: 5
E25: BSF Category 4 | F25: ='Ut 1.8'!C15 -> 244 | V25: BSF Category 2 | W25: 29
N26: BSF Category 1 | P26: 5 | V26: BSF Category 3 | W26: 67
N27: BSF Category 2 | P27: 21 | V27: BSF Category 4 | W27: 274
N28: BSF Category 3 | P28: 55
N29: BSF Category 4 | P29: 244
AI30: =B44 -> Issued by R. W. Jibson, President | AL30: Advice No | AM30: Section Revision No.
AB39: =B44 -> Issued by R. W. Jibson, President | AE39: Advice No | AF39: Section Revision No.
AB42: New Pass Through Values
B44: Issued by R. W. Jibson, President | D44: Advice No | E44: Section Revision No. | F44: Effective Date
T47: =B44 -> Issued by R. W. Jibson, President | W47: Advice No
B48: Pass Through Changes | J48: =B44 -> Issued by R. W. Jibson, President | M48: Advice No | N48: Section Revision No. | P48: Effective Date
T50: New Pass Through Values
J51: New Pass Through Values

Sheet UT Tariff Sheets
B2: 2.02 GS Rate Schedule | I2: 2.02 GS Rate Schedule
C3: Rates Per Dth Used Each Month | J3: Rates Per Dth Used Each Month
C4: Summer Rates: Apr. 1 - Oct. 31 | E4: Winter Rates: Nov. 1 - Mar. 31 | J4: Summer Rates: Apr. 1 - Oct. 31 | L4: Winter Rates: Nov. 1 - Mar. 31
C5: First 45 Dth | D5: All Over 45 Dth | E5: First 45 Dth | F5: All Over 45 Dth | J5: First 45 Dth | K5: All Over 45 Dth | L5: First 45 Dth | M5: All Over 45 Dth
B6: Base DNG | C6: ='CET & DSM'!B24 -> 1.87767 | D6: ='CET & DSM'!B25 -> 0.69704 | E6: ='CET & DSM'!B26 -> 2.22938 | F6: ='CET & DSM'!B27 -> 0.92557 | I6: Base DNG | J6: ='CET & DSM'!B31 -> 1.87767 | K6: ='CET & DSM'!B32 -> 0.69704 | L6: ='CET & DSM'!B33 -> 2.22938 | M6: ='CET & DSM'!B34 -> 0.92557
B7: CET Amortization | C7: ='CET & DSM'!H16 -> -0.01994 | D7: ='CET & DSM'!H17 -> -0.0074 | E7: ='CET & DSM'!H18 -> -0.02368 | F7: ='CET & DSM'!H19 -> -0.00983 | I7: CET Amortization | J7: ='CET & DSM'!C31 -> -0.0599 | K7: ='CET & DSM'!C32 -> -0.02224 | L7: ='CET & DSM'!C33 -> -0.07112 | M7: ='CET & DSM'!C34 -> -0.02953
B8: DSM Amortization | C8: ='CET & DSM'!D24 -> 0.44104 | D8: ='CET & DSM'!D25 -> 0.44104 | E8: ='CET & DSM'!D26 -> 0.44104 | F8: ='CET & DSM'!D27 -> 0.44104 | I8: DSM Amortization | J8: =ROUND('CET & DSM'!D31,5) -> 0.44075 | K8: =ROUND('CET & DSM'!D32,5) -> 0.44075 | L8: =ROUND('CET & DSM'!D33,5) -> 0.44075 | M8: =ROUND('CET & DSM'!D34,5) -> 0.44075
B9: Energy Assistance | C9: ='Other Inputs'!$E$215 -> 0.01519 | D9: ='Other Inputs'!$E$215 -> 0.01519 | E9: ='Other Inputs'!$E$215 -> 0.01519 | F9: ='Other Inputs'!$E$215 -> 0.01519 | I9: Energy Assistance | J9: ='Other Inputs'!$E$215 -> 0.01519 | K9: ='Other Inputs'!$E$215 -> 0.01519 | L9: ='Other Inputs'!$E$215 -> 0.01519 | M9: ='Other Inputs'!$E$215 -> 0.01519
B10: Distribution Non-Gas Rate | C10: =SUM(C6:C9) -> 2.31396 | D10: =SUM(D6:D9) -> 1.14587 | E10: =SUM(E6:E9) -> 2.66193 | F10: =SUM(F6:F9) -> 1.37197 | I10: Distribution Non-Gas Rate | J10: =SUM(J6:J9) -> 2.27371 | K10: =SUM(K6:K9) -> 1.13074 | L10: =SUM(L6:L9) -> 2.6142 | M10: =SUM(M6:M9) -> 1.35198
B12: Base SNG | C12: ='CET & DSM'!I24 -> 0.55715 | D12: ='CET & DSM'!I25 -> 0.55715 | E12: ='CET & DSM'!I26 -> 1.18665 | F12: ='CET & DSM'!I27 -> 1.18665 | I12: Base SNG | J12: ='CET & DSM'!I31 -> 0.55715 | K12: ='CET & DSM'!I32 -> 0.55715 | L12: ='CET & DSM'!I33 -> 1.18665 | M12: ='CET & DSM'!I34 -> 1.18665
B13: SNG Amortization | C13: ='CET & DSM'!J24 -> 0.01244 | D13: ='CET & DSM'!J25 -> 0.01244 | E13: ='CET & DSM'!J26 -> 0.02651 | F13: ='CET & DSM'!J27 -> 0.02651 | I13: SNG Amortization | J13: ='CET & DSM'!J31 -> 0.01244 | K13: ='CET & DSM'!J32 -> 0.01244 | L13: ='CET & DSM'!J33 -> 0.02651 | M13: ='CET & DSM'!J34 -> 0.02651
B14: Supplier Non-Gas Rate | C14: =SUM(C12:C13) -> 0.56959 | D14: =SUM(D12:D13) -> 0.56959 | E14: =SUM(E12:E13) -> 1.21316 | F14: =SUM(F12:F13) -> 1.21316 | I14: Supplier Non-Gas Rate | J14: =SUM(J12:J13) -> 0.56959 | K14: =SUM(K12:K13) -> 0.56959 | L14: =SUM(L12:L13) -> 1.21316 | M14: =SUM(M12:M13) -> 1.21316
B16: Base Gas Cost | C16: ='CET & DSM'!L24 -> 4.21339 | D16: ='CET & DSM'!L25 -> 4.21339 | E16: ='CET & DSM'!L26 -> 4.21339 | F16: ='CET & DSM'!L27 -> 4.21339 | I16: Base Gas Cost | J16: ='CET & DSM'!L31 -> 4.21339 | K16: ='CET & DSM'!L32 -> 4.21339 | L16: ='CET & DSM'!L33 -> 4.21339 | M16: ='CET & DSM'!L34 -> 4.21339
B17: 191 Amortization | C17: ='CET & DSM'!M24 -> 0.14067 | D17: ='CET & DSM'!M25 -> 0.14067 | E17: ='CET & DSM'!M26 -> 0.14067 | F17: ='CET & DSM'!M27 -> 0.14067 | I17: 191 Amortization | J17: ='CET & DSM'!M31 -> 0.14067 | K17: ='CET & DSM'!M32 -> 0.14067 | L17: ='CET & DSM'!M33 -> 0.14067 | M17: ='CET & DSM'!M34 -> 0.14067
B18: Commodity Rate | C18: =SUM(C16:C17) -> 4.35406 | D18: =SUM(D16:D17) -> 4.35406 | E18: =SUM(E16:E17) -> 4.35406 | F18: =SUM(F16:F17) -> 4.35406 | I18: Commodity Rate | J18: =SUM(J16:J17) -> 4.35406 | K18: =SUM(K16:K17) -> 4.35406 | L18: =SUM(L16:L17) -> 4.35406 | M18: =SUM(M16:M17) -> 4.35406
B20: Total Rate | C20: =SUM(C18,C14,C10) -> 7.23761 | D20: =SUM(D18,D14,D10) -> 6.06952 | E20: =SUM(E18,E14,E10) -> 8.22915 | F20: =SUM(F18,F14,F10) -> 6.93919 | I20: Total Rate | J20: =SUM(J18,J14,J10) -> 7.19736 | K20: =SUM(K18,K14,K10) -> 6.05439 | L20: =SUM(L18,L14,L10) -> 8.18142 | M20: =SUM(M18,M14,M10) -> 6.9192
E23: BSF Category 1 | F23: ='Ut 1.8'!C12 -> 5 | L23: BSF Category 1 | M23: ='Ut 1.8'!C12 -> 5
E24: BSF Category 2 | F24: ='Ut 1.8'!C13 -> 21 | L24: BSF Category 2 | M24: ='Ut 1.8'!C13 -> 21
E25: BSF Category 3 | F25: ='Ut 1.8'!C14 -> 55 | L25: BSF Category 3 | M25: ='Ut 1.8'!C14 -> 55
E26: BSF Category 4 | F26: ='Ut 1.8'!C15 -> 244 | L26: BSF Category 4 | M26: ='Ut 1.8'!C15 -> 244
B45: Issued by R. W. Jibson, President | D45: Advice No | E45: Section Revision No. | F45: Effective Date | I45: Issued by R. W. Jibson, President | K45: Advice No | L45: Section Revision No. | M45: Effective Date
B49: New CET Only | I49: NEW DSM ONLY

Sheet Utah Summary-by class
A1: UTAH SUMMARY
B2: NOT AN EXHIBIT !!!
A3: NEEDS TO BE UPDATED FOR GSR AND GSC RATES | Q3: Sub Total
C4: COMMODITY | J4: SNG | Q4: TOTAL
C5: Current | D5: Proposed | E5: Current | F5: Proposed | G5: Revenue | H5: % | J5: Current | K5: Proposed | L5: Current | M5: Proposed | N5: Revenue | O5: % | Q5: Revenue | R5: %
A6: RATE | B6: Dth Sales | C6: Rates | D6: Rates | E6: Revenue | F6: Revenue | G6: Difference | H6: Change | J6: Rates | K6: Rates | L6: Revenue | M6: Revenue | N6: Difference | O6: Change | Q6: Difference | R6: Change
A8: GS (W) | B8: =Calculations!P52 -> 67510892 | C8: ='Ut 1.6 p1'!$H$36 -> 4.35406 | D8: =ROUND('Ut 1.6 p1'!$F$36,5) -> 4.29567 | E8: =ROUND(B8*C8,0) -> 293946474 | F8: =ROUND(B8*D8,0) -> 290004513 | G8: =(F8-E8) -> -3941961 | J8: ='Ut 1.6 p3'!E16 -> 1.21316 | K8: ='Ut 1.6 p3'!I16 -> 1.17116 | L8: =ROUND(B8*J8,0) -> 81901514 | M8: =ROUND(Calculations!Q52*K8,0) -> 49505853 | N8: =(M8-L8) -> -32395661 | Q8: =G8+N8 -> -36337622
A9: GS (S) | B9: =Calculations!P53 -> 27782275 | C9: ='Ut 1.6 p1'!$H$36 -> 4.35406 | D9: =D8 -> 4.29567 | E9: =ROUND(B9*C9,0) -> 120965692 | F9: =ROUND(B9*D9,0) -> 119343485 | G9: =(F9-E9) -> -1622207 | J9: ='Ut 1.6 p3'!E17 -> 0.56959 | K9: ='Ut 1.6 p3'!I17 -> 0.54987 | L9: =ROUND(B9*J9,0) -> 15824506 | M9: =ROUND(Calculations!Q53*K9,0) -> 29155417 | N9: =(M9-L9) -> 13330911 | Q9: =G9+N9 -> 11708704
A10: Total | B10: =SUM(B8:B9) -> 95293167 | E10: =SUM(E8:E9) -> 414912166 | F10: =SUM(F8:F9) -> 409347998 | G10: =SUM(G8:G9) -> -5564168 | H10: =IF(G10=0,0,G10/E10) -> -0.01341047204 | L10: =SUM(L8:L9) -> 97726020 | M10: =SUM(M8:M9) -> 78661270 | N10: =SUM(N8:N9) -> -19064750 | O10: =IF(N10=0,0,N10/L10) -> -0.1950836635 | Q10: =SUM(Q8:Q9) -> -24628918 | R10: =IF(Q10=0,0,Q10/(E10+L10)) -> -0.04804347135
A13: FS | B13: =Calculations!P58 -> 3677255 | C13: ='Ut 1.6 p1'!$H$36 -> 4.35406 | D13: =D8 -> 4.29567 | E13: =ROUND(B13*C13,0) -> 16010989 | F13: =ROUND(B13*D13,0) -> 15796274 | G13: =(F13-E13) -> -214715 | J13: ='Ut 1.6 p3'!E19 -> 1.18157 | K13: ='Ut 1.6 p3'!I19 -> 1.14067 | L13: =ROUND(B13*J13,0) -> 4344934 | M13: =ROUND(Calculations!Q58*K13,0) -> 2526379 | N13: =(M13-L13) -> -1818555 | Q13: =G13+N13 -> -2033270
B14: =Calculations!P59 -> 3624649 | C14: ='Ut 1.6 p1'!$H$36 -> 4.35406 | D14: =D9 -> 4.29567 | E14: =ROUND(B14*C14,0) -> 15781939 | F14: =ROUND(B14*D14,0) -> 15570296 | G14: =(F14-E14) -> -211643 | J14: ='Ut 1.6 p3'!E20 -> 0.56957 | K14: ='Ut 1.6 p3'!I20 -> 0.54985 | L14: =ROUND(B14*J14,0) -> 2064491 | M14: =ROUND(Calculations!Q59*K14,0) -> 2797133 | N14: =(M14-L14) -> 732642 | Q14: =G14+N14 -> 520999
A15: Total | B15: =SUM(B13:B14) -> 7301904 | E15: =SUM(E13:E14) -> 31792928 | F15: =SUM(F13:F14) -> 31366570 | G15: =SUM(G13:G14) -> -426358 | H15: =IF(G15=0,0,G15/E15) -> -0.01341046663 | L15: =SUM(L13:L14) -> 6409425 | M15: =SUM(M13:M14) -> 5323512 | N15: =SUM(N13:N14) -> -1085913 | O15: =IF(N15=0,0,N15/L15) -> -0.1694244023 | Q15: =SUM(Q13:Q14) -> -1512271 | R15: =IF(Q15=0,0,Q15/(E15+L15)) -> -0.03958580771
A19: NGV | B19: =Calculations!P12 -> 456000 | C19: ='Ut 1.6 p1'!$H$36 -> 4.35406 | D19: =D8 -> 4.29567 | E19: =ROUND(B19*C19,0) -> 1985451 | F19: =ROUND(B19*D19,0) -> 1958826 | G19: =(F19-E19) -> -26625 | H19: =IF(G19=0,0,G19/E19) -> -0.01341005142 | J19: ='Ut 1.6 p3'!E22 -> 0.87544 | K19: ='Ut 1.6 p3'!I22 -> 0.84514 | L19: =ROUND(B19*J19,0) -> 399201 | M19: =ROUND(B19*K19,0) -> 385384 | N19: =(M19-L19) -> -13817 | O19: =IF(N19=0,0,N19/L19) -> -0.03461163674 | Q19: =G19+N19 -> -40442 | R19: =IF(Q19=0,0,Q19/(E19+L19)) -> -0.01695928798
G21: =G10+G15+G19 -> -6017151 | N21: =N10+N15+N19 -> -20164480 | Q21: =Q10+Q15+Q19 -> -26181631
A24: IS | B24: =Calculations!P15 -> 2418010 | E24: =ROUND(B24*C24,0) -> 0 | F24: =ROUND(B24*D24,0) -> 0 | G24: =(F24-E24) -> 0 | H24: =IF(G24=0,0,G24/E24) -> 0 | J24: ='Ut 1.6 p3'!E24 -> 0.17919 | K24: ='Ut 1.6 p3'!I24 -> 0.17919 | L24: =ROUND(B24*J24,0) -> 433283 | M24: =ROUND(B24*K24,0) -> 433283 | N24: =(M24-L24) -> 0 | O24: =IF(N24=0,0,N24/L24) -> 0 | Q24: =G24+N24 -> 0 | R24: =IF(Q24=0,0,Q24/(E24+L24)) -> 0
A26: ES | B26: 0 | E26: =ROUND(B26*C26,0) -> 0 | F26: =ROUND(B26*D26,0) -> 0 | G26: =(F26-E26) -> 0 | H26: =IF(G26=0,0,G26/E26) -> 0 | J26: ='Ut 1.6 p3'!E26 -> 6.28841 | K26: ='Ut 1.6 p3'!I26 -> 6.07073 | L26: =ROUND(B26*J26,0) -> 0 | M26: =ROUND(B26*K26,0) -> 0 | N26: =(M26-L26) -> 0 | O26: =IF(N26=0,0,N26/L26) -> 0 | Q26: =G26+N26 -> 0 | R26: =IF(Q26=0,0,Q26/(E26+L26)) -> 0
B27: - | E27: - | F27: - | G27: - | L27: ------------------- | M27: ------------------- | N27: ------------------- | Q27: -------------------
B28: =B10+B15+B19+B24+B26 -> 105469081 | E28: =E10+E15+E19+E24+E26 -> 448690545 | F28: =F10+F15+F19+F24+F26 -> 442673394 | G28: =G10+G15+G19+G24+G26 -> -6017151 | H28: =IF(G28=0,0,G28/E28) -> -0.01341046979 | L28: =L10+L15+L19+L24+L26 -> 104967929 | M28: =M10+M15+M19+M24+M26 -> 84803449 | N28: =N10+N15+N19+N24+N26 -> -20164480 | O28: =IF(N28=0,0,N28/L28) -> -0.1921013417 | Q28: =Q10+Q15+Q19+Q24+Q26 -> -26181631 | R28: =IF(Q28=0,0,Q28/(E28+L28)) -> -0.04728841376 | W28: =49300714-6927605-5328088 -> 37045021
G29: =IF(G28>0,"Commodity Increase","Commodity Decrease") -> Commodity Decrease | N29: =IF(N28>0,"Increase to SNG","Decrease to SNG") -> Decrease to SNG | W29: =W28-N28 -> 57209501
B30: NOT AN EXHIBIT !!!
G31: =ROUND(G28,-3) -> -6017000 | N31: =ROUND(N28,-3) -> -20164000 | Q31: =ROUND(Q28,-3) -> -26182000 | W31: =W29-8603966 -> 48605535
G32: Rounded | N32: Rounded | Q32: Rounded
A35: FT2 | B35: ='RevRun Fcst'!S138+'RevRun Fcst'!S183 -> 11094 | M35: =0.0005*B24 -> 1209.005
M36: =M35+M28 -> 84804658
A37: IT | B37: ='RevRun Fcst'!S165+'RevRun Fcst'!S174 -> 2306671
A40: winter | B40: =B8+B13 -> 71188147 | J40: =L40/B40 -> 1.211528206 | L40: =L8+L13 -> 86246448
A41: summer | B41: =B9+B14 -> 31406924 | J41: =L41/B41 -> 0.5695876807 | L41: =L9+L14 -> 17888997
A42: year | B42: =B10+B15 -> 102595071 | J42: =L42/B42 -> 1.015014113 | L42: =L10+L15 -> 104135445
B44: =B10+B15+B19 -> 103051071 | J44: =L44/B44 -> 1.014396502 | L44: =L10+L15+L19 -> 104534646

Sheet UT Summary - by cost

Sheet WY Summary - by cost

Sheet Model Checks
B2: Model Checks
B3: If the total of all checks is not zero, or very close to zero, find the checks below that are out of balance and follow the calculations
B4: back through the model and correct any errors.
D6: Total of all Checks
D7: =ABS(SUM(D10:D2000)) -> 
B9: Forecasted Demand
C10: Utah | D10: =Calculations!P25-'RevRun Fcst'!T204 -> 0
C11: Wyoming | D11: =Calculations!P44-'RevRun Fcst'!T326 -> 0
C12: Total System | D12: =Calculations!P47-'RevRun Fcst'!T367 -> 0
B13: Forecasted Utah Demand Check by Month
C14: 1 | D14: =Calculations!D25-'RevRun Fcst'!H204 -> 0
C15: 2 | D15: =Calculations!E25-'RevRun Fcst'!I204 -> 0
C16: 3 | D16: =Calculations!F25-'RevRun Fcst'!J204 -> 0
C17: 4 | D17: =Calculations!G25-'RevRun Fcst'!K204 -> 0
C18: 5 | D18: =Calculations!H25-'RevRun Fcst'!L204 -> 0
C19: 6 | D19: =Calculations!I25-'RevRun Fcst'!M204 -> 0
C20: 7 | D20: =Calculations!J25-'RevRun Fcst'!N204 -> 0
C21: 8 | D21: =Calculations!K25-'RevRun Fcst'!O204 -> 0
C22: 9 | D22: =Calculations!L25-'RevRun Fcst'!P204 -> 0
C23: 10 | D23: =Calculations!M25-'RevRun Fcst'!Q204 -> 0
C24: 11 | D24: =Calculations!N25-'RevRun Fcst'!R204 -> 0
C25: 12 | D25: =Calculations!O25-'RevRun Fcst'!S204 -> 0
C26: Wyoming I-2 and I-4 Revenues | D26: =('RevRun Fcst'!S277+'RevRun Fcst'!S288)-Calculations!P65 -> -4226
C27: System Sales Volumes | D27: =Calculations!H76-'RevRun Fcst'!T365 -> 0
C28: Utah Sales Volumes | D28: =Calculations!P20-'Utah Summary-by class'!B28 -> 0
B29: Company Production | D29: =Calculations!P120-'Monthly Inputs'!S12*1000 -> 158
B30: Company Produced Gas | D30: ='Monthly Inputs'!S9-'Monthly Inputs'!S7-'Monthly Inputs'!S8 -> 0
B31: Company Produced Gas | D31: ='Monthly Inputs'!S12-'Monthly Inputs'!S11-'Monthly Inputs'!S9 -> 0
B32: Injections | D32: ='Monthly Inputs'!S39-SUM('Monthly Inputs'!S34:S38) -> 0
B33: Withdrawls | D33: ='Monthly Inputs'!S46-SUM('Monthly Inputs'!S42:S45) -> 0
B34: Injections & Withdrawls | D34: =SUM('Ut 1.3 p2'!D23:D26)-'Monthly Inputs'!S39-'Monthly Inputs'!S46 -> 0
B35: Injections | D35: =Calculations!P128-'Monthly Inputs'!S39 -> 0
B36: Withdrawls | D36: =Calculations!P135-'Monthly Inputs'!S46 -> 0
B37: Sales for Resale | D37: =Expenses!S445-Calculations!P86 -> 0
B38: Incidental Plant Prod Sales | D38: =Expenses!S446-Calculations!P87 -> 0
B39: Incidental Gas & Oil Sales | D39: =Expenses!S447-Calculations!P89 -> 0
B40: Gasoline and Oil Costs | D40: =Expenses!S450+Calculations!P90 -> 0
B41: Wexpro Revenue Sharing | D41: =Expenses!S449-Calculations!P94 -> 0
B42: Storage Gas | D42: ='Rate Base'!U209-Calculations!P99 -> 0
B43: 101 Production | D43: ='Rate Base'!U158-Calculations!P100 -> 0
B44: 108 Production | D44: ='Rate Base'!U176-Calculations!P101 -> 0
B45: 111 Production | D45: ='Rate Base'!U183-Calculations!P102 -> 0
B46: 255 Production | D46: ='Rate Base'!U244-Calculations!P103 -> 0
B47: 282 Production | D47: ='Rate Base'!U251-Calculations!P104 -> 0
B48: 282.1 Production | D48: ='Rate Base'!U258-Calculations!P105 -> 0
B49: Production Rate Base | D49: =SUM(Calculations!P99:P105)-'Rate Base'!U278 -> 0
B50: Purchased Gas Cost | D50: ='Ut 1.2'!G24-Calculations!P189 -> -0.1312927306
B51: Production Function | D51: ='Wy 1.3 p3'!I40-Calculations!N108 -> 0
B52: Production Function | D52: ='Wy 1.3 p3'!I40-'Rate Base'!U158-'Rate Base'!U176-'Rate Base'!U183-'Rate Base'!U244-'Rate Base'!U251-'Rate Base'!U258 -> 9.313225746e-09
B53: Wexpro Reduction | D53: ='Wy 1.3 p3'!I42-Calculations!N109 -> 0
B54: Wyoming Production Return | D54: ='Wy 1.3 p3'!J47-Calculations!N112 -> 0
B55: Working Gas Rate Base | D55: =Calculations!P99-'Ut 1.3 p2'!D51 -> 0
B56: Allocations | D56: ='Ut 1.5'!E41-'Ut 1.5'!F41-'Ut 1.5'!G41+'Ut 1.5'!G39 -> 0
B58: System Sales | D58: ='SDR#1'!C10-'RevRun Fcst'!T365 -> 0
B59: Lost & Unaccounted For | D59: ='SDR#1'!C15-(('SDR#1'!C10+'SDR#1'!C11)/(1-'Other Inputs'!E254)) -> 
B60: Supply / Demand | D60: ='SDR#1'!C36-'SDR#1'!C15 -> 1.297000006
B61: System Sales | D61: ='SDR#3'!H36-'SDR#1'!C10 -> 0
B62: SNG Revenue | D62: ='SDR#4'!G23-'Utah Summary-by class'!L28 -> 0.1291499883
B63: Utah Sales | D63: ='SDR#3'!D36-'SDR#4'!E23 -> 0
B64: Utah Sales | D64: ='SDR#2'!G58+'Ut 1.6 p1'!J25 -> 1.34489134
B65: Seasonal Volumes | D65: =Calculations!P52+Calculations!P53-Calculations!P7-Calculations!P8 -> 0
B66: Seasonal Volumes | D66: =Calculations!P55+Calculations!P56-Calculations!P9 -> 0
B67: Seasonal Volumes | D67: =Calculations!P58+Calculations!P59-Calculations!P10 -> 0
B68: GS-1 Sales Dth | D68: ='CET & DSM'!B20-'SDR#4'!E12-'SDR#4'!E13 -> 0

Sheet SDR#1
F1: ='Control Panel'!F32 -> Questar Gas Company
F2: ='Control Panel'!F33 -> Docket No. 11-057-08
B4: Standard Data Request #1
B5: Summary of Sources of Supply and Demand
A8: 1 | B8: DEMAND | C8: Total | D8: Utah | E8: Wyoming
A10: =A8+1 -> 2 | B10: SALES IN DTHS | C10: =D10+E10 -> 109163172 | D10: =Calculations!P20 -> 105469081 | E10: =Calculations!P39 -> 3694091
A11: =A10+1 -> 3 | B11: DIST. CO. USE &
A12: =A11+1 -> 4 | B12: DIST. LOST & UNACCT. (0.43107%) | C12: =Calculations!P146 -> 472605
A15: =A12+1 -> 5 | B15: TOTAL | C15: =SUM(C10:C12) -> 109635777
A19: =A15+1 -> 6 | B19: SUPPLY | C19: Total | D19: Utah | E19: Wyoming
A21: =A19+1 -> 7 | B21: COMPANY PRODUCTION | C21: ='Ut 1.1'!E1291 -> 71172209 | D21: =$D$10/$C$10*C21 -> 68763735.41 | E21: =$E$10/$C$10*C21 -> 2408473.59
A22: =A21+1 -> 8 | B22: GAS REIMBURSEMENT | C22: =C21*-'Other Inputs'!$E$258 -> -4056815.913 | D22: =D21*-'Other Inputs'!$E$258 -> -3919532.918 | E22: =E21*-'Other Inputs'!$E$258 -> -137282.9946 | G22: =C21/C10 -> 0.6519800377 | H22: =D21/D10 -> 0.6519800377 | I22: =E21/E10 -> 0.6519800377
A25: =A22+1 -> 9 | B25: CONTRACT GAS | C25: ='Ut 1.2'!E24 -> 43358513 | D25: =$D$10/$C$10*C25 -> 41891257.24 | E25: =$E$10/$C$10*C25 -> 1467255.758
A26: =A25+1 -> 10 | B26: GAS REIMBURSEMENT | C26: =C25*-'Other Inputs'!$E$257 -> -546317.2638 | D26: =D25*-'Other Inputs'!$E$257 -> -527829.8413 | E26: =E25*-'Other Inputs'!$E$257 -> -18487.42255
A28: =A26+1 -> 11 | B28: STORAGE
A29: =A28+1 -> 12 | B29: INJECTIONS | C29: ='Ut 1.4 p2'!E22 -> -14700933 | D29: =$D$10/$C$10*C29 -> -14203452.18 | E29: =$E$10/$C$10*C29 -> -497480.8197
A30: =A29+1 -> 13 | B30: WITHDRAWALS | C30: ='Ut 1.4 p2'!E21 -> 15030601 | D30: =$D$10/$C$10*C30 -> 14521964.19 | E30: =$E$10/$C$10*C30 -> 508636.8128
A31: =A30+1 -> 14 | B31: NET (INJECTIONS) WITHDRAWALS | C31: =C29+C30 -> 329668 | D31: =D29+D30 -> 318512.0069 | E31: =E29+E30 -> 11155.99308
A33: =A31+1 -> 15 | B33: Storage Fuel | C33: =Calculations!P162+Calculations!P163 -> -621478.5262 | D33: =D10/C10*C33 -> -600447.6402 | E33: =E10/C10*C33 -> -21030.88604
A36: =A33+1 -> 16 | B36: TOTAL SUPPLY | C36: =C21+C22+C25+C26+C29+C30+C33 -> 109635778.3 | D36: =SUM(D21:D30)+D33 -> 105925694.3 | E36: =SUM(E21:E30)+E33 -> 3710084.037
A38: =A36+1 -> 17 | B38: Company Use & Loss % | C38: =(+C36-C10)/C36 -> 0.004310694048 | D38: =(+D36-D10)/D36 -> 0.004310694048 | E38: =(+E36-E10)/E36 -> 0.004310694048
B41: Difference | C41: =C15-C36 -> -1.297000006

Sheet SDR#2
H1: ='Control Panel'!F32 -> Questar Gas Company
H2: ='Control Panel'!F33 -> Docket No. 11-057-08
A5: Standard Data Request #2
A6: Supplier Non-Gas Costs
B8: (A) | C8: (B) | D8: (C) | E8: (D) | F8: (E) | G8: (F) | T8: withdraw
A9: I. Transportation (QPC T-1) | C9: Volume (Dth) | G9: Utah Total | J9: Utah gas | K9: Utah Co. | L9: Utah gas | M9: Wyo gas | N9: Wyo Co. | O9: Wyo gas | Q9: @city gate | R9: @city gate | T9: loss | U9: Kern River
B10: Month | C10: Utah | D10: Wyoming | E10: $/dth | F10: Demand | G10: b*d+e*(Ut %) | J10: purchased | K10: production | L10: withdrawn | M10: purchased | N10: production | O10: withdrawn | P10: Total | Q10: purchased | R10: co production | S10: withdrawls | T10: =-Calculations!P162/Calculations!P135 -> 0.02428844283 | U10: Transportation
B12: ='Wy Storage'!B11 -> Oct11 | C12: =J12+K12+L12-(T12+$B$43*U12)*$J$39 -> 9249974.749 | D12: =M12+N12+O12-(T12+$B$43*U12)*$K$39 -> 323983.5613 | E12: ='Other Inputs'!$F$34 -> 0.00267 | F12: =('Other Inputs'!$D$19)*('Other Inputs'!$F$19)-('Other Inputs'!$E$262/12)+('Other Inputs'!$D$26*'Other Inputs'!$F$26) -> 4363957.945 | G12: =(+C12)*E12+F12*$J$33/$L$33 -> 4254724.934 | J12: =Q12*$J$39 -> 4092544.286 | K12: =R12*$J$39 -> 5394209.933 | L12: =S12*$J$39 -> 0 | M12: =Q12-J12 -> 143342.7775 | N12: =R12-K12 -> 188934.0665 | O12: =S12-L12 -> 0 | P12: =SUM(J12:O12)-U12 -> 9667596.064 | Q12: =Calculations!D166 -> 4235887.064 | R12: =Calculations!D158 -> 5583144 | S12: =Calculations!D160+Calculations!D161 -> 0 | T12: =S12*$T$10 -> 0 | U12: =V12*W12 -> 151435 | V12: 4885 | W12: 31 | X12: =B12 -> Oct11
B13: ='Wy Storage'!B12 -> Nov11 | C13: =J13+K13+L13-(T13+$B$43*U13)*$J$39 -> 12092564.15 | D13: =M13+N13+O13-(T13+$B$43*U13)*$K$39 -> 423546.2373 | E13: ='Other Inputs'!$F$34 -> 0.00267 | F13: =('Other Inputs'!$D$19)*('Other Inputs'!$F$19)-('Other Inputs'!$E$262/12)+('Other Inputs'!$D$26*'Other Inputs'!$F$26) -> 4363957.945 | G13: 4262314.647 | J13: 6666563.869 | K13: 5655141.708 | L13: 0 | M13: 233498.7027 | N13: 198073.2921 | O13: 0 | P13: 12606727.57 | Q13: =Calculations!E166 -> 6900062.572 | R13: =Calculations!E158 -> 5853215 | S13: =Calculations!E160+Calculations!E161 -> 0 | T13: =S13*$T$10 -> 0 | U13: =V13*W13 -> 146550 | V13: 4885 | W13: 30 | X13: =B13 -> Nov11
B14: ='Wy Storage'!B13 -> Dec11 | C14: 16345397.58 | D14: 572503.1974 | E14: ='Other Inputs'!$F$34 -> 0.00267 | F14: =('Other Inputs'!$D$19)*('Other Inputs'!$F$19)-('Other Inputs'!$E$262/12)+('Other Inputs'!$D$26*'Other Inputs'!$F$26) -> 4363957.945 | G14: 4273669.713 | J14: 5251798.837 | K14: 5486376.759 | L14: 5989476.516 | M14: 183946.0687 | N14: 192162.2414 | O14: 209783.4842 | P14: 17162108.91 | Q14: =Calculations!F166 -> 5435744.906 | R14: =Calculations!F158 -> 5678539 | S14: =Calculations!F160+Calculations!F161 -> 6199260 | T14: 150570.3721 | U14: 151435 | V14: 4885 | W14: 31 | X14: Dec11
B15: ='Wy Storage'!B14 -> Jan12 | C15: 16435840.17 | D15: 575670.9803 | E15: ='Other Inputs'!$F$34 -> 0.00267 | F15: =('Other Inputs'!$D$19)*('Other Inputs'!$F$19)-('Other Inputs'!$E$262/12)+('Other Inputs'!$D$26*'Other Inputs'!$F$26) -> 4363957.945 | G15: 4273911.194 | J15: 7601779.277 | K15: 5490150.579 | L15: 6065736.484 | M15: 266254.9455 | N15: 192294.4208 | O15: 212454.516 | P15: 18182120.22 | Q15: =Calculations!G166 -> 7868034.222 | R15: =Calculations!G158 -> 5682445 | S15: =Calculations!G160+Calculations!G161 -> 6278191 | T15: 152487.4832 | U15: 1646550 | V15: 54885 | W15: 30 | X15: Jan12
B16: ='Wy Storage'!B15 -> Feb12 | C16: 12271772.68 | D16: 429823.0777 | E16: ='Other Inputs'!$F$34 -> 0.00267 | F16: =('Other Inputs'!$D$19)*('Other Inputs'!$F$19)-('Other Inputs'!$E$262/12)+('Other Inputs'!$D$26*'Other Inputs'!$F$26) -> 4363957.945 | G16: 4262793.134 | J16: 6884511.376 | K16: 5640739.162 | L16: 2466751.187 | M16: 241132.3894 | N16: 197568.8379 | O16: 86398.81257 | P16: 13815666.77 | Q16: =Calculations!H166 -> 7125643.765 | R16: =Calculations!H158 -> 5838308 | S16: =Calculations!H160+Calculations!H161 -> 2553150 | T16: 62012.03781 | U16: 1701435 | V16: 54885 | W16: 31 | X16: Feb12
B17: ='Wy Storage'!B16 -> Mar12 | C17: 8745562.673 | D17: 306316.3541 | E17: ='Other Inputs'!$F$34 -> 0.00267 | F17: =('Other Inputs'!$D$19)*('Other Inputs'!$F$19)-('Other Inputs'!$E$262/12)+('Other Inputs'!$D$26*'Other Inputs'!$F$26) -> 4363957.945 | G17: 4253378.154 | J17: 5834312.2 | K17: 5571565.977 | L17: 0 | M17: 204348.8005 | N17: 195146.0232 | O17: 0 | P17: 10103938 | Q17: =Calculations!I166 -> 6038661 | R17: =Calculations!I158 -> 5766712 | S17: =Calculations!I160+Calculations!I161 -> 0 | T17: 0 | U17: 1701435 | V17: 54885 | W17: 31 | X17: Mar12
B18: ='Wy Storage'!B17 -> Apr12 | C18: 6831764.14 | D18: 239284.8993 | E18: ='Other Inputs'!$F$34 -> 0.00267 | F18: =('Other Inputs'!$D$19)*('Other Inputs'!$F$19)-('Other Inputs'!$E$262/12)+('Other Inputs'!$D$26*'Other Inputs'!$F$26) -> 4363957.945 | G18: 4248268.311 | J18: 3735049.456 | K18: 5499580.3 | L18: 0 | M18: 130821.3976 | N18: 192624.7 | O18: 0 | P18: 8021295.854 | Q18: =Calculations!J166 -> 3865870.854 | R18: =Calculations!J158 -> 5692205 | S18: =Calculations!J160+Calculations!J161 -> 0 | T18: 0 | U18: 1536780 | V18: 54885 | W18: 28 | X18: Apr12
B19: ='Wy Storage'!B18 -> May12 | C19: 2952084.768 | D19: 103397.7889 | E19: ='Other Inputs'!$F$34 -> 0.00267 | F19: =('Other Inputs'!$D$19)*('Other Inputs'!$F$19)-('Other Inputs'!$E$262/12)+('Other Inputs'!$D$26*'Other Inputs'!$F$26) -> 4363957.945 | G19: 4237909.568 | J19: 156045.9661 | K19: 5456354.305 | L19: 0 | M19: 5465.563875 | N19: 191110.6946 | O19: 0 | P19: 4107541.53 | Q19: =Calculations!K166 -> 161511.53 | R19: =Calculations!K158 -> 5647465 | S19: =Calculations!K160+Calculations!K161 -> 0 | T19: 0 | U19: 1701435 | V19: 54885 | W19: 31 | X19: May12
B20: ='Wy Storage'!B19 -> Jun12 | C20: 5281102.668 | D20: 184972.4455 | E20: ='Other Inputs'!$F$34 -> 0.00267 | F20: =('Other Inputs'!$D$19)*('Other Inputs'!$F$19)-('Other Inputs'!$E$262/12)+('Other Inputs'!$D$26*'Other Inputs'!$F$26) -> 4363957.945 | G20: 4244128.045 | J20: 192768.5103 | K20: 5317475.581 | L20: 0 | M20: 6751.783673 | N20: 186246.4193 | O20: 0 | P20: 5556692.294 | Q20: =Calculations!L166 -> 199520.294 | R20: =Calculations!L158 -> 5503722 | S20: =Calculations!L160+Calculations!L161 -> 0 | T20: 0 | U20: 146550 | V20: 4885 | W20: 30 | X20: Jun12
B21: ='Wy Storage'!B20 -> Jul12 | C21: 5043909.271 | D21: 176664.6648 | E21: ='Other Inputs'!$F$34 -> 0.00267 | F21: =('Other Inputs'!$D$19)*('Other Inputs'!$F$19)-('Other Inputs'!$E$262/12)+('Other Inputs'!$D$26*'Other Inputs'!$F$26) -> 4363957.945 | G21: 4243494.739 | J21: 206441.0209 | K21: 5074247.721 | L21: 0 | M21: 7230.66808 | N21: 177727.2795 | O21: 0 | P21: 5314211.689 | Q21: =Calculations!M166 -> 213671.689 | R21: =Calculations!M158 -> 5251975 | S21: =Calculations!M160+Calculations!M161 -> 0 | T21: 0 | U21: 151435 | V21: 4885 | W21: 31 | X21: Jul12
B22: ='Wy Storage'!B21 -> Aug12 | C22: 4808457.442 | D22: 168417.8832 | E22: ='Other Inputs'!$F$34 -> 0.00267 | F22: =('Other Inputs'!$D$19)*('Other Inputs'!$F$19)-('Other Inputs'!$E$262/12)+('Other Inputs'!$D$26*'Other Inputs'!$F$26) -> 4363957.945 | G22: 4242866.083 | J22: 198214.9586 | K22: 4839383.907 | L22: 0 | M22: 6942.547405 | N22: 169501.0933 | O22: 0 | P22: 5067492.506 | Q22: =Calculations!N166 -> 205157.506 | R22: =Calculations!N158 -> 5008885 | S22: =Calculations!N160+Calculations!N161 -> 0 | T22: 0 | U22: 146550 | V22: 4885 | W22: 30 | X22: Aug12
B23: ='Wy Storage'!B22 -> Sep12 | C23: 5725593.482 | D23: 200540.8898 | E23: ='Other Inputs'!$F$34 -> 0.00267 | F23: =('Other Inputs'!$D$19)*('Other Inputs'!$F$19)-('Other Inputs'!$E$262/12)+('Other Inputs'!$D$26*'Other Inputs'!$F$26) -> 4363957.945 | G23: 4245314.836 | J23: 543398.4076 | K23: 5418974.544 | L23: 0 | M23: 19032.71696 | N23: 189801.4556 | O23: 0 | P23: 6019772.125 | Q23: =Calculations!O166 -> 562431.1246 | R23: =Calculations!O158 -> 5608776 | S23: =Calculations!O160+Calculations!O161 -> 0 | T23: 0 | U23: 151435 | V23: 4885 | W23: 31 | X23: Sep12
C26: =SUM(C12:C23) -> 105784023.8 | D26: =SUM(D12:D23) -> 3705121.98 | G26: =SUM(G12:G23) -> 51042773.36 | J26: =SUM(J12:J25) -> 41363428.16 | K26: 64844200.48 | L26: 14521964.19 | M26: 1448768.362 | N26: 2271190.524 | O26: 508636.8128 | P26: =SUM(P12:P23) -> 115625163.5 | Q26: 42812196.53 | R26: 67115391 | S26: 15030601 | T26: 365069.8931 | U26: 9333025
C29: Months | F29: System | G29: Utah | J29: Allocation Factors
C30: or Days | D30: Dth | E30: Rate | F30: Total | G30: Total
J31: Peak Demand Allocation Base
A32: II. Transportation (ML 104 demand) | C32: ='Other Inputs'!E22 -> 12 | D32: ='Other Inputs'!D20 -> 30000 | E32: ='Other Inputs'!F20 -> 5.28804 | F32: =C32*D32*E32 -> 1903694.4 | G32: =F32*J34 -> 1845269.768 | J32: Utah | K32: Wyo | L32: Total
J33: ='Other Inputs'!E129 -> 1241463 | K33: ='Other Inputs'!E130 -> 39307 | L33: =J33+K33 -> 1280770
J34: =J33/L33 -> 0.9693098683 | K34: =K33/L33 -> 0.03069013172
A36: III. Transportation (TL 112 demand) | C36: ='Other Inputs'!E22 -> 12 | D36: ='Other Inputs'!D21 -> 52000 | E36: ='Other Inputs'!F21 -> 5.28804 | F36: =C36*D36*E36 -> 3299736.96 | G36: =F36*J34 -> 3198467.598 | J36: Dth Sales Allocation Base
J37: Utah | K37: Wyo | L37: Total
J38: =Calculations!P20 -> 105469081 | K38: =Calculations!P39 -> 3694091 | L38: =J38+K38 -> 109163172
A39: IV. Transportation (KR 2003 Expansion) | C39: ='Other Inputs'!E50 -> 12 | D39: ='Other Inputs'!D50 -> 3000 | E39: ='Other Inputs'!F50 -> 14.34754167 | F39: =C39*D39*E39 -> 516511.5 | J39: =J38/L38 -> 0.9661599152 | K39: =K38/L38 -> 0.03384008482
C40: ='Other Inputs'!E51 -> 5 | D40: ='Other Inputs'!D51 -> 50000 | E40: ='Other Inputs'!F51 -> 14.34754167 | F40: =C40*D40*E40 -> 3586885.417 | G40: =(F39+F40+F41)*J34 -> 4366471.391
C41: ='Other Inputs'!E52 -> 12 | D41: ='Other Inputs'!D52 -> 1885 | E41: ='Other Inputs'!F52 -> 17.74204167 | F41: =C41*D41*E41 -> 401324.9825
A43: V. Trans (KR 2003 Expansion) | B43: ='Other Inputs'!C57 -> 1.618336271 | C43: ='Other Inputs'!E56 -> 365 | D43: ='Other Inputs'!D56 -> 4885 | E43: ='Other Inputs'!F56 -> 0.0044 | F43: =B43*C43*D43*E43 -> 12696.34973
B44: ='Other Inputs'!C56 -> 1.618336271 | C44: ='Other Inputs'!E57 -> 151 | D44: ='Other Inputs'!D57 -> 50000 | E44: ='Other Inputs'!F57 -> 0.0044 | F44: =B44*C44*D44*E44 -> 53761.13092 | G44: =(F43+F44)*J39 -> 64208.55387
A47: VI. Other Trans, Gathering & Processing | F47: =('Other Inputs'!$D$157*'Other Inputs'!$D$156)+'Other Inputs'!$D$160+'Other Inputs'!$D$163 -> 4893654.26 | G47: =F47*$J$39 -> 4728052.585
A49: VII. QGM Gathering | B49: Demand | C49: ='Ut 1.3 p1'!H48 -> 12 | E49: ='Ut 1.3 p1'!J48 -> 1060315 | F49: =C49*E49 -> 12723780
B50: Commodity | C50: ='Ut 1.3 p1'!F49 -> 50725293.58 | D50: ='Ut 1.3 p1'!H49 -> 0 | E50: ='Ut 1.3 p1'!J49 -> 0.20764 | F50: =C50*E50 -> 10532599.96 | G50: =(F49)*'Ut 1.5'!G51+(F50)*'Ut 1.5'!G54 -> 22509461.4
A53: VII. Storage Demand | C53: 12 | D53: ='Other Inputs'!E148 -> 184625 | E53: ='Other Inputs'!E12 -> 2.87375 | F53: =C53*D53*E53 -> 6366793.125
C54: 12 | D54: ='Other Inputs'!E149 -> 111827 | E54: ='Other Inputs'!E13 -> 2.85338 | F54: =C54*D54*E54 -> 3829019.103
C55: 12 | D55: ='Other Inputs'!E150 -> 13419000 | E55: ='Other Inputs'!E14 -> 0.02378 | F55: =C55*D55*E55 -> 3829245.84 | G55: =SUM(F53:F55)*J34 -> 13594627.19
A58: Total Supplier Non-Gas Costs | G58: =G26+G32+G36+G40+G44+G47+G55+G50 -> 101349331.8

Sheet SDR#3
I1: ='Control Panel'!F32 -> Questar Gas Company
I2: ='Control Panel'!F33 -> Docket No. 11-057-08
C5: Standard Data Request #3
C6: Monthly Forecasted Sales
D8: Utah Sales | F8: Wyoming Sales | H8: System Total
C9: Month | D9: Dth | F9: Dth | H9: Dth
B11: 1 | C11: =Calculations!D139 -> Oct11 | D11: =Calculations!D20 -> 6759154 | F11: =Calculations!D39 -> 232360 | H11: =SUM(D11:F11) -> 6991514
B13: =B11+1 -> 2 | C13: =Calculations!E139 -> Nov11 | D13: =Calculations!E20 -> 10723234 | F13: =Calculations!E39 -> 394788 | H13: =SUM(D13:F13) -> 11118022
B15: =B13+1 -> 3 | C15: =Calculations!F139 -> Dec11 | D15: =Calculations!F20 -> 16520123 | F15: =Calculations!F39 -> 576202 | H15: 17096325
B17: =B15+1 -> 4 | C17: =Calculations!G139 -> Jan12 | D17: =Calculations!G20 -> 18949599 | F17: =Calculations!G39 -> 631409 | H17: 19581008
B19: =B17+1 -> 5 | C19: =Calculations!H139 -> Feb12 | D19: =Calculations!H20 -> 14876830 | F19: =Calculations!H39 -> 514659 | H19: 15391489
B21: =B19+1 -> 6 | C21: =Calculations!I139 -> Mar12 | D21: =Calculations!I20 -> 11344837 | F21: =Calculations!I39 -> 409647 | H21: 11754484
B23: =B21+1 -> 7 | C23: =Calculations!J139 -> Apr12 | D23: =Calculations!J20 -> 8619173 | F23: =Calculations!J39 -> 326437 | H23: 8945610
B25: =B23+1 -> 8 | C25: =Calculations!K139 -> May12 | D25: =Calculations!K20 -> 4625749 | F25: =Calculations!K39 -> 179610 | H25: 4805359
B27: =B25+1 -> 9 | C27: =Calculations!L139 -> Jun12 | D27: =Calculations!L20 -> 3219517 | F27: =Calculations!L39 -> 112440 | H27: 3331957
B29: =B27+1 -> 10 | C29: =Calculations!M139 -> Jul12 | D29: =Calculations!M20 -> 3021586 | F29: =Calculations!M39 -> 77699 | H29: 3099285
B31: =B29+1 -> 11 | C31: =Calculations!N139 -> Aug12 | D31: =Calculations!N20 -> 2917781 | F31: =Calculations!N39 -> 86680 | H31: 3004461
B33: =B31+1 -> 12 | C33: =Calculations!O139 -> Sep12 | D33: =Calculations!O20 -> 3891498 | F33: =Calculations!O39 -> 152160 | H33: 4043658
B36: =B33+1 -> 13 | C36: Total Sales (Dth) | D36: =SUM(D11:D33) -> 105469081 | F36: =SUM(F11:F33) -> 3694091 | H36: =SUM(H11:H33) -> 109163172

Sheet SDR#4
H1: ='Control Panel'!F32 -> Questar Gas Company
H2: ='Control Panel'!F33 -> Docket No. 11-057-08
C5: Standard Data Request #4
C6: Supplier Non-Gas Costs Recovered at Current Rates
C9: (A) | D9: (B) | E9: (C) | F9: (D) | G9: (E)
B10: 1 | C10: Rate Schedule | D10: Season | E10: Sales Dth | F10: SNG Rate | G10: SNG Revenue
B12: =B10+1 -> 2 | C12: GS | D12: winter | E12: ='Utah Summary-by class'!B8 -> 67510892 | F12: ='Utah Summary-by class'!J8 -> 1.21316 | G12: =E12*F12 -> 81901513.74
B13: =B12+1 -> 3 | D13: summer | E13: ='Utah Summary-by class'!B9 -> 27782275 | F13: ='Utah Summary-by class'!J9 -> 0.56959 | G13: =E13*F13 -> 15824506.02
B15: =B13+1 -> 4 | C15: FS | D15: winter | E15: ='Utah Summary-by class'!B13 -> 3677255 | F15: ='Utah Summary-by class'!J13 -> 1.18157 | G15: =E15*F15 -> 4344934.19
B16: =B15+1 -> 5 | D16: summer | E16: ='Utah Summary-by class'!B14 -> 3624649 | F16: ='Utah Summary-by class'!J14 -> 0.56957 | G16: =E16*F16 -> 2064491.331
B18: =B16+1 -> 6 | C18: NGV | D18: annual | E18: ='Utah Summary-by class'!B19 -> 456000 | F18: ='Utah Summary-by class'!J19 -> 0.87544 | G18: =E18*F18 -> 399200.64
B20: =B18+1 -> 7 | C20: IS | D20: annual | E20: ='Utah Summary-by class'!B24 -> 2418010 | F20: ='Utah Summary-by class'!J24 -> 0.17919 | G20: =E20*F20 -> 433283.2119
B23: =B20+1 -> 8 | C23: Total Supplier Non-Gas Costs | E23: =SUM(E12:E20) -> 105469081 | G23: =SUM(G12:G20) -> 104967929.1

Sheet Wy SDR#1
A1: Wyoming Standard Data Request #1
A2: Global Insights Forecast

Sheet Ut 1.1
H1: Questar Gas Company
H2: ='Control Panel'!$F$33 -> Docket No. 11-057-08
H3: Exhibit 1.1
C4: Test Year Cost of Questar Gas' Production
C5: =CONCATENATE('Control Panel'!F40," through ",'Control Panel'!F41) -> Oct-11 through Sep-12
A7: (A) | B7: (B) | C7: (C) | D7: (D) | E7: (E) | F7: (F) | G7: (G) | H7: (H)
E8: Base Year | F8: Market | G8: Royalty | H8: Test Year
A9: Field Name | B9: Well Name | C9: Formation | D9: Price $ | E9: Dth | F9: Value $ | G9: Rate % | H9: Royalty $
A11: ACE UNIT (CO) | B11: ACE UNIT 2 FT UN | C11: FORT UNION | D11: =IF(LEFT(B11,12)=[2]Inputs!$C$24,[2]Inputs!$D$24,IF(LEFT(B11,13)=[2]Inputs!$C$25,[2]Inputs!$D$24,[2]Inputs!$D$26)) -> 3.866827441 | E11: 64107 | F11: =D11*E11 -> 247890.7067 | G11: 0.1268519763 | H11: =F11*G11 -> 31445.42606
B12: ACE UNIT 7 LOWER FT UN | C12: FORT UNION | D12: =IF(LEFT(B12,12)=[2]Inputs!$C$24,[2]Inputs!$D$24,IF(LEFT(B12,13)=[2]Inputs!$C$25,[2]Inputs!$D$24,[2]Inputs!$D$26)) -> 3.866827441 | E12: 4732 | F12: =D12*E12 -> 18297.82745 | G12: 0.1268519763 | H12: =F12*G12 -> 2321.115574
B13: ACE UNIT 10 FT UN | C13: FORT UNION | D13: =IF(LEFT(B13,12)=[2]Inputs!$C$24,[2]Inputs!$D$24,IF(LEFT(B13,13)=[2]Inputs!$C$25,[2]Inputs!$D$24,[2]Inputs!$D$26)) -> 3.866827441 | E13: 62723 | F13: =D13*E13 -> 242539.0176 | G13: 0.1268519763 | H13: 30766.55371
B14: ACE UNIT 12 FT UN | C14: FORT UNION | D14: =IF(LEFT(B14,12)=[2]Inputs!$C$24,[2]Inputs!$D$24,IF(LEFT(B14,13)=[2]Inputs!$C$25,[2]Inputs!$D$24,[2]Inputs!$D$26)) -> 3.866827441 | E14: 118339 | F14: 457596.4925 | G14: 0.1268519763 | H14: 58047.01943
B15: ACE UNIT 11 FT UN | C15: FORT UNION | D15: =IF(LEFT(B15,12)=[2]Inputs!$C$24,[2]Inputs!$D$24,IF(LEFT(B15,13)=[2]Inputs!$C$25,[2]Inputs!$D$24,[2]Inputs!$D$26)) -> 3.866827441 | E15: 37891 | F15: 146517.9586 | G15: 0.1268519763 | H15: 18586.09261
B16: ACE UNIT 13 FT UN | C16: FORT UNION | D16: =IF(LEFT(B16,12)=[2]Inputs!$C$24,[2]Inputs!$D$24,IF(LEFT(B16,13)=[2]Inputs!$C$25,[2]Inputs!$D$24,[2]Inputs!$D$26)) -> 3.866827441 | E16: 66584 | F16: 257468.8383 | G16: 0.1268519763 | H16: 32660.43098
A17: E HIAW (CO) | B17: HIAWATHA UNIT 1 FT UN | C17: FORT UNION | D17: =IF(LEFT(B17,12)=[2]Inputs!$C$24,[2]Inputs!$D$24,IF(LEFT(B17,13)=[2]Inputs!$C$25,[2]Inputs!$D$24,[2]Inputs!$D$26)) -> 3.866827441 | E17: 33965 | F17: 131336.794 | G17: 0.1925 | H17: 25282.33285
B18: F WILSON A 2 WAS | C18: WASATCH | D18: =IF(LEFT(B18,12)=[2]Inputs!$C$24,[2]Inputs!$D$24,IF(LEFT(B18,13)=[2]Inputs!$C$25,[2]Inputs!$D$24,[2]Inputs!$D$26)) -> 3.866827441 | E18: 123403 | F18: 477178.1067 | G18: 0.1925 | H18: 91856.78553
B19: F WILSON B 3 WAS | C19: WASATCH | D19: =IF(LEFT(B19,12)=[2]Inputs!$C$24,[2]Inputs!$D$24,IF(LEFT(B19,13)=[2]Inputs!$C$25,[2]Inputs!$D$24,[2]Inputs!$D$26)) -> 3.866827441 | E19: 141614 | F19: 547596.9012 | G19: 0.1625 | H19: 88984.49644
B20: F WILSON B 6 WAS | C20: WASATCH | D20: =IF(LEFT(B20,12)=[2]Inputs!$C$24,[2]Inputs!$D$24,IF(LEFT(B20,13)=[2]Inputs!$C$25,[2]Inputs!$D$24,[2]Inputs!$D$26)) -> 3.866827441 | E20: 121921 | F20: 471447.4684 | G20: 0.1625 | H20: 76610.21361
B21: F WILSON A 9 WAS | C21: WASATCH | D21: =IF(LEFT(B21,12)=[2]Inputs!$C$24,[2]Inputs!$D$24,IF(LEFT(B21,13)=[2]Inputs!$C$25,[2]Inputs!$D$24,[2]Inputs!$D$26)) -> 3.866827441 | E21: 13891 | F21: 53714.09998 | G21: 0.1925 | H21: 10339.96425
B22: F WILSON B 12 FT UN | C22: FORT UNION | D22: =IF(LEFT(B22,12)=[2]Inputs!$C$24,[2]Inputs!$D$24,IF(LEFT(B22,13)=[2]Inputs!$C$25,[2]Inputs!$D$24,[2]Inputs!$D$26)) -> 3.866827441 | E22: 55651 | F22: 215192.8139 | G22: 0.1625 | H22: 34968.83226
B23: F WILSON B 2 UNIT (HIAW) FT UN | C23: FORT UNION | D23: =IF(LEFT(B23,12)=[2]Inputs!$C$24,[2]Inputs!$D$24,IF(LEFT(B23,13)=[2]Inputs!$C$25,[2]Inputs!$D$24,[2]Inputs!$D$26)) -> 3.866827441 | E23: 32512 | F23: 125718.2937 | G23: 0.1625 | H23: 20429.22273
B24: F WILSON A 22 FT UN | C24: FORT UNION | D24: =IF(LEFT(B24,12)=[2]Inputs!$C$24,[2]Inputs!$D$24,IF(LEFT(B24,13)=[2]Inputs!$C$25,[2]Inputs!$D$24,[2]Inputs!$D$26)) -> 3.866827441 | E24: 27441 | F24: 106109.6118 | G24: 0.1925 | H24: 20426.10027
B25: STLD 3712100 NE4 2 WAS | C25: WASATCH | D25: =IF(LEFT(B25,12)=[2]Inputs!$C$24,[2]Inputs!$D$24,IF(LEFT(B25,13)=[2]Inputs!$C$25,[2]Inputs!$D$24,[2]Inputs!$D$26)) -> 3.866827441 | E25: 20517 | F25: 79335.6986 | G25: 0.13375 | H25: 10611.14969
B26: STLD 3712100 SE4 4 WAS | C26: WASATCH | D26: =IF(LEFT(B26,12)=[2]Inputs!$C$24,[2]Inputs!$D$24,IF(LEFT(B26,13)=[2]Inputs!$C$25,[2]Inputs!$D$24,[2]Inputs!$D$26)) -> 3.866827441 | E26: 24418 | F26: 94420.19244 | G26: 0.1375 | H26: 12982.77646
B27: STLD 3712100 W2 5 FT UN | C27: FORT UNION | D27: =IF(LEFT(B27,12)=[2]Inputs!$C$24,[2]Inputs!$D$24,IF(LEFT(B27,13)=[2]Inputs!$C$25,[2]Inputs!$D$24,[2]Inputs!$D$26)) -> 3.866827441 | E27: 46226 | F27: 178747.9653 | G27: 0.13375 | H27: 23907.54035
B28: G KUYKENDALL A 8 FT UN | C28: FORT UNION | D28: =IF(LEFT(B28,12)=[2]Inputs!$C$24,[2]Inputs!$D$24,IF(LEFT(B28,13)=[2]Inputs!$C$25,[2]Inputs!$D$24,[2]Inputs!$D$26)) -> 3.866827441 | E28: 8283 | F28: 32028.93169 | G28: 0.1925 | H28: 6165.56935
B29: KS WHITFORD 1 WAS | C29: WASATCH | D29: =IF(LEFT(B29,12)=[2]Inputs!$C$24,[2]Inputs!$D$24,IF(LEFT(B29,13)=[2]Inputs!$C$25,[2]Inputs!$D$24,[2]Inputs!$D$26)) -> 3.866827441 | E29: 63018 | F29: 243679.7317 | G29: 0.155 | H29: 37770.35841
B30: F WILSON B 24 FT UN | C30: FORT UNION | D30: =IF(LEFT(B30,12)=[2]Inputs!$C$24,[2]Inputs!$D$24,IF(LEFT(B30,13)=[2]Inputs!$C$25,[2]Inputs!$D$24,[2]Inputs!$D$26)) -> 3.866827441 | E30: 94563 | F30: 365658.8033 | G30: 0.1625 | H30: 59419.55553
B31: F WILSON B 25 FT UN | C31: FORT UNION | D31: =IF(LEFT(B31,12)=[2]Inputs!$C$24,[2]Inputs!$D$24,IF(LEFT(B31,13)=[2]Inputs!$C$25,[2]Inputs!$D$24,[2]Inputs!$D$26)) -> 3.866827441 | E31: 15271 | F31: 59050.32185 | G31: 0.1625 | H31: 9595.6773
B32: F WILSON A 26 FT UN | C32: FORT UNION | D32: =IF(LEFT(B32,12)=[2]Inputs!$C$24,[2]Inputs!$D$24,IF(LEFT(B32,13)=[2]Inputs!$C$25,[2]Inputs!$D$24,[2]Inputs!$D$26)) -> 3.866827441 | E32: 65437 | F32: 253033.5872 | G32: 0.1925 | H32: 48708.96554
B33: HIAWATHA STATELAND 6 FT UN | C33: FORT UNION | D33: =IF(LEFT(B33,12)=[2]Inputs!$C$24,[2]Inputs!$D$24,IF(LEFT(B33,13)=[2]Inputs!$C$25,[2]Inputs!$D$24,[2]Inputs!$D$26)) -> 3.866827441 | E33: 14023 | F33: 54224.5212 | G33: 0.13375 | H33: 7252.52971
B34: G KUYKENDALL 9 FT UN | C34: FORT UNION | D34: =IF(LEFT(B34,12)=[2]Inputs!$C$24,[2]Inputs!$D$24,IF(LEFT(B34,13)=[2]Inputs!$C$25,[2]Inputs!$D$24,[2]Inputs!$D$26)) -> 3.866827441 | E34: 42062 | F34: 162646.4958 | G34: 0.1925 | H34: 31309.45044
B35: F WILSON A 20 FT UN | C35: FORT UNION | D35: =IF(LEFT(B35,12)=[2]Inputs!$C$24,[2]Inputs!$D$24,IF(LEFT(B35,13)=[2]Inputs!$C$25,[2]Inputs!$D$24,[2]Inputs!$D$26)) -> 3.866827441 | E35: 1010 | F35: 3905.495715 | G35: 0.1925 | H35: 751.8079251
B36: F WILSON A 20 LEW/LAN/FT UN | C36: LEWIS/LANCE/FT U | D36: =IF(LEFT(B36,12)=[2]Inputs!$C$24,[2]Inputs!$D$24,IF(LEFT(B36,13)=[2]Inputs!$C$25,[2]Inputs!$D$24,[2]Inputs!$D$26)) -> 3.866827441 | E36: 19193 | F36: 74216.01907 | G36: 0.1925 | H36: 14286.58367
B37: F WILSON 32 MESA | C37: MESAVERDE | D37: =IF(LEFT(B37,12)=[2]Inputs!$C$24,[2]Inputs!$D$24,IF(LEFT(B37,13)=[2]Inputs!$C$25,[2]Inputs!$D$24,[2]Inputs!$D$26)) -> 3.866827441 | E37: 5275 | F37: 20397.51475 | G37: 0.1925 | H37: 3926.521589
B38: F WILSON 32 LEWIS | C38: LEWIS | D38: =IF(LEFT(B38,12)=[2]Inputs!$C$24,[2]Inputs!$D$24,IF(LEFT(B38,13)=[2]Inputs!$C$25,[2]Inputs!$D$24,[2]Inputs!$D$26)) -> 3.866827441 | E38: 37843 | F38: 146332.3508 | G38: 0.1925 | H38: 28168.97754
B39: F WILSON 32 LANCE | C39: LANCE | D39: =IF(LEFT(B39,12)=[2]Inputs!$C$24,[2]Inputs!$D$24,IF(LEFT(B39,13)=[2]Inputs!$C$25,[2]Inputs!$D$24,[2]Inputs!$D$26)) -> 3.866827441 | E39: 42675 | F39: 165016.861 | G39: 0.1925 | H39: 31765.74575
B40: HIAWATHA STLD 7 FT UN | C40: FORT UNION | D40: =IF(LEFT(B40,12)=[2]Inputs!$C$24,[2]Inputs!$D$24,IF(LEFT(B40,13)=[2]Inputs!$C$25,[2]Inputs!$D$24,[2]Inputs!$D$26)) -> 3.866827441 | E40: 32353 | F40: 125103.4682 | G40: 0.1375 | H40: 17201.72688
B41: F WILSON 33 LEWIS | C41: LEWIS | D41: =IF(LEFT(B41,12)=[2]Inputs!$C$24,[2]Inputs!$D$24,IF(LEFT(B41,13)=[2]Inputs!$C$25,[2]Inputs!$D$24,[2]Inputs!$D$26)) -> 3.866827441 | E41: 17768 | F41: 68705.78996 | G41: 0.1925 | H41: 13225.86457
B42: F WILSON 33 LANCE | C42: LANCE | D42: =IF(LEFT(B42,12)=[2]Inputs!$C$24,[2]Inputs!$D$24,IF(LEFT(B42,13)=[2]Inputs!$C$25,[2]Inputs!$D$24,[2]Inputs!$D$26)) -> 3.866827441 | E42: 20360 | F42: 78728.60669 | G42: 0.1925 | H42: 15155.25679
B43: F WILSON 34 LEW/LAN/FT UN | C43: LEWIS/LANCE/FT U | D43: =IF(LEFT(B43,12)=[2]Inputs!$C$24,[2]Inputs!$D$24,IF(LEFT(B43,13)=[2]Inputs!$C$25,[2]Inputs!$D$24,[2]Inputs!$D$26)) -> 3.866827441 | E43: 76706 | F43: 296608.8657 | G43: 0.1625 | H43: 48198.94067
B44: F WILSON 35 LEW/LAN/FT UN | C44: LEWIS/LANCE/FT U | D44: =IF(LEFT(B44,12)=[2]Inputs!$C$24,[2]Inputs!$D$24,IF(LEFT(B44,13)=[2]Inputs!$C$25,[2]Inputs!$D$24,[2]Inputs!$D$26)) -> 3.866827441 | E44: 127091 | F44: 491438.9663 | G44: 0.1925 | H44: 94602.001
B45: F WILSON 29E (DD) FT UN | C45: FORT UNION | D45: =IF(LEFT(B45,12)=[2]Inputs!$C$24,[2]Inputs!$D$24,IF(LEFT(B45,13)=[2]Inputs!$C$25,[2]Inputs!$D$24,[2]Inputs!$D$26)) -> 3.866827441 | E45: 33975 | F45: 131375.4623 | G45: 0.1625 | H45: 21348.51262
B46: F WILSON 37 MESA | C46: MESAVERDE | D46: =IF(LEFT(B46,12)=[2]Inputs!$C$24,[2]Inputs!$D$24,IF(LEFT(B46,13)=[2]Inputs!$C$25,[2]Inputs!$D$24,[2]Inputs!$D$26)) -> 3.866827441 | E46: 17654 | F46: 68264.97164 | G46: 0.2325 | H46: 15871.60591
B47: F WILSON 37 LEW/LNC/FTUN | C47: LEWIS/LANCE/FT U | D47: =IF(LEFT(B47,12)=[2]Inputs!$C$24,[2]Inputs!$D$24,IF(LEFT(B47,13)=[2]Inputs!$C$25,[2]Inputs!$D$24,[2]Inputs!$D$26)) -> 3.866827441 | E47: 100034 | F47: 386814.2162 | G47: 0.1625 | H47: 62857.31013
A48: HIAW DEEP (CO) | B48: HIAWATHA DEEP UNIT 1 NUGGET | C48: NUGGET | D48: =IF(LEFT(B48,12)=[2]Inputs!$C$24,[2]Inputs!$D$24,IF(LEFT(B48,13)=[2]Inputs!$C$25,[2]Inputs!$D$24,[2]Inputs!$D$26)) -> 3.866827441 | E48: 92817 | F48: 358907.3226 | G48: 0.1723962084 | H48: 61874.26156
B49: HIAWATHA DEEP UNIT 3 NUGGET | C49: NUGGET | D49: =IF(LEFT(B49,12)=[2]Inputs!$C$24,[2]Inputs!$D$24,IF(LEFT(B49,13)=[2]Inputs!$C$25,[2]Inputs!$D$24,[2]Inputs!$D$26)) -> 3.866827441 | E49: 317499 | F49: 1227713.846 | G49: 0.1714959958 | H49: 210548.0085
B50: HIAWATHA DEEP UNIT 2 NUGGET | C50: NUGGET | D50: =IF(LEFT(B50,12)=[2]Inputs!$C$24,[2]Inputs!$D$24,IF(LEFT(B50,13)=[2]Inputs!$C$25,[2]Inputs!$D$24,[2]Inputs!$D$26)) -> 3.866827441 | E50: 18577 | F50: 71834.05336 | G50: 0.172395903 | H50: 12383.8965
A51: JACKS DRAW (CO) | B51: JACKS DRAW UNIT 2 FT UN | C51: FORT UNION | D51: =IF(LEFT(B51,12)=[2]Inputs!$C$24,[2]Inputs!$D$24,IF(LEFT(B51,13)=[2]Inputs!$C$25,[2]Inputs!$D$24,[2]Inputs!$D$26)) -> 3.866827441 | E51: 50094 | F51: 193704.8538 | G51: 0.1396875 | H51: 27058.14677
B52: JACKS DRAW UNIT 3 FT UN | C52: FORT UNION | D52: =IF(LEFT(B52,12)=[2]Inputs!$C$24,[2]Inputs!$D$24,IF(LEFT(B52,13)=[2]Inputs!$C$25,[2]Inputs!$D$24,[2]Inputs!$D$26)) -> 3.866827441 | E52: 27293 | F52: 105537.3213 | G52: 0.1396875 | H52: 14742.24457
B53: JACKS DRAW UNIT 9 FT UN | C53: FORT UNION | D53: =IF(LEFT(B53,12)=[2]Inputs!$C$24,[2]Inputs!$D$24,IF(LEFT(B53,13)=[2]Inputs!$C$25,[2]Inputs!$D$24,[2]Inputs!$D$26)) -> 3.866827441 | E53: 37337 | F53: 144375.7362 | G53: 0.1396875 | H53: 20167.48564
B54: JACKS DRAW UNIT 5 FT UN | C54: FORT UNION | D54: =IF(LEFT(B54,12)=[2]Inputs!$C$24,[2]Inputs!$D$24,IF(LEFT(B54,13)=[2]Inputs!$C$25,[2]Inputs!$D$24,[2]Inputs!$D$26)) -> 3.866827441 | E54: 2808 | F54: 10858.05145 | G54: 0.1489132823 | H54: 1616.908082
B55: JACKS DRAW UNIT 8 FT UN | C55: FORT UNION | D55: =IF(LEFT(B55,12)=[2]Inputs!$C$24,[2]Inputs!$D$24,IF(LEFT(B55,13)=[2]Inputs!$C$25,[2]Inputs!$D$24,[2]Inputs!$D$26)) -> 3.866827441 | E55: 4137 | F55: 15997.06512 | G55: 0.1489132823 | H55: 2382.175475
B56: JACKS DRAW UNIT 17 FT UN | C56: FORT UNION | D56: =IF(LEFT(B56,12)=[2]Inputs!$C$24,[2]Inputs!$D$24,IF(LEFT(B56,13)=[2]Inputs!$C$25,[2]Inputs!$D$24,[2]Inputs!$D$26)) -> 3.866827441 | E56: 51883 | F56: 200622.6081 | G56: 0.1396875 | H56: 28024.47057
A57: LO HORSE DR (CO) | B57: LOWER HORSE DRAW 11-1 MANCOS B | C57: MANCOS B | D57: =IF(LEFT(B57,12)=[2]Inputs!$C$24,[2]Inputs!$D$24,IF(LEFT(B57,13)=[2]Inputs!$C$25,[2]Inputs!$D$24,[2]Inputs!$D$26)) -> 3.866827441 | E57: 2505 | F57: 9686.402739 | G57: 0.125 | H57: 1210.800342
B58: LOWER HORSE DRAW 12-2 MANCOS B | C58: MANCOS B | D58: =IF(LEFT(B58,12)=[2]Inputs!$C$24,[2]Inputs!$D$24,IF(LEFT(B58,13)=[2]Inputs!$C$25,[2]Inputs!$D$24,[2]Inputs!$D$26)) -> 3.866827441 | E58: 21330 | F58: 82479.42931 | G58: 0.125 | H58: 10309.92866
B59: LOWER HORSE DRAW 10-1 MANCOS B | C59: MANCOS B | D59: =IF(LEFT(B59,12)=[2]Inputs!$C$24,[2]Inputs!$D$24,IF(LEFT(B59,13)=[2]Inputs!$C$25,[2]Inputs!$D$24,[2]Inputs!$D$26)) -> 3.866827441 | E59: 3097 | F59: 11975.56458 | G59: 0.125 | H59: 1496.945573
B60: LOWER HORSE DRAW 10-2 MB SILT | C60: MANCOS B SILT | D60: =IF(LEFT(B60,12)=[2]Inputs!$C$24,[2]Inputs!$D$24,IF(LEFT(B60,13)=[2]Inputs!$C$25,[2]Inputs!$D$24,[2]Inputs!$D$26)) -> 3.866827441 | E60: 6435 | F60: 24883.03458 | G60: 0.125 | H60: 3110.379323
B61: LOWER HORSE FED 11-5 MANCOS B | C61: MANCOS B | D61: =IF(LEFT(B61,12)=[2]Inputs!$C$24,[2]Inputs!$D$24,IF(LEFT(B61,13)=[2]Inputs!$C$25,[2]Inputs!$D$24,[2]Inputs!$D$26)) -> 3.866827441 | E61: 26250 | F61: 101504.2203 | G61: 0.125 | H61: 12688.02754
B62: LOWER HORSE FED 11-5 MB SILT | C62: MANCOS B SILT | D62: =IF(LEFT(B62,12)=[2]Inputs!$C$24,[2]Inputs!$D$24,IF(LEFT(B62,13)=[2]Inputs!$C$25,[2]Inputs!$D$24,[2]Inputs!$D$26)) -> 3.866827441 | E62: 17142 | F62: 66285.15599 | G62: 0.125 | H62: 8285.644498
A63: POWDER WASH (CO) | B63: CARL ALLEN B 4 WAS | C63: WASATCH | D63: =IF(LEFT(B63,12)=[2]Inputs!$C$24,[2]Inputs!$D$24,IF(LEFT(B63,13)=[2]Inputs!$C$25,[2]Inputs!$D$24,[2]Inputs!$D$26)) -> 3.866827441 | E63: 7335 | F63: 28363.17928 | G63: 0.1100461 | H63: 3121.257263
B64: CARL ALLEN B 6 FT UN | C64: FORT UNION | D64: =IF(LEFT(B64,12)=[2]Inputs!$C$24,[2]Inputs!$D$24,IF(LEFT(B64,13)=[2]Inputs!$C$25,[2]Inputs!$D$24,[2]Inputs!$D$26)) -> 3.866827441 | E64: 55296 | F64: 213820.0902 | G64: 0.1100461 | H64: 23530.06702
B65: CARL ALLEN B 6 LOWER FT UN | C65: FORT UNION | D65: =IF(LEFT(B65,12)=[2]Inputs!$C$24,[2]Inputs!$D$24,IF(LEFT(B65,13)=[2]Inputs!$C$25,[2]Inputs!$D$24,[2]Inputs!$D$26)) -> 3.866827441 | E65: 55296 | F65: 213820.0902 | G65: 0.1100461 | H65: 23530.06702
B66: CARL ALLEN B 7 FT UN | C66: FORT UNION | D66: =IF(LEFT(B66,12)=[2]Inputs!$C$24,[2]Inputs!$D$24,IF(LEFT(B66,13)=[2]Inputs!$C$25,[2]Inputs!$D$24,[2]Inputs!$D$26)) -> 3.866827441 | E66: 102738 | F66: 397270.1176 | G66: 0.1100461 | H66: 43718.02709
B67: CARL ALLEN A 8 FT UN | C67: FORT UNION | D67: =IF(LEFT(B67,12)=[2]Inputs!$C$24,[2]Inputs!$D$24,IF(LEFT(B67,13)=[2]Inputs!$C$25,[2]Inputs!$D$24,[2]Inputs!$D$26)) -> 3.866827441 | E67: 43976 | F67: 170047.6035 | G67: 0.1100461 | H67: 18713.07558
B68: CARL ALLEN B 10 WAS | C68: WASATCH | D68: =IF(LEFT(B68,12)=[2]Inputs!$C$24,[2]Inputs!$D$24,IF(LEFT(B68,13)=[2]Inputs!$C$25,[2]Inputs!$D$24,[2]Inputs!$D$26)) -> 3.866827441 | E68: 3177 | F68: 12284.91078 | G68: 0.1100461 | H68: 1351.90652
B69: CARL ALLEN A 11 FT UN | C69: FORT UNION | D69: =IF(LEFT(B69,12)=[2]Inputs!$C$24,[2]Inputs!$D$24,IF(LEFT(B69,13)=[2]Inputs!$C$25,[2]Inputs!$D$24,[2]Inputs!$D$26)) -> 3.866827441 | E69: 13610 | F69: 52627.52147 | G69: 0.1100461 | H69: 5791.45349
B70: CARL ALLEN A 11 LOWER FT UN | C70: FORT UNION | D70: =IF(LEFT(B70,12)=[2]Inputs!$C$24,[2]Inputs!$D$24,IF(LEFT(B70,13)=[2]Inputs!$C$25,[2]Inputs!$D$24,[2]Inputs!$D$26)) -> 3.866827441 | E70: 287726 | F70: 1112586.792 | G70: 0.110046 | H70: 122435.7261
B71: CARL ALLEN B 15 WAS | C71: WASATCH | D71: =IF(LEFT(B71,12)=[2]Inputs!$C$24,[2]Inputs!$D$24,IF(LEFT(B71,13)=[2]Inputs!$C$25,[2]Inputs!$D$24,[2]Inputs!$D$26)) -> 3.866827441 | E71: 19690 | F71: 76137.83231 | G71: 0.1100461 | H71: 8378.671508
B72: CARL ALLEN B 17 WAS | C72: WASATCH | D72: =IF(LEFT(B72,12)=[2]Inputs!$C$24,[2]Inputs!$D$24,IF(LEFT(B72,13)=[2]Inputs!$C$25,[2]Inputs!$D$24,[2]Inputs!$D$26)) -> 3.866827441 | E72: 26343 | F72: 101863.8353 | G72: 0.1100461 | H72: 11209.7178
B73: CARL ALLEN A 19 FT UN | C73: FORT UNION | D73: =IF(LEFT(B73,12)=[2]Inputs!$C$24,[2]Inputs!$D$24,IF(LEFT(B73,13)=[2]Inputs!$C$25,[2]Inputs!$D$24,[2]Inputs!$D$26)) -> 3.866827441 | E73: 123167 | F73: 476265.5354 | G73: 0.1100461 | H73: 52411.16473
B74: CARL ALLEN A 20 FT UN | C74: FORT UNION | D74: =IF(LEFT(B74,12)=[2]Inputs!$C$24,[2]Inputs!$D$24,IF(LEFT(B74,13)=[2]Inputs!$C$25,[2]Inputs!$D$24,[2]Inputs!$D$26)) -> 3.866827441 | E74: 39473 | F74: 152635.2796 | G74: 0.1100461 | H74: 16796.91724
B75: BW MUSSER A 1 WAS | C75: WASATCH | D75: =IF(LEFT(B75,12)=[2]Inputs!$C$24,[2]Inputs!$D$24,IF(LEFT(B75,13)=[2]Inputs!$C$25,[2]Inputs!$D$24,[2]Inputs!$D$26)) -> 3.866827441 | E75: 10055 | F75: 38880.94992 | G75: 0.1100461 | H75: 4278.696902
B76: BW MUSSER B 21 FT UN | C76: FORT UNION | D76: =IF(LEFT(B76,12)=[2]Inputs!$C$24,[2]Inputs!$D$24,IF(LEFT(B76,13)=[2]Inputs!$C$25,[2]Inputs!$D$24,[2]Inputs!$D$26)) -> 3.866827441 | E76: 52556 | F76: 203224.983 | G76: 0.1100461 | H76: =F76*G76 -> 22364.1168
B77: BW MUSSER B 6 WAS | C77: WASATCH | D77: =IF(LEFT(B77,12)=[2]Inputs!$C$24,[2]Inputs!$D$24,IF(LEFT(B77,13)=[2]Inputs!$C$25,[2]Inputs!$D$24,[2]Inputs!$D$26)) -> 3.866827441 | E77: 26558 | F77: =D77*E77 -> 102695.2032 | G77: 0.1100461 | H77: 11301.2066
B78: BW MUSSER B 10 FT UN | C78: FORT UNION | D78: =IF(LEFT(B78,12)=[2]Inputs!$C$24,[2]Inputs!$D$24,IF(LEFT(B78,13)=[2]Inputs!$C$25,[2]Inputs!$D$24,[2]Inputs!$D$26)) -> 3.866827441 | E78: 25697 | F78: 99365.86474 | G78: 0.1100461 | H78: 10934.82589
B79: BW MUSSER B 11 FT UN | C79: FORT UNION | D79: =IF(LEFT(B79,12)=[2]Inputs!$C$24,[2]Inputs!$D$24,IF(LEFT(B79,13)=[2]Inputs!$C$25,[2]Inputs!$D$24,[2]Inputs!$D$26)) -> 3.866827441 | E79: 14919 | F79: 57689.19859 | G79: 0.1100461 | H79: 6348.471317
B80: JC DONNELL B 3 WAS | C80: WASATCH | D80: =IF(LEFT(B80,12)=[2]Inputs!$C$24,[2]Inputs!$D$24,IF(LEFT(B80,13)=[2]Inputs!$C$25,[2]Inputs!$D$24,[2]Inputs!$D$26)) -> 3.866827441 | E80: 67500 | F80: 261010.8522 | G80: 0.1100461 | H80: 28723.22635
B81: JC DONNELL B 5 FT UN | C81: FORT UNION | D81: =IF(LEFT(B81,12)=[2]Inputs!$C$24,[2]Inputs!$D$24,IF(LEFT(B81,13)=[2]Inputs!$C$25,[2]Inputs!$D$24,[2]Inputs!$D$26)) -> 3.866827441 | E81: 24454 | F81: 94559.39823 | G81: 0.1100461 | H81: 10405.89299
B82: JC DONNELL B 9 FT UN | C82: FORT UNION | D82: =IF(LEFT(B82,12)=[2]Inputs!$C$24,[2]Inputs!$D$24,IF(LEFT(B82,13)=[2]Inputs!$C$25,[2]Inputs!$D$24,[2]Inputs!$D$26)) -> 3.866827441 | E82: 23996 | F82: 92788.39127 | G82: 0.1100461 | H82: 10211.00058
B83: JC DONNELL B 10 FT UN | C83: FORT UNION | D83: =IF(LEFT(B83,12)=[2]Inputs!$C$24,[2]Inputs!$D$24,IF(LEFT(B83,13)=[2]Inputs!$C$25,[2]Inputs!$D$24,[2]Inputs!$D$26)) -> 3.866827441 | E83: 61145 | F83: 236437.1639 | G83: 0.1100461 | H83: 26018.98778
B84: H STEWART A 1 FT UN | C84: FORT UNION | D84: =IF(LEFT(B84,12)=[2]Inputs!$C$24,[2]Inputs!$D$24,IF(LEFT(B84,13)=[2]Inputs!$C$25,[2]Inputs!$D$24,[2]Inputs!$D$26)) -> 3.866827441 | E84: 16095 | F84: 62236.58766 | G84: 0.1100461 | H84: 6848.893749
B85: BW MUSSER B 13 FT UN | C85: FORT UNION | D85: =IF(LEFT(B85,12)=[2]Inputs!$C$24,[2]Inputs!$D$24,IF(LEFT(B85,13)=[2]Inputs!$C$25,[2]Inputs!$D$24,[2]Inputs!$D$26)) -> 3.866827441 | E85: 37361 | F85: 144468.54 | G85: 0.1100461 | H85: 15898.1994
B86: BW MUSSER A 14 FT UN | C86: FORT UNION | D86: =IF(LEFT(B86,12)=[2]Inputs!$C$24,[2]Inputs!$D$24,IF(LEFT(B86,13)=[2]Inputs!$C$25,[2]Inputs!$D$24,[2]Inputs!$D$26)) -> 3.866827441 | E86: 28814 | F86: 111418.7659 | G86: 0.1100461 | H86: 12261.20065
B87: BW MUSSER 15 UPPER FT UN | C87: FORT UNION | D87: =IF(LEFT(B87,12)=[2]Inputs!$C$24,[2]Inputs!$D$24,IF(LEFT(B87,13)=[2]Inputs!$C$25,[2]Inputs!$D$24,[2]Inputs!$D$26)) -> 3.866827441 | E87: 20201 | F87: 78113.78113 | G87: 0.1100461 | H87: 8596.116969
B88: BW MUSSER A 16 WAS | C88: WASATCH | D88: =IF(LEFT(B88,12)=[2]Inputs!$C$24,[2]Inputs!$D$24,IF(LEFT(B88,13)=[2]Inputs!$C$25,[2]Inputs!$D$24,[2]Inputs!$D$26)) -> 3.866827441 | E88: 104521 | F88: 404164.6709 | G88: 0.110046 | H88: 44476.70538
B89: BW MUSSER B 18 FT UN | C89: FORT UNION | D89: =IF(LEFT(B89,12)=[2]Inputs!$C$24,[2]Inputs!$D$24,IF(LEFT(B89,13)=[2]Inputs!$C$25,[2]Inputs!$D$24,[2]Inputs!$D$26)) -> 3.866827441 | E89: 80171 | F89: 310007.4227 | G89: 0.1100461 | H89: 34115.10784
B90: BW MUSSER B 19 FT UN | C90: FORT UNION | D90: =IF(LEFT(B90,12)=[2]Inputs!$C$24,[2]Inputs!$D$24,IF(LEFT(B90,13)=[2]Inputs!$C$25,[2]Inputs!$D$24,[2]Inputs!$D$26)) -> 3.866827441 | E90: 45647 | F90: 176509.0722 | G90: 0.1100461 | H90: 19424.13501
B91: BW MUSSER B 20 FT UN | C91: FORT UNION | D91: =IF(LEFT(B91,12)=[2]Inputs!$C$24,[2]Inputs!$D$24,IF(LEFT(B91,13)=[2]Inputs!$C$25,[2]Inputs!$D$24,[2]Inputs!$D$26)) -> 3.866827441 | E91: 10951 | F91: 42345.6273 | G91: 0.1100461 | H91: 4659.971137
B92: POWDER WASH GOVT 1 FT UN | C92: FORT UNION | D92: =IF(LEFT(B92,12)=[2]Inputs!$C$24,[2]Inputs!$D$24,IF(LEFT(B92,13)=[2]Inputs!$C$25,[2]Inputs!$D$24,[2]Inputs!$D$26)) -> 3.866827441 | E92: 13171 | F92: 50929.98422 | G92: 0.1100461 | H92: 5604.646137
B93: POWDER WASH GOVT 2 FT UN | C93: FORT UNION | D93: =IF(LEFT(B93,12)=[2]Inputs!$C$24,[2]Inputs!$D$24,IF(LEFT(B93,13)=[2]Inputs!$C$25,[2]Inputs!$D$24,[2]Inputs!$D$26)) -> 3.866827441 | E93: 3803 | F93: 14705.54476 | G93: 0.1100461 | H93: 1618.287849
B94: JC DONNELL A 11 FT UN | C94: FORT UNION | D94: =IF(LEFT(B94,12)=[2]Inputs!$C$24,[2]Inputs!$D$24,IF(LEFT(B94,13)=[2]Inputs!$C$25,[2]Inputs!$D$24,[2]Inputs!$D$26)) -> 3.866827441 | E94: 83780 | F94: 323962.803 | G94: 0.1100461 | H94: 35650.84301
B95: JC DONNELL B 12 FT UN | C95: FORT UNION | D95: =IF(LEFT(B95,12)=[2]Inputs!$C$24,[2]Inputs!$D$24,IF(LEFT(B95,13)=[2]Inputs!$C$25,[2]Inputs!$D$24,[2]Inputs!$D$26)) -> 3.866827441 | E95: 2246 | F95: 8684.894432 | G95: 0.1100461 | H95: 955.7387611
B96: JA LEE 1 FT UN | C96: FORT UNION | D96: =IF(LEFT(B96,12)=[2]Inputs!$C$24,[2]Inputs!$D$24,IF(LEFT(B96,13)=[2]Inputs!$C$25,[2]Inputs!$D$24,[2]Inputs!$D$26)) -> 3.866827441 | E96: 24024 | F96: 92896.66243 | G96: 0.1100461 | H96: 10222.9154
B97: JC DONNELL A 1 FT UN | C97: FORT UNION | D97: =IF(LEFT(B97,12)=[2]Inputs!$C$24,[2]Inputs!$D$24,IF(LEFT(B97,13)=[2]Inputs!$C$25,[2]Inputs!$D$24,[2]Inputs!$D$26)) -> 3.866827441 | E97: 20763 | F97: 80286.93815 | G97: 0.1100461 | H97: 8835.264424
B98: POWDER WASH 20-1 FT UN | C98: FORT UNION | D98: =IF(LEFT(B98,12)=[2]Inputs!$C$24,[2]Inputs!$D$24,IF(LEFT(B98,13)=[2]Inputs!$C$25,[2]Inputs!$D$24,[2]Inputs!$D$26)) -> 3.866827441 | E98: 105937 | F98: 409640.0986 | G98: 0.125 | H98: 51205.01232
B99: CARL ALLEN A 16 WAS | C99: WASATCH | D99: =IF(LEFT(B99,12)=[2]Inputs!$C$24,[2]Inputs!$D$24,IF(LEFT(B99,13)=[2]Inputs!$C$25,[2]Inputs!$D$24,[2]Inputs!$D$26)) -> 3.866827441 | E99: 22966 | F99: 88805.559 | G99: 0.1100461 | H99: 9772.705426
B100: H STEWART A 2 FT UN | C100: FORT UNION | D100: =IF(LEFT(B100,12)=[2]Inputs!$C$24,[2]Inputs!$D$24,IF(LEFT(B100,13)=[2]Inputs!$C$25,[2]Inputs!$D$24,[2]Inputs!$D$26)) -> 3.866827441 | E100: 152861 | F100: 591087.1094 | G100: 0.1100461 | H100: 65046.83115
B101: CARL ALLEN B 9 UPPER WAS | C101: WASATCH | D101: =IF(LEFT(B101,12)=[2]Inputs!$C$24,[2]Inputs!$D$24,IF(LEFT(B101,13)=[2]Inputs!$C$25,[2]Inputs!$D$24,[2]Inputs!$D$26)) -> 3.866827441 | E101: 12405 | F101: 47967.9944 | G101: 0.1100461 | H101: 5278.690709
B102: CARL ALLEN A 2 WAS | C102: WASATCH | D102: =IF(LEFT(B102,12)=[2]Inputs!$C$24,[2]Inputs!$D$24,IF(LEFT(B102,13)=[2]Inputs!$C$25,[2]Inputs!$D$24,[2]Inputs!$D$26)) -> 3.866827441 | E102: 32690 | F102: 126406.589 | G102: 0.1100461 | H102: 13910.55214
B103: BW MUSSER 22 FT UN | C103: FORT UNION | D103: =IF(LEFT(B103,12)=[2]Inputs!$C$24,[2]Inputs!$D$24,IF(LEFT(B103,13)=[2]Inputs!$C$25,[2]Inputs!$D$24,[2]Inputs!$D$26)) -> 3.866827441 | E103: 10063 | F103: 38911.88453 | G103: 0.1100461 | H103: 4282.101137
B104: CARL ALLEN 22 FT UN | C104: FORT UNION | D104: =IF(LEFT(B104,12)=[2]Inputs!$C$24,[2]Inputs!$D$24,IF(LEFT(B104,13)=[2]Inputs!$C$25,[2]Inputs!$D$24,[2]Inputs!$D$26)) -> 3.866827441 | E104: 330149 | F104: 1276629.213 | G104: 0.1100461 | H104: 140488.066
B105: JC DONNELL 14-29 FT UN | C105: FORT UNION | D105: =IF(LEFT(B105,12)=[2]Inputs!$C$24,[2]Inputs!$D$24,IF(LEFT(B105,13)=[2]Inputs!$C$25,[2]Inputs!$D$24,[2]Inputs!$D$26)) -> 3.866827441 | E105: 69334 | F105: 268102.6138 | G105: 0.1100461 | H105: 29503.64704
B106: CARL ALLEN 23 FT UN | C106: FORT UNION | D106: =IF(LEFT(B106,12)=[2]Inputs!$C$24,[2]Inputs!$D$24,IF(LEFT(B106,13)=[2]Inputs!$C$25,[2]Inputs!$D$24,[2]Inputs!$D$26)) -> 3.866827441 | E106: 66872 | F106: 258582.4846 | G106: 0.1100461 | H106: 28455.99396
B107: BW MUSSER 23 FT UN | C107: FORT UNION | D107: =IF(LEFT(B107,12)=[2]Inputs!$C$24,[2]Inputs!$D$24,IF(LEFT(B107,13)=[2]Inputs!$C$25,[2]Inputs!$D$24,[2]Inputs!$D$26)) -> 3.866827441 | E107: 153211 | F107: 592440.499 | G107: 0.1100461 | H107: 65195.7664
B108: BW MUSSER 24 FT UN | C108: FORT UNION | D108: =IF(LEFT(B108,12)=[2]Inputs!$C$24,[2]Inputs!$D$24,IF(LEFT(B108,13)=[2]Inputs!$C$25,[2]Inputs!$D$24,[2]Inputs!$D$26)) -> 3.866827441 | E108: 88861 | F108: 343610.1532 | G108: 0.1100461 | H108: 37812.95728
B109: CARL ALLEN 26 FT UN | C109: FORT UNION | D109: =IF(LEFT(B109,12)=[2]Inputs!$C$24,[2]Inputs!$D$24,IF(LEFT(B109,13)=[2]Inputs!$C$25,[2]Inputs!$D$24,[2]Inputs!$D$26)) -> 3.866827441 | E109: 90979 | F109: 351800.0937 | G109: 0.1100461 | H109: 38714.22829
B110: BW MUSSER 25 FT UN | C110: FORT UNION | D110: =IF(LEFT(B110,12)=[2]Inputs!$C$24,[2]Inputs!$D$24,IF(LEFT(B110,13)=[2]Inputs!$C$25,[2]Inputs!$D$24,[2]Inputs!$D$26)) -> 3.866827441 | E110: 242137 | F110: 936301.996 | G110: 0.1100461 | H110: 103036.3831
B111: CARL ALLEN 25 FT UN | C111: WASATCH | D111: =IF(LEFT(B111,12)=[2]Inputs!$C$24,[2]Inputs!$D$24,IF(LEFT(B111,13)=[2]Inputs!$C$25,[2]Inputs!$D$24,[2]Inputs!$D$26)) -> 3.866827441 | E111: 234955 | F111: 908530.4413 | G111: 0.1100461 | H111: 99980.2318
B112: H STEWART 5 FT UN | C112: FORT UNION | D112: =IF(LEFT(B112,12)=[2]Inputs!$C$24,[2]Inputs!$D$24,IF(LEFT(B112,13)=[2]Inputs!$C$25,[2]Inputs!$D$24,[2]Inputs!$D$26)) -> 3.866827441 | E112: 232320 | F112: 898341.351 | G112: 0.1100461 | H112: 98858.96215
B113: CARL ALLEN 27 FT UN | C113: FORT UNION | D113: =IF(LEFT(B113,12)=[2]Inputs!$C$24,[2]Inputs!$D$24,IF(LEFT(B113,13)=[2]Inputs!$C$25,[2]Inputs!$D$24,[2]Inputs!$D$26)) -> 3.866827441 | E113: 128494 | F113: 496864.1252 | G113: 0.110046 | H113: 54677.90952
B114: CARL ALLEN 28 FT UN | C114: FORT UNION | D114: =IF(LEFT(B114,12)=[2]Inputs!$C$24,[2]Inputs!$D$24,IF(LEFT(B114,13)=[2]Inputs!$C$25,[2]Inputs!$D$24,[2]Inputs!$D$26)) -> 3.866827441 | E114: 162348 | F114: 627771.7013 | G114: 0.110046 | H114: 69083.76464
B115: CARL ALLEN 29 FT UN | C115: FORT UNION | D115: =IF(LEFT(B115,12)=[2]Inputs!$C$24,[2]Inputs!$D$24,IF(LEFT(B115,13)=[2]Inputs!$C$25,[2]Inputs!$D$24,[2]Inputs!$D$26)) -> 3.866827441 | E115: 202491 | F115: 782997.7553 | G115: 0.110046 | H115: 86165.77098
B116: BW MUSSER 27 FT UN | C116: FORT UNION | D116: =IF(LEFT(B116,12)=[2]Inputs!$C$24,[2]Inputs!$D$24,IF(LEFT(B116,13)=[2]Inputs!$C$25,[2]Inputs!$D$24,[2]Inputs!$D$26)) -> 3.866827441 | E116: 280417 | F116: 1084324.15 | G116: 0.110046 | H116: 119325.5355
B117: JC DONNELL 14 FT UN | C117: FORT UNION | D117: =IF(LEFT(B117,12)=[2]Inputs!$C$24,[2]Inputs!$D$24,IF(LEFT(B117,13)=[2]Inputs!$C$25,[2]Inputs!$D$24,[2]Inputs!$D$26)) -> 3.866827441 | E117: 45264 | F117: 175028.0773 | G117: 0.110046 | H117: 19261.13979
B118: JC DONNELL 15 FT UN | C118: FORT UNION | D118: =IF(LEFT(B118,12)=[2]Inputs!$C$24,[2]Inputs!$D$24,IF(LEFT(B118,13)=[2]Inputs!$C$25,[2]Inputs!$D$24,[2]Inputs!$D$26)) -> 3.866827441 | E118: 117800 | F118: 455512.2725 | G118: 0.110046 | H118: 50127.30354
B119: JC DONNELL 16 FT UN | C119: FORT UNION | D119: =IF(LEFT(B119,12)=[2]Inputs!$C$24,[2]Inputs!$D$24,IF(LEFT(B119,13)=[2]Inputs!$C$25,[2]Inputs!$D$24,[2]Inputs!$D$26)) -> 3.866827441 | E119: 173440 | F119: 670662.5513 | G119: 0.110046 | H119: 73803.73112
B120: BW MUSSER 28 FT UN | C120: FORT UNION | D120: =IF(LEFT(B120,12)=[2]Inputs!$C$24,[2]Inputs!$D$24,IF(LEFT(B120,13)=[2]Inputs!$C$25,[2]Inputs!$D$24,[2]Inputs!$D$26)) -> 3.866827441 | E120: 20783 | F120: 80364.2747 | G120: 0.110046 | H120: 8843.766973
B121: BW MUSSER 29 FT UN | C121: FORT UNION | D121: =IF(LEFT(B121,12)=[2]Inputs!$C$24,[2]Inputs!$D$24,IF(LEFT(B121,13)=[2]Inputs!$C$25,[2]Inputs!$D$24,[2]Inputs!$D$26)) -> 3.866827441 | E121: 226565 | F121: 876087.7591 | G121: 0.110046 | H121: 96409.95354
B122: BW MUSSER 26R FT UN | C122: FORT UNION | D122: =IF(LEFT(B122,12)=[2]Inputs!$C$24,[2]Inputs!$D$24,IF(LEFT(B122,13)=[2]Inputs!$C$25,[2]Inputs!$D$24,[2]Inputs!$D$26)) -> 3.866827441 | E122: 154573 | F122: 597707.118 | G122: 0.1100461 | H122: 65775.33728
B123: CARL ALLEN 30 FT UN | C123: FORT UNION | D123: =IF(LEFT(B123,12)=[2]Inputs!$C$24,[2]Inputs!$D$24,IF(LEFT(B123,13)=[2]Inputs!$C$25,[2]Inputs!$D$24,[2]Inputs!$D$26)) -> 3.866827441 | E123: 285612 | F123: 1104412.319 | G123: 0.110046 | H123: 121536.1581
B124: CARL ALLEN 31 FT UN | C124: FORT UNION | D124: =IF(LEFT(B124,12)=[2]Inputs!$C$24,[2]Inputs!$D$24,IF(LEFT(B124,13)=[2]Inputs!$C$25,[2]Inputs!$D$24,[2]Inputs!$D$26)) -> 3.866827441 | E124: 558350 | F124: 2159043.101 | G124: 0.110046 | H124: 237594.0571
B125: CARL ALLEN 32 FT UN | C125: FORT UNION | D125: =IF(LEFT(B125,12)=[2]Inputs!$C$24,[2]Inputs!$D$24,IF(LEFT(B125,13)=[2]Inputs!$C$25,[2]Inputs!$D$24,[2]Inputs!$D$26)) -> 3.866827441 | E125: 297607 | F125: 1150794.914 | G125: 0.110046 | H125: 126640.3771
B126: CARL ALLEN 33 FT UN | C126: FORT UNION | D126: =IF(LEFT(B126,12)=[2]Inputs!$C$24,[2]Inputs!$D$24,IF(LEFT(B126,13)=[2]Inputs!$C$25,[2]Inputs!$D$24,[2]Inputs!$D$26)) -> 3.866827441 | E126: 37018 | F126: 143142.2182 | G126: 0.110046 | H126: 15752.22854
B127: CARL ALLEN 34 FT UN | C127: FORT UNION | D127: =IF(LEFT(B127,12)=[2]Inputs!$C$24,[2]Inputs!$D$24,IF(LEFT(B127,13)=[2]Inputs!$C$25,[2]Inputs!$D$24,[2]Inputs!$D$26)) -> 3.866827441 | E127: 377411 | F127: 1459383.211 | G127: 0.110046 | H127: 160599.2849
B128: JC DONNELL 18 FT UN | C128: FORT UNION | D128: =IF(LEFT(B128,12)=[2]Inputs!$C$24,[2]Inputs!$D$24,IF(LEFT(B128,13)=[2]Inputs!$C$25,[2]Inputs!$D$24,[2]Inputs!$D$26)) -> 3.866827441 | E128: 71276 | F128: 275611.9927 | G128: 0.110046 | H128: 30329.99734
B129: BW MUSSER 32 FT UN | C129: FORT UNION | D129: =IF(LEFT(B129,12)=[2]Inputs!$C$24,[2]Inputs!$D$24,IF(LEFT(B129,13)=[2]Inputs!$C$25,[2]Inputs!$D$24,[2]Inputs!$D$26)) -> 3.866827441 | E129: 264155 | F129: 1021441.803 | G129: 0.110046 | H129: 112405.5846
B130: STEWART 6 FT UN | C130: FORT UNION | D130: =IF(LEFT(B130,12)=[2]Inputs!$C$24,[2]Inputs!$D$24,IF(LEFT(B130,13)=[2]Inputs!$C$25,[2]Inputs!$D$24,[2]Inputs!$D$26)) -> 3.866827441 | E130: 246321 | F130: 952480.802 | G130: 0.110046 | H130: 104816.7023
B131: BW MUSSER 36 FT UN | C131: FORT UNION | D131: =IF(LEFT(B131,12)=[2]Inputs!$C$24,[2]Inputs!$D$24,IF(LEFT(B131,13)=[2]Inputs!$C$25,[2]Inputs!$D$24,[2]Inputs!$D$26)) -> 3.866827441 | E131: 340043 | F131: 1314887.603 | G131: 0.110046 | H131: 144698.1212
B132: BW MUSSER 37 FT UN | C132: FORT UNION | D132: =IF(LEFT(B132,12)=[2]Inputs!$C$24,[2]Inputs!$D$24,IF(LEFT(B132,13)=[2]Inputs!$C$25,[2]Inputs!$D$24,[2]Inputs!$D$26)) -> 3.866827441 | E132: 279867 | F132: 1082197.395 | G132: 0.110046 | H132: 119091.4946
B133: CARL ALLEN 35 FT UN | C133: FORT UNION | D133: =IF(LEFT(B133,12)=[2]Inputs!$C$24,[2]Inputs!$D$24,IF(LEFT(B133,13)=[2]Inputs!$C$25,[2]Inputs!$D$24,[2]Inputs!$D$26)) -> 3.866827441 | E133: 305461 | F133: 1181164.977 | G133: 0.110046 | H133: 129982.481
B134: CARL ALLEN 36 FT UN | C134: FORT UNION | D134: =IF(LEFT(B134,12)=[2]Inputs!$C$24,[2]Inputs!$D$24,IF(LEFT(B134,13)=[2]Inputs!$C$25,[2]Inputs!$D$24,[2]Inputs!$D$26)) -> 3.866827441 | E134: 430783 | F134: 1665763.525 | G134: 0.110046 | H134: 183310.6129
B135: CARL ALLEN A 14 WAS | C135: WASATCH | D135: =IF(LEFT(B135,12)=[2]Inputs!$C$24,[2]Inputs!$D$24,IF(LEFT(B135,13)=[2]Inputs!$C$25,[2]Inputs!$D$24,[2]Inputs!$D$26)) -> 3.866827441 | E135: 52 | F135: 201.0750269 | G135: 0.1100461 | H135: 22.12752252
B136: BW MUSSER 35 FT UN | C136: FORT UNION | D136: =IF(LEFT(B136,12)=[2]Inputs!$C$24,[2]Inputs!$D$24,IF(LEFT(B136,13)=[2]Inputs!$C$25,[2]Inputs!$D$24,[2]Inputs!$D$26)) -> 3.866827441 | E136: 20066 | F136: 77591.75942 | G136: 0.110046 | H136: 8538.662758
B137: BW MUSSER 35 LANCE | C137: LANCE | D137: =IF(LEFT(B137,12)=[2]Inputs!$C$24,[2]Inputs!$D$24,IF(LEFT(B137,13)=[2]Inputs!$C$25,[2]Inputs!$D$24,[2]Inputs!$D$26)) -> 3.866827441 | E137: 621 | F137: 2401.299841 | G137: 0.12 | H137: 288.1559809
B138: BW MUSSER 72 FT UN | C138: FORT UNION | D138: =IF(LEFT(B138,12)=[2]Inputs!$C$24,[2]Inputs!$D$24,IF(LEFT(B138,13)=[2]Inputs!$C$25,[2]Inputs!$D$24,[2]Inputs!$D$26)) -> 3.866827441 | E138: 7119 | F138: 27527.94455 | G138: 0.110046 | H138: 3029.340186
B139: BW MUSSER 72 LANCE | C139: LANCE | D139: =IF(LEFT(B139,12)=[2]Inputs!$C$24,[2]Inputs!$D$24,IF(LEFT(B139,13)=[2]Inputs!$C$25,[2]Inputs!$D$24,[2]Inputs!$D$26)) -> 3.866827441 | E139: 454 | F139: 1755.539658 | G139: 0.12 | H139: 210.664759
B140: BW MUSSER 73 FT UN | C140: FORT UNION | D140: =IF(LEFT(B140,12)=[2]Inputs!$C$24,[2]Inputs!$D$24,IF(LEFT(B140,13)=[2]Inputs!$C$25,[2]Inputs!$D$24,[2]Inputs!$D$26)) -> 3.866827441 | E140: 2185 | F140: 8449.017958 | G140: 0.110046 | H140: =F140*G140 -> 929.7806302
B141: BW MUSSER 73 LANCE | C141: LANCE | D141: =IF(LEFT(B141,12)=[2]Inputs!$C$24,[2]Inputs!$D$24,IF(LEFT(B141,13)=[2]Inputs!$C$25,[2]Inputs!$D$24,[2]Inputs!$D$26)) -> 3.866827441 | E141: 2185 | F141: =D141*E141 -> 8449.017958 | G141: 0.12 | H141: 1013.882155
A142: RABBIT MTN (CO) | B142: MF FEDERAL 8-1 MANCOS B | C142: MANCOS B | D142: =IF(LEFT(B142,12)=[2]Inputs!$C$24,[2]Inputs!$D$24,IF(LEFT(B142,13)=[2]Inputs!$C$25,[2]Inputs!$D$24,[2]Inputs!$D$26)) -> 3.866827441 | E142: 37486 | F142: 144951.8934 | G142: 0.155 | H142: 22467.54348
B143: RABBIT MTN FED 7-1 MANCOS B | C143: MANCOS B | D143: =IF(LEFT(B143,12)=[2]Inputs!$C$24,[2]Inputs!$D$24,IF(LEFT(B143,13)=[2]Inputs!$C$25,[2]Inputs!$D$24,[2]Inputs!$D$26)) -> 3.866827441 | E143: 42531 | F143: 164460.0379 | G143: 0.125 | H143: 20557.50473
A144: SUGAR LOAF (CO) | B144: SUGARLOAF GOVT 1 MESA | C144: MESAVERDE | D144: =IF(LEFT(B144,12)=[2]Inputs!$C$24,[2]Inputs!$D$24,IF(LEFT(B144,13)=[2]Inputs!$C$25,[2]Inputs!$D$24,[2]Inputs!$D$26)) -> 3.866827441 | E144: 65386 | F144: 252836.379 | G144: 0.13375 | H144: 33816.8657
B145: SUGARLOAF GOVT 2 MESA | C145: MESAVERDE | D145: =IF(LEFT(B145,12)=[2]Inputs!$C$24,[2]Inputs!$D$24,IF(LEFT(B145,13)=[2]Inputs!$C$25,[2]Inputs!$D$24,[2]Inputs!$D$26)) -> 3.866827441 | E145: 92321 | F145: 356989.3761 | G145: 0.13375 | H145: 47747.32906
B146: SUGARLOAF GOVT 3 FT UN | C146: FORT UNION | D146: =IF(LEFT(B146,12)=[2]Inputs!$C$24,[2]Inputs!$D$24,IF(LEFT(B146,13)=[2]Inputs!$C$25,[2]Inputs!$D$24,[2]Inputs!$D$26)) -> 3.866827441 | E146: 48364 | F146: 187015.2423 | G146: 0.13375 | H146: 25013.28866
B147: SUGARLOAF GOVT 4 MESA | C147: MESAVERDE | D147: =IF(LEFT(B147,12)=[2]Inputs!$C$24,[2]Inputs!$D$24,IF(LEFT(B147,13)=[2]Inputs!$C$25,[2]Inputs!$D$24,[2]Inputs!$D$26)) -> 3.866827441 | E147: 11650 | F147: 45048.53968 | G147: 0.13375 | H147: 6025.242183
B148: SUGARLOAF GOVT 6 MESA | C148: MESAVERDE | D148: =IF(LEFT(B148,12)=[2]Inputs!$C$24,[2]Inputs!$D$24,IF(LEFT(B148,13)=[2]Inputs!$C$25,[2]Inputs!$D$24,[2]Inputs!$D$26)) -> 3.866827441 | E148: 45220 | F148: 174857.9369 | G148: 0.13375 | H148: 23387.24906
B149: SUGARLOAF GOVT 8 MESA | C149: MESAVERDE | D149: =IF(LEFT(B149,12)=[2]Inputs!$C$24,[2]Inputs!$D$24,IF(LEFT(B149,13)=[2]Inputs!$C$25,[2]Inputs!$D$24,[2]Inputs!$D$26)) -> 3.866827441 | E149: 14885 | F149: 57557.72645 | G149: 0.13375 | H149: 7698.345913
B150: SUGARLOAF GOVT 10 MESA | C150: MESAVERDE | D150: =IF(LEFT(B150,12)=[2]Inputs!$C$24,[2]Inputs!$D$24,IF(LEFT(B150,13)=[2]Inputs!$C$25,[2]Inputs!$D$24,[2]Inputs!$D$26)) -> 3.866827441 | E150: 98486 | F150: 380828.3673 | G150: 0.13375 | H150: 50935.79413
B151: SUGARLOAF GOVT 12 MESA | C151: MESAVERDE | D151: =IF(LEFT(B151,12)=[2]Inputs!$C$24,[2]Inputs!$D$24,IF(LEFT(B151,13)=[2]Inputs!$C$25,[2]Inputs!$D$24,[2]Inputs!$D$26)) -> 3.866827441 | E151: 2522 | F151: 9752.138805 | G151: 0.13375 | H151: 1304.348565
B152: SUGARLOAF GOVT 14 MESA | C152: MESAVERDE | D152: =IF(LEFT(B152,12)=[2]Inputs!$C$24,[2]Inputs!$D$24,IF(LEFT(B152,13)=[2]Inputs!$C$25,[2]Inputs!$D$24,[2]Inputs!$D$26)) -> 3.866827441 | E152: 11601 | F152: 44859.06514 | G152: 0.13375 | H152: 5999.899962
B153: SUGARLOAF GOVT 15 MESA | C153: MESAVERDE | D153: =IF(LEFT(B153,12)=[2]Inputs!$C$24,[2]Inputs!$D$24,IF(LEFT(B153,13)=[2]Inputs!$C$25,[2]Inputs!$D$24,[2]Inputs!$D$26)) -> 3.866827441 | E153: 39593 | F153: 153099.2989 | G153: 0.13375 | H153: 20477.03122
B154: SUGARLOAF GOVT 17 ALMOND | C154: ALMOND | D154: =IF(LEFT(B154,12)=[2]Inputs!$C$24,[2]Inputs!$D$24,IF(LEFT(B154,13)=[2]Inputs!$C$25,[2]Inputs!$D$24,[2]Inputs!$D$26)) -> 3.866827441 | E154: 216680 | F154: 837864.1698 | G154: 0.20375 | H154: 170714.8246
A155: W HIAW (CO) | B155: WB LASHER A 2 WAS | C155: WASATCH | D155: =IF(LEFT(B155,12)=[2]Inputs!$C$24,[2]Inputs!$D$24,IF(LEFT(B155,13)=[2]Inputs!$C$25,[2]Inputs!$D$24,[2]Inputs!$D$26)) -> 3.866827441 | E155: 23279 | F155: 90015.87599 | G155: 0.1925 | H155: 17328.05613
B156: WB LASHER A 4 FT UN | C156: FORT UNION | D156: =IF(LEFT(B156,12)=[2]Inputs!$C$24,[2]Inputs!$D$24,IF(LEFT(B156,13)=[2]Inputs!$C$25,[2]Inputs!$D$24,[2]Inputs!$D$26)) -> 3.866827441 | E156: 57513 | F156: 222392.8466 | G156: 0.1925 | H156: 42810.62297
B157: WM WHEELER A 2 WAS | C157: WASATCH | D157: =IF(LEFT(B157,12)=[2]Inputs!$C$24,[2]Inputs!$D$24,IF(LEFT(B157,13)=[2]Inputs!$C$25,[2]Inputs!$D$24,[2]Inputs!$D$26)) -> 3.866827441 | E157: 36790 | F157: 142260.5815 | G157: 0.1925 | H157: 27385.16195
B158: WM WHEELER A 2 FT UN | C158: FORT UNION | D158: =IF(LEFT(B158,12)=[2]Inputs!$C$24,[2]Inputs!$D$24,IF(LEFT(B158,13)=[2]Inputs!$C$25,[2]Inputs!$D$24,[2]Inputs!$D$26)) -> 3.866827441 | E158: 26920 | F158: 104094.9947 | G158: 0.1925 | H158: 20038.28648
B159: WM WHEELER A 3 FT UN | C159: FORT UNION | D159: =IF(LEFT(B159,12)=[2]Inputs!$C$24,[2]Inputs!$D$24,IF(LEFT(B159,13)=[2]Inputs!$C$25,[2]Inputs!$D$24,[2]Inputs!$D$26)) -> 3.866827441 | E159: 40807 | F159: 157793.6274 | G159: 0.1925 | H159: 30375.27327
B160: WB LASHER A 5 FT UN | C160: FORT UNION | D160: =IF(LEFT(B160,12)=[2]Inputs!$C$24,[2]Inputs!$D$24,IF(LEFT(B160,13)=[2]Inputs!$C$25,[2]Inputs!$D$24,[2]Inputs!$D$26)) -> 3.866827441 | E160: 20553 | F160: 79474.90439 | G160: 0.1840625 | H160: 14628.34959
B161: WB LASHER A 6 LEW/LNC/FT UN | C161: LANCE/LEWIS | D161: =IF(LEFT(B161,12)=[2]Inputs!$C$24,[2]Inputs!$D$24,IF(LEFT(B161,13)=[2]Inputs!$C$25,[2]Inputs!$D$24,[2]Inputs!$D$26)) -> 3.866827441 | E161: 84805 | F161: 327926.3011 | G161: 0.1925 | H161: 63125.81296
B162: WM WHEELER A 4 LEW/LNC/FT UN | C162: LANCE/LEWIS | D162: =IF(LEFT(B162,12)=[2]Inputs!$C$24,[2]Inputs!$D$24,IF(LEFT(B162,13)=[2]Inputs!$C$25,[2]Inputs!$D$24,[2]Inputs!$D$26)) -> 3.866827441 | E162: 107533 | F162: 415811.5552 | G162: 0.1925 | H162: 80043.72437
B163: LASHER 7 LEWIS | C163: LEWIS | D163: =IF(LEFT(B163,12)=[2]Inputs!$C$24,[2]Inputs!$D$24,IF(LEFT(B163,13)=[2]Inputs!$C$25,[2]Inputs!$D$24,[2]Inputs!$D$26)) -> 3.866827441 | E163: 126454 | F163: 488975.7972 | G163: 0.1925 | H163: 94127.84096
B164: LASHER 8 LEWIS | C164: LEWIS | D164: =IF(LEFT(B164,12)=[2]Inputs!$C$24,[2]Inputs!$D$24,IF(LEFT(B164,13)=[2]Inputs!$C$25,[2]Inputs!$D$24,[2]Inputs!$D$26)) -> 3.866827441 | E164: 31246 | F164: 120822.8902 | G164: 0.1840625 | H164: 22238.96323
B165: LASHER 9 LEWIS | C165: LEWIS | D165: =IF(LEFT(B165,12)=[2]Inputs!$C$24,[2]Inputs!$D$24,IF(LEFT(B165,13)=[2]Inputs!$C$25,[2]Inputs!$D$24,[2]Inputs!$D$26)) -> 3.866827441 | E165: 60426 | F165: 233656.9149 | G165: 0.1840625 | H165: 43007.4759
B166: LASHER 10 MESA | C166: MESAVERDE | D166: =IF(LEFT(B166,12)=[2]Inputs!$C$24,[2]Inputs!$D$24,IF(LEFT(B166,13)=[2]Inputs!$C$25,[2]Inputs!$D$24,[2]Inputs!$D$26)) -> 3.866827441 | E166: 13857 | F166: 53582.62784 | G166: 0.2540625 | H166: 13613.33639
B167: LASHER 10 FT UN | C167: FORT UNION | D167: =IF(LEFT(B167,12)=[2]Inputs!$C$24,[2]Inputs!$D$24,IF(LEFT(B167,13)=[2]Inputs!$C$25,[2]Inputs!$D$24,[2]Inputs!$D$26)) -> 3.866827441 | E167: 13451 | F167: 52012.6959 | G167: 0.1840625 | H167: 9573.58684
B168: LASHER 10 LEWIS | C168: LEWIS | D168: =IF(LEFT(B168,12)=[2]Inputs!$C$24,[2]Inputs!$D$24,IF(LEFT(B168,13)=[2]Inputs!$C$25,[2]Inputs!$D$24,[2]Inputs!$D$26)) -> 3.866827441 | E168: 13451 | F168: 52012.6959 | G168: 0.1840625 | H168: 9573.58684
B169: LASHER 11 MESA | C169: MESAVERDE | D169: =IF(LEFT(B169,12)=[2]Inputs!$C$24,[2]Inputs!$D$24,IF(LEFT(B169,13)=[2]Inputs!$C$25,[2]Inputs!$D$24,[2]Inputs!$D$26)) -> 3.866827441 | E169: 37706 | F169: 145802.5955 | G169: 0.2540625 | H169: 37042.97191
B170: LASHER 11 FT UN | C170: FORT UNION | D170: =IF(LEFT(B170,12)=[2]Inputs!$C$24,[2]Inputs!$D$24,IF(LEFT(B170,13)=[2]Inputs!$C$25,[2]Inputs!$D$24,[2]Inputs!$D$26)) -> 3.866827441 | E170: 37714 | F170: 145833.5301 | G170: 0.1840625 | H170: 26842.48413
B171: LASHER 11 LEWIS | C171: LEWIS | D171: =IF(LEFT(B171,12)=[2]Inputs!$C$24,[2]Inputs!$D$24,IF(LEFT(B171,13)=[2]Inputs!$C$25,[2]Inputs!$D$24,[2]Inputs!$D$26)) -> 3.866827441 | E171: 37714 | F171: 145833.5301 | G171: 0.1840625 | H171: 26842.48413
B172: LASHER 11 LANCE | C172: LANCE | D172: =IF(LEFT(B172,12)=[2]Inputs!$C$24,[2]Inputs!$D$24,IF(LEFT(B172,13)=[2]Inputs!$C$25,[2]Inputs!$D$24,[2]Inputs!$D$26)) -> 3.866827441 | E172: 37714 | F172: 145833.5301 | G172: 0.1840625 | H172: 26842.48413
B173: LASHER 12 MESA | C173: MESAVERDE | D173: =IF(LEFT(B173,12)=[2]Inputs!$C$24,[2]Inputs!$D$24,IF(LEFT(B173,13)=[2]Inputs!$C$25,[2]Inputs!$D$24,[2]Inputs!$D$26)) -> 3.866827441 | E173: 21849 | F173: 84486.31275 | G173: 0.2540625 | H173: 21464.80383
B174: LASHER 12 FT UN | C174: FORT UNION | D174: =IF(LEFT(B174,12)=[2]Inputs!$C$24,[2]Inputs!$D$24,IF(LEFT(B174,13)=[2]Inputs!$C$25,[2]Inputs!$D$24,[2]Inputs!$D$26)) -> 3.866827441 | E174: 21850 | F174: 84490.17958 | G174: 0.1840625 | H174: 15551.47368
B175: LASHER 12 LEWIS | C175: LEWIS | D175: =IF(LEFT(B175,12)=[2]Inputs!$C$24,[2]Inputs!$D$24,IF(LEFT(B175,13)=[2]Inputs!$C$25,[2]Inputs!$D$24,[2]Inputs!$D$26)) -> 3.866827441 | E175: 21850 | F175: 84490.17958 | G175: 0.1840625 | H175: 15551.47368
B176: LASHER 12 LANCE | C176: LANCE | D176: =IF(LEFT(B176,12)=[2]Inputs!$C$24,[2]Inputs!$D$24,IF(LEFT(B176,13)=[2]Inputs!$C$25,[2]Inputs!$D$24,[2]Inputs!$D$26)) -> 3.866827441 | E176: 21850 | F176: 84490.17958 | G176: 0.1840625 | H176: 15551.47368
B177: WHEELER 6 MESA | C177: MESAVERDE | D177: =IF(LEFT(B177,12)=[2]Inputs!$C$24,[2]Inputs!$D$24,IF(LEFT(B177,13)=[2]Inputs!$C$25,[2]Inputs!$D$24,[2]Inputs!$D$26)) -> 3.866827441 | E177: 27449 | F177: 106140.5464 | G177: 0.2625 | H177: 27861.89343
B178: WHEELER 6 LEW/LAN/FT UN | C178: LANCE/LEWIS | D178: =IF(LEFT(B178,12)=[2]Inputs!$C$24,[2]Inputs!$D$24,IF(LEFT(B178,13)=[2]Inputs!$C$25,[2]Inputs!$D$24,[2]Inputs!$D$26)) -> 3.866827441 | E178: 38064 | F178: 147186.9197 | G178: 0.1925 | H178: 28333.48204
B179: WHEELER 5 MESA | C179: MESAVERDE | D179: =IF(LEFT(B179,12)=[2]Inputs!$C$24,[2]Inputs!$D$24,IF(LEFT(B179,13)=[2]Inputs!$C$25,[2]Inputs!$D$24,[2]Inputs!$D$26)) -> 3.866827441 | E179: 4184 | F179: 16178.80601 | G179: 0.2625 | H179: 4246.936578
B180: WHEELER 5 LEW/LAN/FT UN | C180: LANCE/LEWIS | D180: =IF(LEFT(B180,12)=[2]Inputs!$C$24,[2]Inputs!$D$24,IF(LEFT(B180,13)=[2]Inputs!$C$25,[2]Inputs!$D$24,[2]Inputs!$D$26)) -> 3.866827441 | E180: 88787 | F180: 343324.008 | G180: 0.1925 | H180: 66089.87153
B181: WHEELER 7 MESA | C181: MESAVERDE | D181: =IF(LEFT(B181,12)=[2]Inputs!$C$24,[2]Inputs!$D$24,IF(LEFT(B181,13)=[2]Inputs!$C$25,[2]Inputs!$D$24,[2]Inputs!$D$26)) -> 3.866827441 | E181: 9638 | F181: 37268.48287 | G181: 0.2625 | H181: 9782.976754
B182: WHEELER 7 LEW/LAN/FT UN | C182: LANCE/LEWIS | D182: =IF(LEFT(B182,12)=[2]Inputs!$C$24,[2]Inputs!$D$24,IF(LEFT(B182,13)=[2]Inputs!$C$25,[2]Inputs!$D$24,[2]Inputs!$D$26)) -> 3.866827441 | E182: 21855 | F182: 84509.51371 | G182: 0.1925 | H182: 16268.08139
B183: WHEELER 8 MESA | C183: MESAVERDE | D183: =IF(LEFT(B183,12)=[2]Inputs!$C$24,[2]Inputs!$D$24,IF(LEFT(B183,13)=[2]Inputs!$C$25,[2]Inputs!$D$24,[2]Inputs!$D$26)) -> 3.866827441 | E183: 827 | F183: 3197.866293 | G183: 0.2625 | H183: 839.439902
B184: WHEELER 8 LEW/LAN/FT UN | C184: LANCE/LEWIS | D184: =IF(LEFT(B184,12)=[2]Inputs!$C$24,[2]Inputs!$D$24,IF(LEFT(B184,13)=[2]Inputs!$C$25,[2]Inputs!$D$24,[2]Inputs!$D$26)) -> 3.866827441 | E184: 8374 | F184: 32380.81299 | G184: 0.1925 | H184: 6233.3065
B185: WHEELER 9 MESA | C185: MESAVERDE | D185: =IF(LEFT(B185,12)=[2]Inputs!$C$24,[2]Inputs!$D$24,IF(LEFT(B185,13)=[2]Inputs!$C$25,[2]Inputs!$D$24,[2]Inputs!$D$26)) -> 3.866827441 | E185: 9458 | F185: 36572.45393 | G185: 0.2625 | H185: 9600.269158
B186: WHEELER 9 LEW/LAN/FT UN | C186: LANCE/LEWIS | D186: =IF(LEFT(B186,12)=[2]Inputs!$C$24,[2]Inputs!$D$24,IF(LEFT(B186,13)=[2]Inputs!$C$25,[2]Inputs!$D$24,[2]Inputs!$D$26)) -> 3.866827441 | E186: 83268 | F186: 321982.9873 | G186: 0.1925 | H186: 61981.72506
A187: CLAY BASIN (UT) | B187: CLAY BASIN UNIT 7 FR | C187: FRONTIER | D187: =IF(LEFT(B187,12)=[2]Inputs!$C$24,[2]Inputs!$D$24,IF(LEFT(B187,13)=[2]Inputs!$C$25,[2]Inputs!$D$24,[2]Inputs!$D$26)) -> 3.866827441 | E187: 20765 | F187: 80294.6718 | G187: 0.1549177 | H187: 12439.06588
B188: CLAY BASIN UNIT 8 FR | C188: FRONTIER | D188: =IF(LEFT(B188,12)=[2]Inputs!$C$24,[2]Inputs!$D$24,IF(LEFT(B188,13)=[2]Inputs!$C$25,[2]Inputs!$D$24,[2]Inputs!$D$26)) -> 3.866827441 | E188: 35653 | F188: 137863.9987 | G188: 0.1549177 | H188: 21357.5736
B189: CLAY BASIN UNIT 9 FR | C189: FRONTIER | D189: =IF(LEFT(B189,12)=[2]Inputs!$C$24,[2]Inputs!$D$24,IF(LEFT(B189,13)=[2]Inputs!$C$25,[2]Inputs!$D$24,[2]Inputs!$D$26)) -> 3.866827441 | E189: 22515 | F189: 87061.61983 | G189: 0.1549177 | H189: 13487.3859
B190: CLAY BASIN UNIT 12 FR | C190: FRONTIER | D190: =IF(LEFT(B190,12)=[2]Inputs!$C$24,[2]Inputs!$D$24,IF(LEFT(B190,13)=[2]Inputs!$C$25,[2]Inputs!$D$24,[2]Inputs!$D$26)) -> 3.866827441 | E190: 41912 | F190: 162066.4717 | G190: 0.1549177 | H190: 25106.96504
B191: CLAY BASIN UNIT 13 FR | C191: FRONTIER | D191: =IF(LEFT(B191,12)=[2]Inputs!$C$24,[2]Inputs!$D$24,IF(LEFT(B191,13)=[2]Inputs!$C$25,[2]Inputs!$D$24,[2]Inputs!$D$26)) -> 3.866827441 | E191: 43762 | F191: 169220.1025 | G191: 0.1549177 | H191: 26215.18907
B192: CLAY BASIN UNIT 14 FR | C192: FRONTIER | D192: =IF(LEFT(B192,12)=[2]Inputs!$C$24,[2]Inputs!$D$24,IF(LEFT(B192,13)=[2]Inputs!$C$25,[2]Inputs!$D$24,[2]Inputs!$D$26)) -> 3.866827441 | E192: 26082 | F192: 100854.5933 | G192: 0.1549177 | H192: 15624.16163
B193: CLAY BASIN UNIT 15 FR | C193: LANCE | D193: =IF(LEFT(B193,12)=[2]Inputs!$C$24,[2]Inputs!$D$24,IF(LEFT(B193,13)=[2]Inputs!$C$25,[2]Inputs!$D$24,[2]Inputs!$D$26)) -> 3.866827441 | E193: 163881 | F193: 633699.5478 | G193: 0.1549177 | H193: 98171.27644
B194: CLAY BASIN UNIT 16 FR | C194: FRONTIER | D194: =IF(LEFT(B194,12)=[2]Inputs!$C$24,[2]Inputs!$D$24,IF(LEFT(B194,13)=[2]Inputs!$C$25,[2]Inputs!$D$24,[2]Inputs!$D$26)) -> 3.866827441 | E194: 23995 | F194: 92784.52444 | G194: 0.1549177 | H194: 14373.96512
B195: CLAY BASIN UNIT 17 FR | C195: FRONTIER | D195: =IF(LEFT(B195,12)=[2]Inputs!$C$24,[2]Inputs!$D$24,IF(LEFT(B195,13)=[2]Inputs!$C$25,[2]Inputs!$D$24,[2]Inputs!$D$26)) -> 3.866827441 | E195: 47608 | F195: 184091.9208 | G195: 0.1549177 | H195: 28519.09696
B196: CLAY BASIN UNIT 18 FR | C196: FRONTIER | D196: =IF(LEFT(B196,12)=[2]Inputs!$C$24,[2]Inputs!$D$24,IF(LEFT(B196,13)=[2]Inputs!$C$25,[2]Inputs!$D$24,[2]Inputs!$D$26)) -> 3.866827441 | E196: 36096 | F196: 139577.0033 | G196: 0.1549177 | H196: 21622.94832
B197: CLAY BASIN UNIT 19 FR | C197: FRONTIER | D197: =IF(LEFT(B197,12)=[2]Inputs!$C$24,[2]Inputs!$D$24,IF(LEFT(B197,13)=[2]Inputs!$C$25,[2]Inputs!$D$24,[2]Inputs!$D$26)) -> 3.866827441 | E197: 83688 | F197: 323607.0549 | G197: 0.1549177 | H197: 50132.46064
B198: CLAY BASIN UNIT 20 FR | C198: FRONTIER | D198: =IF(LEFT(B198,12)=[2]Inputs!$C$24,[2]Inputs!$D$24,IF(LEFT(B198,13)=[2]Inputs!$C$25,[2]Inputs!$D$24,[2]Inputs!$D$26)) -> 3.866827441 | E198: 33111 | F198: 128034.5234 | G198: 0.1549177 | H198: 19834.81388
B199: CLAY BASIN UNIT 22 FR | C199: FRONTIER | D199: =IF(LEFT(B199,12)=[2]Inputs!$C$24,[2]Inputs!$D$24,IF(LEFT(B199,13)=[2]Inputs!$C$25,[2]Inputs!$D$24,[2]Inputs!$D$26)) -> 3.866827441 | E199: 38708 | F199: 149677.1566 | G199: 0.1549177 | H199: 23187.64084
B200: CLAY BASIN UNIT 23 FR | C200: FRONTIER | D200: =IF(LEFT(B200,12)=[2]Inputs!$C$24,[2]Inputs!$D$24,IF(LEFT(B200,13)=[2]Inputs!$C$25,[2]Inputs!$D$24,[2]Inputs!$D$26)) -> 3.866827441 | E200: 36271 | F200: 140253.6981 | G200: 0.1549177 | H200: 21727.78033
B201: CLAY BASIN UNIT 62 FR | C201: FRONTIER | D201: =IF(LEFT(B201,12)=[2]Inputs!$C$24,[2]Inputs!$D$24,IF(LEFT(B201,13)=[2]Inputs!$C$25,[2]Inputs!$D$24,[2]Inputs!$D$26)) -> 3.866827441 | E201: 166641 | F201: 644371.9915 | G201: 0.1549177 | H201: 99824.62687
B202: CLAY BASIN UNIT 61 FR | C202: FRONTIER | D202: =IF(LEFT(B202,12)=[2]Inputs!$C$24,[2]Inputs!$D$24,IF(LEFT(B202,13)=[2]Inputs!$C$25,[2]Inputs!$D$24,[2]Inputs!$D$26)) -> 3.866827441 | E202: 51321 | F202: 198449.4511 | G202: 0.1549177 | H202: 30743.33253
... 1082 more rows

Sheet Ut 1.2
I1: ='Control Panel'!$F$32 -> Questar Gas Company
I2: ='Control Panel'!$F$33 -> Docket No. 11-057-08
I3: Exhibit 1.2
B8: TEST YEAR PURCHASED GAS COSTS
D11: (A) | E11: (B) | F11: (C) | G11: (D)
F12: Cost
C13: Component | E13: Dth | F13: per Dth | G13: Total Cost
B15: 1 | C15: Current Contracts | G15: =ROUND(Calculations!$P$181+Calculations!$P$184-G16,0) -> 107480466
B16: =B15+1 -> 2 | C16: Stabilization Costs | G16: ='Monthly Inputs'!S100 -> 1999999.98
B17: =B16+1 -> 3 | D17: Total Current Contracts | E17: =Calculations!$P$180+Calculations!$P$183 -> 25845109 | F17: =G17/E17 -> 4.236022606 | G17: =G15+G16 -> 109480466
B19: =B17+1 -> 4 | C19: Forecast Spot | E19: =Calculations!$P$177 -> 16435831 | F19: =G19/E19 -> 3.774360542 | G19: =ROUND(Calculations!P178,0) -> 62034752
B21: =B19+1 -> 5 | C21: Future Contracts | E21: =Calculations!P186 -> 1077573 | F21: =G21/E21 -> 3.941155727 | G21: =ROUND(Calculations!P187,0) -> 4246883
B24: =B21+1 -> 6 | C24: Total Gas Purchased | E24: =E17+E19+E21 -> 43358513 | F24: =G24/E24 -> 4.053693008 | G24: =G17+G19+G21 -> 175762101

Sheet Ut 1.3 p1
N1: ='Control Panel'!$F$32 -> Questar Gas Company
N2: ='Control Panel'!$F$33 -> Docket No. 11-057-08
N3: Exhibit 1.3
N4: Page 1 of 2
B8: TEST YEAR TRANSPORTATION, GATHERING AND PROCESSING CHARGES
B11: (A) | D11: (B) | F11: (C) | H11: (D) | J11: (E) | L11: (F) | M11: (G)
D12: Fctr | F12: Dth | H12: Months/Days | J12: Rate | M12: Total Costs
B14: TRANSPORTATION DEMAND
B16: QPC Demand
A17: 1 | B17: T-1 Transportation - Yearly | F17: ='Other Inputs'!D22 -> 880902 | G17: x | H17: ='Other Inputs'!E22 -> 12 | I17: x | J17: ='Other Inputs'!F19 -> 5.28804 | K17: = | L17: =ROUND(F17*H17*J17,0) -> 55898940 | Q17: =L17*'Ut 1.5'!$G$51 -> 54183394.17
A18: =A17+1 -> 2 | B18: No-Notice Transportation | F18: ='Other Inputs'!D26 -> 203542 | G18: x | H18: ='Other Inputs'!E26 -> 12 | I18: x | J18: ='Other Inputs'!F26 -> 0.86753 | K18: = | L18: =ROUND(F18*H18*J18,0) -> 2118945 | Q18: =L18*'Ut 1.5'!$G$51 -> 2053914.299
A19: =A18+1 -> 3 | B19: Capacity Release Credits | L19: =-ROUND('Other Inputs'!E262,0) -> -446959 | Q19: =L19*'Ut 1.5'!$G$51 -> -433241.7694
A20: =A19+1 -> 4 | C20: Total | L20: =SUM(L17:L19) -> 57570926 | Q20: =L20*'Ut 1.5'!$G$51 -> 55804066.7
Q21: =L21*'Ut 1.5'!$G$51 -> 0
B22: Kern River Demand | Q22: =L22*'Ut 1.5'!$G$51 -> 0
A23: =A20+1 -> 5 | B23: January - December | F23: ='Other Inputs'!D52 -> 1885 | G23: x | H23: ='Other Inputs'!E52 -> 12 | I23: x | J23: ='Other Inputs'!F52 -> 17.74204167 | K23: = | L23: =ROUND(F23*H23*J23,0) -> 401325
A24: =A23+1 -> 6 | B24: January - December | F24: ='Other Inputs'!D50 -> 3000 | G24: x | H24: ='Other Inputs'!E50 -> 12 | I24: x | J24: ='Other Inputs'!F50 -> 14.34754167 | K24: = | L24: =ROUND(F24*H24*J24,0) -> 516512 | Q24: =L24*'Ut 1.5'!$G$51 -> 500660.1787
A25: =A24+1 -> 7 | B25: November - March | F25: ='Other Inputs'!D51 -> 50000 | G25: x | H25: ='Other Inputs'!E51 -> 5 | I25: x | J25: =J24 -> 14.34754167 | K25: = | L25: =ROUND(F25*H25*J25,0) -> 3586885 | Q25: =L25*'Ut 1.5'!$G$51 -> 3476803.027
A26: =A25+1 -> 8 | C26: Total | L26: =SUM(L23:L25) -> 4504722 | Q26: =L26*'Ut 1.5'!$G$51 -> 4366471.488
Q27: =L27*'Ut 1.5'!$G$51 -> 0
A28: =A26+1 -> 9 | B28: Total Transportation Demand (SNG) | M28: =L20+L26 -> 62075648 | Q28: =M28*'Ut 1.5'!$G$51 -> 60170538.19
B31: TRANSPORTATION COMMODITY
B33: QPC Commodity
A34: =A28+1 -> 10 | B34: QPC Commodity (SNG) | F34: =F35-(D39*F39*H39)-(D40*F40*H40) -> 109489145.8 | I34: x | J34: ='Other Inputs'!F34 -> 0.00267 | K34: = | L34: =ROUND(F34*J34,0) -> 292336
A35: =A34+1 -> 11 | B35: ACA | F35: =Calculations!$P$170 -> 124593118.6 | I35: x | J35: ='Other Inputs'!F35 -> 0.0019 | K35: = | L35: =ROUND(F35*J35,0) -> 236727
A36: =A35+1 -> 12 | C36: Total | L36: =SUM(L34:L35) -> 529063
B38: Kern River Commodity
A39: =A36+1 -> 13 | B39: January - December | D39: ='Other Inputs'!C56 -> 1.618336271 | E39: x | F39: ='Other Inputs'!D56 -> 4885 | G39: x | H39: ='Other Inputs'!E56 -> 365 | I39: x | J39: ='Other Inputs'!F56 -> 0.0044 | K39: = | L39: =ROUND(D39*F39*H39*J39,0) -> 12696
A40: =A39+1 -> 14 | B40: November - March | D40: ='Other Inputs'!C57 -> 1.618336271 | E40: x | F40: ='Other Inputs'!D57 -> 50000 | G40: x | H40: ='Other Inputs'!E57 -> 151 | I40: x | J40: ='Other Inputs'!F57 -> 0.0044 | K40: = | L40: =ROUND(D40*F40*H40*J40,0) -> 53761
A41: =A40+1 -> 15 | C41: Total (SNG) | L41: =SUM(L39:L40) -> 66457
A43: =A41+1 -> 16 | B43: Total Transportation Commodity | M43: =L36+L41 -> 595520
B46: OTHER CHARGES
A48: =A43+1 -> 17 | B48: QEP Field Services Demand | H48: 12 | I48: x | J48: ='Other Inputs'!E169 -> 1060315 | K48: = | L48: =ROUND(H48*J48,0) -> 12723780
A49: =A48+1 -> 18 | B49: QEP Field Services Commodity | F49: ='Other Inputs'!D170 -> 50725293.58 | I49: x | J49: ='Other Inputs'!D169 -> 0.20764 | K49: = | L49: =ROUND(F49*J49,0) -> 10532600
A50: =A49+1 -> 19 | C50: Total QEP Field Services (SNG) | M50: =L48+L49 -> 23256380
A52: =A50+1 -> 20 | B52: Other Gathering & Processing Charges | L52: =ROUND('Other Inputs'!D161,0) -> 2911123
A53: =A52+1 -> 21 | B53: Other Transportation Charges | L53: =ROUND('Other Inputs'!$D$163,0) -> 1982531
A54: =A53+1 -> 22 | C54: Total Other Gathering, Processing and Transportation (SNG) | M54: =SUM(L52:L53) -> 4893654
A59: =A54+1 -> 23 | B59: TOTAL TRANSPORTATION AND OTHER CHARGES | M59: =M28+M43+M50+M54 -> 90821202

Sheet Ut 1.3 p2
L1: ='Control Panel'!$F$32 -> Questar Gas Company
L2: ='Control Panel'!$F$33 -> Docket No. 11-057-08
L3: Exhibit 1.3
L4: Page 2 of 2
B8: TEST YEAR STORAGE AND WORKING GAS CHARGES
B11: (A) | D11: (B) | F11: (C) | H11: (D) | J11: (E) | K11: (F)
B13: STORAGE CHARGES 1/
B15: Component | D15: Dth | F15: Months | H15: Rate | K15: Total Costs
B16: Storage Demand
A17: 1 | B17: Peaking Demand | D17: ='Other Inputs'!E148 -> 184625 | E17: x | F17: 12 | G17: x | H17: ='Other Inputs'!E12 -> 2.87375 | I17: = | J17: =ROUND(D17*F17*H17,0) -> 6366793
A18: =A17+1 -> 2 | B18: Clay Basin Demand | D18: ='Other Inputs'!E149 -> 111827 | E18: x | F18: 12 | G18: x | H18: ='Other Inputs'!E13 -> 2.85338 | I18: = | J18: =ROUND(D18*F18*H18,0) -> 3829019
A19: =A18+1 -> 3 | B19: Clay Basin Capacity | D19: ='Other Inputs'!E150 -> 13419000 | E19: x | F19: 12 | G19: x | H19: ='Other Inputs'!E14 -> 0.02378 | I19: = | J19: =ROUND(D19*F19*H19,0) -> 3829246
A20: =A19+1 -> 4 | C20: Total Demand Charges (SNG) | J20: =J17+J18+J19 -> 14025058
B22: Storage Commodity 2/
A23: =A20+1 -> 5 | B23: Peaking Injections | D23: =(+'Monthly Inputs'!S35+'Monthly Inputs'!S37+'Monthly Inputs'!S38) -> 1179843 | F23: x | H23: ='Other Inputs'!E6 -> 0.03872 | I23: = | J23: =ROUND(D23*H23,0) -> 45684
A24: =A23+1 -> 6 | B24: Peaking Withdrawals | D24: =(+'Monthly Inputs'!S42+'Monthly Inputs'!S44+'Monthly Inputs'!S45) -> 1611611 | F24: x | H24: ='Other Inputs'!E7 -> 0.03872 | I24: = | J24: =ROUND(D24*H24,0) -> 62402
A25: =A24+1 -> 7 | B25: Clay Basin Injections | D25: ='Monthly Inputs'!S36 -> 13521090 | F25: x | H25: ='Other Inputs'!E8 -> 0.01049 | I25: = | J25: =ROUND(D25*H25,0) -> 141836
A26: =A25+1 -> 8 | B26: Clay Basin Withdrawals | D26: ='Monthly Inputs'!S43 -> 13418990 | F26: x | H26: ='Other Inputs'!E9 -> 0.01781 | I26: = | J26: =ROUND(D26*H26,0) -> 238992
A27: =A26+1 -> 9 | C27: Total Commodity Charges | J27: =J23+J24+J25+J26 -> 488914
A29: =A27+1 -> 10 | B29: Total Storage Charges | K29: =J20+J27 -> 14513972
B32: WORKING GAS CHARGES - QGC Account 164
C34: Month | D34: Amount | H34: Pre-Tax Return %
A36: =A29+1 -> 11 | C36: =+'Rate Base'!H8 -> 2010-07-21 | D36: =+'Rate Base'!H209 -> 31735056.07
A37: =A36+1 -> 12 | C37: =+'Rate Base'!I8 -> 2010-08-20 | D37: =+'Rate Base'!I209 -> 43791078.54
A38: 13 | C38: =+'Rate Base'!J8 -> 2010-09-19 | D38: =+'Rate Base'!J209 -> 52502815.44
A39: 14 | C39: =+'Rate Base'!K8 -> 2010-10-19 | D39: =+'Rate Base'!K209 -> 59271925.54
A40: 15 | C40: =+'Rate Base'!L8 -> 2010-11-18 | D40: =+'Rate Base'!L209 -> 59109161.38
A41: 16 | C41: =+'Rate Base'!M8 -> 2010-12-18 | D41: =+'Rate Base'!M209 -> 43289915.13
A42: 17 | C42: =+'Rate Base'!N8 -> 2011-01-17 | D42: =+'Rate Base'!N209 -> 31369107.92
A43: 18 | C43: =+'Rate Base'!O8 -> 2011-02-16 | D43: =+'Rate Base'!O209 -> 19870006.36
A44: 19 | C44: =+'Rate Base'!P8 -> 2011-03-18 | D44: =+'Rate Base'!P209 -> 10598542.29
A45: 20 | C45: =+'Rate Base'!Q8 -> 2011-04-17 | D45: =+'Rate Base'!Q209 -> 5123025.38
A46: 21 | C46: =+'Rate Base'!R8 -> 2011-05-17 | D46: =+'Rate Base'!R209 -> 9936676.21
A47: 22 | C47: =+'Rate Base'!S8 -> 2011-06-16 | D47: =+'Rate Base'!S209 -> 18701733.87
A48: 23 | C48: =+'Rate Base'!T8 -> 2011-07-16 | D48: =+'Rate Base'!T209 -> 28586567.05
A51: =A48+1 -> 24 | B51: 13-Month Average 3/ | D51: =(SUM(D37:D47)+D36/2+D48/2)/12 -> 31977066.64 | F51: x | H51: ='Other Inputs'!E252 -> 0.1179 | J51: = | K51: =D51*H51 -> 3770096.156
A54: =A51+1 -> 25 | B54: TOTAL FIRM STORAGE AND WORKING GAS CHARGES | K54: =K51+K29 -> 18284068.16
A58: 1/ | B58: =CONCATENATE("Exhibit 1.9 - ",'Other Inputs'!G19) -> Exhibit 1.9 - 7/1/2011
A59: 2/ | B59: Questar Gas planned volumes.
A60: 3/ | B60: (½ of Line 11 + sum of Lines 12 through 22 + ½ of Line 23) / 12

Sheet Ut 1.4 p1
H1: ='Control Panel'!$F$32 -> Questar Gas Company
H2: ='Control Panel'!$F$33 -> Docket No. 11-057-08
H3: Exhibit 1.4
H4: Page 1 of 3
B8: SUMMARY OF TEST-YEAR GAS RELATED COSTS AND REVENUES CREDITS
B11: (A) | E11: (B) | F11: (C) | G11: (D)
B12: Component | E12: Costs | F12: Dth | G12: $ per Dth
A14: 1 | C14: Questar Gas Production 1/ | E14: ='Other Inputs'!D178 -> 307630623.8
A15: =A14+1 -> 2 | C15: Other Revenues Credits 2/ | E15: =-'Ut 1.4 p3'!H32 -> -33781257
A16: =A15+1 -> 3 | D16: Net Questar Gas Production Costs | E16: =E14+E15 -> 273849366.8 | F16: =F21 -> 71172209 | G16: =E16/F21 -> 3.847700818
A18: =A16+1 -> 4 | D18: Gathering 3/ | E18: ='Ut 1.3 p1'!L52+'Ut 1.3 p1'!M50 -> 26167503
A21: =A18+1 -> 5 | B21: Total Cost of Questar Gas Production | E21: =SUM(E16:E18) -> 300016869.8 | F21: ='Monthly Inputs'!S16 -> 71172209 | G21: =E21/F21 -> 4.215365436
A23: =A21+1 -> 6 | B23: Questar Gas Contract Gas 4/ | E23: ='Ut 1.2'!G24 -> 175762101 | F23: ='Ut 1.2'!E24 -> 43358513 | G23: =E23/F23 -> 4.053693008
A25: =A23+1 -> 7 | B25: Injection / Withdrawal Adjustment 5/ | E25: ='Ut 1.4 p2'!H23 -> 277620.8559
A27: =A25+1 -> 8 | B27: Transportation & Other Costs 6/ | E27: ='Ut 1.3 p1'!M59-E18-'Ut 1.3 p1'!M56 -> 64653699 | F27: ='Ut 1.3 p1'!F34 -> 109489145.8 | G27: =E27/F27 -> 0.5905032737
A29: =A27+1 -> 9 | B29: Storage & Working Gas 7/ | E29: ='Ut 1.3 p2'!K54 -> 18284068.16
B31: Gas Management Costs | E31: ='Ut 1.3 p1'!M56 -> 0
A34: =A29+1 -> 10 | B34: Questar Gas - Related Gas Costs for Rate Purposes 8/ | E34: =E21+E23+E25+E27+E29+E31 -> 558994358.8 | F34: ='Ut 1.6 p1'!H23 -> 109163172 | G34: =E34/F34 -> 5.120722937
A41: 1/ | B41: Exhibit 1.1, Last Page.
A42: 2/ | B42: Exhibit 1.4, Page 3, Line 8.
A43: 3/ | B43: Exhibit 1.3, Page 1, Lines 19 + 20.
A44: 4/ | B44: Exhibit 1.2, Line 6.
A45: 5/ | B45: Exhibit 1.4, Page 2, Line 7.
A46: 6/ | B46: Exhibit 1.3, Page 1, Lines 9 + 16 + 21.
A47: 7/ | B47: Exhibit 1.3, Page 2, Line 25.
A48: 8/ | B48: Exhibit 1.6, Page 1, Line 6.

Sheet Ut 1.4 p2
J1: ='Control Panel'!$F$32 -> Questar Gas Company
J2: ='Control Panel'!$F$33 -> Docket No. 11-057-08
J3: Exhibit 1.4
J4: Page 2 of 3
B8: ANNUALIZED UNIT COST OF STORAGE GAS
C11: (A) | E11: (B) | F11: (C) | H11: (D)
F12: Average
E13: Dth | F13: Rate | H13: Total Costs
B15: 1 | C15: Company Production 1/ | E15: ='Ut 1.4 p1'!F21 -> 71172209 | F15: =H15/E15 -> 4.322341938 | H15: ='Ut 1.4 p1'!E14 -> 307630623.8
B16: =B15+1 -> 2 | C16: Purchased Gas 2/ | E16: ='Ut 1.2'!E24 -> 43358513 | F16: =H16/E16 -> 4.053693008 | H16: ='Ut 1.2'!G24 -> 175762101
B17: =B16+1 -> 3 | C17: Average Price | E17: =SUM(E15:E16) -> 114530722 | F17: =(+H15+H16)/(+E15+E16) -> 4.220638064 | H17: =SUM(H15:H16) -> 483392724.8
B20: 4 | C20: Storage 3/
B21: =B20+1 -> 5 | C21: Withdrawals | E21: ='Monthly Inputs'!S46 -> 15030601 | F21: ='Ut Storage'!L27 -> 4.163113251 | H21: =E21*F21 -> 62574094.19
B22: =B21+1 -> 6 | C22: Injections | E22: =-'Monthly Inputs'!S39 -> -14700933 | F22: ='Ut Storage'!K27 -> 4.237586372 | H22: =E22*F22 -> -62296473.33
B23: =B22+1 -> 7 | C23: Storage Adjustment | H23: =H21+H22 -> 277620.8559
B29: 1/ | C29: Exhibit 1.1, last Page.
B30: 2/ | C30: Exhibit 1.2, Line 6.
B31: 3/ | C31: Questar Gas Company planned volumes.

Sheet Ut 1.4 p3
K1: ='Control Panel'!$F$32 -> Questar Gas Company
K2: ='Control Panel'!$F$33 -> Docket No. 11-057-08
K3: Exhibit 1.4
K4: Page 3 of 3
D8: OTHER REVENUES
C11: (A) | E11: (B) | F11: (C) | G11: (D)
C12: Account | G12: =Expenses!S8 -> 12 Months Ending
C13: Number | E13: Account Name | G13: ='Control Panel'!F7 -> 2012-09-30
B15: 1 | D15: 483 | E15: Sales for Resale | H15: ='Other Inputs'!F185 -> 3756162 | I15: 1/
B18: =B15+1 -> 2 | D18: 490 | E18: Plant By-Product | H18: ='Other Inputs'!F186 -> 6254400 | I18: 1/
B21: =B18+1 -> 3 | D21: 492 | E21: Gasoline and Oil Sales | F21: ='Other Inputs'!F187 -> 1561670 | G21: 1/
B22: =B21+1 -> 4 | D22: 758-1 | E22: Gasoline and Oil Cost | F22: ='Other Inputs'!F190 -> -203394 | G22: 1/
B23: =B22+1 -> 5 | E23: Net Gasoline and Oil Sales | H23: =F21+F22 -> 1358276
B26: =B23+1 -> 6 | D26: 495-1 | E26: Overriding Royalty Revenue | H26: ='Other Inputs'!F188 -> 18368419 | I26: 1/
E27: from Questar E & P
B29: =B26+1 -> 7 | D29: 495-2 | E29: Oil Revenue Received from Wexpro | H29: ='Other Inputs'!F189 -> 4044000 | I29: 1/
B32: =B29+1 -> 8 | E32: Total | H32: =SUM(H15:H29) -> 33781257
B39: 1/ | D39: Forecasted 12-month test year.

Sheet Ut 1.5
H1: ='Control Panel'!$F$32 -> Questar Gas Company
H2: ='Control Panel'!$F$33 -> Docket No. 11-057-08
H3: Exhibit 1.5
B8: TEST-YEAR GAS COST ALLOCATION
B11: (A) | D11: (B) | E11: (C) | F11: (D) | G11: (E)
D12: Allocation
D13: Factor 1/ | E13: System | F13: Wyoming | G13: Utah
A15: 1 | B15: Questar Gas Production (Exhibit 1.1) | D15: 2 | E15: ='Ut 1.4 p1'!E14 -> 307630623.8 | F15: =CHOOSE($D15,F$51,F$54)*$E15 -> 10410246.4 | G15: 297220377.4
A16: =A15+1 -> 2 | B16: Other Revenue's Credit (Exhibit 1.4, p 3) | D16: 2 | E16: ='Ut 1.4 p1'!E15 -> -33781257 | F16: -1143160.602 | G16: -32638096.4
A17: =A16+1 -> 3 | B17: Gathering (Exhibit 1.3, p 1) | C17: - Demand | D17: 1 | E17: ='Ut 1.3 p1'!L48 -> 12723780 | F17: 390494.4841 | G17: 12333285.52
A18: =A17+1 -> 4 | B18: Gathering | C18: - Commodity | D18: 2 | E18: ='Ut 1.3 p1'!L52+'Ut 1.3 p1'!L49 -> 13443723 | F18: 454936.7267 | G18: 12988786.27
A19: =A18+1 -> 5 | B19: Net Cost of Questar Gas Production | E19: =SUM(E15:E18) -> 300016869.8 | F19: =SUM(F15:F18) -> 10112517.01 | G19: =SUM(G15:G18) -> 289904352.8
A21: =A19+1 -> 6 | B21: Questar Gas Contract Gas (Exhibit 1.2) | D21: 2 | E21: ='Ut 1.4 p1'!E23 -> 175762101 | F21: =CHOOSE($D21,F$51,F$54)*$E21 -> 5947804.406 | G21: =CHOOSE($D21,G$51,G$54)*$E21 -> 169814296.6
A24: =A21+1 -> 7 | B24: Injection / Withdrawal Adjustment (Exhibit 1.4, p 1) | D24: 2 | E24: ='Ut 1.4 p1'!E25 -> 277620.8559 | F24: =CHOOSE($D24,F$51,F$54)*$E24 -> 9394.713313 | G24: =CHOOSE($D24,G$51,G$54)*$E24 -> 268226.1426
A27: =A24+1 -> 8 | B27: Transportation (Exhibit 1.3, p 1) | C27: - Demand | D27: 1 | E27: ='Ut 1.3 p1'!M28 -> 62075648 | F27: =CHOOSE($D27,F$51,F$54)*$E27 -> 1905109.814 | G27: =CHOOSE($D27,G$51,G$54)*$E27 -> 60170538.19
A28: =A27+1 -> 9 | B28: Transportation | C28: - Commodity | D28: 2 | E28: ='Ut 1.3 p1'!M43 -> 595520 | F28: =CHOOSE($D28,F$51,F$54)*$E28 -> 20152.44731 | G28: =CHOOSE($D28,G$51,G$54)*$E28 -> 575367.5527
A31: =A28+1 -> 10 | B31: Storage (Exhibit 1.3, p 2) | C31: - Demand | D31: 1 | E31: ='Ut 1.3 p2'!J20 -> 14025058 | F31: =CHOOSE($D31,F$51,F$54)*$E31 -> 430430.8774 | G31: =CHOOSE($D31,G$51,G$54)*$E31 -> 13594627.12
A32: =A31+1 -> 11 | B32: Storage | C32: - Commodity | D32: 2 | E32: ='Ut 1.3 p2'!J27 -> 488914 | F32: =CHOOSE($D32,F$51,F$54)*$E32 -> 16544.89123 | G32: =CHOOSE($D32,G$51,G$54)*$E32 -> 472369.1088
A35: =A32+1 -> 12 | B35: Other Transportation - Commodity (Exhibit 1.3, p1) | D35: 2 | E35: ='Ut 1.3 p1'!L53 -> 1982531 | F35: =CHOOSE($D35,F$51,F$54)*$E35 -> 67089.0172 | G35: =CHOOSE($D35,G$51,G$54)*$E35 -> 1915441.983
A38: =A35+1 -> 13 | B38: Working Gas Costs (Exhibit 1.3, p 2) | D38: 2 | E38: ='Ut 1.3 p2'!K51 -> 3770096.156 | F38: =CHOOSE($D38,F$51,F$54)*$E38 -> 127580.3737 | G38: =CHOOSE($D38,G$51,G$54)*$E38 -> 3642515.783
A41: =A38+1 -> 14 | B41: Totals | E41: =SUM(E19:E38) -> 558994358.8 | F41: =SUM(F19:F38) -> 18636623.55 | G41: =SUM(G19:G38) -> 540357735.2
A48: 1/ | B48: Allocation Factors | E48: Total | F48: Wyoming | G48: Utah
B50: #1 Peak Day Demand | D50: Dth- | E50: =SUM(F50:G50) -> 1280770 | F50: ='Other Inputs'!$E$130 -> 39307 | G50: ='Other Inputs'!$E$129 -> 1241463
D51: Percent- | E51: =F51+G51 -> 1 | F51: =F50/E50 -> 0.03069013172 | G51: =G50/E50 -> 0.9693098683
B53: #2 Commodity Sales - All | D53: Dth- | E53: =F53+G53 -> 109163172 | F53: ='Ut 1.6 p1'!H22 -> 3694091 | G53: ='Ut 1.6 p1'!H21 -> 105469081
D54: Percent- | E54: =F54+G54 -> 1 | F54: =F53/E53 -> 0.03384008482 | G54: =G53/E53 -> 0.9661599152

Sheet Ut 1.6 p1
J1: ='Control Panel'!$F$32 -> Questar Gas Company
J2: ='Control Panel'!$F$33 -> Docket No. 11-057-08
J3: Exhibit 1.6
J4: Page 1 of 3
B8: TEST-YEAR GAS COST CHANGE
B11: (A) | C11: (B) | D11: (C) | F11: (D) | H11: (E) | J11: (F)
F12: Average Rate | H12: x Dth | I12: = | J12: Total
A13: 1 | B13: Utah Allocation of Questar Gas-Related Gas Costs (Exhibit 1.5) 1/ | J13: ='Ut 1.5'!G41 -> 540357735.2
B14: Less:
A15: =A13+1 -> 2 | B15: IS Class Commodity Credit 2/ | F15: =Calculations!P232 -> 3.983489932 | H15: ='RevRun Fcst'!T93+'RevRun Fcst'!T111 -> 2418010 | J15: =-H15*F15 -> -9632118.489
A16: =A15+1 -> 3 | B16: Net Utah Gas Costs (for Firm Sales) | J16: =J13+J15 -> 530725616.7
H18: Total
B19: Test-Year Sales: 2/ | D19: Firm | F19: + Interruptible | H19: = Sales Dth
A21: =A16+1 -> 4 | B21: Utah | D21: =Calculations!P13 -> 103051071 | F21: =Calculations!P17 -> 2418010 | H21: =D21+F21 -> 105469081
A22: =A21+1 -> 5 | B22: Wyoming | D22: =Calculations!P32 -> 3545694 | F22: =Calculations!P36 -> 148397 | H22: =D22+F22 -> 3694091
A23: =A22+1 -> 6 | B23: Total Dth | H23: =SUM(H21:H22) -> 109163172
A25: =A23+1 -> 7 | B25: Supplier Non-Gas Costs 3/ | J25: =(-'Ut 1.6 p2'!F14) -> -101349330.5
A28: =A25+1 -> 8 | B28: Commodity Portion of Test-Year Gas Cost (Lines 3 + 7) | J28: =J16+J25+J26 -> 429376286.3
F31: Current Case | H31: Prior Case
B32: FIRM CUSTOMER RATES | F32: ='Control Panel'!F5 -> 11-057-08 | H32: ='Control Panel'!F9 -> 11-057-02 | J32: Difference
A34: =A28+1 -> 9 | B34: Firm Gas Cost (line 8/ Firm Sales, line 4) | F34: =ROUND((J28)/D21,5) -> 4.16664 | H34: ='Other Inputs'!F105 -> 4.21339 | J34: =F34-H34 -> -0.04675 | M34: =J34*D21 -> -4817637.569
A35: =A34+1 -> 10 | B35: 191 Account Amortization (Commodity Portion) 4/ | F35: =D55/D21 -> 0.1290277711 | H35: ='Other Inputs'!F106 -> 0.14067 | J35: =F35-H35 -> -0.01164222891 | M35: =J35*D21 -> -1199744.158
A36: =A35+1 -> 11 | B36: Total Firm Sales Unit Commodity Cost (Lines 9 + 10) | F36: =F34+F35 -> 4.295667771 | H36: =H34+H35 -> 4.35406 | J36: =J34+J35 -> -0.05839222891 | M36: =SUM(M34:M35) -> -6017381.727
A46: 1/ | B46: Exhibit 1.5, Line 14, Column E.
A48: 2/ | B48: ="Revrun.exe - "&'RevRun Fcst'!D4 -> Revrun.exe - 8/17/2011 | D48: Dth | E48: x | F48: est. Com. Rate | G48: = | H48: Com. Revenues
C49: IS | D49: =H15 -> 2418010 | F49: =F15 -> 3.983489932 | H49: =D49*F49 -> 9632118.489
A51: 3/ | B51: Test Year Estimate of Transportation, Gathering, and Storage billings.
A53: 4/ | B53: 191 Account (July 2011) act. | D53: ='Other Inputs'!E123 -> -10313169
B54: Less: Supplier Non-Gas balance act. | D54: ='Other Inputs'!E124 -> -23609619
B55: 191 Account Commodity Portion | D55: =D53-D54 -> 13296450 | F55: =D21 -> 103051071 | H55: =D55/F55 -> 0.1290277711

Sheet Ut 1.6 p2
E1: Questar Gas Company
G2: ='Control Panel'!$F$33 -> Docket No. 11-057-08
G3: Exhibit 1.6
G4: Page 2 of 3
C8: TEST-YEAR SUPPLIER NON-GAS COST CHANGE
C11: (A) | D11: (B) | E11: (C) | F11: (D)
D12: Dth | E12: Average Rate | F12: Total
B14: 1 | C14: Supplier Non-Gas (SNG) Costs 1/ | F14: ='Ut 1.5'!G27+'Ut 1.5'!G31+'Ut 1.5'!G17+(+'Ut 1.3 p1'!L34+'Ut 1.3 p1'!L41+'Ut 1.3 p1'!L52+'Ut 1.3 p1'!L53+'Ut 1.3 p1'!L49)*'Ut 1.5'!G54 -> 101349330.5
B15: =B14+1 -> 2 | C15: 191 Account Balance for SNG Costs 2/ | F15: 0
B16: =1+B15 -> 3 | C16: Total | F16: =SUM(F14:F15) -> 101349330.5
B19: =B16+1 -> 4 | C19: SNG Costs Recovered at Current Rates 3/ | F19: ='Other Inputs'!E200-(D29*('Other Inputs'!G79-'Other Inputs'!F201)) -> 104967931.8
B22: =1+B19 -> 5 | C22: SNG Costs Adjustment to Current Rates (Line 3 - Line 4) | F22: =F16-F19 -> -3618601.296
B28: 6a | C28: Adjustment for SNG contributions from:
B29: 6b | C29: IS SNG current rate | D29: ='Ut 1.6 p1'!$H$15 -> 2418010 | E29: ='Ut 1.6 p3'!E24 -> 0.17919 | F29: =D29*E29 -> 433283.2119
B30: 6c | C30: IS SNG new rate | D30: ='Ut 1.6 p1'!$H$15 -> 2418010 | E30: ='Ut 1.6 p3'!I24 -> 0.17919 | F30: =D30*E30 -> 433283.2119
B35: =2+B22 -> 7 | C35: Percent Change to Current Rates | F35: =(((+F16-F30)-(F19-F29))/(F19-F29))*100 -> -3.461628603 | G35: %
C36: ((ln 3-ln 6c)-(ln 4-ln 6b))/(ln 4-ln 6b)
B42: 1/ | C42: Exhibit 1.6, Page 1, Line 7.
E43: SNG Balance
B44: 2/ | C44: July 2011 SNG Balance - Actual | E44: ='Other Inputs'!E124 -> -23609619
C45: Spring balance will be amortized in spring pass through.
B46: 2/ | C46: The Company is proposing to amortize the SNG Account
C47: 191 balance only in the fall pass-throughs. As of July 31, 2009 the SNG Account 191 balance is ($19,007,538).
B50: 3/ | C50: ="Output of Revrun.Exe computer program dated "&'RevRun Fcst'!D4 -> Output of Revrun.Exe computer program dated 8/17/2011

Sheet Ut 1.6 p3
I1: ='Control Panel'!$F$32 -> Questar Gas Company
I2: ='Control Panel'!$F$33 -> Docket No. 11-057-08
I3: Exhibit 1.6
I4: Page 3 of 3
F8: TEST YEAR CHANGE IN SUPPLIER NON-GAS COSTS
F9: BY RATE CLASS
C12: (A) | D12: (B) | E12: (C) | F12: (D) | G12: (E) | H12: (F) | I12: (G)
G13: Rate per Dth
C14: Rate Class | D14: Season | E14: Current total 1/ | F14: Curr. Base 1/ | G14: Calc. Base 2/ | H14: Amortization 3/ | I14: Total 4/ | K14: CHECK !! | M14: Current Amort.
B16: 1 | C16: GS | D16: Winter | E16: ='Other Inputs'!G69 -> 1.21316 | F16: ='Other Inputs'!E69 -> 1.18665 | G16: =ROUND(E16*('Ut 1.6 p2'!$F$14-'Ut 1.6 p2'!$F$30)/('Ut 1.6 p2'!$F$19-'Ut 1.6 p2'!$F$29),5) -> 1.17116 | H16: =I16-G16 -> 0 | I16: =ROUND(E16*ROUND(1+'Ut 1.6 p2'!$F$35/100,7),5)+M16 -> 1.17116 | K16: =ROUND(G16*('Ut 1.6 p2'!$F$15)/('Ut 1.6 p2'!$F$14-'Ut 1.6 p2'!$F$30),5)-H16 -> 0 | M16: 0
B17: =B16+1 -> 2 | D17: Summer | E17: ='Other Inputs'!G70 -> 0.56959 | F17: ='Other Inputs'!E70 -> 0.55715 | G17: =ROUND(E17*('Ut 1.6 p2'!$F$14-'Ut 1.6 p2'!$F$30)/('Ut 1.6 p2'!$F$19-'Ut 1.6 p2'!$F$29),5) -> 0.54987 | H17: =I17-G17 -> 0 | I17: =ROUND(E17*ROUND(1+'Ut 1.6 p2'!$F$35/100,7),5)+M17 -> 0.54987 | K17: =ROUND(G17*('Ut 1.6 p2'!$F$15)/('Ut 1.6 p2'!$F$14-'Ut 1.6 p2'!$F$30),5)-H17 -> 0 | M17: 0
B19: =B17+1 -> 3 | C19: FS | D19: Winter | E19: ='Other Inputs'!G72 -> 1.18157 | F19: ='Other Inputs'!E72 -> 1.15575 | G19: =ROUND(E19*('Ut 1.6 p2'!$F$14-'Ut 1.6 p2'!$F$30)/('Ut 1.6 p2'!$F$19-'Ut 1.6 p2'!$F$29),5) -> 1.14067 | H19: =I19-G19 -> 0 | I19: =ROUND(E19*ROUND(1+'Ut 1.6 p2'!$F$35/100,7),5)+M19 -> 1.14067 | K19: =ROUND(G19*('Ut 1.6 p2'!$F$15)/('Ut 1.6 p2'!$F$14-'Ut 1.6 p2'!$F$30),5)-H19 -> 0 | M19: 0
B20: =B19+1 -> 4 | D20: Summer | E20: ='Other Inputs'!G73 -> 0.56957 | F20: ='Other Inputs'!E73 -> 0.55712 | G20: =ROUND(E20*('Ut 1.6 p2'!$F$14-'Ut 1.6 p2'!$F$30)/('Ut 1.6 p2'!$F$19-'Ut 1.6 p2'!$F$29),5) -> 0.54985 | H20: =I20-G20 -> 0 | I20: =ROUND(E20*ROUND(1+'Ut 1.6 p2'!$F$35/100,7),5)+M20 -> 0.54985 | K20: =ROUND(G20*('Ut 1.6 p2'!$F$15)/('Ut 1.6 p2'!$F$14-'Ut 1.6 p2'!$F$30),5)-H20 -> 0 | M20: 0
B22: =B20+1 -> 5 | C22: NGV | E22: ='Other Inputs'!G77 -> 0.87544 | F22: ='Other Inputs'!E77 -> 0.85631 | G22: =ROUND(E22*('Ut 1.6 p2'!$F$14-'Ut 1.6 p2'!$F$30)/('Ut 1.6 p2'!$F$19-'Ut 1.6 p2'!$F$29),5) -> 0.84514 | H22: =I22-G22 -> 0 | I22: =ROUND(E22*ROUND(1+'Ut 1.6 p2'!$F$35/100,7),5)+M22 -> 0.84514 | K22: =ROUND(G22*('Ut 1.6 p2'!$F$15)/('Ut 1.6 p2'!$F$14-'Ut 1.6 p2'!$F$30),5)-H22 -> 0 | M22: 0
B24: =B22+1 -> 6 | C24: IS 5/ | E24: ='Other Inputs'!F201 -> 0.17919 | F24: ='Other Inputs'!F201 -> 0.17919 | G24: ='Other Inputs'!$F$44 -> 0.17919 | H24: =I24-G24 -> 0 | I24: ='Other Inputs'!$F$44 -> 0.17919
B26: =B24+1 -> 7 | C26: ES | E26: ='Other Inputs'!G82 -> 6.28841 | F26: ='Other Inputs'!E82 -> 6.15099 | G26: =ROUND(E26*('Ut 1.6 p2'!$F$14-'Ut 1.6 p2'!$F$30)/('Ut 1.6 p2'!$F$19-'Ut 1.6 p2'!$F$29),5) -> 6.07073 | H26: =I26-G26 -> 0 | I26: =ROUND(E26*ROUND(1+'Ut 1.6 p2'!$F$35/100,7),5)+M26 -> 6.07073 | K26: =ROUND(G26*('Ut 1.6 p2'!$F$15)/('Ut 1.6 p2'!$F$14-'Ut 1.6 p2'!$F$30),5)-H26 -> 0 | M26: 0
B33: 1/ | C33: Current Questar Gas Tariff (excluding bad debt surcharge).
B35: 2/ | C35: Exhibit 1.6 page 2 (line 1 - line 6c)/(line 4 - line 6b)*Exhibit 1.6 page 3 column C. (N.A. to line 6)
B37: 3/ | C37: Column G - Column E
B39: 4/ | C39: (Current Questar Gas rates) x (Exhibit 1.6, Page 2, Line 7, % change).
C40: ="(except ln. 6, which is calculated by adding QPC T-2 and ACA rates, then adjusting for distr. loss of "&TEXT('Other Inputs'!E254,"0.000%") -> (except ln. 6, which is calculated by adding QPC T-2 and ACA rates, then adjusting for distr. loss of 0.431%
C41: ="= ("&TEXT('Other Inputs'!$F$38,"$0.00000")&" + "&TEXT('Other Inputs'!$F$40,"$0.00000")&") / ( 1 - "&TEXT('Other Inputs'!$E$254,"0.00000")&" ) = "&TEXT(('Other Inputs'!F38+'Other Inputs'!F40)/(1-('Other Inputs'!$E$254)),("$0.00000")) -> = ($0.17652 + $0.00190) / ( 1 - 0.00431 ) = $0.17919
B43: 5/ | C43: ="IS Tariff rate has an adjustment for bad debt of "&TEXT('Other Inputs'!$E$265,"0.0%")&" = "&TEXT($I$24,"$0.00000")&" / ( 1 - "&TEXT('Other Inputs'!$E$265,"0.00000")&" ) = "&TEXT($I$24/(1-('Other Inputs'!$E$265)),("$0.00000")) -> IS Tariff rate has an adjustment for bad debt of 0.5% = $0.17919 / ( 1 - 0.00500 ) = $0.18009

Sheet Ut 1.7
L1: ='Control Panel'!$F$32 -> Questar Gas Company
L2: ='Control Panel'!$F$33 -> Docket No. 11-057-08
L3: Exhibit 1.7
C7: EFFECT ON GS TYPICAL CUSTOMER
C8: 80 DTHS - ANNUAL CONSUMPTION
C11: (A) | D11: (B) | E11: (C) | F11: (D) | H11: (E) | J11: (F)
F12: Billed at Current | H12: Billed at
C13: Rate | E13: Usage | F13: Rates Effective | H13: Proposed
C14: Schedule | D14: Month | E14: In Dth | F14: ='Other Inputs'!J86 -> 2011-06-01 | H14: Rates | J14: Change
B16: 1 | C16: GS | D16: Jan | E16: ='Monthly Inputs'!G117 -> 14.9 | F16: =ROUND((+E16*'Other Inputs'!$G$88)+'Other Inputs'!$G$90,2) -> 127.42 | H16: =ROUND((+E16*'Ut 1.8'!$F$10)+'Ut 1.8'!$C$12,2) -> 125.93 | J16: =H16-F16 -> -1.49
B17: =B16+1 -> 2 | D17: Feb | E17: ='Monthly Inputs'!G118 -> 12.5 | F17: =ROUND((+E17*'Other Inputs'!$G$88)+'Other Inputs'!$G$90,2) -> 107.7 | H17: =ROUND((+E17*'Ut 1.8'!$F$10)+'Ut 1.8'!$C$12,2) -> 106.45 | J17: -1.25
B18: =B17+1 -> 3 | D18: Mar | E18: ='Monthly Inputs'!G119 -> 10.1 | F18: =ROUND((+E18*'Other Inputs'!$G$88)+'Other Inputs'!$G$90,2) -> 87.98 | H18: =ROUND((+E18*'Ut 1.8'!$F$10)+'Ut 1.8'!$C$12,2) -> 86.97 | J18: -1.01
B19: 4 | D19: Apr | E19: ='Monthly Inputs'!G120 -> 8.3 | F19: =ROUND((+E19*'Other Inputs'!$G$86)+'Other Inputs'!$G$90,2) -> 64.98 | H19: =ROUND((+E19*'Ut 1.8'!$C$10)+'Ut 1.8'!$C$12,2) -> 64.33 | J19: -0.65
B20: 5 | D20: May | E20: ='Monthly Inputs'!G121 -> 4.4 | F20: =ROUND((+E20*'Other Inputs'!$G$86)+'Other Inputs'!$G$90,2) -> 36.8 | H20: =ROUND((+E20*'Ut 1.8'!$C$10)+'Ut 1.8'!$C$12,2) -> 36.45 | J20: -0.35
B21: 6 | D21: Jun | E21: ='Monthly Inputs'!G122 -> 3.1 | F21: =ROUND((+E21*'Other Inputs'!$G$86)+'Other Inputs'!$G$90,2) -> 27.4 | H21: =ROUND((+E21*'Ut 1.8'!$C$10)+'Ut 1.8'!$C$12,2) -> 27.16 | J21: -0.24
B22: 7 | D22: Jul | E22: ='Monthly Inputs'!G123 -> 2 | F22: =ROUND((+E22*'Other Inputs'!$G$86)+'Other Inputs'!$G$90,2) -> 19.45 | H22: =ROUND((+E22*'Ut 1.8'!$C$10)+'Ut 1.8'!$C$12,2) -> 19.3 | J22: -0.15
B23: 8 | D23: Aug | E23: ='Monthly Inputs'!G124 -> 1.8 | F23: =ROUND((+E23*'Other Inputs'!$G$86)+'Other Inputs'!$G$90,2) -> 18.01 | H23: =ROUND((+E23*'Ut 1.8'!$C$10)+'Ut 1.8'!$C$12,2) -> 17.87 | J23: -0.14
B24: 9 | D24: Sep | E24: ='Monthly Inputs'!G125 -> 2 | F24: =ROUND((+E24*'Other Inputs'!$G$86)+'Other Inputs'!$G$90,2) -> 19.45 | H24: =ROUND((+E24*'Ut 1.8'!$C$10)+'Ut 1.8'!$C$12,2) -> 19.3 | J24: -0.15
B25: 10 | D25: Oct | E25: ='Monthly Inputs'!G126 -> 3.1 | F25: =ROUND((+E25*'Other Inputs'!$G$86)+'Other Inputs'!$G$90,2) -> 27.4 | H25: =ROUND((+E25*'Ut 1.8'!$C$10)+'Ut 1.8'!$C$12,2) -> 27.16 | J25: -0.24
B26: 11 | D26: Nov | E26: ='Monthly Inputs'!G127 -> 6.3 | F26: =ROUND((+E26*'Other Inputs'!$G$88)+'Other Inputs'!$G$90,2) -> 56.76 | H26: =ROUND((+E26*'Ut 1.8'!$I$7)+'Ut 1.8'!$C$12,2) -> 52.22 | J26: -4.54
B27: 12 | D27: Dec | E27: ='Monthly Inputs'!G128 -> 11.5 | F27: =ROUND((+E27*'Other Inputs'!$G$88)+'Other Inputs'!$G$90,2) -> 99.49 | H27: =ROUND((+E27*'Ut 1.8'!$I$7)+'Ut 1.8'!$C$12,2) -> 91.19 | J27: -8.3
B30: =B27+1 -> 13 | D30: Total | E30: =SUM(E16:E27) -> 80 | F30: =SUM(F16:F27) -> 692.84 | H30: =SUM(H16:H27) -> 674.33 | J30: =H30-F30 -> -18.51
H32: Percent Change: | J32: =ROUND(J30/F30,4)*100 -> -2.67 | K32: %

Sheet Ut 1.7 Tot
L1: ='Control Panel'!$F$32 -> Questar Gas Company
L2: Docket Nos. 08-057-15, 08-057-16 & 08-057-17
L3: Hearing Exhibit 2
C7: EFFECT ON GS-1 TYPICAL CUSTOMER
B8: OF PROPOSED COMMODITY AND SNG RATES AND CET AND DSM AMORTIZATIONS
C9: 80 DTHS - ANNUAL CONSUMPTION
C12: (A) | D12: (B) | E12: (C) | F12: (D) | H12: (E) | J12: (F)
F13: Billed at Current | H13: Billed at
C14: Rate | E14: Usage | F14: Rates Effective | H14: Proposed
C15: Schedule | D15: Month | E15: In Dth | F15: ='Other Inputs'!J86 -> 2011-06-01 | H15: Rates | J15: Change
B17: 1 | C17: GS | D17: Jan | E17: ='Monthly Inputs'!G117 -> 14.9 | F17: =ROUND((+E17*'Other Inputs'!$G$88)+'Other Inputs'!$G$90,2) -> 127.42 | H17: ='CET & DSM'!D107 -> 144.08 | J17: =H17-F17 -> 16.66
B18: =B17+1 -> 2 | D18: Feb | E18: ='Monthly Inputs'!G118 -> 12.5 | F18: =ROUND((+E18*'Other Inputs'!$G$88)+'Other Inputs'!$G$90,2) -> 107.7 | H18: ='CET & DSM'!D108 -> 121.68 | J18: 13.98
B19: 3 | D19: Mar | E19: ='Monthly Inputs'!G119 -> 10.1 | F19: =ROUND((+E19*'Other Inputs'!$G$88)+'Other Inputs'!$G$90,2) -> 87.98 | H19: ='CET & DSM'!D109 -> 99.27 | J19: 11.29
B20: 4 | D20: Apr | E20: ='Monthly Inputs'!G120 -> 8.3 | F20: =ROUND((+E20*'Other Inputs'!$G$86)+'Other Inputs'!$G$90,2) -> 64.98 | H20: ='CET & DSM'!D110 -> 69.23 | J20: 4.25
B21: 5 | D21: May | E21: ='Monthly Inputs'!G121 -> 4.4 | F21: =ROUND((+E21*'Other Inputs'!$G$86)+'Other Inputs'!$G$90,2) -> 36.8 | H21: ='CET & DSM'!D111 -> 39.05 | J21: 2.25
B22: 6 | D22: Jun | E22: ='Monthly Inputs'!G122 -> 3.1 | F22: =ROUND((+E22*'Other Inputs'!$G$86)+'Other Inputs'!$G$90,2) -> 27.4 | H22: ='CET & DSM'!D112 -> 28.99 | J22: 1.59
B23: 7 | D23: Jul | E23: ='Monthly Inputs'!G123 -> 2 | F23: =ROUND((+E23*'Other Inputs'!$G$86)+'Other Inputs'!$G$90,2) -> 19.45 | H23: ='CET & DSM'!D113 -> 20.48 | J23: 1.03
B24: 8 | D24: Aug | E24: ='Monthly Inputs'!G124 -> 1.8 | F24: =ROUND((+E24*'Other Inputs'!$G$86)+'Other Inputs'!$G$90,2) -> 18.01 | H24: ='CET & DSM'!D114 -> 18.93 | J24: 0.92
B25: 9 | D25: Sep | E25: ='Monthly Inputs'!G125 -> 2 | F25: =ROUND((+E25*'Other Inputs'!$G$86)+'Other Inputs'!$G$90,2) -> 19.45 | H25: ='CET & DSM'!D115 -> 20.48 | J25: 1.03
B26: 10 | D26: Oct | E26: ='Monthly Inputs'!G126 -> 3.1 | F26: =ROUND((+E26*'Other Inputs'!$G$86)+'Other Inputs'!$G$90,2) -> 27.4 | H26: ='CET & DSM'!D116 -> 28.99 | J26: 1.59
B27: 11 | D27: Nov | E27: ='Monthly Inputs'!G127 -> 6.3 | F27: =ROUND((+E27*'Other Inputs'!$G$88)+'Other Inputs'!$G$90,2) -> 56.76 | H27: ='CET & DSM'!D117 -> 63.81 | J27: 7.05
B28: 12 | D28: Dec | E28: ='Monthly Inputs'!G128 -> 11.5 | F28: =ROUND((+E28*'Other Inputs'!$G$88)+'Other Inputs'!$G$90,2) -> 99.49 | H28: ='CET & DSM'!D118 -> 112.34 | J28: 12.85
B31: =B28+1 -> 13 | D31: Total | E31: =SUM(E17:E28) -> 80 | F31: =SUM(F17:F28) -> 692.84 | H31: =SUM(H17:H28) -> 767.33 | J31: =H31-F31 -> 74.49
H33: Percent Change: | J33: =ROUND(J31/F31,4)*100 -> 10.75 | K33: %

Sheet Ut 1.8
A1: SUMMARY OF PROPOSED RATES
A3: UTAH RATE CLASSES | C3: Rates per Dth Used Each Month
C4: All Season Rates or Summer Rates: Apr. 1 - Oct. 31 | F4: Winter Rates: Nov. 1 - Mar. 31
A5: UT GS | C5: First 45 Dth | D5: All Over 45 Dth | F5: First 45 Dth | G5: All Over 45 Dth
B6: Distribution Non-Gas Cost | C6: ='Other Inputs'!F210 -> 2.30308 | D6: ='Other Inputs'!F211 -> 1.14183 | F6: ='Other Inputs'!F212 -> 2.64902 | G6: ='Other Inputs'!F213 -> 1.36661
B7: Supplier Non-Gas Cost | C7: ='Ut 1.6 p3'!I17 -> 0.54987 | D7: =C7 -> 0.54987 | F7: ='Ut 1.6 p3'!I16 -> 1.17116 | G7: =F7 -> 1.17116 | I7: =F10-F7+D7 -> 7.494557771
B8: Commodity Cost | C8: =('Ut 1.6 p1'!$F$36) -> 4.295667771 | D8: =C8 -> 4.295667771 | F8: =D8 -> 4.295667771 | G8: =F8 -> 4.295667771
B10: Total Rate | C10: =SUM(C6:C9) -> 7.148617771 | D10: =SUM(D6:D9) -> 5.987367771 | F10: =SUM(F6:F9) -> 8.115847771 | G10: =SUM(G6:G9) -> 6.833437771
B12: BSF Category 1 | C12: 5
B13: BSF Category 2 | C13: 21
B14: BSF Category 3 | C14: 55
B15: BSF Category 4 | C15: 244
A18: UT FS | C18: First 200 Dth | D18: Next 1,800 Dth | E18: All Over 2,000 Dth | F18: First 200 Dth | G18: Next 1,800 Dth | H18: All Over 2,000 Dth
B19: Distribution Non-Gas Cost | C19: 0.65741 | D19: 0.51415 | E19: 0.44676 | F19: 0.73516 | G19: 0.58813 | H19: 0.52932
B20: Supplier Non-Gas Cost | C20: ='Ut 1.6 p3'!$I$20 -> 0.54985 | D20: =C20 -> 0.54985 | E20: =D20 -> 0.54985 | F20: ='Ut 1.6 p3'!$I$19 -> 1.14067 | G20: =F20 -> 1.14067 | H20: =G20 -> 1.14067
B21: Commodity Cost | C21: =('Ut 1.6 p1'!$F$36) -> 4.295667771 | D21: =C21 -> 4.295667771 | E21: =D21 -> 4.295667771 | F21: =E21 -> 4.295667771 | G21: =F21 -> 4.295667771 | H21: =G21 -> 4.295667771
B23: Total Rate | C23: =SUM(C19:C22) -> 5.502927771 | D23: =SUM(D19:D22) -> 5.359667771 | E23: 5.292277771 | F23: 6.171497771 | G23: 6.024467771 | H23: 5.965657771
B25: Minimum Monthly DNG Charge: | C25: =ROUND(C19*175,0) -> 115 | F25: =ROUND(F19*175,0) -> 129
B27: BSF Category 1 | C27: =C12 -> 5
B28: BSF Category 2 | C28: =C13 -> 21
B29: BSF Category 3 | C29: =C14 -> 55
B30: BSF Category 4 | C30: =C15 -> 244
A33: UT Future Rate Class
C34: First 10,000 Dth | D34: All Over 10,000 Dth
B35: Distribution Non-Gas Cost
B36: Supplier Non-Gas Cost
B37: Commodity Cost
B39: Total Rate | C39: =SUM(C35:C38) -> 0 | D39: =SUM(D35:D38) -> 0
B41: Minimum Yearly Distribution Non-Gas Charge | D41: =ROUND(((10000*C35))*12,-2) -> 0
B44: BSF Category 1 | C44: =C12 -> 5
B45: BSF Category 2 | C45: =C13 -> 21
B46: BSF Category 3 | C46: =C14 -> 55
B47: BSF Category 4 | C47: =C15 -> 244
A51: UT NGV
B52: Distribution Non-Gas Cost | C52: 4.96031
B53: Supplier Non-Gas Cost | C53: ='Ut 1.6 p3'!I22 -> 0.84514
B54: Commodity Cost | C54: ='Ut 1.6 p1'!F36 -> 4.295667771
B56: Total Rate | C56: =SUM(C52:C55) -> 10.10111777
A59: UT IS | C59: First 2,000 Dth | D59: Next 18,000 Dth | E59: All Over 20,000
B60: Distribution Non-Gas Cost | C60: 0.23461 | D60: 0.21584 | E60: 0.19857
B61: Supplier Non-Gas Cost | C61: ='Ut 1.6 p3'!$I$24/(1-'Other Inputs'!$E$265) -> 0.1800904523 | D61: =C61 -> 0.1800904523 | E61: =D61 -> 0.1800904523
B62: Commodity Cost | C62: Determined Monthly
B64: Total Rate | C64: Determined Monthly
B66: BSF Category 1 | C66: 5
B67: BSF Category 2 | C67: 29
B68: BSF Category 3 | C68: 67
B69: BSF Category 4 | C69: 274
A72: UT ES
B73: Distribution Non-Gas Cost | C73: 1.75503
B74: Supplier Non-Gas Cost | C74: ='Ut 1.6 p3'!I26 -> 6.07073
B75: Commodity Cost
B77: Total Rate

Sheet Ut 1.9
D1: ='Control Panel'!$F$32 -> Questar Gas Company
D2: ='Control Panel'!$F$33 -> Docket No. 11-057-08
D3: Exhibit 1.9
D4: Page 1 of 2
D6: ='Control Panel'!$F$32 -> Questar Gas Company
D7: ='Control Panel'!$F$33 -> Docket No. 11-057-08
D8: Exhibit 1.9
D9: Page 2 of 2

Sheet Ut 1.10
P17: Exhibit 1.10 | Q17: =CONCATENATE("Docket No. ",'Control Panel'!F5) -> Docket No. 11-057-08

Sheet Wy 1.1
F1: Questar Gas Company
E2: ='Control Panel'!F37 -> PSCW Docket No. 30010-1__-GP-11
F3: Exhibit 1.1
C4: Test Year Cost of Questar Gas' Production
C5: =CONCATENATE('Control Panel'!F40," through ",'Control Panel'!F41) -> Oct-11 through Sep-12
A7: (A) | B7: (B) | C7: (C) | D7: (D) | E7: (E) | F7: (F) | G7: (G) | H7: (H)
E8: Base Year | F8: Market | G8: Royalty | H8: Test Year
A9: Field Name | B9: Well Name | C9: Formation | D9: Price $ | E9: Dth | F9: Value $ | G9: Rate % | H9: Royalty $
A11: ACE UNIT (CO) | B11: ACE UNIT 2 FT UN | C11: FORT UNION | D11: =IF(LEFT(B11,12)=[2]Inputs!$C$24,[2]Inputs!$D$24,IF(LEFT(B11,13)=[2]Inputs!$C$25,[2]Inputs!$D$24,[2]Inputs!$D$26)) -> 3.866827441 | E11: 64107 | F11: =D11*E11 -> 247890.7067 | G11: 0.1268519763 | H11: =F11*G11 -> 31445.42606
B12: ACE UNIT 7 LOWER FT UN | C12: FORT UNION | D12: =IF(LEFT(B12,12)=[2]Inputs!$C$24,[2]Inputs!$D$24,IF(LEFT(B12,13)=[2]Inputs!$C$25,[2]Inputs!$D$24,[2]Inputs!$D$26)) -> 3.866827441 | E12: 4732 | F12: =D12*E12 -> 18297.82745 | G12: 0.1268519763 | H12: =F12*G12 -> 2321.115574
B13: ACE UNIT 10 FT UN | C13: FORT UNION | D13: =IF(LEFT(B13,12)=[2]Inputs!$C$24,[2]Inputs!$D$24,IF(LEFT(B13,13)=[2]Inputs!$C$25,[2]Inputs!$D$24,[2]Inputs!$D$26)) -> 3.866827441 | E13: 62723 | F13: =D13*E13 -> 242539.0176 | G13: 0.1268519763 | H13: 30766.55371
B14: ACE UNIT 12 FT UN | C14: FORT UNION | D14: =IF(LEFT(B14,12)=[2]Inputs!$C$24,[2]Inputs!$D$24,IF(LEFT(B14,13)=[2]Inputs!$C$25,[2]Inputs!$D$24,[2]Inputs!$D$26)) -> 3.866827441 | E14: 118339 | F14: 457596.4925 | G14: 0.1268519763 | H14: 58047.01943
B15: ACE UNIT 11 FT UN | C15: FORT UNION | D15: =IF(LEFT(B15,12)=[2]Inputs!$C$24,[2]Inputs!$D$24,IF(LEFT(B15,13)=[2]Inputs!$C$25,[2]Inputs!$D$24,[2]Inputs!$D$26)) -> 3.866827441 | E15: 37891 | F15: 146517.9586 | G15: 0.1268519763 | H15: 18586.09261
B16: ACE UNIT 13 FT UN | C16: FORT UNION | D16: =IF(LEFT(B16,12)=[2]Inputs!$C$24,[2]Inputs!$D$24,IF(LEFT(B16,13)=[2]Inputs!$C$25,[2]Inputs!$D$24,[2]Inputs!$D$26)) -> 3.866827441 | E16: 66584 | F16: 257468.8383 | G16: 0.1268519763 | H16: 32660.43098
A17: E HIAW (CO) | B17: HIAWATHA UNIT 1 FT UN | C17: FORT UNION | D17: =IF(LEFT(B17,12)=[2]Inputs!$C$24,[2]Inputs!$D$24,IF(LEFT(B17,13)=[2]Inputs!$C$25,[2]Inputs!$D$24,[2]Inputs!$D$26)) -> 3.866827441 | E17: 33965 | F17: 131336.794 | G17: 0.1925 | H17: 25282.33285
B18: F WILSON A 2 WAS | C18: WASATCH | D18: =IF(LEFT(B18,12)=[2]Inputs!$C$24,[2]Inputs!$D$24,IF(LEFT(B18,13)=[2]Inputs!$C$25,[2]Inputs!$D$24,[2]Inputs!$D$26)) -> 3.866827441 | E18: 123403 | F18: 477178.1067 | G18: 0.1925 | H18: 91856.78553
B19: F WILSON B 3 WAS | C19: WASATCH | D19: =IF(LEFT(B19,12)=[2]Inputs!$C$24,[2]Inputs!$D$24,IF(LEFT(B19,13)=[2]Inputs!$C$25,[2]Inputs!$D$24,[2]Inputs!$D$26)) -> 3.866827441 | E19: 141614 | F19: 547596.9012 | G19: 0.1625 | H19: 88984.49644
B20: F WILSON B 6 WAS | C20: WASATCH | D20: =IF(LEFT(B20,12)=[2]Inputs!$C$24,[2]Inputs!$D$24,IF(LEFT(B20,13)=[2]Inputs!$C$25,[2]Inputs!$D$24,[2]Inputs!$D$26)) -> 3.866827441 | E20: 121921 | F20: 471447.4684 | G20: 0.1625 | H20: 76610.21361
B21: F WILSON A 9 WAS | C21: WASATCH | D21: =IF(LEFT(B21,12)=[2]Inputs!$C$24,[2]Inputs!$D$24,IF(LEFT(B21,13)=[2]Inputs!$C$25,[2]Inputs!$D$24,[2]Inputs!$D$26)) -> 3.866827441 | E21: 13891 | F21: 53714.09998 | G21: 0.1925 | H21: 10339.96425
B22: F WILSON B 12 FT UN | C22: FORT UNION | D22: =IF(LEFT(B22,12)=[2]Inputs!$C$24,[2]Inputs!$D$24,IF(LEFT(B22,13)=[2]Inputs!$C$25,[2]Inputs!$D$24,[2]Inputs!$D$26)) -> 3.866827441 | E22: 55651 | F22: 215192.8139 | G22: 0.1625 | H22: 34968.83226
B23: F WILSON B 2 UNIT (HIAW) FT UN | C23: FORT UNION | D23: =IF(LEFT(B23,12)=[2]Inputs!$C$24,[2]Inputs!$D$24,IF(LEFT(B23,13)=[2]Inputs!$C$25,[2]Inputs!$D$24,[2]Inputs!$D$26)) -> 3.866827441 | E23: 32512 | F23: 125718.2937 | G23: 0.1625 | H23: 20429.22273
B24: F WILSON A 22 FT UN | C24: FORT UNION | D24: =IF(LEFT(B24,12)=[2]Inputs!$C$24,[2]Inputs!$D$24,IF(LEFT(B24,13)=[2]Inputs!$C$25,[2]Inputs!$D$24,[2]Inputs!$D$26)) -> 3.866827441 | E24: 27441 | F24: 106109.6118 | G24: 0.1925 | H24: 20426.10027
B25: STLD 3712100 NE4 2 WAS | C25: WASATCH | D25: =IF(LEFT(B25,12)=[2]Inputs!$C$24,[2]Inputs!$D$24,IF(LEFT(B25,13)=[2]Inputs!$C$25,[2]Inputs!$D$24,[2]Inputs!$D$26)) -> 3.866827441 | E25: 20517 | F25: 79335.6986 | G25: 0.13375 | H25: 10611.14969
B26: STLD 3712100 SE4 4 WAS | C26: WASATCH | D26: =IF(LEFT(B26,12)=[2]Inputs!$C$24,[2]Inputs!$D$24,IF(LEFT(B26,13)=[2]Inputs!$C$25,[2]Inputs!$D$24,[2]Inputs!$D$26)) -> 3.866827441 | E26: 24418 | F26: 94420.19244 | G26: 0.1375 | H26: 12982.77646
B27: STLD 3712100 W2 5 FT UN | C27: FORT UNION | D27: =IF(LEFT(B27,12)=[2]Inputs!$C$24,[2]Inputs!$D$24,IF(LEFT(B27,13)=[2]Inputs!$C$25,[2]Inputs!$D$24,[2]Inputs!$D$26)) -> 3.866827441 | E27: 46226 | F27: 178747.9653 | G27: 0.13375 | H27: 23907.54035
B28: G KUYKENDALL A 8 FT UN | C28: FORT UNION | D28: =IF(LEFT(B28,12)=[2]Inputs!$C$24,[2]Inputs!$D$24,IF(LEFT(B28,13)=[2]Inputs!$C$25,[2]Inputs!$D$24,[2]Inputs!$D$26)) -> 3.866827441 | E28: 8283 | F28: 32028.93169 | G28: 0.1925 | H28: 6165.56935
B29: KS WHITFORD 1 WAS | C29: WASATCH | D29: =IF(LEFT(B29,12)=[2]Inputs!$C$24,[2]Inputs!$D$24,IF(LEFT(B29,13)=[2]Inputs!$C$25,[2]Inputs!$D$24,[2]Inputs!$D$26)) -> 3.866827441 | E29: 63018 | F29: 243679.7317 | G29: 0.155 | H29: 37770.35841
B30: F WILSON B 24 FT UN | C30: FORT UNION | D30: =IF(LEFT(B30,12)=[2]Inputs!$C$24,[2]Inputs!$D$24,IF(LEFT(B30,13)=[2]Inputs!$C$25,[2]Inputs!$D$24,[2]Inputs!$D$26)) -> 3.866827441 | E30: 94563 | F30: 365658.8033 | G30: 0.1625 | H30: 59419.55553
B31: F WILSON B 25 FT UN | C31: FORT UNION | D31: =IF(LEFT(B31,12)=[2]Inputs!$C$24,[2]Inputs!$D$24,IF(LEFT(B31,13)=[2]Inputs!$C$25,[2]Inputs!$D$24,[2]Inputs!$D$26)) -> 3.866827441 | E31: 15271 | F31: 59050.32185 | G31: 0.1625 | H31: 9595.6773
B32: F WILSON A 26 FT UN | C32: FORT UNION | D32: =IF(LEFT(B32,12)=[2]Inputs!$C$24,[2]Inputs!$D$24,IF(LEFT(B32,13)=[2]Inputs!$C$25,[2]Inputs!$D$24,[2]Inputs!$D$26)) -> 3.866827441 | E32: 65437 | F32: 253033.5872 | G32: 0.1925 | H32: 48708.96554
B33: HIAWATHA STATELAND 6 FT UN | C33: FORT UNION | D33: =IF(LEFT(B33,12)=[2]Inputs!$C$24,[2]Inputs!$D$24,IF(LEFT(B33,13)=[2]Inputs!$C$25,[2]Inputs!$D$24,[2]Inputs!$D$26)) -> 3.866827441 | E33: 14023 | F33: 54224.5212 | G33: 0.13375 | H33: 7252.52971
B34: G KUYKENDALL 9 FT UN | C34: FORT UNION | D34: =IF(LEFT(B34,12)=[2]Inputs!$C$24,[2]Inputs!$D$24,IF(LEFT(B34,13)=[2]Inputs!$C$25,[2]Inputs!$D$24,[2]Inputs!$D$26)) -> 3.866827441 | E34: 42062 | F34: 162646.4958 | G34: 0.1925 | H34: 31309.45044
B35: F WILSON A 20 FT UN | C35: FORT UNION | D35: =IF(LEFT(B35,12)=[2]Inputs!$C$24,[2]Inputs!$D$24,IF(LEFT(B35,13)=[2]Inputs!$C$25,[2]Inputs!$D$24,[2]Inputs!$D$26)) -> 3.866827441 | E35: 1010 | F35: 3905.495715 | G35: 0.1925 | H35: 751.8079251
B36: F WILSON A 20 LEW/LAN/FT UN | C36: LEWIS/LANCE/FT U | D36: =IF(LEFT(B36,12)=[2]Inputs!$C$24,[2]Inputs!$D$24,IF(LEFT(B36,13)=[2]Inputs!$C$25,[2]Inputs!$D$24,[2]Inputs!$D$26)) -> 3.866827441 | E36: 19193 | F36: 74216.01907 | G36: 0.1925 | H36: 14286.58367
B37: F WILSON 32 MESA | C37: MESAVERDE | D37: =IF(LEFT(B37,12)=[2]Inputs!$C$24,[2]Inputs!$D$24,IF(LEFT(B37,13)=[2]Inputs!$C$25,[2]Inputs!$D$24,[2]Inputs!$D$26)) -> 3.866827441 | E37: 5275 | F37: 20397.51475 | G37: 0.1925 | H37: 3926.521589
B38: F WILSON 32 LEWIS | C38: LEWIS | D38: =IF(LEFT(B38,12)=[2]Inputs!$C$24,[2]Inputs!$D$24,IF(LEFT(B38,13)=[2]Inputs!$C$25,[2]Inputs!$D$24,[2]Inputs!$D$26)) -> 3.866827441 | E38: 37843 | F38: 146332.3508 | G38: 0.1925 | H38: 28168.97754
B39: F WILSON 32 LANCE | C39: LANCE | D39: =IF(LEFT(B39,12)=[2]Inputs!$C$24,[2]Inputs!$D$24,IF(LEFT(B39,13)=[2]Inputs!$C$25,[2]Inputs!$D$24,[2]Inputs!$D$26)) -> 3.866827441 | E39: 42675 | F39: 165016.861 | G39: 0.1925 | H39: 31765.74575
B40: HIAWATHA STLD 7 FT UN | C40: FORT UNION | D40: =IF(LEFT(B40,12)=[2]Inputs!$C$24,[2]Inputs!$D$24,IF(LEFT(B40,13)=[2]Inputs!$C$25,[2]Inputs!$D$24,[2]Inputs!$D$26)) -> 3.866827441 | E40: 32353 | F40: 125103.4682 | G40: 0.1375 | H40: 17201.72688
B41: F WILSON 33 LEWIS | C41: LEWIS | D41: =IF(LEFT(B41,12)=[2]Inputs!$C$24,[2]Inputs!$D$24,IF(LEFT(B41,13)=[2]Inputs!$C$25,[2]Inputs!$D$24,[2]Inputs!$D$26)) -> 3.866827441 | E41: 17768 | F41: 68705.78996 | G41: 0.1925 | H41: 13225.86457
B42: F WILSON 33 LANCE | C42: LANCE | D42: =IF(LEFT(B42,12)=[2]Inputs!$C$24,[2]Inputs!$D$24,IF(LEFT(B42,13)=[2]Inputs!$C$25,[2]Inputs!$D$24,[2]Inputs!$D$26)) -> 3.866827441 | E42: 20360 | F42: 78728.60669 | G42: 0.1925 | H42: 15155.25679
B43: F WILSON 34 LEW/LAN/FT UN | C43: LEWIS/LANCE/FT U | D43: =IF(LEFT(B43,12)=[2]Inputs!$C$24,[2]Inputs!$D$24,IF(LEFT(B43,13)=[2]Inputs!$C$25,[2]Inputs!$D$24,[2]Inputs!$D$26)) -> 3.866827441 | E43: 76706 | F43: 296608.8657 | G43: 0.1625 | H43: 48198.94067
B44: F WILSON 35 LEW/LAN/FT UN | C44: LEWIS/LANCE/FT U | D44: =IF(LEFT(B44,12)=[2]Inputs!$C$24,[2]Inputs!$D$24,IF(LEFT(B44,13)=[2]Inputs!$C$25,[2]Inputs!$D$24,[2]Inputs!$D$26)) -> 3.866827441 | E44: 127091 | F44: 491438.9663 | G44: 0.1925 | H44: 94602.001
B45: F WILSON 29E (DD) FT UN | C45: FORT UNION | D45: =IF(LEFT(B45,12)=[2]Inputs!$C$24,[2]Inputs!$D$24,IF(LEFT(B45,13)=[2]Inputs!$C$25,[2]Inputs!$D$24,[2]Inputs!$D$26)) -> 3.866827441 | E45: 33975 | F45: 131375.4623 | G45: 0.1625 | H45: 21348.51262
B46: F WILSON 37 MESA | C46: MESAVERDE | D46: =IF(LEFT(B46,12)=[2]Inputs!$C$24,[2]Inputs!$D$24,IF(LEFT(B46,13)=[2]Inputs!$C$25,[2]Inputs!$D$24,[2]Inputs!$D$26)) -> 3.866827441 | E46: 17654 | F46: 68264.97164 | G46: 0.2325 | H46: 15871.60591
B47: F WILSON 37 LEW/LNC/FTUN | C47: LEWIS/LANCE/FT U | D47: =IF(LEFT(B47,12)=[2]Inputs!$C$24,[2]Inputs!$D$24,IF(LEFT(B47,13)=[2]Inputs!$C$25,[2]Inputs!$D$24,[2]Inputs!$D$26)) -> 3.866827441 | E47: 100034 | F47: 386814.2162 | G47: 0.1625 | H47: 62857.31013
A48: HIAW DEEP (CO) | B48: HIAWATHA DEEP UNIT 1 NUGGET | C48: NUGGET | D48: =IF(LEFT(B48,12)=[2]Inputs!$C$24,[2]Inputs!$D$24,IF(LEFT(B48,13)=[2]Inputs!$C$25,[2]Inputs!$D$24,[2]Inputs!$D$26)) -> 3.866827441 | E48: 92817 | F48: 358907.3226 | G48: 0.1723962084 | H48: 61874.26156
B49: HIAWATHA DEEP UNIT 3 NUGGET | C49: NUGGET | D49: =IF(LEFT(B49,12)=[2]Inputs!$C$24,[2]Inputs!$D$24,IF(LEFT(B49,13)=[2]Inputs!$C$25,[2]Inputs!$D$24,[2]Inputs!$D$26)) -> 3.866827441 | E49: 317499 | F49: 1227713.846 | G49: 0.1714959958 | H49: 210548.0085
B50: HIAWATHA DEEP UNIT 2 NUGGET | C50: NUGGET | D50: =IF(LEFT(B50,12)=[2]Inputs!$C$24,[2]Inputs!$D$24,IF(LEFT(B50,13)=[2]Inputs!$C$25,[2]Inputs!$D$24,[2]Inputs!$D$26)) -> 3.866827441 | E50: 18577 | F50: 71834.05336 | G50: 0.172395903 | H50: 12383.8965
A51: JACKS DRAW (CO) | B51: JACKS DRAW UNIT 2 FT UN | C51: FORT UNION | D51: =IF(LEFT(B51,12)=[2]Inputs!$C$24,[2]Inputs!$D$24,IF(LEFT(B51,13)=[2]Inputs!$C$25,[2]Inputs!$D$24,[2]Inputs!$D$26)) -> 3.866827441 | E51: 50094 | F51: 193704.8538 | G51: 0.1396875 | H51: 27058.14677
B52: JACKS DRAW UNIT 3 FT UN | C52: FORT UNION | D52: =IF(LEFT(B52,12)=[2]Inputs!$C$24,[2]Inputs!$D$24,IF(LEFT(B52,13)=[2]Inputs!$C$25,[2]Inputs!$D$24,[2]Inputs!$D$26)) -> 3.866827441 | E52: 27293 | F52: 105537.3213 | G52: 0.1396875 | H52: 14742.24457
B53: JACKS DRAW UNIT 9 FT UN | C53: FORT UNION | D53: =IF(LEFT(B53,12)=[2]Inputs!$C$24,[2]Inputs!$D$24,IF(LEFT(B53,13)=[2]Inputs!$C$25,[2]Inputs!$D$24,[2]Inputs!$D$26)) -> 3.866827441 | E53: 37337 | F53: 144375.7362 | G53: 0.1396875 | H53: 20167.48564
B54: JACKS DRAW UNIT 5 FT UN | C54: FORT UNION | D54: =IF(LEFT(B54,12)=[2]Inputs!$C$24,[2]Inputs!$D$24,IF(LEFT(B54,13)=[2]Inputs!$C$25,[2]Inputs!$D$24,[2]Inputs!$D$26)) -> 3.866827441 | E54: 2808 | F54: 10858.05145 | G54: 0.1489132823 | H54: 1616.908082
B55: JACKS DRAW UNIT 8 FT UN | C55: FORT UNION | D55: =IF(LEFT(B55,12)=[2]Inputs!$C$24,[2]Inputs!$D$24,IF(LEFT(B55,13)=[2]Inputs!$C$25,[2]Inputs!$D$24,[2]Inputs!$D$26)) -> 3.866827441 | E55: 4137 | F55: 15997.06512 | G55: 0.1489132823 | H55: 2382.175475
B56: JACKS DRAW UNIT 17 FT UN | C56: FORT UNION | D56: =IF(LEFT(B56,12)=[2]Inputs!$C$24,[2]Inputs!$D$24,IF(LEFT(B56,13)=[2]Inputs!$C$25,[2]Inputs!$D$24,[2]Inputs!$D$26)) -> 3.866827441 | E56: 51883 | F56: 200622.6081 | G56: 0.1396875 | H56: 28024.47057
A57: LO HORSE DR (CO) | B57: LOWER HORSE DRAW 11-1 MANCOS B | C57: MANCOS B | D57: =IF(LEFT(B57,12)=[2]Inputs!$C$24,[2]Inputs!$D$24,IF(LEFT(B57,13)=[2]Inputs!$C$25,[2]Inputs!$D$24,[2]Inputs!$D$26)) -> 3.866827441 | E57: 2505 | F57: 9686.402739 | G57: 0.125 | H57: 1210.800342
B58: LOWER HORSE DRAW 12-2 MANCOS B | C58: MANCOS B | D58: =IF(LEFT(B58,12)=[2]Inputs!$C$24,[2]Inputs!$D$24,IF(LEFT(B58,13)=[2]Inputs!$C$25,[2]Inputs!$D$24,[2]Inputs!$D$26)) -> 3.866827441 | E58: 21330 | F58: 82479.42931 | G58: 0.125 | H58: 10309.92866
B59: LOWER HORSE DRAW 10-1 MANCOS B | C59: MANCOS B | D59: =IF(LEFT(B59,12)=[2]Inputs!$C$24,[2]Inputs!$D$24,IF(LEFT(B59,13)=[2]Inputs!$C$25,[2]Inputs!$D$24,[2]Inputs!$D$26)) -> 3.866827441 | E59: 3097 | F59: 11975.56458 | G59: 0.125 | H59: 1496.945573
B60: LOWER HORSE DRAW 10-2 MB SILT | C60: MANCOS B SILT | D60: =IF(LEFT(B60,12)=[2]Inputs!$C$24,[2]Inputs!$D$24,IF(LEFT(B60,13)=[2]Inputs!$C$25,[2]Inputs!$D$24,[2]Inputs!$D$26)) -> 3.866827441 | E60: 6435 | F60: 24883.03458 | G60: 0.125 | H60: 3110.379323
B61: LOWER HORSE FED 11-5 MANCOS B | C61: MANCOS B | D61: =IF(LEFT(B61,12)=[2]Inputs!$C$24,[2]Inputs!$D$24,IF(LEFT(B61,13)=[2]Inputs!$C$25,[2]Inputs!$D$24,[2]Inputs!$D$26)) -> 3.866827441 | E61: 26250 | F61: 101504.2203 | G61: 0.125 | H61: 12688.02754
B62: LOWER HORSE FED 11-5 MB SILT | C62: MANCOS B SILT | D62: =IF(LEFT(B62,12)=[2]Inputs!$C$24,[2]Inputs!$D$24,IF(LEFT(B62,13)=[2]Inputs!$C$25,[2]Inputs!$D$24,[2]Inputs!$D$26)) -> 3.866827441 | E62: 17142 | F62: 66285.15599 | G62: 0.125 | H62: 8285.644498
A63: POWDER WASH (CO) | B63: CARL ALLEN B 4 WAS | C63: WASATCH | D63: =IF(LEFT(B63,12)=[2]Inputs!$C$24,[2]Inputs!$D$24,IF(LEFT(B63,13)=[2]Inputs!$C$25,[2]Inputs!$D$24,[2]Inputs!$D$26)) -> 3.866827441 | E63: 7335 | F63: 28363.17928 | G63: 0.1100461 | H63: 3121.257263
B64: CARL ALLEN B 6 FT UN | C64: FORT UNION | D64: =IF(LEFT(B64,12)=[2]Inputs!$C$24,[2]Inputs!$D$24,IF(LEFT(B64,13)=[2]Inputs!$C$25,[2]Inputs!$D$24,[2]Inputs!$D$26)) -> 3.866827441 | E64: 55296 | F64: 213820.0902 | G64: 0.1100461 | H64: 23530.06702
B65: CARL ALLEN B 6 LOWER FT UN | C65: FORT UNION | D65: =IF(LEFT(B65,12)=[2]Inputs!$C$24,[2]Inputs!$D$24,IF(LEFT(B65,13)=[2]Inputs!$C$25,[2]Inputs!$D$24,[2]Inputs!$D$26)) -> 3.866827441 | E65: 55296 | F65: 213820.0902 | G65: 0.1100461 | H65: 23530.06702
B66: CARL ALLEN B 7 FT UN | C66: FORT UNION | D66: =IF(LEFT(B66,12)=[2]Inputs!$C$24,[2]Inputs!$D$24,IF(LEFT(B66,13)=[2]Inputs!$C$25,[2]Inputs!$D$24,[2]Inputs!$D$26)) -> 3.866827441 | E66: 102738 | F66: 397270.1176 | G66: 0.1100461 | H66: 43718.02709
B67: CARL ALLEN A 8 FT UN | C67: FORT UNION | D67: =IF(LEFT(B67,12)=[2]Inputs!$C$24,[2]Inputs!$D$24,IF(LEFT(B67,13)=[2]Inputs!$C$25,[2]Inputs!$D$24,[2]Inputs!$D$26)) -> 3.866827441 | E67: 43976 | F67: 170047.6035 | G67: 0.1100461 | H67: 18713.07558
B68: CARL ALLEN B 10 WAS | C68: WASATCH | D68: =IF(LEFT(B68,12)=[2]Inputs!$C$24,[2]Inputs!$D$24,IF(LEFT(B68,13)=[2]Inputs!$C$25,[2]Inputs!$D$24,[2]Inputs!$D$26)) -> 3.866827441 | E68: 3177 | F68: 12284.91078 | G68: 0.1100461 | H68: 1351.90652
B69: CARL ALLEN A 11 FT UN | C69: FORT UNION | D69: =IF(LEFT(B69,12)=[2]Inputs!$C$24,[2]Inputs!$D$24,IF(LEFT(B69,13)=[2]Inputs!$C$25,[2]Inputs!$D$24,[2]Inputs!$D$26)) -> 3.866827441 | E69: 13610 | F69: 52627.52147 | G69: 0.1100461 | H69: 5791.45349
B70: CARL ALLEN A 11 LOWER FT UN | C70: FORT UNION | D70: =IF(LEFT(B70,12)=[2]Inputs!$C$24,[2]Inputs!$D$24,IF(LEFT(B70,13)=[2]Inputs!$C$25,[2]Inputs!$D$24,[2]Inputs!$D$26)) -> 3.866827441 | E70: 287726 | F70: 1112586.792 | G70: 0.110046 | H70: 122435.7261
B71: CARL ALLEN B 15 WAS | C71: WASATCH | D71: =IF(LEFT(B71,12)=[2]Inputs!$C$24,[2]Inputs!$D$24,IF(LEFT(B71,13)=[2]Inputs!$C$25,[2]Inputs!$D$24,[2]Inputs!$D$26)) -> 3.866827441 | E71: 19690 | F71: 76137.83231 | G71: 0.1100461 | H71: 8378.671508
B72: CARL ALLEN B 17 WAS | C72: WASATCH | D72: =IF(LEFT(B72,12)=[2]Inputs!$C$24,[2]Inputs!$D$24,IF(LEFT(B72,13)=[2]Inputs!$C$25,[2]Inputs!$D$24,[2]Inputs!$D$26)) -> 3.866827441 | E72: 26343 | F72: 101863.8353 | G72: 0.1100461 | H72: 11209.7178
B73: CARL ALLEN A 19 FT UN | C73: FORT UNION | D73: =IF(LEFT(B73,12)=[2]Inputs!$C$24,[2]Inputs!$D$24,IF(LEFT(B73,13)=[2]Inputs!$C$25,[2]Inputs!$D$24,[2]Inputs!$D$26)) -> 3.866827441 | E73: 123167 | F73: 476265.5354 | G73: 0.1100461 | H73: 52411.16473
B74: CARL ALLEN A 20 FT UN | C74: FORT UNION | D74: =IF(LEFT(B74,12)=[2]Inputs!$C$24,[2]Inputs!$D$24,IF(LEFT(B74,13)=[2]Inputs!$C$25,[2]Inputs!$D$24,[2]Inputs!$D$26)) -> 3.866827441 | E74: 39473 | F74: 152635.2796 | G74: 0.1100461 | H74: 16796.91724
B75: BW MUSSER A 1 WAS | C75: WASATCH | D75: =IF(LEFT(B75,12)=[2]Inputs!$C$24,[2]Inputs!$D$24,IF(LEFT(B75,13)=[2]Inputs!$C$25,[2]Inputs!$D$24,[2]Inputs!$D$26)) -> 3.866827441 | E75: 10055 | F75: 38880.94992 | G75: 0.1100461 | H75: 4278.696902
B76: BW MUSSER B 21 FT UN | C76: FORT UNION | D76: =IF(LEFT(B76,12)=[2]Inputs!$C$24,[2]Inputs!$D$24,IF(LEFT(B76,13)=[2]Inputs!$C$25,[2]Inputs!$D$24,[2]Inputs!$D$26)) -> 3.866827441 | E76: 52556 | F76: 203224.983 | G76: 0.1100461 | H76: =F76*G76 -> 22364.1168
B77: BW MUSSER B 6 WAS | C77: WASATCH | D77: =IF(LEFT(B77,12)=[2]Inputs!$C$24,[2]Inputs!$D$24,IF(LEFT(B77,13)=[2]Inputs!$C$25,[2]Inputs!$D$24,[2]Inputs!$D$26)) -> 3.866827441 | E77: 26558 | F77: =D77*E77 -> 102695.2032 | G77: 0.1100461 | H77: 11301.2066
B78: BW MUSSER B 10 FT UN | C78: FORT UNION | D78: =IF(LEFT(B78,12)=[2]Inputs!$C$24,[2]Inputs!$D$24,IF(LEFT(B78,13)=[2]Inputs!$C$25,[2]Inputs!$D$24,[2]Inputs!$D$26)) -> 3.866827441 | E78: 25697 | F78: 99365.86474 | G78: 0.1100461 | H78: 10934.82589
B79: BW MUSSER B 11 FT UN | C79: FORT UNION | D79: =IF(LEFT(B79,12)=[2]Inputs!$C$24,[2]Inputs!$D$24,IF(LEFT(B79,13)=[2]Inputs!$C$25,[2]Inputs!$D$24,[2]Inputs!$D$26)) -> 3.866827441 | E79: 14919 | F79: 57689.19859 | G79: 0.1100461 | H79: 6348.471317
B80: JC DONNELL B 3 WAS | C80: WASATCH | D80: =IF(LEFT(B80,12)=[2]Inputs!$C$24,[2]Inputs!$D$24,IF(LEFT(B80,13)=[2]Inputs!$C$25,[2]Inputs!$D$24,[2]Inputs!$D$26)) -> 3.866827441 | E80: 67500 | F80: 261010.8522 | G80: 0.1100461 | H80: 28723.22635
B81: JC DONNELL B 5 FT UN | C81: FORT UNION | D81: =IF(LEFT(B81,12)=[2]Inputs!$C$24,[2]Inputs!$D$24,IF(LEFT(B81,13)=[2]Inputs!$C$25,[2]Inputs!$D$24,[2]Inputs!$D$26)) -> 3.866827441 | E81: 24454 | F81: 94559.39823 | G81: 0.1100461 | H81: 10405.89299
B82: JC DONNELL B 9 FT UN | C82: FORT UNION | D82: =IF(LEFT(B82,12)=[2]Inputs!$C$24,[2]Inputs!$D$24,IF(LEFT(B82,13)=[2]Inputs!$C$25,[2]Inputs!$D$24,[2]Inputs!$D$26)) -> 3.866827441 | E82: 23996 | F82: 92788.39127 | G82: 0.1100461 | H82: 10211.00058
B83: JC DONNELL B 10 FT UN | C83: FORT UNION | D83: =IF(LEFT(B83,12)=[2]Inputs!$C$24,[2]Inputs!$D$24,IF(LEFT(B83,13)=[2]Inputs!$C$25,[2]Inputs!$D$24,[2]Inputs!$D$26)) -> 3.866827441 | E83: 61145 | F83: 236437.1639 | G83: 0.1100461 | H83: 26018.98778
B84: H STEWART A 1 FT UN | C84: FORT UNION | D84: =IF(LEFT(B84,12)=[2]Inputs!$C$24,[2]Inputs!$D$24,IF(LEFT(B84,13)=[2]Inputs!$C$25,[2]Inputs!$D$24,[2]Inputs!$D$26)) -> 3.866827441 | E84: 16095 | F84: 62236.58766 | G84: 0.1100461 | H84: 6848.893749
B85: BW MUSSER B 13 FT UN | C85: FORT UNION | D85: =IF(LEFT(B85,12)=[2]Inputs!$C$24,[2]Inputs!$D$24,IF(LEFT(B85,13)=[2]Inputs!$C$25,[2]Inputs!$D$24,[2]Inputs!$D$26)) -> 3.866827441 | E85: 37361 | F85: 144468.54 | G85: 0.1100461 | H85: 15898.1994
B86: BW MUSSER A 14 FT UN | C86: FORT UNION | D86: =IF(LEFT(B86,12)=[2]Inputs!$C$24,[2]Inputs!$D$24,IF(LEFT(B86,13)=[2]Inputs!$C$25,[2]Inputs!$D$24,[2]Inputs!$D$26)) -> 3.866827441 | E86: 28814 | F86: 111418.7659 | G86: 0.1100461 | H86: 12261.20065
B87: BW MUSSER 15 UPPER FT UN | C87: FORT UNION | D87: =IF(LEFT(B87,12)=[2]Inputs!$C$24,[2]Inputs!$D$24,IF(LEFT(B87,13)=[2]Inputs!$C$25,[2]Inputs!$D$24,[2]Inputs!$D$26)) -> 3.866827441 | E87: 20201 | F87: 78113.78113 | G87: 0.1100461 | H87: 8596.116969
B88: BW MUSSER A 16 WAS | C88: WASATCH | D88: =IF(LEFT(B88,12)=[2]Inputs!$C$24,[2]Inputs!$D$24,IF(LEFT(B88,13)=[2]Inputs!$C$25,[2]Inputs!$D$24,[2]Inputs!$D$26)) -> 3.866827441 | E88: 104521 | F88: 404164.6709 | G88: 0.110046 | H88: 44476.70538
B89: BW MUSSER B 18 FT UN | C89: FORT UNION | D89: =IF(LEFT(B89,12)=[2]Inputs!$C$24,[2]Inputs!$D$24,IF(LEFT(B89,13)=[2]Inputs!$C$25,[2]Inputs!$D$24,[2]Inputs!$D$26)) -> 3.866827441 | E89: 80171 | F89: 310007.4227 | G89: 0.1100461 | H89: 34115.10784
B90: BW MUSSER B 19 FT UN | C90: FORT UNION | D90: =IF(LEFT(B90,12)=[2]Inputs!$C$24,[2]Inputs!$D$24,IF(LEFT(B90,13)=[2]Inputs!$C$25,[2]Inputs!$D$24,[2]Inputs!$D$26)) -> 3.866827441 | E90: 45647 | F90: 176509.0722 | G90: 0.1100461 | H90: 19424.13501
B91: BW MUSSER B 20 FT UN | C91: FORT UNION | D91: =IF(LEFT(B91,12)=[2]Inputs!$C$24,[2]Inputs!$D$24,IF(LEFT(B91,13)=[2]Inputs!$C$25,[2]Inputs!$D$24,[2]Inputs!$D$26)) -> 3.866827441 | E91: 10951 | F91: 42345.6273 | G91: 0.1100461 | H91: 4659.971137
B92: POWDER WASH GOVT 1 FT UN | C92: FORT UNION | D92: =IF(LEFT(B92,12)=[2]Inputs!$C$24,[2]Inputs!$D$24,IF(LEFT(B92,13)=[2]Inputs!$C$25,[2]Inputs!$D$24,[2]Inputs!$D$26)) -> 3.866827441 | E92: 13171 | F92: 50929.98422 | G92: 0.1100461 | H92: 5604.646137
B93: POWDER WASH GOVT 2 FT UN | C93: FORT UNION | D93: =IF(LEFT(B93,12)=[2]Inputs!$C$24,[2]Inputs!$D$24,IF(LEFT(B93,13)=[2]Inputs!$C$25,[2]Inputs!$D$24,[2]Inputs!$D$26)) -> 3.866827441 | E93: 3803 | F93: 14705.54476 | G93: 0.1100461 | H93: 1618.287849
B94: JC DONNELL A 11 FT UN | C94: FORT UNION | D94: =IF(LEFT(B94,12)=[2]Inputs!$C$24,[2]Inputs!$D$24,IF(LEFT(B94,13)=[2]Inputs!$C$25,[2]Inputs!$D$24,[2]Inputs!$D$26)) -> 3.866827441 | E94: 83780 | F94: 323962.803 | G94: 0.1100461 | H94: 35650.84301
B95: JC DONNELL B 12 FT UN | C95: FORT UNION | D95: =IF(LEFT(B95,12)=[2]Inputs!$C$24,[2]Inputs!$D$24,IF(LEFT(B95,13)=[2]Inputs!$C$25,[2]Inputs!$D$24,[2]Inputs!$D$26)) -> 3.866827441 | E95: 2246 | F95: 8684.894432 | G95: 0.1100461 | H95: 955.7387611
B96: JA LEE 1 FT UN | C96: FORT UNION | D96: =IF(LEFT(B96,12)=[2]Inputs!$C$24,[2]Inputs!$D$24,IF(LEFT(B96,13)=[2]Inputs!$C$25,[2]Inputs!$D$24,[2]Inputs!$D$26)) -> 3.866827441 | E96: 24024 | F96: 92896.66243 | G96: 0.1100461 | H96: 10222.9154
B97: JC DONNELL A 1 FT UN | C97: FORT UNION | D97: =IF(LEFT(B97,12)=[2]Inputs!$C$24,[2]Inputs!$D$24,IF(LEFT(B97,13)=[2]Inputs!$C$25,[2]Inputs!$D$24,[2]Inputs!$D$26)) -> 3.866827441 | E97: 20763 | F97: 80286.93815 | G97: 0.1100461 | H97: 8835.264424
B98: POWDER WASH 20-1 FT UN | C98: FORT UNION | D98: =IF(LEFT(B98,12)=[2]Inputs!$C$24,[2]Inputs!$D$24,IF(LEFT(B98,13)=[2]Inputs!$C$25,[2]Inputs!$D$24,[2]Inputs!$D$26)) -> 3.866827441 | E98: 105937 | F98: 409640.0986 | G98: 0.125 | H98: 51205.01232
B99: CARL ALLEN A 16 WAS | C99: WASATCH | D99: =IF(LEFT(B99,12)=[2]Inputs!$C$24,[2]Inputs!$D$24,IF(LEFT(B99,13)=[2]Inputs!$C$25,[2]Inputs!$D$24,[2]Inputs!$D$26)) -> 3.866827441 | E99: 22966 | F99: 88805.559 | G99: 0.1100461 | H99: 9772.705426
B100: H STEWART A 2 FT UN | C100: FORT UNION | D100: =IF(LEFT(B100,12)=[2]Inputs!$C$24,[2]Inputs!$D$24,IF(LEFT(B100,13)=[2]Inputs!$C$25,[2]Inputs!$D$24,[2]Inputs!$D$26)) -> 3.866827441 | E100: 152861 | F100: 591087.1094 | G100: 0.1100461 | H100: 65046.83115
B101: CARL ALLEN B 9 UPPER WAS | C101: WASATCH | D101: =IF(LEFT(B101,12)=[2]Inputs!$C$24,[2]Inputs!$D$24,IF(LEFT(B101,13)=[2]Inputs!$C$25,[2]Inputs!$D$24,[2]Inputs!$D$26)) -> 3.866827441 | E101: 12405 | F101: 47967.9944 | G101: 0.1100461 | H101: 5278.690709
B102: CARL ALLEN A 2 WAS | C102: WASATCH | D102: =IF(LEFT(B102,12)=[2]Inputs!$C$24,[2]Inputs!$D$24,IF(LEFT(B102,13)=[2]Inputs!$C$25,[2]Inputs!$D$24,[2]Inputs!$D$26)) -> 3.866827441 | E102: 32690 | F102: 126406.589 | G102: 0.1100461 | H102: 13910.55214
B103: BW MUSSER 22 FT UN | C103: FORT UNION | D103: =IF(LEFT(B103,12)=[2]Inputs!$C$24,[2]Inputs!$D$24,IF(LEFT(B103,13)=[2]Inputs!$C$25,[2]Inputs!$D$24,[2]Inputs!$D$26)) -> 3.866827441 | E103: 10063 | F103: 38911.88453 | G103: 0.1100461 | H103: 4282.101137
B104: CARL ALLEN 22 FT UN | C104: FORT UNION | D104: =IF(LEFT(B104,12)=[2]Inputs!$C$24,[2]Inputs!$D$24,IF(LEFT(B104,13)=[2]Inputs!$C$25,[2]Inputs!$D$24,[2]Inputs!$D$26)) -> 3.866827441 | E104: 330149 | F104: 1276629.213 | G104: 0.1100461 | H104: 140488.066
B105: JC DONNELL 14-29 FT UN | C105: FORT UNION | D105: =IF(LEFT(B105,12)=[2]Inputs!$C$24,[2]Inputs!$D$24,IF(LEFT(B105,13)=[2]Inputs!$C$25,[2]Inputs!$D$24,[2]Inputs!$D$26)) -> 3.866827441 | E105: 69334 | F105: 268102.6138 | G105: 0.1100461 | H105: 29503.64704
B106: CARL ALLEN 23 FT UN | C106: FORT UNION | D106: =IF(LEFT(B106,12)=[2]Inputs!$C$24,[2]Inputs!$D$24,IF(LEFT(B106,13)=[2]Inputs!$C$25,[2]Inputs!$D$24,[2]Inputs!$D$26)) -> 3.866827441 | E106: 66872 | F106: 258582.4846 | G106: 0.1100461 | H106: 28455.99396
B107: BW MUSSER 23 FT UN | C107: FORT UNION | D107: =IF(LEFT(B107,12)=[2]Inputs!$C$24,[2]Inputs!$D$24,IF(LEFT(B107,13)=[2]Inputs!$C$25,[2]Inputs!$D$24,[2]Inputs!$D$26)) -> 3.866827441 | E107: 153211 | F107: 592440.499 | G107: 0.1100461 | H107: 65195.7664
B108: BW MUSSER 24 FT UN | C108: FORT UNION | D108: =IF(LEFT(B108,12)=[2]Inputs!$C$24,[2]Inputs!$D$24,IF(LEFT(B108,13)=[2]Inputs!$C$25,[2]Inputs!$D$24,[2]Inputs!$D$26)) -> 3.866827441 | E108: 88861 | F108: 343610.1532 | G108: 0.1100461 | H108: 37812.95728
B109: CARL ALLEN 26 FT UN | C109: FORT UNION | D109: =IF(LEFT(B109,12)=[2]Inputs!$C$24,[2]Inputs!$D$24,IF(LEFT(B109,13)=[2]Inputs!$C$25,[2]Inputs!$D$24,[2]Inputs!$D$26)) -> 3.866827441 | E109: 90979 | F109: 351800.0937 | G109: 0.1100461 | H109: 38714.22829
B110: BW MUSSER 25 FT UN | C110: FORT UNION | D110: =IF(LEFT(B110,12)=[2]Inputs!$C$24,[2]Inputs!$D$24,IF(LEFT(B110,13)=[2]Inputs!$C$25,[2]Inputs!$D$24,[2]Inputs!$D$26)) -> 3.866827441 | E110: 242137 | F110: 936301.996 | G110: 0.1100461 | H110: 103036.3831
B111: CARL ALLEN 25 FT UN | C111: WASATCH | D111: =IF(LEFT(B111,12)=[2]Inputs!$C$24,[2]Inputs!$D$24,IF(LEFT(B111,13)=[2]Inputs!$C$25,[2]Inputs!$D$24,[2]Inputs!$D$26)) -> 3.866827441 | E111: 234955 | F111: 908530.4413 | G111: 0.1100461 | H111: 99980.2318
B112: H STEWART 5 FT UN | C112: FORT UNION | D112: =IF(LEFT(B112,12)=[2]Inputs!$C$24,[2]Inputs!$D$24,IF(LEFT(B112,13)=[2]Inputs!$C$25,[2]Inputs!$D$24,[2]Inputs!$D$26)) -> 3.866827441 | E112: 232320 | F112: 898341.351 | G112: 0.1100461 | H112: 98858.96215
B113: CARL ALLEN 27 FT UN | C113: FORT UNION | D113: =IF(LEFT(B113,12)=[2]Inputs!$C$24,[2]Inputs!$D$24,IF(LEFT(B113,13)=[2]Inputs!$C$25,[2]Inputs!$D$24,[2]Inputs!$D$26)) -> 3.866827441 | E113: 128494 | F113: 496864.1252 | G113: 0.110046 | H113: 54677.90952
B114: CARL ALLEN 28 FT UN | C114: FORT UNION | D114: =IF(LEFT(B114,12)=[2]Inputs!$C$24,[2]Inputs!$D$24,IF(LEFT(B114,13)=[2]Inputs!$C$25,[2]Inputs!$D$24,[2]Inputs!$D$26)) -> 3.866827441 | E114: 162348 | F114: 627771.7013 | G114: 0.110046 | H114: 69083.76464
B115: CARL ALLEN 29 FT UN | C115: FORT UNION | D115: =IF(LEFT(B115,12)=[2]Inputs!$C$24,[2]Inputs!$D$24,IF(LEFT(B115,13)=[2]Inputs!$C$25,[2]Inputs!$D$24,[2]Inputs!$D$26)) -> 3.866827441 | E115: 202491 | F115: 782997.7553 | G115: 0.110046 | H115: 86165.77098
B116: BW MUSSER 27 FT UN | C116: FORT UNION | D116: =IF(LEFT(B116,12)=[2]Inputs!$C$24,[2]Inputs!$D$24,IF(LEFT(B116,13)=[2]Inputs!$C$25,[2]Inputs!$D$24,[2]Inputs!$D$26)) -> 3.866827441 | E116: 280417 | F116: 1084324.15 | G116: 0.110046 | H116: 119325.5355
B117: JC DONNELL 14 FT UN | C117: FORT UNION | D117: =IF(LEFT(B117,12)=[2]Inputs!$C$24,[2]Inputs!$D$24,IF(LEFT(B117,13)=[2]Inputs!$C$25,[2]Inputs!$D$24,[2]Inputs!$D$26)) -> 3.866827441 | E117: 45264 | F117: 175028.0773 | G117: 0.110046 | H117: 19261.13979
B118: JC DONNELL 15 FT UN | C118: FORT UNION | D118: =IF(LEFT(B118,12)=[2]Inputs!$C$24,[2]Inputs!$D$24,IF(LEFT(B118,13)=[2]Inputs!$C$25,[2]Inputs!$D$24,[2]Inputs!$D$26)) -> 3.866827441 | E118: 117800 | F118: 455512.2725 | G118: 0.110046 | H118: 50127.30354
B119: JC DONNELL 16 FT UN | C119: FORT UNION | D119: =IF(LEFT(B119,12)=[2]Inputs!$C$24,[2]Inputs!$D$24,IF(LEFT(B119,13)=[2]Inputs!$C$25,[2]Inputs!$D$24,[2]Inputs!$D$26)) -> 3.866827441 | E119: 173440 | F119: 670662.5513 | G119: 0.110046 | H119: 73803.73112
B120: BW MUSSER 28 FT UN | C120: FORT UNION | D120: =IF(LEFT(B120,12)=[2]Inputs!$C$24,[2]Inputs!$D$24,IF(LEFT(B120,13)=[2]Inputs!$C$25,[2]Inputs!$D$24,[2]Inputs!$D$26)) -> 3.866827441 | E120: 20783 | F120: 80364.2747 | G120: 0.110046 | H120: 8843.766973
B121: BW MUSSER 29 FT UN | C121: FORT UNION | D121: =IF(LEFT(B121,12)=[2]Inputs!$C$24,[2]Inputs!$D$24,IF(LEFT(B121,13)=[2]Inputs!$C$25,[2]Inputs!$D$24,[2]Inputs!$D$26)) -> 3.866827441 | E121: 226565 | F121: 876087.7591 | G121: 0.110046 | H121: 96409.95354
B122: BW MUSSER 26R FT UN | C122: FORT UNION | D122: =IF(LEFT(B122,12)=[2]Inputs!$C$24,[2]Inputs!$D$24,IF(LEFT(B122,13)=[2]Inputs!$C$25,[2]Inputs!$D$24,[2]Inputs!$D$26)) -> 3.866827441 | E122: 154573 | F122: 597707.118 | G122: 0.1100461 | H122: 65775.33728
B123: CARL ALLEN 30 FT UN | C123: FORT UNION | D123: =IF(LEFT(B123,12)=[2]Inputs!$C$24,[2]Inputs!$D$24,IF(LEFT(B123,13)=[2]Inputs!$C$25,[2]Inputs!$D$24,[2]Inputs!$D$26)) -> 3.866827441 | E123: 285612 | F123: 1104412.319 | G123: 0.110046 | H123: 121536.1581
B124: CARL ALLEN 31 FT UN | C124: FORT UNION | D124: =IF(LEFT(B124,12)=[2]Inputs!$C$24,[2]Inputs!$D$24,IF(LEFT(B124,13)=[2]Inputs!$C$25,[2]Inputs!$D$24,[2]Inputs!$D$26)) -> 3.866827441 | E124: 558350 | F124: 2159043.101 | G124: 0.110046 | H124: 237594.0571
B125: CARL ALLEN 32 FT UN | C125: FORT UNION | D125: =IF(LEFT(B125,12)=[2]Inputs!$C$24,[2]Inputs!$D$24,IF(LEFT(B125,13)=[2]Inputs!$C$25,[2]Inputs!$D$24,[2]Inputs!$D$26)) -> 3.866827441 | E125: 297607 | F125: 1150794.914 | G125: 0.110046 | H125: 126640.3771
B126: CARL ALLEN 33 FT UN | C126: FORT UNION | D126: =IF(LEFT(B126,12)=[2]Inputs!$C$24,[2]Inputs!$D$24,IF(LEFT(B126,13)=[2]Inputs!$C$25,[2]Inputs!$D$24,[2]Inputs!$D$26)) -> 3.866827441 | E126: 37018 | F126: 143142.2182 | G126: 0.110046 | H126: 15752.22854
B127: CARL ALLEN 34 FT UN | C127: FORT UNION | D127: =IF(LEFT(B127,12)=[2]Inputs!$C$24,[2]Inputs!$D$24,IF(LEFT(B127,13)=[2]Inputs!$C$25,[2]Inputs!$D$24,[2]Inputs!$D$26)) -> 3.866827441 | E127: 377411 | F127: 1459383.211 | G127: 0.110046 | H127: 160599.2849
B128: JC DONNELL 18 FT UN | C128: FORT UNION | D128: =IF(LEFT(B128,12)=[2]Inputs!$C$24,[2]Inputs!$D$24,IF(LEFT(B128,13)=[2]Inputs!$C$25,[2]Inputs!$D$24,[2]Inputs!$D$26)) -> 3.866827441 | E128: 71276 | F128: 275611.9927 | G128: 0.110046 | H128: 30329.99734
B129: BW MUSSER 32 FT UN | C129: FORT UNION | D129: =IF(LEFT(B129,12)=[2]Inputs!$C$24,[2]Inputs!$D$24,IF(LEFT(B129,13)=[2]Inputs!$C$25,[2]Inputs!$D$24,[2]Inputs!$D$26)) -> 3.866827441 | E129: 264155 | F129: 1021441.803 | G129: 0.110046 | H129: 112405.5846
B130: STEWART 6 FT UN | C130: FORT UNION | D130: =IF(LEFT(B130,12)=[2]Inputs!$C$24,[2]Inputs!$D$24,IF(LEFT(B130,13)=[2]Inputs!$C$25,[2]Inputs!$D$24,[2]Inputs!$D$26)) -> 3.866827441 | E130: 246321 | F130: 952480.802 | G130: 0.110046 | H130: 104816.7023
B131: BW MUSSER 36 FT UN | C131: FORT UNION | D131: =IF(LEFT(B131,12)=[2]Inputs!$C$24,[2]Inputs!$D$24,IF(LEFT(B131,13)=[2]Inputs!$C$25,[2]Inputs!$D$24,[2]Inputs!$D$26)) -> 3.866827441 | E131: 340043 | F131: 1314887.603 | G131: 0.110046 | H131: 144698.1212
B132: BW MUSSER 37 FT UN | C132: FORT UNION | D132: =IF(LEFT(B132,12)=[2]Inputs!$C$24,[2]Inputs!$D$24,IF(LEFT(B132,13)=[2]Inputs!$C$25,[2]Inputs!$D$24,[2]Inputs!$D$26)) -> 3.866827441 | E132: 279867 | F132: 1082197.395 | G132: 0.110046 | H132: 119091.4946
B133: CARL ALLEN 35 FT UN | C133: FORT UNION | D133: =IF(LEFT(B133,12)=[2]Inputs!$C$24,[2]Inputs!$D$24,IF(LEFT(B133,13)=[2]Inputs!$C$25,[2]Inputs!$D$24,[2]Inputs!$D$26)) -> 3.866827441 | E133: 305461 | F133: 1181164.977 | G133: 0.110046 | H133: 129982.481
B134: CARL ALLEN 36 FT UN | C134: FORT UNION | D134: =IF(LEFT(B134,12)=[2]Inputs!$C$24,[2]Inputs!$D$24,IF(LEFT(B134,13)=[2]Inputs!$C$25,[2]Inputs!$D$24,[2]Inputs!$D$26)) -> 3.866827441 | E134: 430783 | F134: 1665763.525 | G134: 0.110046 | H134: 183310.6129
B135: CARL ALLEN A 14 WAS | C135: WASATCH | D135: =IF(LEFT(B135,12)=[2]Inputs!$C$24,[2]Inputs!$D$24,IF(LEFT(B135,13)=[2]Inputs!$C$25,[2]Inputs!$D$24,[2]Inputs!$D$26)) -> 3.866827441 | E135: 52 | F135: 201.0750269 | G135: 0.1100461 | H135: 22.12752252
B136: BW MUSSER 35 FT UN | C136: FORT UNION | D136: =IF(LEFT(B136,12)=[2]Inputs!$C$24,[2]Inputs!$D$24,IF(LEFT(B136,13)=[2]Inputs!$C$25,[2]Inputs!$D$24,[2]Inputs!$D$26)) -> 3.866827441 | E136: 20066 | F136: 77591.75942 | G136: 0.110046 | H136: 8538.662758
B137: BW MUSSER 35 LANCE | C137: LANCE | D137: =IF(LEFT(B137,12)=[2]Inputs!$C$24,[2]Inputs!$D$24,IF(LEFT(B137,13)=[2]Inputs!$C$25,[2]Inputs!$D$24,[2]Inputs!$D$26)) -> 3.866827441 | E137: 621 | F137: 2401.299841 | G137: 0.12 | H137: 288.1559809
B138: BW MUSSER 72 FT UN | C138: FORT UNION | D138: =IF(LEFT(B138,12)=[2]Inputs!$C$24,[2]Inputs!$D$24,IF(LEFT(B138,13)=[2]Inputs!$C$25,[2]Inputs!$D$24,[2]Inputs!$D$26)) -> 3.866827441 | E138: 7119 | F138: 27527.94455 | G138: 0.110046 | H138: 3029.340186
B139: BW MUSSER 72 LANCE | C139: LANCE | D139: =IF(LEFT(B139,12)=[2]Inputs!$C$24,[2]Inputs!$D$24,IF(LEFT(B139,13)=[2]Inputs!$C$25,[2]Inputs!$D$24,[2]Inputs!$D$26)) -> 3.866827441 | E139: 454 | F139: 1755.539658 | G139: 0.12 | H139: 210.664759
B140: BW MUSSER 73 FT UN | C140: FORT UNION | D140: =IF(LEFT(B140,12)=[2]Inputs!$C$24,[2]Inputs!$D$24,IF(LEFT(B140,13)=[2]Inputs!$C$25,[2]Inputs!$D$24,[2]Inputs!$D$26)) -> 3.866827441 | E140: 2185 | F140: 8449.017958 | G140: 0.110046 | H140: =F140*G140 -> 929.7806302
B141: BW MUSSER 73 LANCE | C141: LANCE | D141: =IF(LEFT(B141,12)=[2]Inputs!$C$24,[2]Inputs!$D$24,IF(LEFT(B141,13)=[2]Inputs!$C$25,[2]Inputs!$D$24,[2]Inputs!$D$26)) -> 3.866827441 | E141: 2185 | F141: =D141*E141 -> 8449.017958 | G141: 0.12 | H141: 1013.882155
A142: RABBIT MTN (CO) | B142: MF FEDERAL 8-1 MANCOS B | C142: MANCOS B | D142: =IF(LEFT(B142,12)=[2]Inputs!$C$24,[2]Inputs!$D$24,IF(LEFT(B142,13)=[2]Inputs!$C$25,[2]Inputs!$D$24,[2]Inputs!$D$26)) -> 3.866827441 | E142: 37486 | F142: 144951.8934 | G142: 0.155 | H142: 22467.54348
B143: RABBIT MTN FED 7-1 MANCOS B | C143: MANCOS B | D143: =IF(LEFT(B143,12)=[2]Inputs!$C$24,[2]Inputs!$D$24,IF(LEFT(B143,13)=[2]Inputs!$C$25,[2]Inputs!$D$24,[2]Inputs!$D$26)) -> 3.866827441 | E143: 42531 | F143: 164460.0379 | G143: 0.125 | H143: 20557.50473
A144: SUGAR LOAF (CO) | B144: SUGARLOAF GOVT 1 MESA | C144: MESAVERDE | D144: =IF(LEFT(B144,12)=[2]Inputs!$C$24,[2]Inputs!$D$24,IF(LEFT(B144,13)=[2]Inputs!$C$25,[2]Inputs!$D$24,[2]Inputs!$D$26)) -> 3.866827441 | E144: 65386 | F144: 252836.379 | G144: 0.13375 | H144: 33816.8657
B145: SUGARLOAF GOVT 2 MESA | C145: MESAVERDE | D145: =IF(LEFT(B145,12)=[2]Inputs!$C$24,[2]Inputs!$D$24,IF(LEFT(B145,13)=[2]Inputs!$C$25,[2]Inputs!$D$24,[2]Inputs!$D$26)) -> 3.866827441 | E145: 92321 | F145: 356989.3761 | G145: 0.13375 | H145: 47747.32906
B146: SUGARLOAF GOVT 3 FT UN | C146: FORT UNION | D146: =IF(LEFT(B146,12)=[2]Inputs!$C$24,[2]Inputs!$D$24,IF(LEFT(B146,13)=[2]Inputs!$C$25,[2]Inputs!$D$24,[2]Inputs!$D$26)) -> 3.866827441 | E146: 48364 | F146: 187015.2423 | G146: 0.13375 | H146: 25013.28866
B147: SUGARLOAF GOVT 4 MESA | C147: MESAVERDE | D147: =IF(LEFT(B147,12)=[2]Inputs!$C$24,[2]Inputs!$D$24,IF(LEFT(B147,13)=[2]Inputs!$C$25,[2]Inputs!$D$24,[2]Inputs!$D$26)) -> 3.866827441 | E147: 11650 | F147: 45048.53968 | G147: 0.13375 | H147: 6025.242183
B148: SUGARLOAF GOVT 6 MESA | C148: MESAVERDE | D148: =IF(LEFT(B148,12)=[2]Inputs!$C$24,[2]Inputs!$D$24,IF(LEFT(B148,13)=[2]Inputs!$C$25,[2]Inputs!$D$24,[2]Inputs!$D$26)) -> 3.866827441 | E148: 45220 | F148: 174857.9369 | G148: 0.13375 | H148: 23387.24906
B149: SUGARLOAF GOVT 8 MESA | C149: MESAVERDE | D149: =IF(LEFT(B149,12)=[2]Inputs!$C$24,[2]Inputs!$D$24,IF(LEFT(B149,13)=[2]Inputs!$C$25,[2]Inputs!$D$24,[2]Inputs!$D$26)) -> 3.866827441 | E149: 14885 | F149: 57557.72645 | G149: 0.13375 | H149: 7698.345913
B150: SUGARLOAF GOVT 10 MESA | C150: MESAVERDE | D150: =IF(LEFT(B150,12)=[2]Inputs!$C$24,[2]Inputs!$D$24,IF(LEFT(B150,13)=[2]Inputs!$C$25,[2]Inputs!$D$24,[2]Inputs!$D$26)) -> 3.866827441 | E150: 98486 | F150: 380828.3673 | G150: 0.13375 | H150: 50935.79413
B151: SUGARLOAF GOVT 12 MESA | C151: MESAVERDE | D151: =IF(LEFT(B151,12)=[2]Inputs!$C$24,[2]Inputs!$D$24,IF(LEFT(B151,13)=[2]Inputs!$C$25,[2]Inputs!$D$24,[2]Inputs!$D$26)) -> 3.866827441 | E151: 2522 | F151: 9752.138805 | G151: 0.13375 | H151: 1304.348565
B152: SUGARLOAF GOVT 14 MESA | C152: MESAVERDE | D152: =IF(LEFT(B152,12)=[2]Inputs!$C$24,[2]Inputs!$D$24,IF(LEFT(B152,13)=[2]Inputs!$C$25,[2]Inputs!$D$24,[2]Inputs!$D$26)) -> 3.866827441 | E152: 11601 | F152: 44859.06514 | G152: 0.13375 | H152: 5999.899962
B153: SUGARLOAF GOVT 15 MESA | C153: MESAVERDE | D153: =IF(LEFT(B153,12)=[2]Inputs!$C$24,[2]Inputs!$D$24,IF(LEFT(B153,13)=[2]Inputs!$C$25,[2]Inputs!$D$24,[2]Inputs!$D$26)) -> 3.866827441 | E153: 39593 | F153: 153099.2989 | G153: 0.13375 | H153: 20477.03122
B154: SUGARLOAF GOVT 17 ALMOND | C154: ALMOND | D154: =IF(LEFT(B154,12)=[2]Inputs!$C$24,[2]Inputs!$D$24,IF(LEFT(B154,13)=[2]Inputs!$C$25,[2]Inputs!$D$24,[2]Inputs!$D$26)) -> 3.866827441 | E154: 216680 | F154: 837864.1698 | G154: 0.20375 | H154: 170714.8246
A155: W HIAW (CO) | B155: WB LASHER A 2 WAS | C155: WASATCH | D155: =IF(LEFT(B155,12)=[2]Inputs!$C$24,[2]Inputs!$D$24,IF(LEFT(B155,13)=[2]Inputs!$C$25,[2]Inputs!$D$24,[2]Inputs!$D$26)) -> 3.866827441 | E155: 23279 | F155: 90015.87599 | G155: 0.1925 | H155: 17328.05613
B156: WB LASHER A 4 FT UN | C156: FORT UNION | D156: =IF(LEFT(B156,12)=[2]Inputs!$C$24,[2]Inputs!$D$24,IF(LEFT(B156,13)=[2]Inputs!$C$25,[2]Inputs!$D$24,[2]Inputs!$D$26)) -> 3.866827441 | E156: 57513 | F156: 222392.8466 | G156: 0.1925 | H156: 42810.62297
B157: WM WHEELER A 2 WAS | C157: WASATCH | D157: =IF(LEFT(B157,12)=[2]Inputs!$C$24,[2]Inputs!$D$24,IF(LEFT(B157,13)=[2]Inputs!$C$25,[2]Inputs!$D$24,[2]Inputs!$D$26)) -> 3.866827441 | E157: 36790 | F157: 142260.5815 | G157: 0.1925 | H157: 27385.16195
B158: WM WHEELER A 2 FT UN | C158: FORT UNION | D158: =IF(LEFT(B158,12)=[2]Inputs!$C$24,[2]Inputs!$D$24,IF(LEFT(B158,13)=[2]Inputs!$C$25,[2]Inputs!$D$24,[2]Inputs!$D$26)) -> 3.866827441 | E158: 26920 | F158: 104094.9947 | G158: 0.1925 | H158: 20038.28648
B159: WM WHEELER A 3 FT UN | C159: FORT UNION | D159: =IF(LEFT(B159,12)=[2]Inputs!$C$24,[2]Inputs!$D$24,IF(LEFT(B159,13)=[2]Inputs!$C$25,[2]Inputs!$D$24,[2]Inputs!$D$26)) -> 3.866827441 | E159: 40807 | F159: 157793.6274 | G159: 0.1925 | H159: 30375.27327
B160: WB LASHER A 5 FT UN | C160: FORT UNION | D160: =IF(LEFT(B160,12)=[2]Inputs!$C$24,[2]Inputs!$D$24,IF(LEFT(B160,13)=[2]Inputs!$C$25,[2]Inputs!$D$24,[2]Inputs!$D$26)) -> 3.866827441 | E160: 20553 | F160: 79474.90439 | G160: 0.1840625 | H160: 14628.34959
B161: WB LASHER A 6 LEW/LNC/FT UN | C161: LANCE/LEWIS | D161: =IF(LEFT(B161,12)=[2]Inputs!$C$24,[2]Inputs!$D$24,IF(LEFT(B161,13)=[2]Inputs!$C$25,[2]Inputs!$D$24,[2]Inputs!$D$26)) -> 3.866827441 | E161: 84805 | F161: 327926.3011 | G161: 0.1925 | H161: 63125.81296
B162: WM WHEELER A 4 LEW/LNC/FT UN | C162: LANCE/LEWIS | D162: =IF(LEFT(B162,12)=[2]Inputs!$C$24,[2]Inputs!$D$24,IF(LEFT(B162,13)=[2]Inputs!$C$25,[2]Inputs!$D$24,[2]Inputs!$D$26)) -> 3.866827441 | E162: 107533 | F162: 415811.5552 | G162: 0.1925 | H162: 80043.72437
B163: LASHER 7 LEWIS | C163: LEWIS | D163: =IF(LEFT(B163,12)=[2]Inputs!$C$24,[2]Inputs!$D$24,IF(LEFT(B163,13)=[2]Inputs!$C$25,[2]Inputs!$D$24,[2]Inputs!$D$26)) -> 3.866827441 | E163: 126454 | F163: 488975.7972 | G163: 0.1925 | H163: 94127.84096
B164: LASHER 8 LEWIS | C164: LEWIS | D164: =IF(LEFT(B164,12)=[2]Inputs!$C$24,[2]Inputs!$D$24,IF(LEFT(B164,13)=[2]Inputs!$C$25,[2]Inputs!$D$24,[2]Inputs!$D$26)) -> 3.866827441 | E164: 31246 | F164: 120822.8902 | G164: 0.1840625 | H164: 22238.96323
B165: LASHER 9 LEWIS | C165: LEWIS | D165: =IF(LEFT(B165,12)=[2]Inputs!$C$24,[2]Inputs!$D$24,IF(LEFT(B165,13)=[2]Inputs!$C$25,[2]Inputs!$D$24,[2]Inputs!$D$26)) -> 3.866827441 | E165: 60426 | F165: 233656.9149 | G165: 0.1840625 | H165: 43007.4759
B166: LASHER 10 MESA | C166: MESAVERDE | D166: =IF(LEFT(B166,12)=[2]Inputs!$C$24,[2]Inputs!$D$24,IF(LEFT(B166,13)=[2]Inputs!$C$25,[2]Inputs!$D$24,[2]Inputs!$D$26)) -> 3.866827441 | E166: 13857 | F166: 53582.62784 | G166: 0.2540625 | H166: 13613.33639
B167: LASHER 10 FT UN | C167: FORT UNION | D167: =IF(LEFT(B167,12)=[2]Inputs!$C$24,[2]Inputs!$D$24,IF(LEFT(B167,13)=[2]Inputs!$C$25,[2]Inputs!$D$24,[2]Inputs!$D$26)) -> 3.866827441 | E167: 13451 | F167: 52012.6959 | G167: 0.1840625 | H167: 9573.58684
